Workbook

Sheet ^
H2: Interventi Trainanti | J2: Massimali di Spesa
J3: Spesa Ammessa
D4: Dati Titolare | H4: Interventi Trainati | J4: Quota Eccedente
B6: Titolare | D6: Attivazione software | F6: Computo Massimali | H6: Altri Interventi (50%, 65%, ..)
D8: Help | H8: Importo Totale
H10: Quota a Carico Cliente
D11: ='Dati Gen'!B4 -> Tipologia Immobile
D13: ='Dati Gen'!B7 -> Dati Edificio
D15: Dati Progetto / Importi Computo
B16: Dati Generali
D17: Spese Tecniche
D19: Appaltatore / General Contractor
D21: Tecnici (Progettista, DDLL., Asseveratori, ..)
B31: MODULI ATTIVI con CONTRATTO ASSISTENZA
B33: Cessione Credito
B35: Asseverazioni

Sheet Titolare
B1: =CONCATENATE('Dati Gen'!K2, " ",'Dati Gen'!K3," ",'Dati Gen'!L3) -> Pratica.110plus Vers.ne 4.3.1
B2: Titolo
B3: Cognome
B4: Nome
B5: Codice Fiscale
B6: P.Iva
B7: Indirizzo
B8: CAP
B9: Città
B10: Provincia
B11: Telefono
B12: Mail
B13: Codice Univoco
B14: Mail/Pec
A15: TRUE
B16: Versione Demo
C17: PC-MARIO3
B18: =IF(B16="Versione Demo","Acquista Pratica110plus",IF(_xlfn.XOR(MID(B16,19,1)="1",MID(B16,19,1)="4",MID(B16,19,1)="6",MID(B16,19,1)="8"),"","Acquista Contratto Assistenza e Manutenzione")) -> Acquista Pratica110plus
B19: =IF(B16="Versione Demo",HYPERLINK("https://www.madosoft.it/negozio/superbonus-110/pratica110plus-contratto110"),IF(B18<>"",HYPERLINK("https://www.madosoft.it/negozio/superbonus-110/contratto110"),"")) -> https://www.madosoft.it/negozio/superbonus-110/pratica110plus-contratto110
B23: Guida online | C23: https://www.madosoft.it/prodotti/superbonus110/pratica-110-xlsm
B24: Introduzione
B25: Download
B26: Attivazione Software
B27: Dati Generali
B28: Tipologia Edificio
B29: Dati Progetto
B30: Committenti
B31: Unità Immobiliari
B32: Computo Massimali
B33: Interventi Trainanti
B34: Interventi Trainati Parti Comuni condominiali
B35: Interventi Trainanti Unità Immobiliari

Sheet Dati Gen
B1: https://www.madosoft.it/prodotti/superbonus110/pratica-110-xlsm | P1: 1 | Q1: 1
A2: 0 | K2: Pratica.110plus | N2: =IF(Titolare!B16="Versione Demo","Versione Demo","") -> Versione Demo | Q2: Edificio Unifamiliare
B3: PRATICA SUPERBONUS 110% | F3: N. | G3: 1 | K3: Vers.ne | L3: 4.3.1 | P3: 1 | Q3: 1
B4: Tipologia Immobile | K4: ©2021-2022 SIM srl - www.madosoft.it
B5: 1 | F5: 2 | G5: 1 | H5: =IF(TipoEdif=2,"Denominazione : ","") ->  | Q5: Edificio Unifamiliare
B6: =IF(TipoEdif=1, IF(N_Uimm>1,"Inserire N.Unità Immobiliari =1",""),IF(N_Uimm<=1,"Inserire N.Unità Immobiliari >=2","")) ->  | H6: =IF(TipoEdif=2,"Codice Fiscale : ","") ->  | Q6: Condominio
B7: Dati Edificio | Q7: 1
B8: Comune di Ubicazione | M8: CAP | Q8: =Q7+1 -> 2
B9: Indirizzo | K9: N. | M9: Zona | N9: D | Q9: =Q8+1 -> 3
B10: =IF(TipoEdif=2,"Dati Catastali 1ª U.I.","Dati Catastali") -> Dati Catastali | C10: Cod.Comune | F10: Foglio | H10: Particella | K10: Sub. | M10: CAT. | N10: A/4 | Q10: 4
B11: Anno di Costruzione Immobile | H11: Superficie Totale Disperdente : | Q11: 5
B12: Autorizzazione Edilizia | E12: Licenza Edilizia / Titolo Edilizio | K12: =IF(E12="Licenza Edilizia / Titolo Edilizio","N.",IF(E12="Concessione in Sanatoria","N.","")) -> N. | M12: Data | Q12: 6
B13: Relazione ex Legge 10/91 Depositata al Comune in Data | K13: Prot. N. | Q13: 7
B14: Data Inizio Lavori | G14: Immobile Vincolato/Restriz.Edilizie | K14: SI | L14: Edilizia Libera | N14: NO | Q14: 8
Q15: 9
B16: DATI DI PROGETTO | C16: Oggetto Lavori : | F16: PROGETTO PER IL MIGLIORAMENTO ENERGETICO DEL FABBRICATO SITO IN VIA _____ N.____ – FG.__ P.LLA ___ SUB.___ : CILAS N.___ del _______ | Q16: 10
B17: Descrizione | F17: Imponibile | J17: %iva | K17: IVA | M17: Totale | Q17: 11
B18: Importo complessivo Lavori | G18: 0 | J18: 0.1 | K18: =G18*J18 -> 0 | M18: =G18+K18 -> 0 | Q18: 12
B19: di cui Oneri/Lavori x Sicurezza | G19: 0 | J19: =J18 -> 0.1 | K19: =G19*J19 -> 0 | M19: =G19+K19 -> 0 | Q19: 13
B20: Importo Lavori al netto della Sicurezza | G20: =G18-G19 -> 0 | J20: =J18 -> 0.1 | K20: =G20*J20 -> 0 | M20: =G20+K20 -> 0 | Q20: 14
B21: Spese tecniche (compresa iva) | G21: =M36 -> 0 | M21: =G21 -> 0 | Q21: 15
G22: Importo Complessivo Progetto : | M22: =M18+M21 -> 0 | Q22: 16
Q23: 17
B24: SPESE TECNICHE | C24: Tecnico | E24: Onorario | G24: C.Cassa | J24: IVA | M24: Totale | Q24: 18 | S24: Foto 1
B25: Redazione APE ante, Progettazione energetica | C25: Architetto1 | E25: 0 | G25: 0.04 | H25: =E25*G25 -> 0 | J25: 0.22 | K25: =(E25+H25)*J25 -> 0 | M25: =E25+H25+K25 -> 0 | Q25: 19 | R25: =IF(C25<>"",IFERROR(IF(VLOOKUP(C25,$B$44:$D$51,3,FALSE)="NO",IF(J25=0,"Attenzione, tecnico esente iva (Forfettario) dovrebbe applicare sconto in fattura. Le relative competenze saranno inserite nella Fattura del G.C. come rimborso spese con IVA=0 <<<<<< Consulenti non d'accordo",""),""),""),"") -> 
B26: Progettazione e DD.LL. | C26: Architetto1 | E26: 0 | G26: 0.04 | H26: 0 | J26: 0.22 | K26: 0 | M26: =E26+H26+K26 -> 0 | Q26: 20 | R26: =IF(C26<>"",IFERROR(IF(VLOOKUP(C26,$B$44:$D$51,3,FALSE)="NO",IF(J26=0,"Attenzione, tecnico esente iva (Forfettario) dovrebbe applicare sconto in fattura. Le relative competenze saranno inserite nella Fattura del G.C. come rimborso spese con IVA=0 <<<<<< Consulenti non d'accordo",""),""),""),"") -> 
B27: Coordinamento sicurezza | C27: Ingegnere2 | E27: 0 | G27: 0.04 | H27: 0 | J27: 0.22 | K27: 0 | M27: =E27+H27+K27 -> 0 | Q27: 21
B28: Redazione APE post | C28: Architetto1 | E28: 0 | G28: 0.04 | H28: 0 | J28: 0.22 | K28: 0 | M28: 0 | Q28: 22
G29: 0.04 | H29: 0 | J29: 0.22 | K29: 0 | M29: 0 | Q29: 23
E30: 0 | G30: 0.04 | H30: 0 | J30: 0.22 | K30: 0 | M30: 0 | Q30: 24
E31: 0 | G31: 0.04 | H31: 0 | J31: 0.22 | K31: 0 | M31: 0 | Q31: 25
E32: 0 | G32: 0.04 | H32: 0 | J32: 0.22 | K32: 0 | M32: 0 | Q32: 26
E33: =SUM(E25:F32) -> 0 | H33: =SUM(H25:I32) -> 0 | K33: =SUM(K25:L32) -> 0 | M33: =SUM(M25:N32) -> 0 | Q33: 27
E34: onorario | G34: c.cassa | J34: iva | M34: totale | Q34: 28
B35: Visto Conformità | C35: Consulente1 | D35: 0.02 | E35: =G18*D35 -> 0 | G35: 0.04 | H35: =E35*G35 -> 0 | J35: 0.22 | K35: =(E35+H35)*J35 -> 0 | M35: =E35+H35+K35 -> 0 | Q35: 29 | R35: =IF(C35<>"",IFERROR(IF(VLOOKUP(C35,$B$44:$D$51,3,FALSE)="NO",IF(J35=0,"Attenzione, tecnico esente iva (Forfettario) dovrebbe applicare sconto in fattura. Le relative competenze saranno inserite nella Fattura del G.C. come rimborso spese con IVA=0 <<<<<< Consulenti non d'accordo",""),""),""),"") -> 
E36: =E33+E35 -> 0 | H36: =H33+H35 -> 0 | K36: =K33+K35 -> 0 | M36: =M33+M35 -> 0 | Q36: 30
Q37: 31
B38: Appaltatore / General Contractor / Soggetto Principale a cui viene ceduto il credito | Q38: 32
B39: Denominazione | C39: SIM srl | F39: CF/Piva | L39: Tel. | Q39: 33
B40: Indirizzo | F40: Città | L40: Mail | Q40: 34
B41: Dati Pagamento | Q41: 35
Q42: 36
B43: TECNICI | D43: Sc.to | E43: Indirizzo | G43: Città | J43: CodFisc/Piva | L43: Tel./Mail | N43: Dati Pagamento | Q43: 37
B44: Architetto1 | D44: SI | N44: Bonifico Bancario | Zafonte Mario | Banca Unicredit | IBAN : IT35S0200843240000300246664 | Q44: 38
B45: Ingegnere2 | D45: NO | Q45: 39
B46: Consulente1 | D46: NO | Q46: 40
D47: NO | Q47: 41
D48: NO | Q48: 42
D49: NO | Q49: 43
D50: NO | Q50: 44
D51: NO | Q51: 45
Q52: 46 | S52: Foto 2
Q53: 47
Q54: 48
Q55: 49
Q56: 50
Q57: 51
Q58: 52
Q59: 53
Q60: 54
Q61: 55
Q62: 56
Q63: 57
Q64: 58
Q65: 59
Q66: 60
Q67: 61
Q68: 62
Q69: 63
Q70: 64
Q71: 65
Q72: 66
Q73: =Q72+1 -> 67
Q74: 68
Q75: 69
Q76: 70
Q77: 71
Q78: 72
Q79: 73
Q80: 74
Q81: 75
Q82: 76
Q83: 77
Q84: 78
Q85: 79
Q86: 80
Q87: 81
Q88: 82
Q89: 83
Q90: 84
Q91: 85
Q92: 86
Q93: 87
Q94: 88
Q95: 89
Q96: 90
Q97: 91
Q98: 92
Q99: 93
Q100: 94
Q101: 95
Q102: 96
Q103: 97
Q104: 98
Q105: 99
Q106: 100
Q107: 101
Q108: 102
Q109: 103
Q110: 104
Q111: 105
Q112: 106
Q113: 107
Q114: 108
Q115: 109
Q116: 110
Q117: 111
Q118: 112
Q119: 113
Q120: 114
Q121: 115
Q122: 116
Q123: 117
Q124: 118
Q125: 119
Q126: 120
Q127: 121
Q128: 122
Q129: 123
Q130: 124
Q131: 125
Q132: 126
Q133: 127
Q134: 128
Q135: 129
Q136: 130
Q137: =Q136+1 -> 131
Q138: 132
Q139: 133
Q140: 134
Q141: 135
Q142: 136
Q143: 137
Q144: 138
Q145: 139
Q146: 140
Q147: 141
Q148: 142
Q149: 143
Q150: 144
Q151: 145
Q152: 146
Q153: 147
Q154: 148
Q155: 149
Q156: 150
Q157: 151
Q158: 152
Q159: 153
Q160: 154
Q161: 155
Q162: 156
Q163: 157
Q164: 158
Q165: 159
Q166: 160
Q167: 161
Q168: 162
Q169: 163
Q170: 164
Q171: 165
Q172: 166
Q173: 167
Q174: 168
Q175: 169
Q176: 170
Q177: 171
Q178: 172
Q179: 173
Q180: 174
Q181: 175
Q182: 176
Q183: 177
Q184: 178
Q185: 179
Q186: 180
Q187: 181
Q188: 182
Q189: 183
Q190: 184
Q191: 185
Q192: 186
Q193: 187
Q194: 188
Q195: 189
Q196: 190
Q197: 191
Q198: 192
Q199: 193
Q200: 194
... 806 more rows

Sheet Committenti
B1: Elenco Committenti | O1: =CONCATENATE('Dati Gen'!K2, " ",'Dati Gen'!K3," ",'Dati Gen'!L3) -> Pratica.110plus Vers.ne 4.3.1
B2: Cognome | C2: Nome | D2: Codice Fiscale | E2: Sesso | F2: Data Nascita | G2: Nazione Nasc | H2: Comune Nascita | I2: Nazione Res. | J2: Comune Residenza | K2: Prov. | L2: Indirizzo | M2: CAP | N2: Telefono | O2: Mail
A3: =IF(B3<>"",1,"") -> 1 | B3: Tizio | C3: Caio
A4: =IF(B4<>"", IF(A3<>"",A3+1,""),"") -> 
A5: =IF(B5<>"", IF(A4<>"",A4+1,""),"") -> 
A69: =IF(B69<>"", IF(A68<>"",A68+1,""),"") -> 
A133: =IF(B133<>"", IF(A132<>"",A132+1,""),"") -> 
A197: =IF(B197<>"", IF(A196<>"",A196+1,""),"") -> 
A261: =IF(B261<>"", IF(A260<>"",A260+1,""),"") -> 
A325: =IF(B325<>"", IF(A324<>"",A324+1,""),"") -> 
A389: =IF(B389<>"", IF(A388<>"",A388+1,""),"") -> 
A453: =IF(B453<>"", IF(A452<>"",A452+1,""),"") -> 
A517: =IF(B517<>"", IF(A516<>"",A516+1,""),"") -> 
A581: =IF(B581<>"", IF(A580<>"",A580+1,""),"") -> 
A645: =IF(B645<>"", IF(A644<>"",A644+1,""),"") -> 
A709: =IF(B709<>"", IF(A708<>"",A708+1,""),"") -> 
A773: =IF(B773<>"", IF(A772<>"",A772+1,""),"") -> 
A837: =IF(B837<>"", IF(A836<>"",A836+1,""),"") -> 
A901: =IF(B901<>"", IF(A900<>"",A900+1,""),"") -> 
A965: =IF(B965<>"", IF(A964<>"",A964+1,""),"") -> 

Sheet UnitàImmobiliari (hidden)
B1: Elenco Unità Immobiliari | F1: Beneficiario 1 | H1: Beneficiario 2 | J1: Beneficiario 3 | L1: Beneficiario 4 | N1: Beneficiario 5
B2: Foglio | C2: Particella | D2: Sub. | E2: Categoria | F2: Codice Fiscale | G2: Titolo Possesso | H2: Codice Fiscale | I2: Titolo Possesso | J2: Codice Fiscale | K2: Titolo Possesso | L2: Codice Fiscale | M2: Titolo Possesso | N2: Codice Fiscale | O2: Titolo Possesso | Q2: Elenco Committenti
A3: =IF(B3<>"",1,"") -> 1 | B3: =nFoglio1 -> 0 | C3: =nPlla1 -> 0 | D3: =nSUB1 -> 0 | E3: =Categoria1 -> A/4 | Q3: =IF(Committenti!D3<>"",CONCATENATE(Committenti!B3," ",Committenti!C3," CF: ",Committenti!D3),"") -> 
A4: =IF(B4<>"", IF(A3<>"",A3+1,""),"") ->  | Q4: =IF(Committenti!D4<>"",CONCATENATE(Committenti!B4," ",Committenti!C4," CF: ",Committenti!D4),"") -> 
A5: =IF(B5<>"", IF(A4<>"",A4+1,""),"") ->  | Q5: =IF(Committenti!D5<>"",CONCATENATE(Committenti!B5," ",Committenti!C5," CF: ",Committenti!D5),"") -> 
Q6: =IF(Committenti!D6<>"",CONCATENATE(Committenti!B6," ",Committenti!C6," CF: ",Committenti!D6),"") -> 
Q7: =IF(Committenti!D7<>"",CONCATENATE(Committenti!B7," ",Committenti!C7," CF: ",Committenti!D7),"") -> 
Q8: =IF(Committenti!D8<>"",CONCATENATE(Committenti!B8," ",Committenti!C8," CF: ",Committenti!D8),"") -> 
Q9: =IF(Committenti!D9<>"",CONCATENATE(Committenti!B9," ",Committenti!C9," CF: ",Committenti!D9),"") -> 
Q10: =IF(Committenti!D10<>"",CONCATENATE(Committenti!B10," ",Committenti!C10," CF: ",Committenti!D10),"") -> 
Q11: =IF(Committenti!D11<>"",CONCATENATE(Committenti!B11," ",Committenti!C11," CF: ",Committenti!D11),"") -> 
Q12: =IF(Committenti!D12<>"",CONCATENATE(Committenti!B12," ",Committenti!C12," CF: ",Committenti!D12),"") -> 
Q13: =IF(Committenti!D13<>"",CONCATENATE(Committenti!B13," ",Committenti!C13," CF: ",Committenti!D13),"") -> 
Q14: =IF(Committenti!D14<>"",CONCATENATE(Committenti!B14," ",Committenti!C14," CF: ",Committenti!D14),"") -> 
Q15: =IF(Committenti!D15<>"",CONCATENATE(Committenti!B15," ",Committenti!C15," CF: ",Committenti!D15),"") -> 
Q16: =IF(Committenti!D16<>"",CONCATENATE(Committenti!B16," ",Committenti!C16," CF: ",Committenti!D16),"") -> 
Q17: =IF(Committenti!D17<>"",CONCATENATE(Committenti!B17," ",Committenti!C17," CF: ",Committenti!D17),"") -> 
Q18: =IF(Committenti!D18<>"",CONCATENATE(Committenti!B18," ",Committenti!C18," CF: ",Committenti!D18),"") -> 
Q19: =IF(Committenti!D19<>"",CONCATENATE(Committenti!B19," ",Committenti!C19," CF: ",Committenti!D19),"") -> 
Q20: =IF(Committenti!D20<>"",CONCATENATE(Committenti!B20," ",Committenti!C20," CF: ",Committenti!D20),"") -> 
Q21: =IF(Committenti!D21<>"",CONCATENATE(Committenti!B21," ",Committenti!C21," CF: ",Committenti!D21),"") -> 
Q22: =IF(Committenti!D22<>"",CONCATENATE(Committenti!B22," ",Committenti!C22," CF: ",Committenti!D22),"") -> 
Q23: =IF(Committenti!D23<>"",CONCATENATE(Committenti!B23," ",Committenti!C23," CF: ",Committenti!D23),"") -> 
Q24: =IF(Committenti!D24<>"",CONCATENATE(Committenti!B24," ",Committenti!C24," CF: ",Committenti!D24),"") -> 
Q25: =IF(Committenti!D25<>"",CONCATENATE(Committenti!B25," ",Committenti!C25," CF: ",Committenti!D25),"") -> 
Q26: =IF(Committenti!D26<>"",CONCATENATE(Committenti!B26," ",Committenti!C26," CF: ",Committenti!D26),"") -> 
Q27: =IF(Committenti!D27<>"",CONCATENATE(Committenti!B27," ",Committenti!C27," CF: ",Committenti!D27),"") -> 
Q28: =IF(Committenti!D28<>"",CONCATENATE(Committenti!B28," ",Committenti!C28," CF: ",Committenti!D28),"") -> 
Q29: =IF(Committenti!D29<>"",CONCATENATE(Committenti!B29," ",Committenti!C29," CF: ",Committenti!D29),"") -> 
Q30: =IF(Committenti!D30<>"",CONCATENATE(Committenti!B30," ",Committenti!C30," CF: ",Committenti!D30),"") -> 
Q31: =IF(Committenti!D31<>"",CONCATENATE(Committenti!B31," ",Committenti!C31," CF: ",Committenti!D31),"") -> 
Q32: =IF(Committenti!D32<>"",CONCATENATE(Committenti!B32," ",Committenti!C32," CF: ",Committenti!D32),"") -> 
Q33: =IF(Committenti!D33<>"",CONCATENATE(Committenti!B33," ",Committenti!C33," CF: ",Committenti!D33),"") -> 
Q34: =IF(Committenti!D34<>"",CONCATENATE(Committenti!B34," ",Committenti!C34," CF: ",Committenti!D34),"") -> 
Q35: =IF(Committenti!D35<>"",CONCATENATE(Committenti!B35," ",Committenti!C35," CF: ",Committenti!D35),"") -> 
Q36: =IF(Committenti!D36<>"",CONCATENATE(Committenti!B36," ",Committenti!C36," CF: ",Committenti!D36),"") -> 
Q37: =IF(Committenti!D37<>"",CONCATENATE(Committenti!B37," ",Committenti!C37," CF: ",Committenti!D37),"") -> 
Q38: =IF(Committenti!D38<>"",CONCATENATE(Committenti!B38," ",Committenti!C38," CF: ",Committenti!D38),"") -> 
Q39: =IF(Committenti!D39<>"",CONCATENATE(Committenti!B39," ",Committenti!C39," CF: ",Committenti!D39),"") -> 
Q40: =IF(Committenti!D40<>"",CONCATENATE(Committenti!B40," ",Committenti!C40," CF: ",Committenti!D40),"") -> 
Q41: =IF(Committenti!D41<>"",CONCATENATE(Committenti!B41," ",Committenti!C41," CF: ",Committenti!D41),"") -> 
Q42: =IF(Committenti!D42<>"",CONCATENATE(Committenti!B42," ",Committenti!C42," CF: ",Committenti!D42),"") -> 
Q43: =IF(Committenti!D43<>"",CONCATENATE(Committenti!B43," ",Committenti!C43," CF: ",Committenti!D43),"") -> 
Q44: =IF(Committenti!D44<>"",CONCATENATE(Committenti!B44," ",Committenti!C44," CF: ",Committenti!D44),"") -> 
Q45: =IF(Committenti!D45<>"",CONCATENATE(Committenti!B45," ",Committenti!C45," CF: ",Committenti!D45),"") -> 
Q46: =IF(Committenti!D46<>"",CONCATENATE(Committenti!B46," ",Committenti!C46," CF: ",Committenti!D46),"") -> 
Q47: =IF(Committenti!D47<>"",CONCATENATE(Committenti!B47," ",Committenti!C47," CF: ",Committenti!D47),"") -> 
Q48: =IF(Committenti!D48<>"",CONCATENATE(Committenti!B48," ",Committenti!C48," CF: ",Committenti!D48),"") -> 
Q49: =IF(Committenti!D49<>"",CONCATENATE(Committenti!B49," ",Committenti!C49," CF: ",Committenti!D49),"") -> 
Q50: =IF(Committenti!D50<>"",CONCATENATE(Committenti!B50," ",Committenti!C50," CF: ",Committenti!D50),"") -> 
Q51: =IF(Committenti!D51<>"",CONCATENATE(Committenti!B51," ",Committenti!C51," CF: ",Committenti!D51),"") -> 
Q52: =IF(Committenti!D52<>"",CONCATENATE(Committenti!B52," ",Committenti!C52," CF: ",Committenti!D52),"") -> 
Q53: =IF(Committenti!D53<>"",CONCATENATE(Committenti!B53," ",Committenti!C53," CF: ",Committenti!D53),"") -> 
Q54: =IF(Committenti!D54<>"",CONCATENATE(Committenti!B54," ",Committenti!C54," CF: ",Committenti!D54),"") -> 
Q55: =IF(Committenti!D55<>"",CONCATENATE(Committenti!B55," ",Committenti!C55," CF: ",Committenti!D55),"") -> 
Q56: =IF(Committenti!D56<>"",CONCATENATE(Committenti!B56," ",Committenti!C56," CF: ",Committenti!D56),"") -> 
Q57: =IF(Committenti!D57<>"",CONCATENATE(Committenti!B57," ",Committenti!C57," CF: ",Committenti!D57),"") -> 
Q58: =IF(Committenti!D58<>"",CONCATENATE(Committenti!B58," ",Committenti!C58," CF: ",Committenti!D58),"") -> 
Q59: =IF(Committenti!D59<>"",CONCATENATE(Committenti!B59," ",Committenti!C59," CF: ",Committenti!D59),"") -> 
Q60: =IF(Committenti!D60<>"",CONCATENATE(Committenti!B60," ",Committenti!C60," CF: ",Committenti!D60),"") -> 
Q61: =IF(Committenti!D61<>"",CONCATENATE(Committenti!B61," ",Committenti!C61," CF: ",Committenti!D61),"") -> 
Q62: =IF(Committenti!D62<>"",CONCATENATE(Committenti!B62," ",Committenti!C62," CF: ",Committenti!D62),"") -> 
Q63: =IF(Committenti!D63<>"",CONCATENATE(Committenti!B63," ",Committenti!C63," CF: ",Committenti!D63),"") -> 
Q64: =IF(Committenti!D64<>"",CONCATENATE(Committenti!B64," ",Committenti!C64," CF: ",Committenti!D64),"") -> 
Q65: =IF(Committenti!D65<>"",CONCATENATE(Committenti!B65," ",Committenti!C65," CF: ",Committenti!D65),"") -> 
Q66: =IF(Committenti!D66<>"",CONCATENATE(Committenti!B66," ",Committenti!C66," CF: ",Committenti!D66),"") -> 
Q67: =IF(Committenti!D67<>"",CONCATENATE(Committenti!B67," ",Committenti!C67," CF: ",Committenti!D67),"") -> 
Q68: =IF(Committenti!D68<>"",CONCATENATE(Committenti!B68," ",Committenti!C68," CF: ",Committenti!D68),"") -> 
A69: =IF(B69<>"", IF(A68<>"",A68+1,""),"") ->  | Q69: =IF(Committenti!D69<>"",CONCATENATE(Committenti!B69," ",Committenti!C69," CF: ",Committenti!D69),"") -> 
Q70: =IF(Committenti!D70<>"",CONCATENATE(Committenti!B70," ",Committenti!C70," CF: ",Committenti!D70),"") -> 
Q71: =IF(Committenti!D71<>"",CONCATENATE(Committenti!B71," ",Committenti!C71," CF: ",Committenti!D71),"") -> 
Q72: =IF(Committenti!D72<>"",CONCATENATE(Committenti!B72," ",Committenti!C72," CF: ",Committenti!D72),"") -> 
Q73: =IF(Committenti!D73<>"",CONCATENATE(Committenti!B73," ",Committenti!C73," CF: ",Committenti!D73),"") -> 
Q74: =IF(Committenti!D74<>"",CONCATENATE(Committenti!B74," ",Committenti!C74," CF: ",Committenti!D74),"") -> 
Q75: =IF(Committenti!D75<>"",CONCATENATE(Committenti!B75," ",Committenti!C75," CF: ",Committenti!D75),"") -> 
Q76: =IF(Committenti!D76<>"",CONCATENATE(Committenti!B76," ",Committenti!C76," CF: ",Committenti!D76),"") -> 
Q77: =IF(Committenti!D77<>"",CONCATENATE(Committenti!B77," ",Committenti!C77," CF: ",Committenti!D77),"") -> 
Q78: =IF(Committenti!D78<>"",CONCATENATE(Committenti!B78," ",Committenti!C78," CF: ",Committenti!D78),"") -> 
Q79: =IF(Committenti!D79<>"",CONCATENATE(Committenti!B79," ",Committenti!C79," CF: ",Committenti!D79),"") -> 
Q80: =IF(Committenti!D80<>"",CONCATENATE(Committenti!B80," ",Committenti!C80," CF: ",Committenti!D80),"") -> 
Q81: =IF(Committenti!D81<>"",CONCATENATE(Committenti!B81," ",Committenti!C81," CF: ",Committenti!D81),"") -> 
Q82: =IF(Committenti!D82<>"",CONCATENATE(Committenti!B82," ",Committenti!C82," CF: ",Committenti!D82),"") -> 
Q83: =IF(Committenti!D83<>"",CONCATENATE(Committenti!B83," ",Committenti!C83," CF: ",Committenti!D83),"") -> 
Q84: =IF(Committenti!D84<>"",CONCATENATE(Committenti!B84," ",Committenti!C84," CF: ",Committenti!D84),"") -> 
Q85: =IF(Committenti!D85<>"",CONCATENATE(Committenti!B85," ",Committenti!C85," CF: ",Committenti!D85),"") -> 
Q86: =IF(Committenti!D86<>"",CONCATENATE(Committenti!B86," ",Committenti!C86," CF: ",Committenti!D86),"") -> 
Q87: =IF(Committenti!D87<>"",CONCATENATE(Committenti!B87," ",Committenti!C87," CF: ",Committenti!D87),"") -> 
Q88: =IF(Committenti!D88<>"",CONCATENATE(Committenti!B88," ",Committenti!C88," CF: ",Committenti!D88),"") -> 
Q89: =IF(Committenti!D89<>"",CONCATENATE(Committenti!B89," ",Committenti!C89," CF: ",Committenti!D89),"") -> 
Q90: =IF(Committenti!D90<>"",CONCATENATE(Committenti!B90," ",Committenti!C90," CF: ",Committenti!D90),"") -> 
Q91: =IF(Committenti!D91<>"",CONCATENATE(Committenti!B91," ",Committenti!C91," CF: ",Committenti!D91),"") -> 
Q92: =IF(Committenti!D92<>"",CONCATENATE(Committenti!B92," ",Committenti!C92," CF: ",Committenti!D92),"") -> 
Q93: =IF(Committenti!D93<>"",CONCATENATE(Committenti!B93," ",Committenti!C93," CF: ",Committenti!D93),"") -> 
Q94: =IF(Committenti!D94<>"",CONCATENATE(Committenti!B94," ",Committenti!C94," CF: ",Committenti!D94),"") -> 
Q95: =IF(Committenti!D95<>"",CONCATENATE(Committenti!B95," ",Committenti!C95," CF: ",Committenti!D95),"") -> 
Q96: =IF(Committenti!D96<>"",CONCATENATE(Committenti!B96," ",Committenti!C96," CF: ",Committenti!D96),"") -> 
Q97: =IF(Committenti!D97<>"",CONCATENATE(Committenti!B97," ",Committenti!C97," CF: ",Committenti!D97),"") -> 
Q98: =IF(Committenti!D98<>"",CONCATENATE(Committenti!B98," ",Committenti!C98," CF: ",Committenti!D98),"") -> 
Q99: =IF(Committenti!D99<>"",CONCATENATE(Committenti!B99," ",Committenti!C99," CF: ",Committenti!D99),"") -> 
Q100: =IF(Committenti!D100<>"",CONCATENATE(Committenti!B100," ",Committenti!C100," CF: ",Committenti!D100),"") -> 
Q101: =IF(Committenti!D101<>"",CONCATENATE(Committenti!B101," ",Committenti!C101," CF: ",Committenti!D101),"") -> 
Q102: =IF(Committenti!D102<>"",CONCATENATE(Committenti!B102," ",Committenti!C102," CF: ",Committenti!D102),"") -> 
Q103: =IF(Committenti!D103<>"",CONCATENATE(Committenti!B103," ",Committenti!C103," CF: ",Committenti!D103),"") -> 
Q104: =IF(Committenti!D104<>"",CONCATENATE(Committenti!B104," ",Committenti!C104," CF: ",Committenti!D104),"") -> 
Q105: =IF(Committenti!D105<>"",CONCATENATE(Committenti!B105," ",Committenti!C105," CF: ",Committenti!D105),"") -> 
Q106: =IF(Committenti!D106<>"",CONCATENATE(Committenti!B106," ",Committenti!C106," CF: ",Committenti!D106),"") -> 
Q107: =IF(Committenti!D107<>"",CONCATENATE(Committenti!B107," ",Committenti!C107," CF: ",Committenti!D107),"") -> 
Q108: =IF(Committenti!D108<>"",CONCATENATE(Committenti!B108," ",Committenti!C108," CF: ",Committenti!D108),"") -> 
Q109: =IF(Committenti!D109<>"",CONCATENATE(Committenti!B109," ",Committenti!C109," CF: ",Committenti!D109),"") -> 
Q110: =IF(Committenti!D110<>"",CONCATENATE(Committenti!B110," ",Committenti!C110," CF: ",Committenti!D110),"") -> 
Q111: =IF(Committenti!D111<>"",CONCATENATE(Committenti!B111," ",Committenti!C111," CF: ",Committenti!D111),"") -> 
Q112: =IF(Committenti!D112<>"",CONCATENATE(Committenti!B112," ",Committenti!C112," CF: ",Committenti!D112),"") -> 
Q113: =IF(Committenti!D113<>"",CONCATENATE(Committenti!B113," ",Committenti!C113," CF: ",Committenti!D113),"") -> 
Q114: =IF(Committenti!D114<>"",CONCATENATE(Committenti!B114," ",Committenti!C114," CF: ",Committenti!D114),"") -> 
Q115: =IF(Committenti!D115<>"",CONCATENATE(Committenti!B115," ",Committenti!C115," CF: ",Committenti!D115),"") -> 
Q116: =IF(Committenti!D116<>"",CONCATENATE(Committenti!B116," ",Committenti!C116," CF: ",Committenti!D116),"") -> 
Q117: =IF(Committenti!D117<>"",CONCATENATE(Committenti!B117," ",Committenti!C117," CF: ",Committenti!D117),"") -> 
Q118: =IF(Committenti!D118<>"",CONCATENATE(Committenti!B118," ",Committenti!C118," CF: ",Committenti!D118),"") -> 
Q119: =IF(Committenti!D119<>"",CONCATENATE(Committenti!B119," ",Committenti!C119," CF: ",Committenti!D119),"") -> 
Q120: =IF(Committenti!D120<>"",CONCATENATE(Committenti!B120," ",Committenti!C120," CF: ",Committenti!D120),"") -> 
Q121: =IF(Committenti!D121<>"",CONCATENATE(Committenti!B121," ",Committenti!C121," CF: ",Committenti!D121),"") -> 
Q122: =IF(Committenti!D122<>"",CONCATENATE(Committenti!B122," ",Committenti!C122," CF: ",Committenti!D122),"") -> 
Q123: =IF(Committenti!D123<>"",CONCATENATE(Committenti!B123," ",Committenti!C123," CF: ",Committenti!D123),"") -> 
Q124: =IF(Committenti!D124<>"",CONCATENATE(Committenti!B124," ",Committenti!C124," CF: ",Committenti!D124),"") -> 
Q125: =IF(Committenti!D125<>"",CONCATENATE(Committenti!B125," ",Committenti!C125," CF: ",Committenti!D125),"") -> 
Q126: =IF(Committenti!D126<>"",CONCATENATE(Committenti!B126," ",Committenti!C126," CF: ",Committenti!D126),"") -> 
Q127: =IF(Committenti!D127<>"",CONCATENATE(Committenti!B127," ",Committenti!C127," CF: ",Committenti!D127),"") -> 
Q128: =IF(Committenti!D128<>"",CONCATENATE(Committenti!B128," ",Committenti!C128," CF: ",Committenti!D128),"") -> 
Q129: =IF(Committenti!D129<>"",CONCATENATE(Committenti!B129," ",Committenti!C129," CF: ",Committenti!D129),"") -> 
Q130: =IF(Committenti!D130<>"",CONCATENATE(Committenti!B130," ",Committenti!C130," CF: ",Committenti!D130),"") -> 
Q131: =IF(Committenti!D131<>"",CONCATENATE(Committenti!B131," ",Committenti!C131," CF: ",Committenti!D131),"") -> 
Q132: =IF(Committenti!D132<>"",CONCATENATE(Committenti!B132," ",Committenti!C132," CF: ",Committenti!D132),"") -> 
A133: =IF(B133<>"", IF(A132<>"",A132+1,""),"") ->  | Q133: =IF(Committenti!D133<>"",CONCATENATE(Committenti!B133," ",Committenti!C133," CF: ",Committenti!D133),"") -> 
Q134: =IF(Committenti!D134<>"",CONCATENATE(Committenti!B134," ",Committenti!C134," CF: ",Committenti!D134),"") -> 
Q135: =IF(Committenti!D135<>"",CONCATENATE(Committenti!B135," ",Committenti!C135," CF: ",Committenti!D135),"") -> 
Q136: =IF(Committenti!D136<>"",CONCATENATE(Committenti!B136," ",Committenti!C136," CF: ",Committenti!D136),"") -> 
Q137: =IF(Committenti!D137<>"",CONCATENATE(Committenti!B137," ",Committenti!C137," CF: ",Committenti!D137),"") -> 
Q138: =IF(Committenti!D138<>"",CONCATENATE(Committenti!B138," ",Committenti!C138," CF: ",Committenti!D138),"") -> 
Q139: =IF(Committenti!D139<>"",CONCATENATE(Committenti!B139," ",Committenti!C139," CF: ",Committenti!D139),"") -> 
Q140: =IF(Committenti!D140<>"",CONCATENATE(Committenti!B140," ",Committenti!C140," CF: ",Committenti!D140),"") -> 
Q141: =IF(Committenti!D141<>"",CONCATENATE(Committenti!B141," ",Committenti!C141," CF: ",Committenti!D141),"") -> 
Q142: =IF(Committenti!D142<>"",CONCATENATE(Committenti!B142," ",Committenti!C142," CF: ",Committenti!D142),"") -> 
Q143: =IF(Committenti!D143<>"",CONCATENATE(Committenti!B143," ",Committenti!C143," CF: ",Committenti!D143),"") -> 
Q144: =IF(Committenti!D144<>"",CONCATENATE(Committenti!B144," ",Committenti!C144," CF: ",Committenti!D144),"") -> 
Q145: =IF(Committenti!D145<>"",CONCATENATE(Committenti!B145," ",Committenti!C145," CF: ",Committenti!D145),"") -> 
Q146: =IF(Committenti!D146<>"",CONCATENATE(Committenti!B146," ",Committenti!C146," CF: ",Committenti!D146),"") -> 
Q147: =IF(Committenti!D147<>"",CONCATENATE(Committenti!B147," ",Committenti!C147," CF: ",Committenti!D147),"") -> 
Q148: =IF(Committenti!D148<>"",CONCATENATE(Committenti!B148," ",Committenti!C148," CF: ",Committenti!D148),"") -> 
Q149: =IF(Committenti!D149<>"",CONCATENATE(Committenti!B149," ",Committenti!C149," CF: ",Committenti!D149),"") -> 
Q150: =IF(Committenti!D150<>"",CONCATENATE(Committenti!B150," ",Committenti!C150," CF: ",Committenti!D150),"") -> 
Q151: =IF(Committenti!D151<>"",CONCATENATE(Committenti!B151," ",Committenti!C151," CF: ",Committenti!D151),"") -> 
Q152: =IF(Committenti!D152<>"",CONCATENATE(Committenti!B152," ",Committenti!C152," CF: ",Committenti!D152),"") -> 
Q153: =IF(Committenti!D153<>"",CONCATENATE(Committenti!B153," ",Committenti!C153," CF: ",Committenti!D153),"") -> 
Q154: =IF(Committenti!D154<>"",CONCATENATE(Committenti!B154," ",Committenti!C154," CF: ",Committenti!D154),"") -> 
Q155: =IF(Committenti!D155<>"",CONCATENATE(Committenti!B155," ",Committenti!C155," CF: ",Committenti!D155),"") -> 
Q156: =IF(Committenti!D156<>"",CONCATENATE(Committenti!B156," ",Committenti!C156," CF: ",Committenti!D156),"") -> 
Q157: =IF(Committenti!D157<>"",CONCATENATE(Committenti!B157," ",Committenti!C157," CF: ",Committenti!D157),"") -> 
Q158: =IF(Committenti!D158<>"",CONCATENATE(Committenti!B158," ",Committenti!C158," CF: ",Committenti!D158),"") -> 
Q159: =IF(Committenti!D159<>"",CONCATENATE(Committenti!B159," ",Committenti!C159," CF: ",Committenti!D159),"") -> 
Q160: =IF(Committenti!D160<>"",CONCATENATE(Committenti!B160," ",Committenti!C160," CF: ",Committenti!D160),"") -> 
Q161: =IF(Committenti!D161<>"",CONCATENATE(Committenti!B161," ",Committenti!C161," CF: ",Committenti!D161),"") -> 
Q162: =IF(Committenti!D162<>"",CONCATENATE(Committenti!B162," ",Committenti!C162," CF: ",Committenti!D162),"") -> 
Q163: =IF(Committenti!D163<>"",CONCATENATE(Committenti!B163," ",Committenti!C163," CF: ",Committenti!D163),"") -> 
Q164: =IF(Committenti!D164<>"",CONCATENATE(Committenti!B164," ",Committenti!C164," CF: ",Committenti!D164),"") -> 
Q165: =IF(Committenti!D165<>"",CONCATENATE(Committenti!B165," ",Committenti!C165," CF: ",Committenti!D165),"") -> 
Q166: =IF(Committenti!D166<>"",CONCATENATE(Committenti!B166," ",Committenti!C166," CF: ",Committenti!D166),"") -> 
Q167: =IF(Committenti!D167<>"",CONCATENATE(Committenti!B167," ",Committenti!C167," CF: ",Committenti!D167),"") -> 
Q168: =IF(Committenti!D168<>"",CONCATENATE(Committenti!B168," ",Committenti!C168," CF: ",Committenti!D168),"") -> 
Q169: =IF(Committenti!D169<>"",CONCATENATE(Committenti!B169," ",Committenti!C169," CF: ",Committenti!D169),"") -> 
Q170: =IF(Committenti!D170<>"",CONCATENATE(Committenti!B170," ",Committenti!C170," CF: ",Committenti!D170),"") -> 
Q171: =IF(Committenti!D171<>"",CONCATENATE(Committenti!B171," ",Committenti!C171," CF: ",Committenti!D171),"") -> 
Q172: =IF(Committenti!D172<>"",CONCATENATE(Committenti!B172," ",Committenti!C172," CF: ",Committenti!D172),"") -> 
Q173: =IF(Committenti!D173<>"",CONCATENATE(Committenti!B173," ",Committenti!C173," CF: ",Committenti!D173),"") -> 
Q174: =IF(Committenti!D174<>"",CONCATENATE(Committenti!B174," ",Committenti!C174," CF: ",Committenti!D174),"") -> 
Q175: =IF(Committenti!D175<>"",CONCATENATE(Committenti!B175," ",Committenti!C175," CF: ",Committenti!D175),"") -> 
Q176: =IF(Committenti!D176<>"",CONCATENATE(Committenti!B176," ",Committenti!C176," CF: ",Committenti!D176),"") -> 
Q177: =IF(Committenti!D177<>"",CONCATENATE(Committenti!B177," ",Committenti!C177," CF: ",Committenti!D177),"") -> 
Q178: =IF(Committenti!D178<>"",CONCATENATE(Committenti!B178," ",Committenti!C178," CF: ",Committenti!D178),"") -> 
Q179: =IF(Committenti!D179<>"",CONCATENATE(Committenti!B179," ",Committenti!C179," CF: ",Committenti!D179),"") -> 
Q180: =IF(Committenti!D180<>"",CONCATENATE(Committenti!B180," ",Committenti!C180," CF: ",Committenti!D180),"") -> 
Q181: =IF(Committenti!D181<>"",CONCATENATE(Committenti!B181," ",Committenti!C181," CF: ",Committenti!D181),"") -> 
Q182: =IF(Committenti!D182<>"",CONCATENATE(Committenti!B182," ",Committenti!C182," CF: ",Committenti!D182),"") -> 
Q183: =IF(Committenti!D183<>"",CONCATENATE(Committenti!B183," ",Committenti!C183," CF: ",Committenti!D183),"") -> 
Q184: =IF(Committenti!D184<>"",CONCATENATE(Committenti!B184," ",Committenti!C184," CF: ",Committenti!D184),"") -> 
Q185: =IF(Committenti!D185<>"",CONCATENATE(Committenti!B185," ",Committenti!C185," CF: ",Committenti!D185),"") -> 
Q186: =IF(Committenti!D186<>"",CONCATENATE(Committenti!B186," ",Committenti!C186," CF: ",Committenti!D186),"") -> 
Q187: =IF(Committenti!D187<>"",CONCATENATE(Committenti!B187," ",Committenti!C187," CF: ",Committenti!D187),"") -> 
Q188: =IF(Committenti!D188<>"",CONCATENATE(Committenti!B188," ",Committenti!C188," CF: ",Committenti!D188),"") -> 
Q189: =IF(Committenti!D189<>"",CONCATENATE(Committenti!B189," ",Committenti!C189," CF: ",Committenti!D189),"") -> 
Q190: =IF(Committenti!D190<>"",CONCATENATE(Committenti!B190," ",Committenti!C190," CF: ",Committenti!D190),"") -> 
Q191: =IF(Committenti!D191<>"",CONCATENATE(Committenti!B191," ",Committenti!C191," CF: ",Committenti!D191),"") -> 
Q192: =IF(Committenti!D192<>"",CONCATENATE(Committenti!B192," ",Committenti!C192," CF: ",Committenti!D192),"") -> 
Q193: =IF(Committenti!D193<>"",CONCATENATE(Committenti!B193," ",Committenti!C193," CF: ",Committenti!D193),"") -> 
Q194: =IF(Committenti!D194<>"",CONCATENATE(Committenti!B194," ",Committenti!C194," CF: ",Committenti!D194),"") -> 
Q195: =IF(Committenti!D195<>"",CONCATENATE(Committenti!B195," ",Committenti!C195," CF: ",Committenti!D195),"") -> 
Q196: =IF(Committenti!D196<>"",CONCATENATE(Committenti!B196," ",Committenti!C196," CF: ",Committenti!D196),"") -> 
A197: =IF(B197<>"", IF(A196<>"",A196+1,""),"") ->  | Q197: =IF(Committenti!D197<>"",CONCATENATE(Committenti!B197," ",Committenti!C197," CF: ",Committenti!D197),"") -> 
Q198: =IF(Committenti!D198<>"",CONCATENATE(Committenti!B198," ",Committenti!C198," CF: ",Committenti!D198),"") -> 
Q199: =IF(Committenti!D199<>"",CONCATENATE(Committenti!B199," ",Committenti!C199," CF: ",Committenti!D199),"") -> 
Q200: =IF(Committenti!D200<>"",CONCATENATE(Committenti!B200," ",Committenti!C200," CF: ",Committenti!D200),"") -> 
... 817 more rows

Sheet Computo-Massimali
P1: =MATCH("SimMZ",C:C,0) -> 78
R2: Edificio Unifamiliare | AO2: TRUE | AR2: FALSE
C3: Verifica Massimali Superbonus | F3: =CONCATENATE(IF('Dati Gen'!E9<>"",'Dati Gen'!E9,""),IF('Dati Gen'!E8<>"",CONCATENATE(" - ",'Dati Gen'!E8),"")) ->  | M3: =CONCATENATE('Dati Gen'!K2, " ",'Dati Gen'!K3," ",'Dati Gen'!L3) -> Pratica.110plus Vers.ne 4.3.1 | R3: 1
C4: =IF(TipoEdif=1,'Dati Gen'!Q5,'Dati Gen'!Q6) -> Edificio Unifamiliare | D4: =IF('Dati Gen'!G5>1,CONCATENATE('Dati Gen'!G5," U.Imm"),"") ->  | F4: =IF(TipoEdif=2,IF('Dati Gen'!K5<>"",'Dati Gen'!K5,""),IF(Committenti!B3<>"",CONCATENATE(Committenti!B3," ",Committenti!C3),"")) -> Tizio Caio | M4: ='Dati Gen'!K4 -> ©2021-2022 SIM srl - www.madosoft.it
C6: =IF(ABS(F100-'Dati Gen'!G20)>0.01,"Importo Lavori al Netto della Sicurezza =",IF(ABS(G100-'Dati Gen'!G19)>0.01,"Importo Sicurezza da Progetto =",IF(ABS(H100-'Dati Gen'!G18)>0.01,"Importo Lavori da Progetto =",IF(ABS('Dati Gen'!M21-K100)>0.01,"Importo Spese Tecniche da Progetto =",IF(ABS(L100-'Dati Gen'!M22)<=0.01,"","Importo Complessivo Progetto ="))))) -> Importo Lavori al Netto della Sicurezza = | F6: =IF(ABS(F100-'Dati Gen'!G20)>0.01,'Dati Gen'!G20,IF(ABS(G100-'Dati Gen'!G19)>0.01,'Dati Gen'!G19,IF(ABS(H100-'Dati Gen'!G18)>0.01,'Dati Gen'!G18,IF(ABS('Dati Gen'!M21-K100)>0.01,'Dati Gen'!M21,IF(ABS(L100-'Dati Gen'!M22)<=0.01,"",'Dati Gen'!M22))))) -> 0 | G6: =IF(C6<>"","DIVERSO da","") -> DIVERSO da | I6: =IF(ABS(F100-'Dati Gen'!G20)>0.01,"Sommatoria Importo Lavori =",IF(ABS(G100-'Dati Gen'!G19)>0.01,"Sommatoria Incidenza Sicurezza =",IF(ABS(H100-'Dati Gen'!G18)>0.01,"Sommatoria Imponibili =",IF(ABS('Dati Gen'!M21-K100)>0.01,"Sommatoria Spese Tecniche =",IF(ABS(L100-'Dati Gen'!M22)<=0.01,"","Totale Interventi ="))))) -> Sommatoria Importo Lavori = | K6: =IF(ABS(F100-'Dati Gen'!G20)>0.01,F100,IF(ABS(G100-'Dati Gen'!G19)>0.01,G100,IF(ABS(H100-'Dati Gen'!G18)>0.01,H100,IF(ABS('Dati Gen'!M21-K100)>0.01,K100,IF(ABS(L100-'Dati Gen'!M22)<=0.01,"",L100))))) -> -2 | L6: =IF(C6<>"","Completare Tabella Interventi","") -> Completare Tabella Interventi | R6: =IF(Titolare!$B$16="Versione Demo","Versione Demo","") -> Versione Demo
C7: INTERVENTI TRAINANTI | N7: .. | Q7: Asseverabile | R7: =CONCATENATE("Spesa detraibile ammissibile ",C7) -> Spesa detraibile ammissibile INTERVENTI TRAINANTI | AF7: Spesa Massima Ammissibile (norma primaria) | AJ7: Spesa Specifica MITE | AM7: =C7 -> INTERVENTI TRAINANTI
C8: Interventi | F8: Importo Lavori | G8: Incidenza Sicurezza | H8: Imponibile | I8: Iva | J8: Importo c.iva | K8: Spese tecniche | L8: Totale | M8: Credito Spettante 110% Spesa Ammessa | R8: Interventi | S8: Superficie Intervento / UnitàMisura | T8: Min(Spesa Max Ammissibile;Spesa Max Intervento) | U8: Verifica Max | W8: Spesa Detraibile Ammessa | Y8: Quota Eccedente Spesa Ammessa | AA8: Credito Spettante 110% Spesa Ammessa Quota Impresa | Quota Tecnici | AF8: =C7 -> INTERVENTI TRAINANTI | AG8: Spesa Massima Ammissibile | AH8: Ver. Max | AJ8: Importo Lavori Fornitura e Posa | AK8: Costo dei Beni (Allegato A) | AL8: Opere per installazione (Sicurezza) | AM8: Manodopera | AN8: Spesa Massima Ammissibile Asseverata | AO8: Altri Costi | AP8: Spese Tecniche | AQ8: IVA | AR8: Spesa di Intervento | AS8: Ver. Max | AU8: Altri Lavori | AV8: Importo Specifico DM Costi Massimi | AW8: Incremento Costo dei Beni (Allegato A) | AX8: Controllo1 | AY8: Importo Controllo1 | AZ8: Importo Controllo2 | BA8: Importo Controllo3 | BB8: Opere per Istallazione = Incidenza Sicurezza Fornitura / Superficie Intervento | BC8: SpesaSostenuta = Opera Compiuta | BD8: Spesa Tecniche = Spese Tecniche da Computo | BE8: Altri Costi = Altri Lavori | BF8: AliqIva | BG8: Superficie Riscaldata
C9: PV) Isolamento pareti perimetrali | E9: Interno | F9: 0 | G9: 0 | H9: =SUM(F9:G9) -> 0 | I9: =F9*'Dati Gen'!$J$20+G9*'Dati Gen'!$J$19 -> 0 | J9: =H9+I9 -> 0 | K9: 0 | L9: =SUM(J9:K9) -> 0 | M9: =IF(L9<=T9,L9*1.1,T9*1.1) -> 0 | P9: .. | Q9: ok | R9: =CONCATENATE(C9," '",E9,"'") -> PV) Isolamento pareti perimetrali 'Interno' | S9: 100 | T9: =MIN(AG9,AR9) -> 0 | U9: =IF(L9>M9,"KO",IF(L9>T9,"ko","ok")) -> ok | W9: =IF(L9<T9,L9,T9) -> 0 | Y9: =IF(L9>T9,L9-T9,0) -> 0 | AA9: =IF(M9<>0,J9*M9/L9,0) -> 0 | AC9: =IF(M9<>0,K9*M9/L9,0) -> 0 | AF9: =R9 -> PV) Isolamento pareti perimetrali 'Interno' | AG9: =IF(TipoEdif=1,50000,IF(N_Uimm>8,40000*8+30000*(N_Uimm-8),40000*N_Uimm)) -> 50000 | AH9: =IF(L9>AG9,"ko","ok") -> ok | AJ9: 0 | AK9: =IF(ZonaClimatica="A",IF(E9="Parete Ventilata",240,IF(E9="Interno",96,180)),IF(ZonaClimatica="B",IF(E9="Parete Ventilata",240,IF(E9="Interno",96,180)),IF(ZonaClimatica="C",IF(E9="Parete Ventilata",240,IF(E9="Interno",96,180)),IF(E9="Parete Ventilata",260,IF(E9="Interno",104,195))))) -> 104 | AL9: =IF(S9<>0,IF(F9<>0,G9*AJ9/F9/S9,0),0) -> 0 | AM9: 27 | AN9: =MIN(AY9,AZ9,BA9) -> 0 | AO9: =AU9 -> 0 | AP9: =K9 -> 0 | AQ9: =BF9*SUM(AN9:AP9) -> 0 | AR9: =SUM(AN9:AQ9) -> 0 | AS9: =IF(L9>AR9,"ko","ok") -> ok | AU9: =F9-AJ9 -> 0 | AV9: =SUM(AK9:AM9) -> 131 | AW9: 0 | AX9: TRUE | AY9: =L9 -> 0 | AZ9: =AV9*S9+AW9*BG9 -> 13100 | BA9: =L9 -> 0 | BB9: TRUE | BC9: TRUE | BD9: TRUE | BE9: TRUE | BF9: 0.1000000015 | BG9: 0
C10: PO) Isolamento coperture | E10: Esterno | F10: 0 | G10: 0 | H10: =SUM(F10:G10) -> 0 | I10: =F10*'Dati Gen'!$J$20+G10*'Dati Gen'!$J$19 -> 0 | J10: =H10+I10 -> 0 | K10: 0 | L10: =SUM(J10:K10) -> 0 | M10: 0 | P10: .. | Q10: ok | R10: =CONCATENATE(C10," '",E10,"'") -> PO) Isolamento coperture 'Esterno' | S10: 1 | T10: 0 | U10: ok | W10: =IF(L10<T10,L10,T10) -> 0 | Y10: =IF(L10>T10,L10-T10,0) -> 0 | AA10: 0 | AC10: 0 | AF10: PO) Isolamento coperture 'Esterno' | AG10: =IF(TipoEdif=1,50000,IF(N_Uimm>8,40000*8+30000*(N_Uimm-8),40000*N_Uimm)) -> 50000 | AH10: ok | AJ10: 0 | AK10: =IF(E10="Copertura Ventilata",300,IF(E10="Interno",120,276)) -> 276 | AL10: =IF(S10<>0,IF(F10<>0,G10*AJ10/F10/S10,0),0) -> 0 | AM10: 38 | AN10: =MIN(AY10,AZ10,BA10) -> 0 | AO10: =AU10 -> 0 | AP10: =K10 -> 0 | AQ10: 0 | AR10: =SUM(AN10:AQ10) -> 0 | AS10: ok | AU10: =F10-AJ10 -> 0 | AV10: =SUM(AK10:AM10) -> 314 | AW10: 0 | AX10: TRUE | AY10: =L10 -> 0 | AZ10: =AV10*S10+AW10*BG10 -> 314 | BA10: =L10 -> 0 | BB10: TRUE | BC10: TRUE | BD10: TRUE | BE10: TRUE | BF10: 0.1000000015 | BG10: 0
C11: POND) Isol. coperture non disperdenti | E11: Esterno | F11: 0 | G11: =IF(ImpLav<>0,F11*ImpSicLav/ImpLav,0) -> 0 | H11: =SUM(F11:G11) -> 0 | I11: =F11*'Dati Gen'!$J$20+G11*'Dati Gen'!$J$19 -> 0 | J11: =H11+I11 -> 0 | K11: =IF(ImpLav<>0,F11*ImpTecLav/ImpLav,0) -> 0 | L11: =SUM(J11:K11) -> 0 | M11: 0 | P11: .. | Q11: ok | R11: =CONCATENATE(C11," '",E11,"'") -> POND) Isol. coperture non disperdenti 'Esterno' | S11: 1 | T11: 0 | U11: ok | W11: =IF(L11<T11,L11,T11) -> 0 | Y11: =IF(L11>T11,L11-T11,0) -> 0 | AA11: 0 | AC11: 0 | AF11: POND) Isol. coperture non disperdenti 'Esterno' | AG11: =IF(TipoEdif=1,50000,IF(N_Uimm>8,40000*8+30000*(N_Uimm-8),40000*N_Uimm)) -> 50000 | AH11: ok | AJ11: 0 | AK11: =IF(E11="Copertura Ventilata",300,IF(E11="Interno",120,276)) -> 276 | AL11: =IF(S11<>0,IF(F11<>0,G11*AJ11/F11/S11,0),0) -> 0 | AM11: 38 | AN11: =MIN(AY11,AZ11,BA11) -> 0 | AO11: =AU11 -> 0 | AP11: =K11 -> 0 | AQ11: 0 | AR11: 0 | AS11: ok | AU11: =F11-AJ11 -> 0 | AV11: 314 | AW11: 0 | AX11: TRUE | AY11: =L11 -> 0 | AZ11: =AV11*S11+AW11*BG11 -> 314 | BA11: =L11 -> 0 | BB11: TRUE | BC11: TRUE | BD11: TRUE | BE11: TRUE | BF11: 0.1000000015 | BG11: 0
C12: PS) Isolamento Pavimenti | E12: Interno/terreno | F12: 0 | G12: 0 | H12: =SUM(F12:G12) -> 0 | I12: =F12*'Dati Gen'!$J$20+G12*'Dati Gen'!$J$19 -> 0 | J12: =H12+I12 -> 0 | K12: 0 | L12: =SUM(J12:K12) -> 0 | M12: 0 | P12: .. | Q12: ok | R12: =CONCATENATE(C12," '",E12,"'") -> PS) Isolamento Pavimenti 'Interno/terreno' | S12: 1 | T12: 0 | U12: ok | W12: =IF(L12<T12,L12,T12) -> 0 | Y12: =IF(L12>T12,L12-T12,0) -> 0 | AA12: 0 | AC12: 0 | AF12: PS) Isolamento Pavimenti 'Interno/terreno' | AG12: =IF(TipoEdif=1,50000,IF(N_Uimm>8,40000*8+30000*(N_Uimm-8),40000*N_Uimm)) -> 50000 | AH12: ok | AJ12: 0 | AK12: =IF(E12="Interno/terreno",180,144) -> 180 | AL12: =IF(S12<>0,IF(F12<>0,G12*AJ12/F12/S12,0),0) -> 0 | AM12: 27 | AN12: =MIN(AY12,AZ12,BA12) -> 0 | AO12: =AU12 -> 0 | AP12: =K12 -> 0 | AQ12: 0 | AR12: 0 | AS12: ok | AU12: =F12-AJ12 -> 0 | AV12: 207 | AW12: 0 | AX12: TRUE | AY12: =L12 -> 0 | AZ12: =AV12*S12+AW12*BG12 -> 207 | BA12: =L12 -> 0 | BB12: TRUE | BC12: TRUE | BD12: TRUE | BE12: TRUE | BF12: 0.1000000015 | BG12: 0
C13: Totali Isolamento PV) PO) POND) PS) | F13: =SUM(F9:F12) -> 0 | G13: =SUM(G9:G12) -> 0 | H13: 0 | I13: 0 | J13: 0 | K13: 0 | L13: =SUM(L9:L12) -> 0 | M13: 0 | R13: =C13 -> Totali Isolamento PV) PO) POND) PS) | T13: 0 | U13: ok | W13: =IF(T13=AG13,IF(L13<T13,L13,T13),SUM(W9:X12)) -> 0 | Y13: =IF(L13>W13,L13-W13,0) -> 0 | AA13: 0 | AC13: 0 | AF13: Totali Isolamento PV) PO) POND) PS) | AG13: =IF(TipoEdif=1,50000,IF(N_Uimm>8,40000*8+30000*(N_Uimm-8),40000*N_Uimm)) -> 50000 | AH13: ok | AR13: =SUM(AR9:AR12) -> 0 | AS13: ok
C14: Impianti climatizzazione e ACS | D14: CC)Caldaie a Condensazione | F14: 0 | G14: 0 | H14: =SUM(F14:G14) -> 0 | I14: =F14*'Dati Gen'!$J$20+G14*'Dati Gen'!$J$19 -> 0 | J14: =H14+I14 -> 0 | K14: 0 | L14: =SUM(J14:K14) -> 0 | M14: 0 | P14: .. | Q14: ok | R14: =CONCATENATE(C14," con '",D14,"'") -> Impianti climatizzazione e ACS con 'CC)Caldaie a Condensazione' | S14: 24 | T14: 0 | U14: ok | W14: =IF(L14<T14,L14,T14) -> 0 | Y14: =IF(L14>T14,L14-T14,0) -> 0 | AA14: 0 | AC14: 0 | AF14: Impianti climatizzazione e ACS con 'CC)Caldaie a Condensazione' | AG14: =IF(TipoEdif=1,30000,IF(N_Uimm>8,20000*8+15000*(N_Uimm-8),20000*N_Uimm)) -> 30000 | AH14: ok | AJ14: 0 | AK14: =IF(LEFT(D14,3)="CC)",IF(S14<=35,240,216),IF(D14="PC)Aria/Aria",720,IF(D14="PC)Altro",1560,IF(D14="PC)Geotermiche",2280,IF(LEFT(D14,4)="PCA)",1560,IF(LEFT(D14,3)="SI)",1860,0)))))) -> 240 | AL14: =IF(S14<>0,IF(F14<>0,G14*AJ14/F14/S14,0),0) -> 0 | AM14: 93.59999847 | AN14: =MIN(AY14,AZ14,BA14) -> 0 | AO14: =AU14 -> 0 | AP14: =K14 -> 0 | AQ14: =BF14*SUM(AN14:AP14) -> 0 | AR14: =SUM(AN14:AQ14) -> 0 | AS14: ok | AU14: =F14-AJ14 -> 0 | AV14: =SUM(AK14:AM14) -> 333.5999985 | AW14: =IF($AO$2=TRUE,IF($AR$2=TRUE,180,60),0) -> 60 | AX14: TRUE | AY14: =L14 -> 0 | AZ14: =AV14*S14+AW14*BG14 -> 18506.39996 | BA14: =L14 -> 0 | BB14: TRUE | BC14: TRUE | BD14: TRUE | BE14: TRUE | BF14: 0.1000000015 | BG14: 175
C15: SismaBonus Zona 1,2 o 3 | F15: 0 | G15: =IF(ImpLav<>0,F15*ImpSicLav/ImpLav,0) -> 0 | H15: =SUM(F15:G15) -> 0 | I15: =F15*'Dati Gen'!$J$20+G15*'Dati Gen'!$J$19 -> 0 | J15: =H15+I15 -> 0 | K15: =IF(ImpLav<>0,F15*ImpTecLav/ImpLav,0) -> 0 | L15: =SUM(J15:K15) -> 0 | M15: 0 | P15: .. | Q15: ok | R15: =C15 -> SismaBonus Zona 1,2 o 3 | S15: 150 | T15: 0 | U15: ok | W15: =IF(L15<T15,L15,T15) -> 0 | Y15: =IF(L15>T15,L15-T15,0) -> 0 | AA15: 0 | AC15: 0 | AF15: SismaBonus Zona 1,2 o 3 | AG15: =105600*N_Uimm/1.1 -> 96000 | AH15: ok | AJ15: 0 | AK15: =(AG15/S15-K15/S15)/(1+AliqIva)-G15/S15 -> 581.8181818 | AL15: =IF(S15<>0,IF(F15<>0,G15*AJ15/F15/S15,0),0) -> 0 | AM15: 0 | AN15: =MIN(AY15,AZ15,BA15) -> 0 | AO15: =AU15 -> 0 | AP15: =K15 -> 0 | AQ15: =BF15*SUM(AN15:AP15) -> 0 | AR15: 0 | AS15: ok | AU15: =F15-AJ15 -> 0 | AV15: 581.8181818 | AW15: 0 | AX15: TRUE | AY15: =L15 -> 0 | AZ15: =AV15*S15+AW15*BG15 -> 87272.72727 | BA15: =L15 -> 0 | BB15: TRUE | BC15: TRUE | BD15: TRUE | BE15: TRUE | BF15: 0.1000000015 | BG15: 0
C16: Totale interventi Trainanti : | F16: =IF(Titolare!$B$16="Versione Demo",-1,SUM(F13:F15)) -> -1 | G16: =SUM(G13:G15) -> 0 | H16: =SUM(H13:H15) -> 0 | I16: =SUM(I13:I15) -> 0 | J16: =IF(Titolare!$B$16="Versione Demo",-1,SUM(J13:J15)) -> -1 | K16: =SUM(K13:K15) -> 0 | L16: =IF(Titolare!$B$16="Versione Demo",0,SUM(L13:L15)) -> 0 | M16: =SUM(M13:M15) -> 0 | V16: =C16 -> Totale interventi Trainanti : | W16: =SUM(W13:X15) -> 0 | Y16: =SUM(Y13:Z15) -> 0 | AA16: =SUM(AA13:AB15) -> 0 | AC16: =SUM(AC13:AD15) -> 0
C18: INTERVENTI TRAINATI PARTI COMUNI CONDOMINIALI | N18: .. | Q18: Asseverabile | R18: =CONCATENATE("Spesa detraibile ammissibile ",C18) -> Spesa detraibile ammissibile INTERVENTI TRAINATI PARTI COMUNI CONDOMINIALI | AF18: Spesa Massima Ammissibile (norma primaria) | AJ18: Spesa Specifica MITE | AM18: =C18 -> INTERVENTI TRAINATI PARTI COMUNI CONDOMINIALI
C19: Interventi | F19: Importo Lavori | G19: Incidenza Sicurezza | H19: Imponibile | I19: Iva | J19: Importo c.iva | K19: Spese tecniche | L19: Totale | M19: Credito Spettante 110% Spesa Ammessa | R19: Interventi | S19: Superficie Intervento / UnitàMisura | T19: Min(Spesa Max Ammissibile;Spesa Max Intervento) | U19: Verifica Max | W19: Spesa Detraibile Ammessa | Y19: Quota Eccedente Spesa Ammessa | AA19: Credito Spettante 110% Spesa Ammessa Quota Impresa | Quota Tecnici | AF19: =C18 -> INTERVENTI TRAINATI PARTI COMUNI CONDOMINIALI | AG19: Spesa Massima Ammissibile | AH19: Ver. Max | AJ19: Importo Lavori Fornitura e Posa | AK19: Costo dei Beni (Allegato A) | AL19: Opere per installazione (Sicurezza) | AM19: Manodopera | AN19: Spesa Massima Ammissibile Asseverata | AO19: Altri Costi | AP19: Spese Tecniche | AQ19: IVA | AR19: Spesa di Intervento | AS19: Ver. Max | AU19: Altri Lavori | AV19: Importo Specifico DM Costi Massimi | AW19: Incremento Costo dei Beni (Allegato A) | AX19: Controllo1 | AY19: Importo Controllo1 | AZ19: Importo Controllo2 | BA19: Importo Controllo3 | BB19: Opere per Istallazione = Incidenza Sicurezza Fornitura / Superficie Intervento | BC19: SpesaSostenuta = Opera Compiuta | BD19: Spesa Tecniche = Spese Tecniche da Computo | BE19: Altri Costi = Altri Lavori | BF19: AliqIva | BG19: Superficie Riscaldata
C20: PV) Isolamento pareti perimetrali | E20: Interno | F20: 0 | G20: 0 | H20: =SUM(F20:G20) -> 0 | I20: =F20*'Dati Gen'!$J$20+G20*'Dati Gen'!$J$19 -> 0 | J20: =H20+I20 -> 0 | K20: 0 | L20: =SUM(J20:K20) -> 0 | M20: =IF(L20<=T20,L20*1.1,T20*1.1) -> 0 | P20: .. | Q20: ok | R20: =CONCATENATE(C20," '",E20,"'") -> PV) Isolamento pareti perimetrali 'Interno' | S20: 1 | T20: =MIN(AG20,AR20) -> 0 | U20: =IF(L20>M20,"KO",IF(L20>T20,"ko","ok")) -> ok | W20: =IF(L20<T20,L20,T20) -> 0 | Y20: =IF(L20>T20,L20-T20,0) -> 0 | AA20: =IF(M20<>0,J20*M20/L20,0) -> 0 | AC20: =IF(M20<>0,K20*M20/L20,0) -> 0 | AF20: =R20 -> PV) Isolamento pareti perimetrali 'Interno' | AG20: =IF(TipoEdif=1,50000,IF(N_Uimm>8,40000*8+30000*(N_Uimm-8),40000*N_Uimm)) -> 50000 | AH20: =IF(L20>AG20,"ko","ok") -> ok | AJ20: 0 | AK20: =IF(ZonaClimatica="A",IF(E20="Parete Ventilata",240,IF(E20="Interno",96,180)),IF(ZonaClimatica="B",IF(E20="Parete Ventilata",240,IF(E20="Interno",96,180)),IF(ZonaClimatica="C",IF(E20="Parete Ventilata",240,IF(E20="Interno",96,180)),IF(E20="Parete Ventilata",260,IF(E20="Interno",104,195))))) -> 104 | AL20: 0 | AM20: 0 | AN20: =MIN(AY20,AZ20,BA20) -> 0 | AO20: =AU20 -> 0 | AP20: =K20 -> 0 | AQ20: =BF20*SUM(AN20:AP20) -> 0 | AR20: =SUM(AN20:AQ20) -> 0 | AS20: =IF(L20>AR20,"ko","ok") -> ok | AU20: =F20-AJ20 -> 0 | AV20: =SUM(AK20:AM20) -> 104 | AW20: 0 | AX20: TRUE | AY20: =L20 -> 0 | AZ20: =AV20*S20+AW20*BG20 -> 104 | BA20: =L20 -> 0 | BB20: TRUE | BC20: TRUE | BD20: TRUE | BE20: TRUE | BF20: 0.1
C21: PO) Isolamento coperture | E21: Esterno | F21: 0 | G21: 0 | H21: =SUM(F21:G21) -> 0 | I21: =F21*'Dati Gen'!$J$20+G21*'Dati Gen'!$J$19 -> 0 | J21: =H21+I21 -> 0 | K21: 0 | L21: =SUM(J21:K21) -> 0 | M21: =IF(L21<=T21,L21*1.1,T21*1.1) -> 0 | P21: .. | Q21: ok | R21: =CONCATENATE(C21," '",E21,"'") -> PO) Isolamento coperture 'Esterno' | S21: 1 | T21: 0 | U21: ok | W21: =IF(L21<T21,L21,T21) -> 0 | Y21: =IF(L21>T21,L21-T21,0) -> 0 | AA21: 0 | AC21: 0 | AF21: PO) Isolamento coperture 'Esterno' | AG21: =IF(TipoEdif=1,50000,IF(N_Uimm>8,40000*8+30000*(N_Uimm-8),40000*N_Uimm)) -> 50000 | AH21: ok | AJ21: 0 | AK21: =IF(E21="Copertura Ventilata",300,IF(E21="Interno",120,276)) -> 276 | AL21: 0 | AM21: 0 | AN21: =MIN(AY21,AZ21,BA21) -> 0 | AO21: 0 | AP21: =K21 -> 0 | AQ21: =BF21*SUM(AN21:AP21) -> 0 | AR21: 0 | AS21: ok | AU21: =F21-AJ21 -> 0 | AV21: =SUM(AK21:AM21) -> 276 | AW21: 0 | AX21: TRUE | AY21: =L21 -> 0 | AZ21: =AV21*S21+AW21*BG21 -> 276 | BA21: =L21 -> 0 | BB21: TRUE | BC21: TRUE | BD21: TRUE | BE21: TRUE | BF21: 0.1
C22: PS) Isolamento Pavimenti | E22: Interno/terreno | F22: 0 | G22: 0 | H22: =SUM(F22:G22) -> 0 | I22: =F22*'Dati Gen'!$J$20+G22*'Dati Gen'!$J$19 -> 0 | J22: =H22+I22 -> 0 | K22: 0 | L22: =SUM(J22:K22) -> 0 | M22: =IF(L22<=T22,L22*1.1,T22*1.1) -> 0 | P22: .. | Q22: ok | R22: =CONCATENATE(C22," '",E22,"'") -> PS) Isolamento Pavimenti 'Interno/terreno' | S22: 1 | T22: 0 | U22: ok | W22: =IF(L22<T22,L22,T22) -> 0 | Y22: =IF(L22>T22,L22-T22,0) -> 0 | AA22: 0 | AC22: 0 | AF22: PS) Isolamento Pavimenti 'Interno/terreno' | AG22: =IF(TipoEdif=1,50000,IF(N_Uimm>8,40000*8+30000*(N_Uimm-8),40000*N_Uimm)) -> 50000 | AH22: ok | AJ22: 0 | AK22: =IF(E22="Interno/terreno",180,144) -> 180 | AL22: 0 | AM22: 0 | AN22: =MIN(AY22,AZ22,BA22) -> 0 | AO22: 0 | AP22: =K22 -> 0 | AQ22: =BF22*SUM(AN22:AP22) -> 0 | AR22: 0 | AS22: ok | AU22: =F22-AJ22 -> 0 | AV22: 180 | AW22: 0 | AX22: TRUE | AY22: =L22 -> 0 | AZ22: =AV22*S22+AW22*BG22 -> 180 | BA22: =L22 -> 0 | BB22: TRUE | BC22: TRUE | BD22: TRUE | BE22: TRUE | BF22: 0.1
C23: IN) Serramenti con chiusure oscuranti | E23: =IF(ZonaClimatica="A","Zone A, B e C", IF(ZonaClimatica="B","Zone A, B e C",IF(ZonaClimatica="C","Zone A, B e C","Zone D, E ed F"))) -> Zone D, E ed F | F23: 0 | G23: 0 | H23: =SUM(F23:G23) -> 0 | I23: =F23*'Dati Gen'!$J$20+G23*'Dati Gen'!$J$19 -> 0 | J23: =H23+I23 -> 0 | K23: 0 | L23: =SUM(J23:K23) -> 0 | M23: =IF(L23<=T23,L23*1.1,T23*1.1) -> 0 | P23: .. | Q23: ok | R23: =CONCATENATE(C23," '",E23,"'") -> IN) Serramenti con chiusure oscuranti 'Zone D, E ed F' | S23: 1 | T23: 0 | U23: ok | W23: =IF(L23<T23,L23,T23) -> 0 | Y23: =IF(L23>T23,L23-T23,0) -> 0 | AA23: 0 | AC23: 0 | AF23: IN) Serramenti con chiusure oscuranti 'Zone D, E ed F' | AG23: =INT(60000/1.1)*N_Uimm -> 54545 | AH23: ok | AJ23: 0 | AK23: =IF(E23="Zone A, B e C",IF(C23="IN) Serramenti",660,780),IF(C23="IN) Serramenti",780,900)) -> 900 | AL23: 0 | AM23: 0 | AN23: =MIN(AY23,AZ23,BA23) -> 0 | AO23: 0 | AP23: =K23 -> 0 | AQ23: =BF23*SUM(AN23:AP23) -> 0 | AR23: 0 | AS23: ok | AU23: =F23-AJ23 -> 0 | AV23: 900 | AW23: 0 | AX23: TRUE | AY23: =L23 -> 0 | AZ23: =AV23*S23+AW23*BG23 -> 900 | BA23: =L23 -> 0 | BB23: TRUE | BC23: TRUE | BD23: TRUE | BE23: TRUE | BF23: 0.1
C24: Totali Isolamento PV) PO) PS) e IN) | F24: =SUM(F20:F23) -> 0 | G24: 0 | H24: 0 | I24: 0 | J24: 0 | K24: 0 | L24: 0 | M24: 0 | R24: =C24 -> Totali Isolamento PV) PO) PS) e IN) | T24: 0 | U24: ok | W24: =IF(T24=AG24,IF(L24<T24,L24,T24),SUM(W20:X23)) -> 0 | Y24: =IF(L24>W24,L24-W24,0) -> 0 | AA24: 0 | AC24: 0 | AF24: Totali Isolamento PV) PO) PS) e IN) | AG24: =INT(60000/1.1)*N_Uimm -> 54545 | AH24: ok | AR24: =SUM(AR20:AR23) -> 0 | AS24: ok
C25: SS) Schermature solari e chiusure oscuranti | F25: 0 | G25: 0 | H25: =SUM(F25:G25) -> 0 | I25: =F25*'Dati Gen'!$J$20+G25*'Dati Gen'!$J$19 -> 0 | J25: =H25+I25 -> 0 | K25: 0 | L25: =SUM(J25:K25) -> 0 | M25: =IF(L25<=T25,L25*1.1,T25*1.1) -> 0 | P25: .. | Q25: ok | R25: =C25 -> SS) Schermature solari e chiusure oscuranti | S25: 1 | T25: 0 | U25: ok | W25: =IF(L25<T25,L25,T25) -> 0 | Y25: =IF(L25>T25,L25-T25,0) -> 0 | AA25: 0 | AC25: 0 | AF25: SS) Schermature solari e chiusure oscuranti | AG25: =INT(60000/1.1)*N_Uimm -> 54545 | AH25: ok | AJ25: 0 | AK25: 0 | AL25: 0 | AM25: 0 | AN25: =MIN(AY25,AZ25,BA25) -> 0 | AO25: =AU25 -> 0 | AP25: =K25 -> 0 | AQ25: =BF25*SUM(AN25:AP25) -> 0 | AR25: =SUM(AN25:AQ25) -> 0 | AS25: ok | AU25: =F25-AJ25 -> 0 | AV25: =SUM(AK25:AM25) -> 0 | AW25: 0 | AX25: TRUE | AY25: =L25 -> 0 | AZ25: =AV25*S25+AW25*BG25 -> 0 | BA25: =L25 -> 0 | BB25: TRUE | BC25: TRUE | BD25: TRUE | BE25: TRUE | BF25: 0.1
C26: Impianti climatizzazione con | D26: CC)Caldaie a Condensazione | F26: 0 | G26: 0 | H26: =SUM(F26:G26) -> 0 | I26: =F26*'Dati Gen'!$J$20+G26*'Dati Gen'!$J$19 -> 0 | J26: =H26+I26 -> 0 | K26: 0 | L26: =SUM(J26:K26) -> 0 | M26: =IF(L26<=T26,L26*1.1,T26*1.1) -> 0 | P26: .. | Q26: ok | R26: =CONCATENATE(C26," '",D26,"'") -> Impianti climatizzazione con 'CC)Caldaie a Condensazione' | S26: 1 | T26: 0 | U26: ok | W26: =IF(L26<T26,L26,T26) -> 0 | Y26: =IF(L26>T26,L26-T26,0) -> 0 | AA26: 0 | AC26: 0 | AF26: Impianti climatizzazione con 'CC)Caldaie a Condensazione' | AG26: =INT(30000/1.1)*N_Uimm -> 27272 | AH26: ok | AJ26: 0 | AK26: 0 | AL26: 0 | AM26: 0 | AN26: =MIN(AY26,AZ26,BA26) -> 0 | AO26: 0 | AP26: =K26 -> 0 | AQ26: =BF26*SUM(AN26:AP26) -> 0 | AR26: 0 | AS26: ok | AU26: =F26-AJ26 -> 0 | AV26: 0 | AW26: =IF($AO$2=TRUE,IF($AR$2=TRUE,180,60),0) -> 60 | AX26: TRUE | AY26: =L26 -> 0 | AZ26: =AV26*S26+AW26*BG26 -> 0 | BA26: =L26 -> 0 | BB26: TRUE | BC26: TRUE | BD26: TRUE | BE26: TRUE | BF26: 0.1 | BG26: 0
C27: GA) Generatori aria calda Condensazione | F27: 0 | G27: 0 | H27: =SUM(F27:G27) -> 0 | I27: =F27*'Dati Gen'!$J$20+G27*'Dati Gen'!$J$19 -> 0 | J27: =H27+I27 -> 0 | K27: 0 | L27: =SUM(J27:K27) -> 0 | M27: =IF(L27<=T27,L27*1.1,T27*1.1) -> 0 | P27: .. | Q27: ok | R27: GA) Generatori aria calda Condensazione | S27: 1 | T27: 0 | U27: ok | W27: =IF(L27<T27,L27,T27) -> 0 | Y27: =IF(L27>T27,L27-T27,0) -> 0 | AA27: 0 | AC27: 0 | AF27: GA) Generatori aria calda Condensazione | AG27: =INT(30000/1.1)*N_Uimm -> 27272 | AH27: ok | AJ27: 0 | AK27: 0 | AL27: 0 | AM27: 0 | AN27: =MIN(AY27,AZ27,BA27) -> 0 | AO27: 0 | AP27: =K27 -> 0 | AQ27: =BF27*SUM(AN27:AP27) -> 0 | AR27: 0 | AS27: ok | AU27: =F27-AJ27 -> 0 | AV27: 0 | AW27: =IF($AO$2=TRUE,IF($AR$2=TRUE,180,60),0) -> 60 | AX27: TRUE | AY27: =L27 -> 0 | AZ27: =AV27*S27+AW27*BG27 -> 0 | BA27: =L27 -> 0 | BB27: TRUE | BC27: TRUE | BD27: TRUE | BE27: TRUE | BF27: 0.1 | BG27: 0
C28: IB) Impianti Biomassa | F28: 0 | G28: 0 | H28: =SUM(F28:G28) -> 0 | I28: =F28*'Dati Gen'!$J$20+G28*'Dati Gen'!$J$19 -> 0 | J28: =H28+I28 -> 0 | K28: 0 | L28: =SUM(J28:K28) -> 0 | M28: =IF(L28<=T28,L28*1.1,T28*1.1) -> 0 | P28: .. | Q28: ok | R28: IB) Impianti Biomassa | S28: 1 | T28: 0 | U28: ok | W28: =IF(L28<T28,L28,T28) -> 0 | Y28: =IF(L28>T28,L28-T28,0) -> 0 | AA28: 0 | AC28: 0 | AF28: IB) Impianti Biomassa | AG28: =INT(30000/1.1)*N_Uimm -> 27272 | AH28: ok | AJ28: 0 | AK28: 0 | AL28: 0 | AM28: 0 | AN28: =MIN(AY28,AZ28,BA28) -> 0 | AO28: 0 | AP28: =K28 -> 0 | AQ28: =BF28*SUM(AN28:AP28) -> 0 | AR28: 0 | AS28: ok | AU28: =F28-AJ28 -> 0 | AV28: 0 | AW28: =IF($AO$2=TRUE,IF($AR$2=TRUE,180,60),0) -> 60 | AX28: TRUE | AY28: =L28 -> 0 | AZ28: =AV28*S28+AW28*BG28 -> 0 | BA28: =L28 -> 0 | BB28: TRUE | BC28: TRUE | BD28: TRUE | BE28: TRUE | BF28: 0.1 | BG28: 0
C29: SA) Scaldacqua a pompa di calore | F29: 0 | G29: 0 | H29: =SUM(F29:G29) -> 0 | I29: =F29*'Dati Gen'!$J$20+G29*'Dati Gen'!$J$19 -> 0 | J29: =H29+I29 -> 0 | K29: 0 | L29: =SUM(J29:K29) -> 0 | M29: =IF(L29<=T29,L29*1.1,T29*1.1) -> 0 | P29: .. | Q29: ok | R29: SA) Scaldacqua a pompa di calore | S29: 1 | T29: 0 | U29: ok | W29: =IF(L29<T29,L29,T29) -> 0 | Y29: =IF(L29>T29,L29-T29,0) -> 0 | AA29: 0 | AC29: 0 | AF29: SA) Scaldacqua a pompa di calore | AG29: =INT(30000/1.1)*N_Uimm -> 27272 | AH29: ok | AI29: =IF(S29<=150,1200,1500) -> 1200 | AJ29: 0 | AK29: 0 | AL29: 0 | AM29: 0 | AN29: =MIN(AY29,AZ29,BA29) -> 0 | AO29: 0 | AP29: =K29 -> 0 | AQ29: =BF29*SUM(AN29:AP29) -> 0 | AR29: 0 | AS29: ok | AU29: =F29-AJ29 -> 0 | AV29: 0 | AW29: 0 | AX29: TRUE | AY29: =L29 -> 0 | AZ29: =AV29*S29+AW29*BG29 -> 0 | BA29: =L29 -> 0 | BB29: TRUE | BC29: TRUE | BD29: TRUE | BE29: TRUE | BF29: 0.1
C30: Totali GA) IB) SA) | F30: =SUM(F27:F29) -> 0 | G30: =SUM(G27:G29) -> 0 | H30: =SUM(H27:H29) -> 0 | I30: 0 | J30: 0 | K30: 0 | L30: 0 | M30: 0 | R30: =C30 -> Totali GA) IB) SA) | T30: 0 | U30: ok | W30: =IF(T30=AG30,IF(L30<T30,L30,T30),SUM(W27:X29)) -> 0 | Y30: =IF(L30>W30,L30-W30,0) -> 0 | AA30: 0 | AC30: 0 | AF30: Totali GA) IB) SA) | AG30: =INT(30000/1.1)*N_Uimm -> 27272 | AH30: ok | AR30: =SUM(AR27:AR29) -> 0 | AS30: ok
C31: CO) Sistemi di Microgenerazione | E31: Celle a combustibile | F31: 0 | G31: 0 | H31: =SUM(F31:G31) -> 0 | I31: =F31*'Dati Gen'!$J$20+G31*'Dati Gen'!$J$19 -> 0 | J31: =H31+I31 -> 0 | K31: 0 | L31: =SUM(J31:K31) -> 0 | M31: =IF(L31<=T31,L31*1.1,T31*1.1) -> 0 | P31: .. | Q31: ok | R31: =CONCATENATE(C31," '",E31,"'") -> CO) Sistemi di Microgenerazione 'Celle a combustibile' | S31: 1 | T31: 0 | U31: ok | W31: =IF(L31<T31,L31,T31) -> 0 | Y31: =IF(L31>T31,L31-T31,0) -> 0 | AA31: 0 | AC31: 0 | AF31: CO) Sistemi di Microgenerazione 'Celle a combustibile' | AG31: =INT(100000/1.1)*N_Uimm -> 90909 | AH31: ok | AJ31: 0 | AK31: 0 | AL31: 0 | AM31: 0 | AN31: =MIN(AY31,AZ31,BA31) -> 0 | AO31: =AU31 -> 0 | AP31: =K31 -> 0 | AQ31: =BF31*SUM(AN31:AP31) -> 0 | AR31: =SUM(AN31:AQ31) -> 0 | AS31: ok | AU31: =F31-AJ31 -> 0 | AV31: =SUM(AK31:AM31) -> 0 | AW31: 0 | AX31: TRUE | AY31: =L31 -> 0 | AZ31: =AV31*S31+AW31*BG31 -> 0 | BA31: =L31 -> 0 | BB31: TRUE | BC31: TRUE | BD31: TRUE | BE31: TRUE | BF31: 0.1
C32: ST) Collettori Solari | E32: Piani Vetrati | F32: 0 | G32: 0 | H32: 0 | I32: =F32*'Dati Gen'!$J$20+G32*'Dati Gen'!$J$19 -> 0 | J32: 0 | K32: 0 | L32: 0 | M32: 0 | P32: .. | Q32: ok | R32: ST) Collettori Solari 'Piani Vetrati' | S32: 1 | T32: 0 | U32: ok | W32: 0 | Y32: 0 | AA32: 0 | AC32: 0 | AF32: ST) Collettori Solari 'Piani Vetrati' | AG32: =INT(60000/1.1)*N_Uimm -> 54545 | AH32: ok | AJ32: 0 | AK32: 0 | AL32: 0 | AM32: 0 | AN32: 0 | AO32: 0 | AP32: 0 | AQ32: 0 | AR32: 0 | AS32: ok | AU32: 0 | AV32: =SUM(AK32:AM32) -> 0 | AW32: 0 | AX32: TRUE | AY32: 0 | AZ32: 0 | BA32: 0 | BB32: TRUE | BC32: TRUE | BD32: TRUE | BE32: TRUE | BF32: 0.1
C33: FV) Solare Fotovoltaico [ kWp ] | E33: 6 | F33: 0 | G33: 0 | H33: 0 | I33: =F33*'Dati Gen'!$J$20+G33*'Dati Gen'!$J$19 -> 0 | J33: 0 | K33: 0 | L33: 0 | M33: 0 | P33: .. | Q33: ok | R33: =C33 -> FV) Solare Fotovoltaico [ kWp ] | S33: =E33 -> 6 | T33: 0 | U33: ok | W33: 0 | Y33: 0 | AA33: 0 | AC33: 0 | AF33: FV) Solare Fotovoltaico [ kWp ] | AG33: =IF(ISNUMBER(FIND("ristr",C33))=FALSE,IF(E33*2400<48000*N_Uimm,E33*2400,48000*N_Uimm),IF(E33*1600<48000*N_Uimm,E33*1600,48000*N_Uimm)) -> 14400 | AH33: ok | AJ33: 0 | AK33: 0 | AL33: 0 | AM33: 0 | AN33: 0 | AO33: 0 | AP33: 0 | AQ33: 0 | AR33: 0 | AS33: ok | AU33: 0 | AV33: 0 | AW33: 0 | AX33: TRUE | AY33: 0 | AZ33: 0 | BA33: 0 | BB33: TRUE | BC33: TRUE | BD33: TRUE | BE33: TRUE | BF33: 0.1
C34: AC) Sistema di Accumulo [ kWh ] | E34: 10 | F34: 0 | G34: 0 | H34: 0 | I34: =F34*'Dati Gen'!$J$20+G34*'Dati Gen'!$J$19 -> 0 | J34: 0 | K34: 0 | L34: 0 | M34: 0 | P34: .. | Q34: ok | R34: =C34 -> AC) Sistema di Accumulo [ kWh ] | S34: =E34 -> 10 | T34: 0 | U34: ok | W34: 0 | Y34: 0 | AA34: 0 | AC34: 0 | AF34: AC) Sistema di Accumulo [ kWh ] | AG34: =IF(E34*1000<48000*N_Uimm,E34*1000,48000*N_Uimm) -> 10000 | AH34: ok | AJ34: 0 | AK34: 0 | AL34: 0 | AM34: 0 | AN34: 0 | AO34: 0 | AP34: 0 | AQ34: 0 | AR34: 0 | AS34: ok | AU34: 0 | AV34: 0 | AW34: 0 | AX34: TRUE | AY34: 0 | AZ34: 0 | BA34: 0 | BB34: TRUE | BC34: TRUE | BD34: TRUE | BE34: TRUE | BF34: 0.1
C35: CR) Colonnine di Ricarica [ N. ] | E35: 1 | F35: 0 | G35: 0 | H35: 0 | I35: =F35*'Dati Gen'!$J$20+G35*'Dati Gen'!$J$19 -> 0 | J35: 0 | K35: 0 | L35: 0 | M35: 0 | P35: .. | Q35: ok | R35: =C35 -> CR) Colonnine di Ricarica [ N. ] | S35: =E35 -> 1 | T35: 0 | U35: ok | W35: 0 | Y35: 0 | AA35: 0 | AC35: 0 | AF35: CR) Colonnine di Ricarica [ N. ] | AG35: =IF(E35>8,1500*8+1200*(E35-8),1500*E35) -> 1500 | AH35: ok | AJ35: 0 | AK35: 0 | AL35: 0 | AM35: 0 | AN35: 0 | AO35: 0 | AP35: 0 | AQ35: 0 | AR35: 0 | AS35: ok | AU35: 0 | AV35: 0 | AW35: 0 | AX35: TRUE | AY35: 0 | AZ35: 0 | BA35: 0 | BB35: TRUE | BC35: TRUE | BD35: TRUE | BE35: TRUE | BF35: 0.1
C36: EBA) Eliminazione Barriere architettoniche | F36: 0 | G36: 0 | H36: 0 | I36: =F36*'Dati Gen'!$J$20+G36*'Dati Gen'!$J$19 -> 0 | J36: 0 | K36: 0 | L36: 0 | M36: 0 | P36: .. | Q36: ok | R36: =C36 -> EBA) Eliminazione Barriere architettoniche | S36: 1 | T36: 0 | U36: ok | W36: 0 | Y36: 0 | AA36: 0 | AC36: 0 | AF36: EBA) Eliminazione Barriere architettoniche | AG36: =IF(F36>0,IF(96000*N_Uimm > F15,96000*N_Uimm - F15,0),96000*N_Uimm ) -> 96000 | AH36: ok | AJ36: 0 | AK36: 0 | AL36: 0 | AM36: 0 | AN36: 0 | AO36: 0 | AP36: 0 | AQ36: 0 | AR36: 0 | AS36: ok | AU36: 0 | AV36: =SUM(AK36:AM36) -> 0 | AW36: 0 | AX36: TRUE | AY36: 0 | AZ36: 0 | BA36: 0 | BB36: TRUE | BC36: TRUE | BD36: TRUE | BE36: TRUE | BF36: 0.1
C37: Totale Interventi Trainati Parti Comuni : | F37: =SUM(F24:F26)+SUM(F30:F36) -> 0 | G37: =SUM(G24:G26)+SUM(G30:G36) -> 0 | H37: 0 | I37: 0 | J37: 0 | K37: 0 | L37: 0 | M37: 0 | V37: =C37 -> Totale Interventi Trainati Parti Comuni : | W37: =W24+W25+W26+SUM(W30:X36) -> 0 | Y37: =Y24+Y25+Y26+SUM(Y30:Z36) -> 0 | AA37: =AA24+AA25+AA26+SUM(AA30:AB36) -> 0 | AC37: =AC24+AC25+AC26+SUM(AC30:AD36) -> 0
C40: INTERVENTI TRAINATI | N40: .. | Q40: Asseverabile | R40: =CONCATENATE("Spesa detraibile ammissibile ",C40) -> Spesa detraibile ammissibile INTERVENTI TRAINATI | AF40: Spesa Massima Ammissibile (norma primaria) | AJ40: Spesa Specifica MITE | AM40: =C40 -> INTERVENTI TRAINATI
C41: Interventi | F41: Importo Lavori | G41: Incidenza Sicurezza | H41: Imponibile | I41: Iva | J41: Importo c.iva | K41: Spese tecniche | L41: Totale | M41: Credito Spettante 110% Spesa Ammessa | R41: Interventi | S41: Superficie Intervento / UnitàMisura | T41: Min(Spesa Max Ammissibile;Spesa Max Intervento) | U41: Verifica Max | W41: Spesa Detraibile Ammessa | Y41: Quota Eccedente Spesa Ammessa | AA41: Credito Spettante 110% Spesa Ammessa Quota Impresa | Quota Tecnici | AF41: =C40 -> INTERVENTI TRAINATI | AG41: Spesa Massima Ammissibile | AH41: Ver. Max | AJ41: Importo Lavori Fornitura e Posa | AK41: Costo dei Beni (Allegato A) | AL41: Opere per installazione (Sicurezza) | AM41: Manodopera | AN41: Spesa Massima Ammissibile Asseverata | AO41: Altri Costi | AP41: Spese Tecniche | AQ41: IVA | AR41: Spesa di Intervento | AS41: Ver. Max | AU41: Altri Lavori | AV41: Importo Specifico DM Costi Massimi | AW41: Incremento Costo dei Beni (Allegato A) | AX41: Controllo1 | AY41: Importo Controllo1 | AZ41: Importo Controllo2 | BA41: Importo Controllo3 | BB41: Opere per Istallazione = Incidenza Sicurezza Fornitura / Superficie Intervento | BC41: SpesaSostenuta = Opera Compiuta | BD41: Spesa Tecniche = Spese Tecniche da Computo | BE41: Altri Costi = Altri Lavori | BF41: AliqIva | BG41: Superficie Riscaldata
C42: PV) Isolamento pareti perimetrali | E42: Esterno | F42: 0 | G42: 0 | H42: =SUM(F42:G42) -> 0 | I42: =F42*'Dati Gen'!$J$20+G42*'Dati Gen'!$J$19 -> 0 | J42: =H42+I42 -> 0 | K42: 0 | L42: =SUM(J42:K42) -> 0 | M42: =IF(L42<=T42,L42*1.1,T42*1.1) -> 0 | P42: .. | Q42: ok | R42: =CONCATENATE(C42," '",E42,"'") -> PV) Isolamento pareti perimetrali 'Esterno' | S42: 1 | T42: =MIN(AG42,AR42) -> 0 | U42: =IF(L42>M42,"KO",IF(L42>T42,"ko","ok")) -> ok | W42: =IF(L42<T42,L42,T42) -> 0 | Y42: =IF(L42>T42,L42-T42,0) -> 0 | AA42: =IF(M42<>0,J42*M42/L42,0) -> 0 | AC42: =IF(M42<>0,K42*M42/L42,0) -> 0 | AF42: =R42 -> PV) Isolamento pareti perimetrali 'Esterno' | AG42: =INT(60000/1.1) -> 54545 | AH42: =IF(L42>AG42,"ko","ok") -> ok | AJ42: 0 | AK42: =IF(ZonaClimatica="A",IF(E42="Parete Ventilata",240,IF(E42="Interno",96,180)),IF(ZonaClimatica="B",IF(E42="Parete Ventilata",240,IF(E42="Interno",96,180)),IF(ZonaClimatica="C",IF(E42="Parete Ventilata",240,IF(E42="Interno",96,180)),IF(E42="Parete Ventilata",260,IF(E42="Interno",104,195))))) -> 195 | AL42: =IF(S42<>0,IF(F42<>0,G42*AJ42/F42/S42,0),0) -> 0 | AM42: 27 | AN42: =MIN(AY42,AZ42,BA42) -> 0 | AO42: =AU42 -> 0 | AP42: =K42 -> 0 | AQ42: =BF42*SUM(AN42:AP42) -> 0 | AR42: =SUM(AN42:AQ42) -> 0 | AS42: =IF(L42>AR42,"ko","ok") -> ok | AU42: =F42-AJ42 -> 0 | AV42: =SUM(AK42:AM42) -> 222 | AW42: 0 | AX42: TRUE | AY42: =L42 -> 0 | AZ42: =AV42*S42+AW42*BG42 -> 222 | BA42: =L42 -> 0 | BB42: TRUE | BC42: TRUE | BD42: TRUE | BE42: TRUE | BF42: 0.1
C43: PO) Isolamento coperture | E43: Esterno | F43: 0 | G43: 0 | H43: =SUM(F43:G43) -> 0 | I43: =F43*'Dati Gen'!$J$20+G43*'Dati Gen'!$J$19 -> 0 | J43: =H43+I43 -> 0 | K43: 0 | L43: =SUM(J43:K43) -> 0 | M43: =IF(L43<=T43,L43*1.1,T43*1.1) -> 0 | P43: .. | Q43: ok | R43: =CONCATENATE(C43," '",E43,"'") -> PO) Isolamento coperture 'Esterno' | S43: 1 | T43: 0 | U43: ok | W43: =IF(L43<T43,L43,T43) -> 0 | Y43: =IF(L43>T43,L43-T43,0) -> 0 | AA43: 0 | AC43: 0 | AF43: PO) Isolamento coperture 'Esterno' | AG43: 54545 | AH43: ok | AJ43: 0 | AK43: =IF(E43="Copertura Ventilata",300,IF(E43="Interno",120,276)) -> 276 | AL43: =IF(S43<>0,IF(F43<>0,G43*AJ43/F43/S43,0),0) -> 0 | AM43: 38 | AN43: =MIN(AY43,AZ43,BA43) -> 0 | AO43: 0 | AP43: =K43 -> 0 | AQ43: =BF43*SUM(AN43:AP43) -> 0 | AR43: 0 | AS43: ok | AU43: =F43-AJ43 -> 0 | AV43: 314 | AW43: 0 | AX43: TRUE | AY43: =L43 -> 0 | AZ43: =AV43*S43+AW43*BG43 -> 314 | BA43: =L43 -> 0 | BB43: TRUE | BC43: TRUE | BD43: TRUE | BE43: TRUE | BF43: 0.1
C44: PS) Isolamento Pavimenti | E44: Esterno | F44: 0 | G44: 0 | H44: =SUM(F44:G44) -> 0 | I44: =F44*'Dati Gen'!$J$20+G44*'Dati Gen'!$J$19 -> 0 | J44: =H44+I44 -> 0 | K44: 0 | L44: =SUM(J44:K44) -> 0 | M44: =IF(L44<=T44,L44*1.1,T44*1.1) -> 0 | P44: .. | Q44: ok | R44: =CONCATENATE(C44," '",E44,"'") -> PS) Isolamento Pavimenti 'Esterno' | S44: 1 | T44: 0 | U44: ok | W44: =IF(L44<T44,L44,T44) -> 0 | Y44: =IF(L44>T44,L44-T44,0) -> 0 | AA44: 0 | AC44: 0 | AF44: PS) Isolamento Pavimenti 'Esterno' | AG44: 54545 | AH44: ok | AJ44: 0 | AK44: =IF(E44="Interno/terreno",180,144) -> 144 | AL44: =IF(S44<>0,IF(F44<>0,G44*AJ44/F44/S44,0),0) -> 0 | AM44: 27 | AN44: =MIN(AY44,AZ44,BA44) -> 0 | AO44: 0 | AP44: =K44 -> 0 | AQ44: =BF44*SUM(AN44:AP44) -> 0 | AR44: 0 | AS44: ok | AU44: =F44-AJ44 -> 0 | AV44: 171 | AW44: 0 | AX44: TRUE | AY44: =L44 -> 0 | AZ44: =AV44*S44+AW44*BG44 -> 171 | BA44: =L44 -> 0 | BB44: TRUE | BC44: TRUE | BD44: TRUE | BE44: TRUE | BF44: 0.1
C45: IN) Serramenti con chiusure oscuranti | E45: =IF(ZonaClimatica="A","Zone A, B e C", IF(ZonaClimatica="B","Zone A, B e C",IF(ZonaClimatica="C","Zone A, B e C","Zone D, E ed F"))) -> Zone D, E ed F | F45: 0 | G45: 0 | H45: =SUM(F45:G45) -> 0 | I45: =F45*'Dati Gen'!$J$20+G45*'Dati Gen'!$J$19 -> 0 | J45: =H45+I45 -> 0 | K45: 0 | L45: =SUM(J45:K45) -> 0 | M45: =IF(L45<=T45,L45*1.1,T45*1.1) -> 0 | P45: .. | Q45: ok | R45: =CONCATENATE(C45," '",E45,"'") -> IN) Serramenti con chiusure oscuranti 'Zone D, E ed F' | S45: 1 | T45: 0 | U45: ok | W45: =IF(L45<T45,L45,T45) -> 0 | Y45: =IF(L45>T45,L45-T45,0) -> 0 | AA45: 0 | AC45: 0 | AF45: IN) Serramenti con chiusure oscuranti 'Zone D, E ed F' | AG45: 54545 | AH45: ok | AJ45: 0 | AK45: =IF(E45="Zone A, B e C",IF(C45="IN) Serramenti",660,780),IF(C45="IN) Serramenti",780,900)) -> 900 | AL45: =IF(S45<>0,IF(F45<>0,G45*AJ45/F45/S45,0),0) -> 0 | AM45: 46.79999924 | AN45: =MIN(AY45,AZ45,BA45) -> 0 | AO45: =AU45 -> 0 | AP45: =K45 -> 0 | AQ45: =BF45*SUM(AN45:AP45) -> 0 | AR45: 0 | AS45: ok | AU45: =F45-AJ45 -> 0 | AV45: 946.7999992 | AW45: 0 | AX45: TRUE | AY45: =L45 -> 0 | AZ45: =AV45*S45+AW45*BG45 -> 946.7999992 | BA45: =L45 -> 0 | BB45: TRUE | BC45: TRUE | BD45: TRUE | BE45: TRUE | BF45: 0.1000000015 | BG45: 0
C46: Totali Isolamento PV) PO) PS) e IN | F46: =SUM(F42:F45) -> 0 | G46: 0 | H46: 0 | I46: 0 | J46: 0 | K46: 0 | L46: 0 | M46: 0 | R46: =C46 -> Totali Isolamento PV) PO) PS) e IN | T46: 0 | U46: ok | W46: =IF(T46=AG46,IF(L46<T46,L46,T46),SUM(W42:X45)) -> 0 | Y46: =IF(L46>W46,L46-W46,0) -> 0 | AA46: 0 | AC46: 0 | AF46: Totali Isolamento PV) PO) PS) e IN | AG46: 54545 | AH46: ok | AR46: =SUM(AR42:AR45) -> 0 | AS46: ok
C47: SS) Schermature solari e chiusure oscuranti | F47: 0 | G47: 0 | H47: =SUM(F47:G47) -> 0 | I47: =F47*'Dati Gen'!$J$20+G47*'Dati Gen'!$J$19 -> 0 | J47: =H47+I47 -> 0 | K47: 0 | L47: =SUM(J47:K47) -> 0 | M47: =IF(L47<=T47,L47*1.1,T47*1.1) -> 0 | P47: .. | Q47: ok | R47: =C47 -> SS) Schermature solari e chiusure oscuranti | S47: 1 | T47: 0 | U47: ok | W47: =IF(L47<T47,L47,T47) -> 0 | Y47: =IF(L47>T47,L47-T47,0) -> 0 | AA47: 0 | AC47: 0 | AF47: SS) Schermature solari e chiusure oscuranti | AG47: 54545 | AH47: ok | AJ47: 0 | AK47: 276 | AL47: =IF(S47<>0,IF(F47<>0,G47*AJ47/F47/S47,0),0) -> 0 | AM47: 0 | AN47: =MIN(AY47,AZ47,BA47) -> 0 | AO47: =AU47 -> 0 | AP47: =K47 -> 0 | AQ47: =BF47*SUM(AN47:AP47) -> 0 | AR47: =SUM(AN47:AQ47) -> 0 | AS47: ok | AU47: =F47-AJ47 -> 0 | AV47: =SUM(AK47:AM47) -> 276 | AW47: 0 | AX47: TRUE | AY47: =L47 -> 0 | AZ47: =AV47*S47+AW47*BG47 -> 276 | BA47: =L47 -> 0 | BB47: TRUE | BC47: TRUE | BD47: TRUE | BE47: TRUE | BF47: 0.1
C48: Impianti climatizzazione con | D48: CC)Caldaie a Condensazione | F48: 0 | G48: 0 | H48: =SUM(F48:G48) -> 0 | I48: =F48*'Dati Gen'!$J$20+G48*'Dati Gen'!$J$19 -> 0 | J48: =H48+I48 -> 0 | K48: 0 | L48: =SUM(J48:K48) -> 0 | M48: =IF(L48<=T48,L48*1.1,T48*1.1) -> 0 | P48: .. | Q48: ok | R48: =CONCATENATE(C48," '",D48,"'") -> Impianti climatizzazione con 'CC)Caldaie a Condensazione' | S48: 1 | T48: 0 | U48: ok | W48: =IF(L48<T48,L48,T48) -> 0 | Y48: =IF(L48>T48,L48-T48,0) -> 0 | AA48: 0 | AC48: 0 | AF48: Impianti climatizzazione con 'CC)Caldaie a Condensazione' | AG48: 30000 | AH48: ok | AJ48: 0 | AK48: =IF(LEFT(D48,3)="CC)",IF(S48<=35,240,216),IF(D48="PC)Aria/Aria",720,IF(D48="PC)Altro",1560,IF(D48="PC)Geotermiche",2280,IF(LEFT(D48,4)="PCA)",1560,IF(LEFT(D48,3)="SI)",1860,0)))))) -> 240 | AL48: =IF(S48<>0,IF(F48<>0,G48*AJ48/F48/S48,0),0) -> 0 | AM48: 93.6 | AN48: =MIN(AY48,AZ48,BA48) -> 0 | AO48: 0 | AP48: =K48 -> 0 | AQ48: 0 | AR48: 0 | AS48: ok | AU48: =F48-AJ48 -> 0 | AV48: 333.6 | AW48: =IF($AO$2=TRUE,IF($AR$2=TRUE,180,60),0) -> 60 | AX48: TRUE | AY48: =L48 -> 0 | AZ48: =AV48*S48+AW48*BG48 -> 333.6 | BA48: =L48 -> 0 | BB48: TRUE | BC48: TRUE | BD48: TRUE | BE48: TRUE | BF48: 0.1 | BG48: 0
C49: SA) Scaldacqua a pompa di calore | F49: 0 | G49: 0 | H49: =SUM(F49:G49) -> 0 | I49: =F49*'Dati Gen'!$J$20+G49*'Dati Gen'!$J$19 -> 0 | J49: =H49+I49 -> 0 | K49: 0 | L49: =SUM(J49:K49) -> 0 | M49: =IF(L49<=T49,L49*1.1,T49*1.1) -> 0 | P49: .. | Q49: ok | R49: =C49 -> SA) Scaldacqua a pompa di calore | S49: 1 | T49: 0 | U49: ok | W49: =IF(L49<T49,L49,T49) -> 0 | Y49: =IF(L49>T49,L49-T49,0) -> 0 | AA49: 0 | AC49: 0 | AF49: SA) Scaldacqua a pompa di calore | AG49: 27272 | AH49: ok | AI49: =IF(S49<=150,1200,1500) -> 1200 | AJ49: 0 | AK49: =IF($AO$2=TRUE,IF($AQ$2=TRUE,AI49+180,AI49+60),AI49) -> 1260 | AL49: =IF(S49<>0,IF(F49<>0,G49*AJ49/F49/S49,0),0) -> 0 | AM49: 93.59999847 | AN49: =MIN(AY49,AZ49,BA49) -> 0 | AO49: =AU49 -> 0 | AP49: =K49 -> 0 | AQ49: 0 | AR49: 0 | AS49: ok | AU49: =F49-AJ49 -> 0 | AV49: 1353.599998 | AW49: 0 | AX49: TRUE | AY49: =L49 -> 0 | AZ49: =AV49*S49+AW49*BG49 -> 1353.599998 | BA49: =L49 -> 0 | BB49: TRUE | BC49: TRUE | BD49: TRUE | BE49: TRUE | BF49: 0.1000000015 | BG49: 0
C50: Totali Impianti ed SA) | F50: =SUM(F48:F49) -> 0 | G50: =SUM(G48:G49) -> 0 | H50: 0 | I50: 0 | J50: 0 | K50: 0 | L50: 0 | M50: 0 | R50: =C50 -> Totali Impianti ed SA) | T50: 0 | U50: ok | W50: =IF(T50=AG50,IF(L50<T50,L50,T50),SUM(W48:X49)) -> 0 | Y50: =IF(L50>W50,L50-W50,0) -> 0 | AA50: 0 | AC50: 0 | AF50: Totali Impianti ed SA) | AG50: =INT(30000/1.1) -> 27272 | AH50: ok | AR50: =SUM(AR48:AR49) -> 0 | AS50: ok
C51: CO) Sistemi di Microgenerazione | E51: Celle a combustibile | F51: 0 | G51: 0 | H51: =SUM(F51:G51) -> 0 | I51: =F51*'Dati Gen'!$J$20+G51*'Dati Gen'!$J$19 -> 0 | J51: =H51+I51 -> 0 | K51: 0 | L51: =SUM(J51:K51) -> 0 | M51: =IF(L51<=T51,L51*1.1,T51*1.1) -> 0 | P51: .. | Q51: ok | R51: =CONCATENATE(C51," '",E51,"'") -> CO) Sistemi di Microgenerazione 'Celle a combustibile' | S51: 1 | T51: 0 | U51: ok | W51: =IF(L51<T51,L51,T51) -> 0 | Y51: =IF(L51>T51,L51-T51,0) -> 0 | AA51: 0 | AC51: 0 | AF51: CO) Sistemi di Microgenerazione 'Celle a combustibile' | AG51: =INT(100000/1.1) -> 90909 | AH51: ok | AJ51: 0 | AK51: =IF(E51="Celle a combustibile",30000,3720) -> 30000 | AL51: =IF(S51<>0,IF(F51<>0,G51*AJ51/F51/S51,0),0) -> 0 | AM51: 93.6 | AN51: =MIN(AY51,AZ51,BA51) -> 0 | AO51: =AU51 -> 0 | AP51: =K51 -> 0 | AQ51: =BF51*SUM(AN51:AP51) -> 0 | AR51: =SUM(AN51:AQ51) -> 0 | AS51: ok | AU51: =F51-AJ51 -> 0 | AV51: =SUM(AK51:AM51) -> 30093.6 | AW51: 0 | AX51: TRUE | AY51: =L51 -> 0 | AZ51: =AV51*S51+AW51*BG51 -> 30093.6 | BA51: =L51 -> 0 | BB51: TRUE | BC51: TRUE | BD51: TRUE | BE51: TRUE | BF51: 0.1
C52: IB) Generatori a Biomassa | F52: 0 | G52: 0 | H52: 0 | I52: =F52*'Dati Gen'!$J$20+G52*'Dati Gen'!$J$19 -> 0 | J52: 0 | K52: 0 | L52: 0 | M52: 0 | P52: .. | Q52: ok | R52: =C52 -> IB) Generatori a Biomassa | S52: 1 | T52: 0 | U52: ok | W52: 0 | Y52: 0 | AA52: 0 | AC52: 0 | AF52: IB) Generatori a Biomassa | AG52: =INT(30000/1.1) -> 27272 | AH52: ok | AJ52: 0 | AK52: =IF(S51<=35,420,540) -> 420 | AL52: =IF(S52<>0,IF(F52<>0,G52*AJ52/F52/S52,0),0) -> 0 | AM52: 0 | AN52: 0 | AO52: =AU52 -> 0 | AP52: =K52 -> 0 | AQ52: 0 | AR52: 0 | AS52: ok | AU52: 0 | AV52: 420 | AW52: =IF($AO$2=TRUE,IF($AR$2=TRUE,180,60),0) -> 60 | AX52: TRUE | AY52: 0 | AZ52: 10920 | BA52: =L52 -> 0 | BB52: TRUE | BC52: TRUE | BD52: TRUE | BE52: TRUE | BF52: 0.1000000015 | BG52: 175
C53: BA) Building Automation | F53: 0 | G53: 0 | H53: 0 | I53: =F53*'Dati Gen'!$J$20+G53*'Dati Gen'!$J$19 -> 0 | J53: 0 | K53: 0 | L53: 0 | M53: 0 | P53: .. | Q53: ok | R53: =C53 -> BA) Building Automation | S53: 1 | T53: 0 | U53: ok | W53: 0 | Y53: 0 | AA53: 0 | AC53: 0 | AF53: BA) Building Automation | AG53: =15000/1.1 -> 13636.36364 | AH53: ok | AJ53: 0 | AK53: 60 | AL53: =IF(S53<>0,IF(F53<>0,G53*AJ53/F53/S53,0),0) -> 0 | AM53: 0 | AN53: 0 | AO53: =AU53 -> 0 | AP53: =K53 -> 0 | AQ53: 0 | AR53: 0 | AS53: ok | AU53: 0 | AV53: 60 | AW53: 0 | AX53: TRUE | AY53: 0 | AZ53: 60 | BA53: =L53 -> 0 | BB53: TRUE | BC53: TRUE | BD53: TRUE | BE53: TRUE | BF53: 0.1000000015 | BG53: 0
C54: ST) Collettori Solari | E54: Piani Vetrati | F54: 0 | G54: 0 | H54: 0 | I54: =F54*'Dati Gen'!$J$20+G54*'Dati Gen'!$J$19 -> 0 | J54: 0 | K54: 0 | L54: 0 | M54: 0 | P54: .. | Q54: ok | R54: =CONCATENATE(C54," '",E5:E54,"'") -> ST) Collettori Solari 'Piani Vetrati' | S54: 1 | T54: 0 | U54: ok | W54: 0 | Y54: 0 | AA54: 0 | AC54: 0 | AF54: ST) Collettori Solari 'Piani Vetrati' | AG54: =INT(60000/1.1) -> 54545 | AH54: ok | AJ54: 0 | AK54: =IF(E54="Scoperti",900,IF(E54="Piani vetrati",1200,1500)) -> 1200 | AL54: =IF(S54<>0,IF(F54<>0,G54*AJ54/F54/S54,0),0) -> 0 | AM54: 285 | AN54: 0 | AO54: =AU54 -> 0 | AP54: =K54 -> 0 | AQ54: 0 | AR54: 0 | AS54: ok | AU54: 0 | AV54: 1485 | AW54: 0 | AX54: TRUE | AY54: 0 | AZ54: 1485 | BA54: =L54 -> 0 | BB54: TRUE | BC54: TRUE | BD54: TRUE | BE54: TRUE | BF54: 0.1000000015 | BG54: 0
C55: FV) Solare Fotovoltaico [ kWp ] | E55: 6 | F55: 0 | G55: 0 | H55: 0 | I55: =F55*'Dati Gen'!$J$20+G55*'Dati Gen'!$J$19 -> 0 | J55: 0 | K55: 0 | L55: 0 | M55: 0 | P55: .. | Q55: ok | R55: =C55 -> FV) Solare Fotovoltaico [ kWp ] | S55: 6 | T55: 0 | U55: ok | W55: 0 | Y55: 0 | AA55: 0 | AC55: 0 | AF55: FV) Solare Fotovoltaico [ kWp ] | AG55: =IF(ISNUMBER(FIND("ristr",C55))=FALSE,IF(E55*2400<48000*N_Uimm,E55*2400,48000*N_Uimm),IF(E55*1600<48000*N_Uimm,E55*1600,48000*N_Uimm)) -> 14400 | AH55: ok | AJ55: 0 | AK55: =(AG55/S55-K55/S55)/(1+AliqIva)-G55/S55 -> 2181.818182 | AL55: =IF(S55<>0,IF(F55<>0,G55*AJ55/F55/S55,0),0) -> 0 | AM55: 305 | AN55: 0 | AO55: =AU55 -> 0 | AP55: =K55 -> 0 | AQ55: 0 | AR55: 0 | AS55: ok | AU55: 0 | AV55: 2486.818182 | AW55: 0 | AX55: TRUE | AY55: 0 | AZ55: 14920.90909 | BA55: =L55 -> 0 | BB55: TRUE | BC55: TRUE | BD55: TRUE | BE55: TRUE | BF55: 0.1000000015 | BG55: 0
C56: AC) Sistema di Accumulo [ kWh ] | E56: 10 | F56: 0 | G56: 0 | H56: 0 | I56: =F56*'Dati Gen'!$J$20+G56*'Dati Gen'!$J$19 -> 0 | J56: 0 | K56: 0 | L56: 0 | M56: 0 | P56: .. | Q56: ok | R56: =C56 -> AC) Sistema di Accumulo [ kWh ] | S56: 10 | T56: 0 | U56: ok | W56: 0 | Y56: 0 | AA56: 0 | AC56: 0 | AF56: AC) Sistema di Accumulo [ kWh ] | AG56: =IF(E56*1000<48000*N_Uimm,E56*1000,48000*N_Uimm) -> 10000 | AH56: ok | AJ56: 0 | AK56: =(AG56/S56-K56/S56)/(1+AliqIva)-G56/S56 -> 909.0909091 | AL56: 0 | AM56: 30 | AN56: 0 | AO56: 0 | AP56: 0 | AQ56: 0 | AR56: 0 | AS56: ok | AU56: 0 | AV56: 939.0909091 | AW56: 0 | AX56: TRUE | AY56: 0 | AZ56: 9390.909091 | BA56: 0 | BB56: TRUE | BC56: TRUE | BD56: TRUE | BE56: TRUE | BF56: 0.1
C57: CR) Colonnine di Ricarica | E57: 1 | F57: 0 | G57: 0 | H57: 0 | I57: =F57*'Dati Gen'!$J$20+G57*'Dati Gen'!$J$19 -> 0 | J57: 0 | K57: 0 | L57: 0 | M57: 0 | P57: .. | Q57: ok | R57: =C57 -> CR) Colonnine di Ricarica | S57: 1 | T57: 0 | U57: ok | W57: 0 | Y57: 0 | AA57: 0 | AC57: 0 | AF57: CR) Colonnine di Ricarica | AG57: =IF(TipoEdif=1,2000,IF(N_Uimm>8,1200,1500)) -> 2000 | AH57: ok | AJ57: 0 | AK57: =(AG57/S57-K57/S57)/(1+AliqIva)-G57/S57 -> 1818.181818 | AL57: 0 | AM57: 150 | AN57: 0 | AO57: 0 | AP57: 0 | AQ57: 0 | AR57: 0 | AS57: ok | AU57: 0 | AV57: 1968.181818 | AW57: 0 | AX57: TRUE | AY57: 0 | AZ57: 1968.181818 | BA57: 0 | BB57: TRUE | BC57: TRUE | BD57: TRUE | BE57: TRUE | BF57: 0.1
C58: EBA) Eliminazione Barriere architettoniche | F58: 0 | G58: 0 | H58: =SUM(F58:G58) -> 0 | I58: =F58*'Dati Gen'!$J$20+G58*'Dati Gen'!$J$19 -> 0 | J58: =H58+I58 -> 0 | K58: 0 | L58: 0 | M58: 0 | P58: .. | Q58: ok | R58: =C58 -> EBA) Eliminazione Barriere architettoniche | S58: 1 | T58: 0 | U58: ok | W58: 0 | Y58: 0 | AA58: 0 | AC58: 0 | AF58: EBA) Eliminazione Barriere architettoniche | AG58: =IF(F58>0,IF(96000*N_Uimm > F15,96000*N_Uimm - F15,0),96000*N_Uimm ) -> 96000 | AH58: ok | AJ58: 0 | AK58: =(AG58/S58-K58/S58)/(1+AliqIva)-G58/S58 -> 87272.72727 | AL58: 0 | AM58: 0 | AN58: 0 | AO58: 0 | AP58: 0 | AQ58: 0 | AR58: 0 | AS58: ok | AU58: 0 | AV58: 87272.72727 | AW58: 0 | AX58: TRUE | AY58: 0 | AZ58: 87272.72727 | BA58: 0 | BB58: TRUE | BC58: TRUE | BD58: TRUE | BE58: TRUE | BF58: 0.1
C59: Totale Interventi trainati | F59: =IF(Titolare!B16="Versione Demo",-1,F46+F47+SUM(F50:F58)) -> -1 | G59: =IF(Titolare!C16="Versione Demo",-1,G46+G47+SUM(G50:G58)) -> 0 | H59: =H46+H47+SUM(H50:H58) -> 0 | I59: =I46+I47+SUM(I50:I58) -> 0 | J59: =IF(Titolare!B16="Versione Demo",-1,J46+J47+SUM(J50:J58)) -> -1 | K59: =K46+K47+SUM(K50:K58) -> 0 | L59: =IF(Titolare!B16="Versione Demo",0,L46+L47+SUM(L50:L58)) -> 0 | M59: =M46+M47+SUM(M50:M58) -> 0 | V59: =C59 -> Totale Interventi trainati | W59: =W46+W47+SUM(W50:X58) -> 0 | Y59: =Y46+Y47+SUM(Y50:Z58) -> 0 | AA59: =AA46+AA47+SUM(AA50:AB58) -> 0 | AC59: =AC46+AC47+SUM(AC50:AD58) -> 0
C78: SimMZ
C80: TOTALE INTERVENTI 110 | F80: Importo Lavori | G80: Incidenza Sicurezza | H80: Imponibile | I80: Iva | J80: Importo c.iva | K80: Spese tecniche | L80: Totale | M80: Credito Spettante 110% Spesa Ammessa | R80: =C80 -> TOTALE INTERVENTI 110 | W80: Spesa Detraibile Ammessa | Y80: Quota Eccedente Spesa Ammessa | AA80: Credito Spettante 110% Spesa Ammessa Quota Impresa | Quota Tecnici
F81: =F16+F59 -> -2 | G81: =G16+G59 -> 0 | H81: =H16+H59 -> 0 | I81: =I16+I59 -> 0 | J81: =J16+J59 -> -2 | K81: =K16+K59 -> 0 | L81: =L16+L59 -> 0 | M81: =M16+M59 -> 0 | W81: =W16+W59 -> 0 | Y81: =Y16+Y59 -> 0 | AA81: =AA16+AA59 -> 0 | AC81: =AC16+AC59 -> 0
AK86: =IF(COUNTIF(AR89:AR92,"KO")>0,"ATTENZIONE! Massimale Spesa MITE non Asseverabile","") -> 
C87: ALTRI INTERVENTI | Q87: Asseverabile | R87: =CONCATENATE("Spesa detraibile ammissibile ",C87) -> Spesa detraibile ammissibile ALTRI INTERVENTI | AF87: Spesa Massima Ammissibile (norma primaria) | AJ87: Spesa Specifica MITE | AM87: =C87 -> ALTRI INTERVENTI
C88: Interventi | E88: x% Credito ceduto | F88: Importo Lavori | G88: Incidenza Sicurezza | H88: Imponibile | I88: Iva | J88: Importo c.iva | K88: Spese tecniche | L88: Totale | M88: Credito Spettante x% Spesa Ammessa | R88: Interventi | S88: Superficie Intervento / UnitàMisura | T88: Min(Spesa Max Ammissibile;Spesa Max Intervento) | U88: Verifica Max | W88: Spesa Detraibile Ammessa | Y88: Quota Eccedente Spesa Ammessa | AA88: Credito Spettante x% Spesa Ammessa Quota Impresa | Quota Tecnici | AF88: =C87 -> ALTRI INTERVENTI | AG88: Spesa Massima Ammissibile | AH88: Ver. Max | AJ88: Importo Lavori Fornitura e Posa | AK88: Costo dei Beni (Allegato A) | AL88: Opere per installazione (Sicurezza) | AM88: Manodopera | AN88: Spesa Massima Ammissibile Asseverata | AO88: Altri Costi | AP88: Spese Tecniche | AQ88: IVA | AR88: Spesa di Intervento | AS88: Ver. Max | AU88: Altri Lavori | AV88: Importo Specifico DM Costi Massimi | AW88: Incremento Costo dei Beni (Allegato A) | AX88: Controllo1 | AY88: Importo Controllo1 | AZ88: Importo Controllo2 | BA88: Importo Controllo3 | BB88: Opere per Istallazione = Incidenza Sicurezza Fornitura / Superficie Intervento | BC88: SpesaSostenuta = Opera Compiuta | BD88: Spesa Tecniche = Spese Tecniche da Computo | BE88: Altri Costi = Altri Lavori | BF88: AliqIva | BG88: Superficie Riscaldata
C89: Ristrutturazione | E89: 0.5 | F89: 0 | G89: =IF(ImpLav<>0,F89*ImpSicLav/ImpLav,0) -> 0 | H89: =F89+G89 -> 0 | I89: =H89*AliqIva -> 0 | J89: =H89+I89 -> 0 | K89: =IF(ImpLav<>0,F89*ImpTecLav/ImpLav,0) -> 0 | L89: =SUM(J89:K89) -> 0 | M89: =IF(L89<=T89,L89*E89,T89*E89) -> 0 | P89: .. | Q89: ok | R89: =IF(C89<>"",C89,"") -> Ristrutturazione | S89: 1 | T89: =MIN(AG89,AR89) -> 0 | U89: =IF(L89>T89,"KO","ok") -> ok | W89: =IF(L89<T89,L89,T89) -> 0 | Y89: =IF(L89>T89,L89-T89,0) -> 0 | AA89: =IF(M89<>0,J89*M89/L89,0) -> 0 | AC89: =IF(M89<>0,K89*M89/L89,0) -> 0 | AF89: =R89 -> Ristrutturazione | AG89: =96000*N_Uimm -> 96000 | AH89: =IF(L89>AG89,"KO","ok") -> ok | AJ89: 0 | AK89: =(AG89/S89-K89/S89)/(1+AliqIva)-G89/S89 -> 87272.72727 | AL89: =IF(S89<>0,IF(F89<>0,G89*AJ89/F89/S89,0),0) -> 0 | AM89: 0 | AN89: =MIN(AY89,AZ89,BA89) -> 0 | AO89: =AU89 -> 0 | AP89: =K89 -> 0 | AQ89: =BF89*SUM(AN89:AP89) -> 0 | AR89: =SUM(AN89:AQ89) -> 0 | AS89: =IF(L89>AR89,"ko","ok") -> ok | AU89: =F89-AJ89 -> 0 | AV89: =SUM(AK89:AM89) -> 87272.72727 | AW89: 0 | AX89: TRUE | AY89: =L89 -> 0 | AZ89: =AV89*S89+AW89*BG89 -> 87272.72727 | BA89: =L89 -> 0 | BB89: TRUE | BC89: TRUE | BD89: TRUE | BE89: TRUE | BF89: 0.1000000015 | BG89: 0
C90: Bonus facciata | E90: 0.6 | F90: 0 | G90: =IF(ImpLav<>0,F90*ImpSicLav/ImpLav,0) -> 0 | H90: =F90+G90 -> 0 | I90: =H90*AliqIva -> 0 | J90: =H90+I90 -> 0 | K90: =IF(ImpLav<>0,F90*ImpTecLav/ImpLav,0) -> 0 | L90: =SUM(J90:K90) -> 0 | M90: =IF(L90<=T90,L90*E90,T90*E90) -> 0 | P90: .. | Q90: ok | R90: =IF(C90<>"",C90,"") -> Bonus facciata | S90: 1 | T90: 0 | U90: =IF(L90>T90,"KO","ok") -> ok | W90: =IF(L90<T90,L90,T90) -> 0 | Y90: =IF(L90>T90,L90-T90,0) -> 0 | AA90: 0 | AC90: 0 | AF90: =R90 -> Bonus facciata | AG90: =96000*N_Uimm -> 96000 | AH90: =IF(L90>AG90,"KO","ok") -> ok | AJ90: 0 | AK90: =(AG90/S90-K90/S90)/(1+AliqIva)-G90/S90 -> 87272.72727 | AL90: =IF(S90<>0,IF(F90<>0,G90*AJ90/F90/S90,0),0) -> 0 | AM90: 0 | AN90: =MIN(AY90,AZ90,BA90) -> 0 | AO90: =AU90 -> 0 | AP90: =K90 -> 0 | AQ90: 0 | AR90: =SUM(AN90:AQ90) -> 0 | AS90: ok | AU90: =F90-AJ90 -> 0 | AV90: 87272.72727 | AW90: 0 | AX90: TRUE | AY90: =L90 -> 0 | AZ90: =AV90*S90+AW90*BG90 -> 87272.72727 | BA90: =L90 -> 0 | BB90: TRUE | BC90: TRUE | BD90: TRUE | BE90: TRUE | BF90: 0.1000000015 | BG90: 0
C91: Bonus Casa | E91: 0.7 | F91: 0 | G91: =IF(ImpLav<>0,F91*ImpSicLav/ImpLav,0) -> 0 | H91: =F91+G91 -> 0 | I91: =H91*AliqIva -> 0 | J91: =H91+I91 -> 0 | K91: =IF(ImpLav<>0,F91*ImpTecLav/ImpLav,0) -> 0 | L91: =SUM(J91:K91) -> 0 | M91: =IF(L91<=T91,L91*E91,T91*E91) -> 0 | P91: .. | Q91: ok | R91: =IF(C91<>"",C91,"") -> Bonus Casa | S91: 1 | T91: 0 | U91: ok | W91: =IF(L91<T91,L91,T91) -> 0 | Y91: =IF(L91>T91,L91-T91,0) -> 0 | AA91: 0 | AC91: 0 | AF91: =R91 -> Bonus Casa | AG91: =96000*N_Uimm -> 96000 | AH91: =IF(L91>AG91,"KO","ok") -> ok | AJ91: 0 | AK91: =(AG91/S91-K91/S91)/(1+AliqIva)-G91/S91 -> 87272.72727 | AL91: =IF(S91<>0,IF(F91<>0,G91*AJ91/F91/S91,0),0) -> 0 | AM91: 0 | AN91: =MIN(AY91,AZ91,BA91) -> 0 | AO91: =AU91 -> 0 | AP91: =K91 -> 0 | AQ91: 0 | AR91: 0 | AS91: ok | AU91: =F91-AJ91 -> 0 | AV91: 87272.72727 | AW91: 0 | AX91: TRUE | AY91: =L91 -> 0 | AZ91: =AV91*S91+AW91*BG91 -> 87272.72727 | BA91: =L91 -> 0 | BB91: TRUE | BC91: TRUE | BD91: TRUE | BE91: TRUE | BF91: 0.1000000015 | BG91: 0
G92: =IF(ImpLav<>0,F92*ImpSicLav/ImpLav,0) -> 0 | H92: =F92+G92 -> 0 | I92: =H92*AliqIva -> 0 | J92: =H92+I92 -> 0 | K92: =IF(ImpLav<>0,F92*ImpTecLav/ImpLav,0) -> 0 | L92: =SUM(J92:K92) -> 0 | M92: =IF(L92<=T92,L92*E92,T92*E92) -> 0 | P92: .. | Q92: ok | R92: =IF(C92<>"",C92,"") ->  | S92: 1 | T92: 0 | U92: ok | W92: =IF(L92<T92,L92,T92) -> 0 | Y92: =IF(L92>T92,L92-T92,0) -> 0 | AA92: 0 | AC92: 0 | AF92: =R92 ->  | AG92: =96000*N_Uimm -> 96000 | AH92: =IF(L92>AG92,"KO","ok") -> ok | AJ92: 0 | AK92: =(AG92/S92-K92/S92)/(1+AliqIva)-G92/S92 -> 87272.72727 | AL92: =IF(S92<>0,IF(F92<>0,G92*AJ92/F92/S92,0),0) -> 0 | AM92: 0 | AN92: =MIN(AY92,AZ92,BA92) -> 0 | AO92: =AU92 -> 0 | AP92: =K92 -> 0 | AQ92: 0 | AR92: 0 | AS92: ok | AU92: =F92-AJ92 -> 0 | AV92: 87272.72727 | AW92: 0 | AX92: TRUE | AY92: =L92 -> 0 | AZ92: =AV92*S92+AW92*BG92 -> 87272.72727 | BA92: =L92 -> 0 | BB92: TRUE | BC92: TRUE | BD92: TRUE | BE92: TRUE | BF92: 0.1000000015 | BG92: 0
C93: Totale Altri Interventi : | F93: =SUM(F89:F92) -> 0 | G93: =SUM(G89:G92) -> 0 | H93: 0 | I93: 0 | J93: 0 | K93: =SUM(K89:K92) -> 0 | L93: 0 | M93: =SUM(M89:M92) -> 0 | T93: =C93 -> Totale Altri Interventi : | W93: =SUM(W89:X92) -> 0 | Y93: =SUM(Y89:Z92) -> 0 | AA93: =SUM(AA89:AB92) -> 0 | AC93: =SUM(AC89:AD92) -> 0
C99: TOTALI PROGETTO | F99: Importo Lavori | G99: Incidenza Sicurezza | H99: Imponibile | I99: Iva | J99: Importo c.iva | K99: Spese tecniche | L99: Totale | M99: Credito Spettante | R99: =C99 -> TOTALI PROGETTO | W99: Spesa Detraibile Ammessa | Y99: Quota Eccedente Spesa Ammessa | AA99: Credito Spettante Quota Impresa | Quota Tecnici
F100: =F81+F93 -> -2 | G100: 0 | H100: 0 | I100: 0 | J100: -2 | K100: 0 | L100: 0 | M100: 0 | W100: =W81+W93 -> 0 | Y100: =Y81+Y93 -> 0 | AA100: =AA81+AA93 -> 0 | AC100: =AC81+AC93 -> 0
C104: Quota % effettiva per cessione credito a Banca o Impresa "Interventi 110" | H104: =100/110 -> 0.9090909091 | I104: =H104*110 -> 100 | J104: Importo Ricevuto | K104: =Detraz110*H104 -> 0 | L104: Costo Cessione 110 | M104: =SpesaAmmessa110-K104 -> 0
G105: Quota % effettiva per cessione credito a Banca o Impresa "Altri Interventi" | H105: 0.8 | I105: =H105*100 -> 80 | J105: Importo Ricevuto | K105: =M93*H105 -> 0 | L105: Costo Cessione Altri | M105: =M93-K105 -> 0
L107: Quota Impresa | M107: Quota Tecnici
G108: Quota Eccedente Massimali Spesa "Interventi 110" | H108: =QuotaEcced110 -> 0 | I108: Credito Netto a seguito Cessione | K108: =SpesaAmmessa110-M104 -> 0 | L108: =IF(Detraz110<>0,QuotaImpresa110*K108/Detraz110,0) -> 0 | M108: =IF(Detraz110<>0,QuotaTecnici110*K108/Detraz110,0) -> 0
G109: Quota Eccedente Massimali Spesa "Altri Interventi" | H109: =Y93 -> 0 | I109: Credito Netto a seguito Cessione | K109: =M93-M105 -> 0 | L109: =IF(M93<>0,AA93*K109/M93,0) -> 0 | M109: =IF(M93<>0,AC93*K109/M93,0) -> 0
I110: Quota Cliente x Interventi 110 | K110: =IF(Totale110-K108>0,Totale110-K108,0) -> 0 | L110: =IF(Detraz110<>0,K110*QuotaImpresa110/Detraz110,0) -> 0 | M110: =IF(Detraz110<>0,K110*QuotaTecnici110/Detraz110,0) -> 0
I111: Quota Cliente x Altri Interventi | K111: =IF(L93-K109>0,L93-K109,0) -> 0 | L111: =IF(M93<>0,K111*AA93/M93,0) -> 0 | M111: =IF(M93<>0,K111*AC93/M93,0) -> 0
I112: Quota Totale a Carico Cliente | K112: =SUM(K110:K111) -> 0 | L112: =SUM(L110:L111) -> 0 | M112: =SUM(M110:M111) -> 0

Sheet SAL.30%
P1: =MATCH("SimMZ",C:C,0) -> 78
C2: =CONCATENATE('Dati Gen'!K2, " ",'Dati Gen'!K3," ",'Dati Gen'!L3) -> Pratica.110plus Vers.ne 4.3.1 | F2: DATI DI PROGETTO : | G2: IMPONIBILE | H2: IVA | I2: IMPORTO | K2: IMPONIBILE | L2: IVA | M2: IMPORTO | N2: Pratica.110plus SIM.srl
C3: STATO AVANZAMENTO LAVORI N.1 | F3: Importo Lavori | G3: ='Dati Gen'!G18 -> 0 | H3: ='Dati Gen'!K18 -> 0 | I3: ='Dati Gen'!M18 -> 0 | J3: Importo Netto | K3: ='Dati Gen'!G20 -> 0 | L3: ='Dati Gen'!K20 -> 0 | M3: ='Dati Gen'!M20 -> 0 | Q3: =IF('Computo-Massimali'!C6<>"","Attenzione! Tabella Computo-Massimali non completa. Si consiglia di completare, prima di registrare Voci di SAL","") -> Attenzione! Tabella Computo-Massimali non completa. Si consiglia di completare, prima di registrare Voci di SAL
C4: 07/05/2022 | F4: Oneri Sicurezza | G4: ='Dati Gen'!G19 -> 0 | H4: ='Dati Gen'!K19 -> 0 | I4: ='Dati Gen'!M19 -> 0 | J4: Spese Tecniche | K4: ='Dati Gen'!G21 -> 0 | L4: ='Dati Gen'!K21 -> 0 | M4: ='Dati Gen'!M21 -> 0 | Q4: Codice Identificativo Asseverazione ENEA | R4: 00331552-00356912-DELQU8 | T4: Codice Identificativo Asseverazione Rischio Sismico
C5: Oneri/Lavori x Sicurezza | D5: 0 | K5: ='Dati Gen'!G22 -> Importo Complessivo Progetto : | M5: ='Dati Gen'!M22 -> 0
C7: INTERVENTI TRAINANTI | O7: .. | Q7: =CONCATENATE("Verifica Massimali di Spesa ",C7) -> Verifica Massimali di Spesa INTERVENTI TRAINANTI
C8: Interventi | F8: Importo Lavori | G8: Incidenza Sicurezza | H8: Imponibile | I8: Iva | J8: Importo c.iva | K8: Spese tecniche | L8: Totale | M8: Credito Spettante 110% Spesa Ammessa | N8: %SAL | R8: Massimale spesa | S8: Verifica Max | U8: Spesa Ammessa | W8: Quota Eccedente Massimale Spesa | Y8: Credito Spettante 110% Spesa Ammessa Quota Impresa | Quota Tecnici
C9: ='Computo-Massimali'!C9 -> PV) Isolamento pareti perimetrali | E9: ='Computo-Massimali'!E9 -> Interno | F9: 0 | G9: =IF('Computo-Massimali'!F9<>0,'Computo-Massimali'!G9*F9/'Computo-Massimali'!F9,0) -> 0 | H9: =SUM(F9:G9) -> 0 | I9: =F9*'Dati Gen'!$J$20+G9*'Dati Gen'!$J$19 -> 0 | J9: =H9+I9 -> 0 | K9: =IF('Computo-Massimali'!F9<>0,'Computo-Massimali'!K9*F9/'Computo-Massimali'!F9,0) -> 0 | L9: =SUM(J9:K9) -> 0 | M9: =IF(L9<=R9,L9*1.1,R9*1.1) -> 0 | N9: =IF('Computo-Massimali'!L9>0,L9/'Computo-Massimali'!L9,0) -> 0 | O9: =IF(F9>0,IF(F9-0.001>'Computo-Massimali'!F9,">Computo",""),"") ->  | Q9: =C9 -> PV) Isolamento pareti perimetrali | R9: ='Computo-Massimali'!T9 -> 0 | S9: =IF(L9>M9,"KO Tot.>Detr.",IF(L9>R9,"ko","ok")) -> ok | U9: =IF($L$13<>0,(L9/$L$13)*$U$13,0) -> 0 | W9: =IF(L9>R9,L9-R9,0) -> 0 | Y9: =IF(M9<>0,J9*M9/L9,0) -> 0 | AA9: =IF(M9<>0,K9*M9/L9,0) -> 0
C10: ='Computo-Massimali'!C10 -> PO) Isolamento coperture | E10: ='Computo-Massimali'!E10 -> Esterno | F10: 0 | G10: =IF('Computo-Massimali'!F10<>0,'Computo-Massimali'!G10*F10/'Computo-Massimali'!F10,0) -> 0 | H10: =SUM(F10:G10) -> 0 | I10: =F10*'Dati Gen'!$J$20+G10*'Dati Gen'!$J$19 -> 0 | J10: =H10+I10 -> 0 | K10: =IF('Computo-Massimali'!F10<>0,'Computo-Massimali'!K10*F10/'Computo-Massimali'!F10,0) -> 0 | L10: =SUM(J10:K10) -> 0 | M10: 0 | N10: =IF('Computo-Massimali'!L10>0,L10/'Computo-Massimali'!L10,0) -> 0 | O10: =IF(F10>0,IF(F10-0.001>'Computo-Massimali'!F10,">Computo",""),"") ->  | Q10: PO) Isolamento coperture | R10: ='Computo-Massimali'!T10 -> 0 | S10: ok | U10: =IF($L$13<>0,(L10/$L$13)*$U$13,0) -> 0 | W10: 0 | Y10: 0 | AA10: 0
C11: ='Computo-Massimali'!C11 -> POND) Isol. coperture non disperdenti | E11: ='Computo-Massimali'!E11 -> Esterno | F11: 0 | G11: =IF('Computo-Massimali'!F11<>0,'Computo-Massimali'!G11*F11/'Computo-Massimali'!F11,0) -> 0 | H11: =SUM(F11:G11) -> 0 | I11: =F11*'Dati Gen'!$J$20+G11*'Dati Gen'!$J$19 -> 0 | J11: =H11+I11 -> 0 | K11: =IF('Computo-Massimali'!F11<>0,'Computo-Massimali'!K11*F11/'Computo-Massimali'!F11,0) -> 0 | L11: =SUM(J11:K11) -> 0 | M11: 0 | N11: =IF('Computo-Massimali'!L11>0,L11/'Computo-Massimali'!L11,0) -> 0 | O11: =IF(F11>0,IF(F11-0.001>'Computo-Massimali'!F11,">Computo",""),"") ->  | Q11: POND) Isol. coperture non disperdenti | R11: ='Computo-Massimali'!T11 -> 0 | S11: ok | U11: =IF($L$13<>0,(L11/$L$13)*$U$13,0) -> 0 | W11: 0 | Y11: 0 | AA11: 0
C12: ='Computo-Massimali'!C12 -> PS) Isolamento Pavimenti | E12: ='Computo-Massimali'!E12 -> Interno/terreno | F12: 0 | G12: =IF('Computo-Massimali'!F12<>0,'Computo-Massimali'!G12*F12/'Computo-Massimali'!F12,0) -> 0 | H12: =SUM(F12:G12) -> 0 | I12: =F12*'Dati Gen'!$J$20+G12*'Dati Gen'!$J$19 -> 0 | J12: =H12+I12 -> 0 | K12: =IF('Computo-Massimali'!F12<>0,'Computo-Massimali'!K12*F12/'Computo-Massimali'!F12,0) -> 0 | L12: =SUM(J12:K12) -> 0 | M12: 0 | N12: =IF('Computo-Massimali'!L12>0,L12/'Computo-Massimali'!L12,0) -> 0 | O12: =IF(F12>0,IF(F12-0.001>'Computo-Massimali'!F12,">Computo",""),"") ->  | Q12: PS) Isolamento Pavimenti | R12: ='Computo-Massimali'!T12 -> 0 | S12: ok | U12: =IF($L$13<>0,(L12/$L$13)*$U$13,0) -> 0 | W12: 0 | Y12: 0 | AA12: 0
C13: ='Computo-Massimali'!C13 -> Totali Isolamento PV) PO) POND) PS) | F13: =SUM(F9:F12) -> 0 | G13: 0 | H13: =SUM(H9:H12) -> 0 | I13: =SUM(I9:I12) -> 0 | J13: =SUM(J9:J12) -> 0 | K13: 0 | L13: 0 | M13: 0 | N13: =IF('Computo-Massimali'!L13>0,L13/'Computo-Massimali'!L13,0) -> 0 | O13: =IF(F13>0,IF(F13-0.001>'Computo-Massimali'!F13,">Computo",""),"") ->  | Q13: Totali Isolamento PV) PO) POND) PS) | R13: ='Computo-Massimali'!T13 -> 0 | S13: ok | U13: =IF(L13<R13,L13,R13) -> 0 | W13: 0 | Y13: 0 | AA13: 0
C14: ='Computo-Massimali'!C14 -> Impianti climatizzazione e ACS | F14: 0 | G14: =IF('Computo-Massimali'!F14<>0,'Computo-Massimali'!G14*F14/'Computo-Massimali'!F14,0) -> 0 | H14: =SUM(F14:G14) -> 0 | I14: =F14*'Dati Gen'!$J$20+G14*'Dati Gen'!$J$19 -> 0 | J14: =H14+I14 -> 0 | K14: =IF('Computo-Massimali'!F14<>0,'Computo-Massimali'!K14*F14/'Computo-Massimali'!F14,0) -> 0 | L14: =SUM(J14:K14) -> 0 | M14: 0 | N14: =IF('Computo-Massimali'!L14>0,L14/'Computo-Massimali'!L14,0) -> 0 | O14: =IF(F14>0,IF(F14-0.001>'Computo-Massimali'!F14,">Computo",""),"") ->  | Q14: Impianti climatizzazione e ACS | R14: ='Computo-Massimali'!T14 -> 0 | S14: ok | U14: =IF(L14<R14,L14,R14) -> 0 | W14: 0 | Y14: 0 | AA14: 0
C15: ='Computo-Massimali'!C15 -> SismaBonus Zona 1,2 o 3 | F15: 0 | G15: =IF('Computo-Massimali'!F15<>0,'Computo-Massimali'!G15*F15/'Computo-Massimali'!F15,0) -> 0 | H15: =SUM(F15:G15) -> 0 | I15: =F15*'Dati Gen'!$J$20+G15*'Dati Gen'!$J$19 -> 0 | J15: =H15+I15 -> 0 | K15: =IF('Computo-Massimali'!F15<>0,'Computo-Massimali'!K15*F15/'Computo-Massimali'!F15,0) -> 0 | L15: =SUM(J15:K15) -> 0 | M15: 0 | N15: =IF('Computo-Massimali'!L15>0,L15/'Computo-Massimali'!L15,0) -> 0 | O15: =IF(F15>0,IF(F15-0.001>'Computo-Massimali'!F15,">Computo",""),"") ->  | Q15: SismaBonus Zona 1,2 o 3 | R15: ='Computo-Massimali'!T15 -> 0 | S15: ok | U15: =IF(L15<R15,L15,R15) -> 0 | W15: 0 | Y15: 0 | AA15: 0
C16: ='Computo-Massimali'!C16 -> Totale interventi Trainanti : | F16: =SUM(F13:F15) -> 0 | G16: =SUM(G13:G15) -> 0 | H16: 0 | I16: =SUM(I13:I15) -> 0 | J16: 0 | K16: 0 | L16: 0 | M16: 0 | N16: =IF('Computo-Massimali'!L16>0,L16/'Computo-Massimali'!L16,0) -> 0 | O16: =IF(F16>0,IF(F16-0.001>'Computo-Massimali'!F16,">Computo",""),"") ->  | R16: =C16 -> Totale interventi Trainanti : | U16: =SUM(U13:V15) -> 0 | W16: =SUM(W13:X15) -> 0 | Y16: =SUM(Y13:Z15) -> 0 | AA16: =SUM(AA13:AB15) -> 0
C18: INTERVENTI TRAINATI PARTI COMUNI CONDOMINIALI | O18: .. | Q18: =CONCATENATE("Verifica Massimali di Spesa ",C18) -> Verifica Massimali di Spesa INTERVENTI TRAINATI PARTI COMUNI CONDOMINIALI
C19: Interventi | F19: Importo Lavori | G19: Incidenza Sicurezza | H19: Imponibile | I19: Iva | J19: Importo c.iva | K19: Spese tecniche | L19: Totale | M19: Credito Spettante 110% Spesa Ammessa | N19: %SAL | R19: Massimale spesa | S19: Verifica Max | U19: Spesa Ammessa | W19: Quota Eccedente Massimale Spesa | Y19: Credito Spettante 110% Spesa Ammessa Quota Impresa | Quota Tecnici
C20: ='Computo-Massimali'!C20 -> PV) Isolamento pareti perimetrali | E20: ='Computo-Massimali'!E20 -> Interno | F20: 0 | G20: =IF('Computo-Massimali'!F20<>0,'Computo-Massimali'!G20*F20/'Computo-Massimali'!F20,0) -> 0 | H20: =SUM(F20:G20) -> 0 | I20: =F20*'Dati Gen'!$J$20+G20*'Dati Gen'!$J$19 -> 0 | J20: =H20+I20 -> 0 | K20: =IF('Computo-Massimali'!F20<>0,'Computo-Massimali'!K20*F20/'Computo-Massimali'!F20,0) -> 0 | L20: =SUM(J20:K20) -> 0 | M20: =IF(L20<=R20,L20*1.1,R20*1.1) -> 0 | N20: =IF('Computo-Massimali'!L20>0,L20/'Computo-Massimali'!L20,0) -> 0 | O20: =IF(F20>0,IF(F20-0.001>'Computo-Massimali'!F20,">Computo",""),"") ->  | Q20: =C20 -> PV) Isolamento pareti perimetrali | R20: ='Computo-Massimali'!T20 -> 0 | S20: =IF(L20>M20,"KO Tot.>Detr.",IF(L20>R20,"ko","ok")) -> ok | U20: =IF($L$24<>0,(L20/$L$24)*$U$24,0) -> 0 | W20: =IF(L20>R20,L20-R20,0) -> 0 | Y20: =IF(M20<>0,J20*M20/L20,0) -> 0 | AA20: =IF(M20<>0,K20*M20/L20,0) -> 0
C21: ='Computo-Massimali'!C21 -> PO) Isolamento coperture | E21: ='Computo-Massimali'!E21 -> Esterno | F21: 0 | G21: =IF('Computo-Massimali'!F21<>0,'Computo-Massimali'!G21*F21/'Computo-Massimali'!F21,0) -> 0 | H21: =SUM(F21:G21) -> 0 | I21: =F21*'Dati Gen'!$J$20+G21*'Dati Gen'!$J$19 -> 0 | J21: =H21+I21 -> 0 | K21: =IF('Computo-Massimali'!F21<>0,'Computo-Massimali'!K21*F21/'Computo-Massimali'!F21,0) -> 0 | L21: =SUM(J21:K21) -> 0 | M21: =IF(L21<=R21,L21*1.1,R21*1.1) -> 0 | N21: =IF('Computo-Massimali'!L21>0,L21/'Computo-Massimali'!L21,0) -> 0 | O21: =IF(F21>0,IF(F21-0.001>'Computo-Massimali'!F21,">Computo",""),"") ->  | Q21: PO) Isolamento coperture | R21: ='Computo-Massimali'!T21 -> 0 | S21: ok | U21: =IF($L$24<>0,(L21/$L$24)*$U$24,0) -> 0 | W21: 0 | Y21: 0 | AA21: 0
C22: ='Computo-Massimali'!C22 -> PS) Isolamento Pavimenti | E22: ='Computo-Massimali'!E22 -> Interno/terreno | F22: 0 | G22: =IF('Computo-Massimali'!F22<>0,'Computo-Massimali'!G22*F22/'Computo-Massimali'!F22,0) -> 0 | H22: =SUM(F22:G22) -> 0 | I22: =F22*'Dati Gen'!$J$20+G22*'Dati Gen'!$J$19 -> 0 | J22: =H22+I22 -> 0 | K22: =IF('Computo-Massimali'!F22<>0,'Computo-Massimali'!K22*F22/'Computo-Massimali'!F22,0) -> 0 | L22: =SUM(J22:K22) -> 0 | M22: =IF(L22<=R22,L22*1.1,R22*1.1) -> 0 | N22: =IF('Computo-Massimali'!L22>0,L22/'Computo-Massimali'!L22,0) -> 0 | O22: =IF(F22>0,IF(F22-0.001>'Computo-Massimali'!F22,">Computo",""),"") ->  | Q22: PS) Isolamento Pavimenti | R22: ='Computo-Massimali'!T22 -> 0 | S22: ok | U22: =IF($L$24<>0,(L22/$L$24)*$U$24,0) -> 0 | W22: 0 | Y22: 0 | AA22: 0
C23: ='Computo-Massimali'!C23 -> IN) Serramenti con chiusure oscuranti | E23: ='Computo-Massimali'!E23 -> Zone D, E ed F | F23: 0 | G23: =IF('Computo-Massimali'!F23<>0,'Computo-Massimali'!G23*F23/'Computo-Massimali'!F23,0) -> 0 | H23: =SUM(F23:G23) -> 0 | I23: =F23*'Dati Gen'!$J$20+G23*'Dati Gen'!$J$19 -> 0 | J23: =H23+I23 -> 0 | K23: =IF('Computo-Massimali'!F23<>0,'Computo-Massimali'!K23*F23/'Computo-Massimali'!F23,0) -> 0 | L23: =SUM(J23:K23) -> 0 | M23: =IF(L23<=R23,L23*1.1,R23*1.1) -> 0 | N23: =IF('Computo-Massimali'!L23>0,L23/'Computo-Massimali'!L23,0) -> 0 | O23: =IF(F23>0,IF(F23-0.001>'Computo-Massimali'!F23,">Computo",""),"") ->  | Q23: IN) Serramenti con chiusure oscuranti | R23: ='Computo-Massimali'!T23 -> 0 | S23: ok | U23: =IF($L$24<>0,(L23/$L$24)*$U$24,0) -> 0 | W23: 0 | Y23: 0 | AA23: 0
C24: ='Computo-Massimali'!C24 -> Totali Isolamento PV) PO) PS) e IN) | F24: =SUM(F20:F23) -> 0 | G24: =SUM(G20:G23) -> 0 | H24: 0 | I24: =SUM(I20:I23) -> 0 | J24: 0 | K24: =SUM(K20:K23) -> 0 | L24: 0 | M24: 0 | N24: =IF('Computo-Massimali'!L24>0,L24/'Computo-Massimali'!L24,0) -> 0 | O24: =IF(F24>0,IF(F24-0.001>'Computo-Massimali'!F24,">Computo",""),"") ->  | Q24: Totali Isolamento PV) PO) PS) e IN) | R24: ='Computo-Massimali'!T24 -> 0 | S24: ok | U24: =IF(L24<R24,L24,R24) -> 0 | W24: 0 | Y24: 0 | AA24: 0
C25: ='Computo-Massimali'!C25 -> SS) Schermature solari e chiusure oscuranti | F25: 0 | G25: =IF('Computo-Massimali'!F25<>0,'Computo-Massimali'!G25*F25/'Computo-Massimali'!F25,0) -> 0 | H25: =SUM(F25:G25) -> 0 | I25: =F25*'Dati Gen'!$J$20+G25*'Dati Gen'!$J$19 -> 0 | J25: 0 | K25: =IF('Computo-Massimali'!F25<>0,'Computo-Massimali'!K25*F25/'Computo-Massimali'!F25,0) -> 0 | L25: =SUM(J25:K25) -> 0 | M25: =IF(L25<=R25,L25*1.1,R25*1.1) -> 0 | N25: =IF('Computo-Massimali'!L25>0,L25/'Computo-Massimali'!L25,0) -> 0 | O25: =IF(F25>0,IF(F25-0.001>'Computo-Massimali'!F25,">Computo",""),"") ->  | Q25: SS) Schermature solari e chiusure oscuranti | R25: ='Computo-Massimali'!T25 -> 0 | S25: ok | U25: =IF(L25<R25,L25,R25) -> 0 | W25: 0 | Y25: 0 | AA25: 0
C26: ='Computo-Massimali'!C26 -> Impianti climatizzazione con | F26: 0 | G26: =IF('Computo-Massimali'!F26<>0,'Computo-Massimali'!G26*F26/'Computo-Massimali'!F26,0) -> 0 | H26: =SUM(F26:G26) -> 0 | I26: =F26*'Dati Gen'!$J$20+G26*'Dati Gen'!$J$19 -> 0 | J26: 0 | K26: =IF('Computo-Massimali'!F26<>0,'Computo-Massimali'!K26*F26/'Computo-Massimali'!F26,0) -> 0 | L26: 0 | M26: =IF(L26<=R26,L26*1.1,R26*1.1) -> 0 | N26: =IF('Computo-Massimali'!L26>0,L26/'Computo-Massimali'!L26,0) -> 0 | O26: =IF(F26>0,IF(F26-0.001>'Computo-Massimali'!F26,">Computo",""),"") ->  | Q26: Impianti climatizzazione con | R26: ='Computo-Massimali'!T26 -> 0 | S26: ok | U26: =IF(L26<R26,L26,R26) -> 0 | W26: 0 | Y26: 0 | AA26: 0
C27: ='Computo-Massimali'!C27 -> GA) Generatori aria calda Condensazione | F27: 0 | G27: =IF('Computo-Massimali'!F27<>0,'Computo-Massimali'!G27*F27/'Computo-Massimali'!F27,0) -> 0 | H27: =SUM(F27:G27) -> 0 | I27: =F27*'Dati Gen'!$J$20+G27*'Dati Gen'!$J$19 -> 0 | J27: 0 | K27: =IF('Computo-Massimali'!F27<>0,'Computo-Massimali'!K27*F27/'Computo-Massimali'!F27,0) -> 0 | L27: 0 | M27: =IF(L27<=R27,L27*1.1,R27*1.1) -> 0 | N27: =IF('Computo-Massimali'!L27>0,L27/'Computo-Massimali'!L27,0) -> 0 | O27: =IF(F27>0,IF(F27-0.001>'Computo-Massimali'!F27,">Computo",""),"") ->  | Q27: GA) Generatori aria calda Condensazione | R27: ='Computo-Massimali'!T27 -> 0 | S27: ok | U27: =IF($L$30<>0,(L27/$L$30)*$U$30,0) -> 0 | W27: 0 | Y27: 0 | AA27: 0
C28: ='Computo-Massimali'!C28 -> IB) Impianti Biomassa | F28: 0 | G28: =IF('Computo-Massimali'!F28<>0,'Computo-Massimali'!G28*F28/'Computo-Massimali'!F28,0) -> 0 | H28: =SUM(F28:G28) -> 0 | I28: =F28*'Dati Gen'!$J$20+G28*'Dati Gen'!$J$19 -> 0 | J28: 0 | K28: =IF('Computo-Massimali'!F28<>0,'Computo-Massimali'!K28*F28/'Computo-Massimali'!F28,0) -> 0 | L28: 0 | M28: =IF(L28<=R28,L28*1.1,R28*1.1) -> 0 | N28: =IF('Computo-Massimali'!L28>0,L28/'Computo-Massimali'!L28,0) -> 0 | O28: =IF(F28>0,IF(F28-0.001>'Computo-Massimali'!F28,">Computo",""),"") ->  | Q28: IB) Impianti Biomassa | R28: ='Computo-Massimali'!T28 -> 0 | S28: ok | U28: =IF($L$30<>0,(L28/$L$30)*$U$30,0) -> 0 | W28: 0 | Y28: 0 | AA28: 0
C29: ='Computo-Massimali'!C29 -> SA) Scaldacqua a pompa di calore | F29: 0 | G29: =IF('Computo-Massimali'!F29<>0,'Computo-Massimali'!G29*F29/'Computo-Massimali'!F29,0) -> 0 | H29: =SUM(F29:G29) -> 0 | I29: =F29*'Dati Gen'!$J$20+G29*'Dati Gen'!$J$19 -> 0 | J29: 0 | K29: =IF('Computo-Massimali'!F29<>0,'Computo-Massimali'!K29*F29/'Computo-Massimali'!F29,0) -> 0 | L29: 0 | M29: =IF(L29<=R29,L29*1.1,R29*1.1) -> 0 | N29: =IF('Computo-Massimali'!L29>0,L29/'Computo-Massimali'!L29,0) -> 0 | O29: =IF(F29>0,IF(F29-0.001>'Computo-Massimali'!F29,">Computo",""),"") ->  | Q29: SA) Scaldacqua a pompa di calore | R29: ='Computo-Massimali'!T29 -> 0 | S29: ok | U29: =IF($L$30<>0,(L29/$L$30)*$U$30,0) -> 0 | W29: 0 | Y29: 0 | AA29: 0
C30: ='Computo-Massimali'!C30 -> Totali GA) IB) SA) | F30: =SUM(F27:F29) -> 0 | G30: =SUM(G27:G29) -> 0 | H30: =SUM(H27:H29) -> 0 | I30: 0 | J30: 0 | K30: =SUM(K27:K29) -> 0 | L30: 0 | M30: 0 | N30: =IF('Computo-Massimali'!L30>0,L30/'Computo-Massimali'!L30,0) -> 0 | O30: =IF(F30>0,IF(F30-0.001>'Computo-Massimali'!F30,">Computo",""),"") ->  | Q30: Totali GA) IB) SA) | R30: ='Computo-Massimali'!T30 -> 0 | S30: ok | U30: =IF(L30<R30,L30,R30) -> 0 | W30: 0 | Y30: 0 | AA30: 0
C31: ='Computo-Massimali'!C31 -> CO) Sistemi di Microgenerazione | F31: 0 | G31: =IF('Computo-Massimali'!F31<>0,'Computo-Massimali'!G31*F31/'Computo-Massimali'!F31,0) -> 0 | H31: =SUM(F31:G31) -> 0 | I31: =F31*'Dati Gen'!$J$20+G31*'Dati Gen'!$J$19 -> 0 | J31: =H31+I31 -> 0 | K31: =IF('Computo-Massimali'!F31<>0,'Computo-Massimali'!K31*F31/'Computo-Massimali'!F31,0) -> 0 | L31: =SUM(J31:K31) -> 0 | M31: =IF(L31<=R31,L31*1.1,R31*1.1) -> 0 | N31: =IF('Computo-Massimali'!L31>0,L31/'Computo-Massimali'!L31,0) -> 0 | O31: =IF(F31>0,IF(F31-0.001>'Computo-Massimali'!F31,">Computo",""),"") ->  | Q31: CO) Sistemi di Microgenerazione | R31: ='Computo-Massimali'!T31 -> 0 | S31: ok | U31: 0 | W31: 0 | Y31: 0 | AA31: 0
C32: ='Computo-Massimali'!C32 -> ST) Collettori Solari | E32: ='Computo-Massimali'!E32 -> Piani Vetrati | F32: 0 | G32: =IF('Computo-Massimali'!F32<>0,'Computo-Massimali'!G32*F32/'Computo-Massimali'!F32,0) -> 0 | H32: 0 | I32: =F32*'Dati Gen'!$J$20+G32*'Dati Gen'!$J$19 -> 0 | J32: =H32+I32 -> 0 | K32: =IF('Computo-Massimali'!F32<>0,'Computo-Massimali'!K32*F32/'Computo-Massimali'!F32,0) -> 0 | L32: =SUM(J32:K32) -> 0 | M32: 0 | N32: =IF('Computo-Massimali'!L32>0,L32/'Computo-Massimali'!L32,0) -> 0 | O32: =IF(F32>0,IF(F32-0.001>'Computo-Massimali'!F32,">Computo",""),"") ->  | Q32: ST) Collettori Solari | R32: ='Computo-Massimali'!T32 -> 0 | S32: ok | U32: 0 | W32: 0 | Y32: 0 | AA32: 0
C33: ='Computo-Massimali'!C33 -> FV) Solare Fotovoltaico [ kWp ] | E33: ='Computo-Massimali'!E33 -> 6 | F33: 0 | G33: =IF('Computo-Massimali'!F33<>0,'Computo-Massimali'!G33*F33/'Computo-Massimali'!F33,0) -> 0 | H33: 0 | I33: =F33*'Dati Gen'!$J$20+G33*'Dati Gen'!$J$19 -> 0 | J33: =H33+I33 -> 0 | K33: =IF('Computo-Massimali'!F33<>0,'Computo-Massimali'!K33*F33/'Computo-Massimali'!F33,0) -> 0 | L33: =SUM(J33:K33) -> 0 | M33: 0 | N33: =IF('Computo-Massimali'!L33>0,L33/'Computo-Massimali'!L33,0) -> 0 | O33: =IF(F33>0,IF(F33-0.001>'Computo-Massimali'!F33,">Computo",""),"") ->  | Q33: FV) Solare Fotovoltaico [ kWp ] | R33: ='Computo-Massimali'!T33 -> 0 | S33: ok | U33: 0 | W33: 0 | Y33: 0 | AA33: 0
C34: ='Computo-Massimali'!C34 -> AC) Sistema di Accumulo [ kWh ] | E34: ='Computo-Massimali'!E34 -> 10 | F34: 0 | G34: =IF('Computo-Massimali'!F34<>0,'Computo-Massimali'!G34*F34/'Computo-Massimali'!F34,0) -> 0 | H34: 0 | I34: =F34*'Dati Gen'!$J$20+G34*'Dati Gen'!$J$19 -> 0 | J34: =H34+I34 -> 0 | K34: =IF('Computo-Massimali'!F34<>0,'Computo-Massimali'!K34*F34/'Computo-Massimali'!F34,0) -> 0 | L34: =SUM(J34:K34) -> 0 | M34: 0 | N34: =IF('Computo-Massimali'!L34>0,L34/'Computo-Massimali'!L34,0) -> 0 | O34: =IF(F34>0,IF(F34-0.001>'Computo-Massimali'!F34,">Computo",""),"") ->  | Q34: AC) Sistema di Accumulo [ kWh ] | R34: ='Computo-Massimali'!T34 -> 0 | S34: ok | U34: 0 | W34: 0 | Y34: 0 | AA34: 0
C35: ='Computo-Massimali'!C35 -> CR) Colonnine di Ricarica [ N. ] | E35: ='Computo-Massimali'!E35 -> 1 | F35: 0 | G35: =IF('Computo-Massimali'!F35<>0,'Computo-Massimali'!G35*F35/'Computo-Massimali'!F35,0) -> 0 | H35: 0 | I35: =F35*'Dati Gen'!$J$20+G35*'Dati Gen'!$J$19 -> 0 | J35: 0 | K35: =IF('Computo-Massimali'!F35<>0,'Computo-Massimali'!K35*F35/'Computo-Massimali'!F35,0) -> 0 | L35: 0 | M35: 0 | N35: =IF('Computo-Massimali'!L35>0,L35/'Computo-Massimali'!L35,0) -> 0 | O35: =IF(F35>0,IF(F35-0.001>'Computo-Massimali'!F35,">Computo",""),"") ->  | Q35: CR) Colonnine di Ricarica [ N. ] | R35: ='Computo-Massimali'!T35 -> 0 | S35: ok | U35: 0 | W35: 0 | Y35: 0 | AA35: 0
C36: ='Computo-Massimali'!C36 -> EBA) Eliminazione Barriere architettoniche | F36: 0 | G36: =IF('Computo-Massimali'!F36<>0,'Computo-Massimali'!G36*F36/'Computo-Massimali'!F36,0) -> 0 | H36: 0 | I36: =F36*'Dati Gen'!$J$20+G36*'Dati Gen'!$J$19 -> 0 | J36: 0 | K36: =IF('Computo-Massimali'!F36<>0,'Computo-Massimali'!K36*F36/'Computo-Massimali'!F36,0) -> 0 | L36: 0 | M36: 0 | N36: =IF('Computo-Massimali'!L36>0,L36/'Computo-Massimali'!L36,0) -> 0 | O36: =IF(F36>0,IF(F36-0.001>'Computo-Massimali'!F36,">Computo",""),"") ->  | Q36: EBA) Eliminazione Barriere architettoniche | R36: ='Computo-Massimali'!T36 -> 0 | S36: ok | U36: 0 | W36: 0 | Y36: 0 | AA36: 0
C37: ='Computo-Massimali'!C37 -> Totale Interventi Trainati Parti Comuni : | F37: =SUM(F24:F26)+SUM(F30:F36) -> 0 | G37: =SUM(G24:G26)+SUM(G30:G36) -> 0 | H37: =SUM(H24:H26)+SUM(H30:H36) -> 0 | I37: 0 | J37: 0 | K37: 0 | L37: 0 | M37: 0 | N37: =IF('Computo-Massimali'!L37>0,L37/'Computo-Massimali'!L37,0) -> 0 | O37: =IF(F37>0,IF(F37-0.001>'Computo-Massimali'!F37,">Computo",""),"") ->  | R37: =C37 -> Totale Interventi Trainati Parti Comuni : | U37: =U24+U25+U26+SUM(U30:V36) -> 0 | W37: =W24+W25+W26+SUM(W30:X36) -> 0 | Y37: =Y24+Y25+Y26+SUM(Y30:Z36) -> 0 | AA37: =AA24+AA25+AA26+SUM(AA30:AB36) -> 0
C40: INTERVENTI TRAINATI | O40: .. | Q40: =CONCATENATE("Verifica Massimali di Spesa ",C40) -> Verifica Massimali di Spesa INTERVENTI TRAINATI
C41: Interventi | F41: Importo Lavori | G41: Incidenza Sicurezza | H41: Imponibile | I41: Iva | J41: Importo c.iva | K41: Spese tecniche | L41: Totale | M41: Credito Spettante 110% Spesa Ammessa | N41: %SAL | R41: Massimale spesa | S41: Verifica Max | U41: Spesa Ammessa | W41: Quota Eccedente Massimale Spesa | Y41: Credito Spettante 110% Spesa Ammessa Quota Impresa | Quota Tecnici
C42: ='Computo-Massimali'!C42:D42 -> PV) Isolamento pareti perimetrali | E42: ='Computo-Massimali'!E42 -> Esterno | F42: 0 | G42: =IF('Computo-Massimali'!F42<>0,'Computo-Massimali'!G42*F42/'Computo-Massimali'!F42,0) -> 0 | H42: =SUM(F42:G42) -> 0 | I42: =F42*'Dati Gen'!$J$20+G42*'Dati Gen'!$J$19 -> 0 | J42: =H42+I42 -> 0 | K42: =IF('Computo-Massimali'!F42<>0,'Computo-Massimali'!K42*F42/'Computo-Massimali'!F42,0) -> 0 | L42: =SUM(J42:K42) -> 0 | M42: =IF(L42<=R42,L42*1.1,R42*1.1) -> 0 | N42: =IF('Computo-Massimali'!L42>0,L42/'Computo-Massimali'!L42,0) -> 0 | O42: =IF(F42>0,IF(F42-0.001>'Computo-Massimali'!F42,">C.",""),"") ->  | Q42: =C42 -> PV) Isolamento pareti perimetrali | R42: ='Computo-Massimali'!T42 -> 0 | S42: =IF(L42>M42,"KO Tot.>Detr.",IF(L42>R42,"ko","ok")) -> ok | U42: =IF($L$46<>0,(L42/$L$46)*$U$46,0) -> 0 | W42: =IF(L42>R42,L42-R42,0) -> 0 | Y42: =IF(M42<>0,J42*M42/L42,0) -> 0 | AA42: =IF(M42<>0,K42*M42/L42,0) -> 0
C43: ='Computo-Massimali'!C43:D43 -> PO) Isolamento coperture | E43: Esterno | F43: 0 | G43: =IF('Computo-Massimali'!F43<>0,'Computo-Massimali'!G43*F43/'Computo-Massimali'!F43,0) -> 0 | H43: =SUM(F43:G43) -> 0 | I43: =F43*'Dati Gen'!$J$20+G43*'Dati Gen'!$J$19 -> 0 | J43: =H43+I43 -> 0 | K43: =IF('Computo-Massimali'!F43<>0,'Computo-Massimali'!K43*F43/'Computo-Massimali'!F43,0) -> 0 | L43: =SUM(J43:K43) -> 0 | M43: =IF(L43<=R43,L43*1.1,R43*1.1) -> 0 | N43: =IF('Computo-Massimali'!L43>0,L43/'Computo-Massimali'!L43,0) -> 0 | O43: =IF(F43>0,IF(F43-0.001>'Computo-Massimali'!F43,">C.",""),"") ->  | Q43: PO) Isolamento coperture | R43: ='Computo-Massimali'!T43 -> 0 | S43: ok | U43: =IF($L$46<>0,(L43/$L$46)*$U$46,0) -> 0 | W43: 0 | Y43: 0 | AA43: 0
C44: ='Computo-Massimali'!C44:D44 -> PS) Isolamento Pavimenti | E44: Esterno | F44: 0 | G44: =IF('Computo-Massimali'!F44<>0,'Computo-Massimali'!G44*F44/'Computo-Massimali'!F44,0) -> 0 | H44: =SUM(F44:G44) -> 0 | I44: =F44*'Dati Gen'!$J$20+G44*'Dati Gen'!$J$19 -> 0 | J44: =H44+I44 -> 0 | K44: =IF('Computo-Massimali'!F44<>0,'Computo-Massimali'!K44*F44/'Computo-Massimali'!F44,0) -> 0 | L44: =SUM(J44:K44) -> 0 | M44: =IF(L44<=R44,L44*1.1,R44*1.1) -> 0 | N44: =IF('Computo-Massimali'!L44>0,L44/'Computo-Massimali'!L44,0) -> 0 | O44: =IF(F44>0,IF(F44-0.001>'Computo-Massimali'!F44,">C.",""),"") ->  | Q44: PS) Isolamento Pavimenti | R44: ='Computo-Massimali'!T44 -> 0 | S44: ok | U44: =IF($L$46<>0,(L44/$L$46)*$U$46,0) -> 0 | W44: 0 | Y44: 0 | AA44: 0
C45: ='Computo-Massimali'!C45:D45 -> IN) Serramenti con chiusure oscuranti | E45: Zone D, E ed F | F45: 0 | G45: =IF('Computo-Massimali'!F45<>0,'Computo-Massimali'!G45*F45/'Computo-Massimali'!F45,0) -> 0 | H45: =SUM(F45:G45) -> 0 | I45: =F45*'Dati Gen'!$J$20+G45*'Dati Gen'!$J$19 -> 0 | J45: =H45+I45 -> 0 | K45: =IF('Computo-Massimali'!F45<>0,'Computo-Massimali'!K45*F45/'Computo-Massimali'!F45,0) -> 0 | L45: =SUM(J45:K45) -> 0 | M45: =IF(L45<=R45,L45*1.1,R45*1.1) -> 0 | N45: =IF('Computo-Massimali'!L45>0,L45/'Computo-Massimali'!L45,0) -> 0 | O45: =IF(F45>0,IF(F45-0.001>'Computo-Massimali'!F45,">C.",""),"") ->  | Q45: IN) Serramenti con chiusure oscuranti | R45: ='Computo-Massimali'!T45 -> 0 | S45: ok | U45: =IF($L$46<>0,(L45/$L$46)*$U$46,0) -> 0 | W45: 0 | Y45: 0 | AA45: 0
C46: ='Computo-Massimali'!C46:D46 -> Totali Isolamento PV) PO) PS) e IN | F46: =SUM(F42:F45) -> 0 | G46: =SUM(G42:G45) -> 0 | H46: 0 | I46: 0 | J46: 0 | K46: =SUM(K42:K45) -> 0 | L46: 0 | M46: 0 | N46: =IF('Computo-Massimali'!L46>0,L46/'Computo-Massimali'!L46,0) -> 0 | O46: =IF(F46>0,IF(F46-0.001>'Computo-Massimali'!F46,">C.",""),"") ->  | Q46: Totali Isolamento PV) PO) PS) e IN | R46: ='Computo-Massimali'!T46 -> 0 | S46: ok | U46: =IF(L46<R46,L46,R46) -> 0 | W46: 0 | Y46: 0 | AA46: 0
C47: ='Computo-Massimali'!C47:D47 -> SS) Schermature solari e chiusure oscuranti | F47: 0 | G47: =IF('Computo-Massimali'!F47<>0,'Computo-Massimali'!G47*F47/'Computo-Massimali'!F47,0) -> 0 | H47: =SUM(F47:G47) -> 0 | I47: =F47*'Dati Gen'!$J$20+G47*'Dati Gen'!$J$19 -> 0 | J47: =H47+I47 -> 0 | K47: =IF('Computo-Massimali'!F47<>0,'Computo-Massimali'!K47*F47/'Computo-Massimali'!F47,0) -> 0 | L47: =SUM(J47:K47) -> 0 | M47: =IF(L47<=R47,L47*1.1,R47*1.1) -> 0 | N47: =IF('Computo-Massimali'!L47>0,L47/'Computo-Massimali'!L47,0) -> 0 | O47: =IF(F47>0,IF(F47-0.001>'Computo-Massimali'!F47,">C.",""),"") ->  | Q47: SS) Schermature solari e chiusure oscuranti | R47: ='Computo-Massimali'!T47 -> 0 | S47: ok | U47: =IF(L47<R47,L47,R47) -> 0 | W47: 0 | Y47: 0 | AA47: 0
C48: ='Computo-Massimali'!C48:D48 -> Impianti climatizzazione con | F48: 0 | G48: =IF('Computo-Massimali'!F48<>0,'Computo-Massimali'!G48*F48/'Computo-Massimali'!F48,0) -> 0 | H48: =SUM(F48:G48) -> 0 | I48: =F48*'Dati Gen'!$J$20+G48*'Dati Gen'!$J$19 -> 0 | J48: =H48+I48 -> 0 | K48: =IF('Computo-Massimali'!F48<>0,'Computo-Massimali'!K48*F48/'Computo-Massimali'!F48,0) -> 0 | L48: =SUM(J48:K48) -> 0 | M48: =IF(L48<=R48,L48*1.1,R48*1.1) -> 0 | N48: =IF('Computo-Massimali'!L48>0,L48/'Computo-Massimali'!L48,0) -> 0 | O48: =IF(F48>0,IF(F48-0.001>'Computo-Massimali'!F48,">C.",""),"") ->  | Q48: Impianti climatizzazione con | R48: ='Computo-Massimali'!T48 -> 0 | S48: ok | U48: =IF($L$50<>0,(L48/$L$50)*$U$50,0) -> 0 | W48: 0 | Y48: 0 | AA48: 0
C49: ='Computo-Massimali'!C49:D49 -> SA) Scaldacqua a pompa di calore | F49: 0 | G49: =IF('Computo-Massimali'!F49<>0,'Computo-Massimali'!G49*F49/'Computo-Massimali'!F49,0) -> 0 | H49: =SUM(F49:G49) -> 0 | I49: =F49*'Dati Gen'!$J$20+G49*'Dati Gen'!$J$19 -> 0 | J49: =H49+I49 -> 0 | K49: =IF('Computo-Massimali'!F49<>0,'Computo-Massimali'!K49*F49/'Computo-Massimali'!F49,0) -> 0 | L49: =SUM(J49:K49) -> 0 | M49: =IF(L49<=R49,L49*1.1,R49*1.1) -> 0 | N49: =IF('Computo-Massimali'!L49>0,L49/'Computo-Massimali'!L49,0) -> 0 | O49: =IF(F49>0,IF(F49-0.001>'Computo-Massimali'!F49,">C.",""),"") ->  | Q49: SA) Scaldacqua a pompa di calore | R49: ='Computo-Massimali'!T49 -> 0 | S49: ok | U49: =IF($L$50<>0,(L49/$L$50)*$U$50,0) -> 0 | W49: 0 | Y49: 0 | AA49: 0
C50: ='Computo-Massimali'!C50:D50 -> Totali Impianti ed SA) | F50: =SUM(F48:F49) -> 0 | G50: =SUM(G48:G49) -> 0 | H50: 0 | I50: 0 | J50: 0 | K50: =SUM(K48:K49) -> 0 | L50: 0 | M50: 0 | N50: =IF('Computo-Massimali'!L50>0,L50/'Computo-Massimali'!L50,0) -> 0 | O50: =IF(F50>0,IF(F50-0.001>'Computo-Massimali'!F50,">C.",""),"") ->  | Q50: Totali Impianti ed SA) | R50: ='Computo-Massimali'!T50 -> 0 | S50: ok | U50: =IF(L50<R50,L50,R50) -> 0 | W50: 0 | Y50: 0 | AA50: 0
C51: ='Computo-Massimali'!C51:D51 -> CO) Sistemi di Microgenerazione | F51: 0 | G51: =IF('Computo-Massimali'!F51<>0,'Computo-Massimali'!G51*F51/'Computo-Massimali'!F51,0) -> 0 | H51: =SUM(F51:G51) -> 0 | I51: =F51*'Dati Gen'!$J$20+G51*'Dati Gen'!$J$19 -> 0 | J51: =H51+I51 -> 0 | K51: =IF('Computo-Massimali'!F51<>0,'Computo-Massimali'!K51*F51/'Computo-Massimali'!F51,0) -> 0 | L51: =SUM(J51:K51) -> 0 | M51: =IF(L51<=R51,L51*1.1,R51*1.1) -> 0 | N51: =IF('Computo-Massimali'!L51>0,L51/'Computo-Massimali'!L51,0) -> 0 | O51: =IF(F51>0,IF(F51-0.001>'Computo-Massimali'!F51,">C.",""),"") ->  | Q51: CO) Sistemi di Microgenerazione | R51: ='Computo-Massimali'!T51 -> 0 | S51: ok | U51: 0 | W51: 0 | Y51: 0 | AA51: 0
C52: ='Computo-Massimali'!C52:D52 -> IB) Generatori a Biomassa | F52: 0 | G52: =IF('Computo-Massimali'!F52<>0,'Computo-Massimali'!G52*F52/'Computo-Massimali'!F52,0) -> 0 | H52: 0 | I52: =F52*'Dati Gen'!$J$20+G52*'Dati Gen'!$J$19 -> 0 | J52: 0 | K52: =IF('Computo-Massimali'!F52<>0,'Computo-Massimali'!K52*F52/'Computo-Massimali'!F52,0) -> 0 | L52: 0 | M52: 0 | N52: =IF('Computo-Massimali'!L52>0,L52/'Computo-Massimali'!L52,0) -> 0 | O52: =IF(F52>0,IF(F52-0.001>'Computo-Massimali'!F52,">C.",""),"") ->  | Q52: IB) Generatori a Biomassa | R52: ='Computo-Massimali'!T52 -> 0 | S52: ok | U52: 0 | W52: 0 | Y52: 0 | AA52: 0
C53: ='Computo-Massimali'!C53:D53 -> BA) Building Automation | F53: 0 | G53: =IF('Computo-Massimali'!F53<>0,'Computo-Massimali'!G53*F53/'Computo-Massimali'!F53,0) -> 0 | H53: 0 | I53: =F53*'Dati Gen'!$J$20+G53*'Dati Gen'!$J$19 -> 0 | J53: 0 | K53: =IF('Computo-Massimali'!F53<>0,'Computo-Massimali'!K53*F53/'Computo-Massimali'!F53,0) -> 0 | L53: 0 | M53: 0 | N53: =IF('Computo-Massimali'!L53>0,L53/'Computo-Massimali'!L53,0) -> 0 | O53: =IF(F53>0,IF(F53-0.001>'Computo-Massimali'!F53,">C.",""),"") ->  | Q53: BA) Building Automation | R53: ='Computo-Massimali'!T53 -> 0 | S53: ok | U53: 0 | W53: 0 | Y53: 0 | AA53: 0
C54: ='Computo-Massimali'!C54:D54 -> ST) Collettori Solari | E54: ='Computo-Massimali'!E54 -> Piani Vetrati | F54: 0 | G54: =IF('Computo-Massimali'!F54<>0,'Computo-Massimali'!G54*F54/'Computo-Massimali'!F54,0) -> 0 | H54: 0 | I54: =F54*'Dati Gen'!$J$20+G54*'Dati Gen'!$J$19 -> 0 | J54: 0 | K54: =IF('Computo-Massimali'!F54<>0,'Computo-Massimali'!K54*F54/'Computo-Massimali'!F54,0) -> 0 | L54: 0 | M54: 0 | N54: =IF('Computo-Massimali'!L54>0,L54/'Computo-Massimali'!L54,0) -> 0 | O54: =IF(F54>0,IF(F54-0.001>'Computo-Massimali'!F54,">C.",""),"") ->  | Q54: ST) Collettori Solari | R54: ='Computo-Massimali'!T54 -> 0 | S54: ok | U54: 0 | W54: 0 | Y54: 0 | AA54: 0
C55: ='Computo-Massimali'!C55:D55 -> FV) Solare Fotovoltaico [ kWp ] | E55: ='Computo-Massimali'!E55 -> 6 | F55: 0 | G55: =IF('Computo-Massimali'!F55<>0,'Computo-Massimali'!G55*F55/'Computo-Massimali'!F55,0) -> 0 | H55: 0 | I55: =F55*'Dati Gen'!$J$20+G55*'Dati Gen'!$J$19 -> 0 | J55: 0 | K55: =IF('Computo-Massimali'!F55<>0,'Computo-Massimali'!K55*F55/'Computo-Massimali'!F55,0) -> 0 | L55: 0 | M55: 0 | N55: =IF('Computo-Massimali'!L55>0,L55/'Computo-Massimali'!L55,0) -> 0 | O55: =IF(F55>0,IF(F55-0.001>'Computo-Massimali'!F55,">C.",""),"") ->  | Q55: FV) Solare Fotovoltaico [ kWp ] | R55: ='Computo-Massimali'!T55 -> 0 | S55: ok | U55: 0 | W55: 0 | Y55: 0 | AA55: 0
C56: ='Computo-Massimali'!C56:D56 -> AC) Sistema di Accumulo [ kWh ] | E56: ='Computo-Massimali'!E56 -> 10 | F56: 0 | G56: =IF('Computo-Massimali'!F56<>0,'Computo-Massimali'!G56*F56/'Computo-Massimali'!F56,0) -> 0 | H56: 0 | I56: =F56*'Dati Gen'!$J$20+G56*'Dati Gen'!$J$19 -> 0 | J56: 0 | K56: =IF('Computo-Massimali'!F56<>0,'Computo-Massimali'!K56*F56/'Computo-Massimali'!F56,0) -> 0 | L56: 0 | M56: 0 | N56: =IF('Computo-Massimali'!L56>0,L56/'Computo-Massimali'!L56,0) -> 0 | O56: =IF(F56>0,IF(F56-0.001>'Computo-Massimali'!F56,">C.",""),"") ->  | Q56: AC) Sistema di Accumulo [ kWh ] | R56: ='Computo-Massimali'!T56 -> 0 | S56: ok | U56: 0 | W56: 0 | Y56: 0 | AA56: 0
C57: ='Computo-Massimali'!C57:D57 -> CR) Colonnine di Ricarica | E57: ='Computo-Massimali'!E57 -> 1 | F57: 0 | G57: =IF('Computo-Massimali'!F57<>0,'Computo-Massimali'!G57*F57/'Computo-Massimali'!F57,0) -> 0 | H57: 0 | I57: =F57*'Dati Gen'!$J$20+G57*'Dati Gen'!$J$19 -> 0 | J57: 0 | K57: =IF('Computo-Massimali'!F57<>0,'Computo-Massimali'!K57*F57/'Computo-Massimali'!F57,0) -> 0 | L57: 0 | M57: 0 | N57: =IF('Computo-Massimali'!L57>0,L57/'Computo-Massimali'!L57,0) -> 0 | O57: =IF(F57>0,IF(F57-0.001>'Computo-Massimali'!F57,">C.",""),"") ->  | Q57: CR) Colonnine di Ricarica | R57: ='Computo-Massimali'!T57 -> 0 | S57: ok | U57: 0 | W57: 0 | Y57: 0 | AA57: 0
C58: EBA) Eliminazione Barriere architettoniche | F58: 0 | G58: =IF('Computo-Massimali'!F58<>0,'Computo-Massimali'!G58*F58/'Computo-Massimali'!F58,0) -> 0 | H58: =SUM(F58:G58) -> 0 | I58: =F58*'Dati Gen'!$J$20+G58*'Dati Gen'!$J$19 -> 0 | J58: =H58+I58 -> 0 | K58: =IF('Computo-Massimali'!F58<>0,'Computo-Massimali'!K58*F58/'Computo-Massimali'!F58,0) -> 0 | L58: 0 | M58: 0 | N58: =IF('Computo-Massimali'!L58>0,L58/'Computo-Massimali'!L58,0) -> 0 | O58: =IF(F58>0,IF(F58-0.001>'Computo-Massimali'!F58,">C.",""),"") ->  | Q58: EBA) Eliminazione Barriere architettoniche | R58: ='Computo-Massimali'!T58 -> 0 | S58: ok | U58: 0 | W58: 0 | Y58: 0 | AA58: 0
C59: Totale Interventi trainati | F59: =F46+F47+SUM(F50:F58) -> 0 | G59: =G46+G47+SUM(G50:G58) -> 0 | H59: 0 | I59: 0 | J59: 0 | K59: 0 | L59: 0 | M59: 0 | N59: =IF('Computo-Massimali'!L59>0,L59/'Computo-Massimali'!L59,0) -> 0 | O59: =IF(F59>0,IF(F59-0.001>'Computo-Massimali'!F59,">C.",""),"") ->  | R59: =C59 -> Totale Interventi trainati | U59: =U46+U47+SUM(U50:V58) -> 0 | W59: =W46+W47+SUM(W50:X58) -> 0 | Y59: =Y46+Y47+SUM(Y50:Z58) -> 0 | AA59: =AA46+AA47+SUM(AA50:AB58) -> 0
C78: SimMZ
C80: TOTALI SAL N.1 - INTERVENTI 110 | F80: Importo Lavori | G80: Incidenza Sicurezza | H80: Imponibile | I80: Iva | J80: Importo c.iva | K80: Spese tecniche | L80: Totale | M80: Credito Spettante 110% Spesa Ammessa | N80: %SAL | Q80: =C80 -> TOTALI SAL N.1 - INTERVENTI 110 | U80: Spesa Ammessa | W80: Quota Eccedente Massimale Spesa | Y80: Credito Spettante 110% Spesa Ammessa Quota Impresa | Quota Tecnici
F81: =F16+F59 -> 0 | G81: 0 | H81: 0 | I81: 0 | J81: 0 | K81: 0 | L81: 0 | M81: 0 | N81: =IF('Computo-Massimali'!L81>0,L81/'Computo-Massimali'!L81,0) -> 0 | O81: =IF(F81>0,IF(F81>'Computo-Massimali'!F81,">Computo",""),"") ->  | U81: =U16+U59 -> 0 | W81: =W16+W59 -> 0 | Y81: =Y16+Y59 -> 0 | AA81: =AA16+AA59 -> 0
C83: =IF(N81>=29.999%,"","Attenzione! SAL Superbonus 110 inferiore 30%") -> Attenzione! SAL Superbonus 110 inferiore 30%
C87: ALTRI INTERVENTI | Q87: =CONCATENATE("Verifica Massimali di Spesa ",C87) -> Verifica Massimali di Spesa ALTRI INTERVENTI
C88: Interventi | E88: x% Credito ceduto | F88: Importo Lavori | G88: Incidenza Sicurezza | H88: Imponibile | I88: Iva | J88: Importo c.iva | K88: Spese tecniche | L88: Totale | M88: Credito Spettante x% Spesa Ammessa | N88: %SAL | R88: Massimale spesa | S88: Verifica Max | U88: Spesa Ammessa | W88: Quota Eccedente Massimale Spesa | Y88: Credito Spettante 110% Spesa Ammessa Quota Impresa | Quota Tecnici
C89: =IF('Computo-Massimali'!C89<>"",'Computo-Massimali'!C89,"") -> Ristrutturazione | E89: ='Computo-Massimali'!E89 -> 0.5 | F89: 0 | G89: =IF('Computo-Massimali'!F89<>0,'Computo-Massimali'!G89*F89/'Computo-Massimali'!F89,0) -> 0 | H89: =SUM(F89:G89) -> 0 | I89: =F89*'Dati Gen'!$J$20+G89*'Dati Gen'!$J$19 -> 0 | J89: =H89+I89 -> 0 | K89: =IF('Computo-Massimali'!F89<>0,'Computo-Massimali'!K89*F89/'Computo-Massimali'!F89,0) -> 0 | L89: =SUM(J89:K89) -> 0 | M89: =IF(L89<=R89,L89*E89,R89*E89) -> 0 | N89: =IF('Computo-Massimali'!L89>0,L89/'Computo-Massimali'!L89,0) -> 0 | O89: =IF(F89>0,IF(F89>'Computo-Massimali'!F89,">Computo",""),"") ->  | Q89: =IF(C89<>"",C89,"") -> Ristrutturazione | R89: =96000*N_Uimm -> 96000 | S89: =IF(L89>R89,"KO Tot.>Detr.","ok") -> ok | U89: =IF(L89<R89,L89,R89) -> 0 | W89: =IF(L89>R89,L89-R89,0) -> 0 | Y89: =IF(M89<>0,J89*M89/L89,0) -> 0 | AA89: =IF(M89<>0,K89*M89/L89,0) -> 0
C90: =IF('Computo-Massimali'!C90<>"",'Computo-Massimali'!C90,"") -> Bonus facciata | E90: ='Computo-Massimali'!E90 -> 0.6 | F90: 0 | G90: =IF('Computo-Massimali'!F90<>0,'Computo-Massimali'!G90*F90/'Computo-Massimali'!F90,0) -> 0 | H90: =SUM(F90:G90) -> 0 | I90: =F90*'Dati Gen'!$J$20+G90*'Dati Gen'!$J$19 -> 0 | J90: =H90+I90 -> 0 | K90: =IF('Computo-Massimali'!F90<>0,'Computo-Massimali'!K90*F90/'Computo-Massimali'!F90,0) -> 0 | L90: =SUM(J90:K90) -> 0 | M90: =IF(L90<=R90,L90*E90,R90*E90) -> 0 | N90: =IF('Computo-Massimali'!L90>0,L90/'Computo-Massimali'!L90,0) -> 0 | O90: =IF(F90>0,IF(F90>'Computo-Massimali'!F90,">Computo",""),"") ->  | Q90: =IF(C90<>"",C90,"") -> Bonus facciata | R90: =96000*N_Uimm -> 96000 | S90: =IF(L90>R90,"KO Tot.>Detr.","ok") -> ok | U90: =IF(L90<R90,L90,R90) -> 0 | W90: =IF(L90>R90,L90-R90,0) -> 0 | Y90: =IF(M90<>0,J90*M90/L90,0) -> 0 | AA90: =IF(M90<>0,K90*M90/L90,0) -> 0
C91: Bonus Facciata | E91: ='Computo-Massimali'!E91 -> 0.7 | F91: 0 | G91: =IF('Computo-Massimali'!F91<>0,'Computo-Massimali'!G91*F91/'Computo-Massimali'!F91,0) -> 0 | H91: =SUM(F91:G91) -> 0 | I91: =F91*'Dati Gen'!$J$20+G91*'Dati Gen'!$J$19 -> 0 | J91: =H91+I91 -> 0 | K91: =IF('Computo-Massimali'!F91<>0,'Computo-Massimali'!K91*F91/'Computo-Massimali'!F91,0) -> 0 | L91: =SUM(J91:K91) -> 0 | M91: =IF(L91<=R91,L91*E91,R91*E91) -> 0 | N91: =IF('Computo-Massimali'!L91>0,L91/'Computo-Massimali'!L91,0) -> 0 | O91: =IF(F91>0,IF(F91>'Computo-Massimali'!F91,">Computo",""),"") ->  | Q91: =IF(C91<>"",C91,"") -> Bonus Facciata | R91: =96000*N_Uimm -> 96000 | S91: =IF(L91>R91,"KO Tot.>Detr.","ok") -> ok | U91: =IF(L91<R91,L91,R91) -> 0 | W91: =IF(L91>R91,L91-R91,0) -> 0 | Y91: =IF(M91<>0,J91*M91/L91,0) -> 0 | AA91: =IF(M91<>0,K91*M91/L91,0) -> 0
C92: =IF('Computo-Massimali'!C92<>"",'Computo-Massimali'!C92,"") ->  | E92: ='Computo-Massimali'!E92 -> 0 | F92: 0 | G92: =IF('Computo-Massimali'!F92<>0,'Computo-Massimali'!G92*F92/'Computo-Massimali'!F92,0) -> 0 | H92: =SUM(F92:G92) -> 0 | I92: =F92*'Dati Gen'!$J$20+G92*'Dati Gen'!$J$19 -> 0 | J92: =H92+I92 -> 0 | K92: =IF('Computo-Massimali'!F92<>0,'Computo-Massimali'!K92*F92/'Computo-Massimali'!F92,0) -> 0 | L92: =SUM(J92:K92) -> 0 | M92: =IF(L92<=R92,L92*E92,R92*E92) -> 0 | N92: =IF('Computo-Massimali'!L92>0,L92/'Computo-Massimali'!L92,0) -> 0 | O92: =IF(F92>0,IF(F92>'Computo-Massimali'!F92,">Computo",""),"") ->  | Q92: =IF(C92<>"",C92,"") ->  | R92: =96000*N_Uimm -> 96000 | S92: =IF(L92>R92,"KO Tot.>Detr.","ok") -> ok | U92: =IF(L92<R92,L92,R92) -> 0 | W92: =IF(L92>R92,L92-R92,0) -> 0 | Y92: =IF(M92<>0,J92*M92/L92,0) -> 0 | AA92: =IF(M92<>0,K92*M92/L92,0) -> 0
C93: TotalI SAL N.1 - Altri Interventi : | F93: =SUM(F89:F92) -> 0 | G93: 0 | H93: 0 | I93: 0 | J93: 0 | K93: 0 | L93: 0 | M93: 0 | N93: =IF('Computo-Massimali'!L93>0,L93/'Computo-Massimali'!L93,0) -> 0 | O93: =IF(F93>0,IF(F93>'Computo-Massimali'!F93,">Computo",""),"") ->  | R93: =C93 -> TotalI SAL N.1 - Altri Interventi : | U93: =SUM(U89:V92) -> 0 | W93: =SUM(W89:X92) -> 0 | Y93: =SUM(Y89:Z92) -> 0 | AA93: =SUM(AA89:AB92) -> 0
C96: TOTALI SAL N.1 | F96: Importo Lavori Eseguiti | G96: Incidenza Sicurezza | H96: Imponibile | I96: Iva | J96: Importo c.iva | K96: Spese tecniche | L96: Totale | M96: Credito Spettante | N96: %SAL | Q96: =C96 -> TOTALI SAL N.1 | U96: Spesa Ammessa | W96: Quota Eccedente Massimale Spesa | Y96: Credito Spettante Quota Impresa | Quota Tecnici
F97: =F81+F93 -> 0 | G97: =G81+G93 -> 0 | H97: 0 | I97: 0 | J97: 0 | K97: 0 | L97: 0 | M97: =M81+M93 -> 0 | N97: =IF('Computo-Massimali'!L100>0,L97/'Computo-Massimali'!L100,0) -> 0 | O97: =IF(F97>0,IF(F97>'Computo-Massimali'!F100,">Computo",""),"") ->  | U97: =U81+U93 -> 0 | W97: =W81+W93 -> 0 | Y97: =Y81+Y93 -> 0 | AA97: =AA81+AA93 -> 0
C100: =IF(ABS(D5-G97)>0.01,"Importo Effettivo Lavori Eseguiti","") ->  | F100: =IF($C$100<>"",F97,"") ->  | G100: =IF($C$100<>"",G97,"") ->  | H100: =IF($C$100<>"",F100+G100,"") ->  | I100: =IF($C$100<>"",H100*AliqIva,"") ->  | J100: =IF($C$100<>"",H100+I100,"") ->  | K100: =IF($C$100<>"",K97,"") ->  | L100: =IF($C$100<>"",J100+K100,"") ->  | M100: =IF($C$100<>"",L100*1.1,"") ->  | N100: =IF($C$100<>"",L100/'Computo-Massimali'!L100,"") -> 
C101: =IF($C$100<>"","Oneri/Lavori Sicurezza non imputabili al SAL, per lavori non eseguiti","") ->  | G101: =IF($C$101<>"",D5-G97,"") -> 
C104: Quota % effettiva per cessione credito a Banca o Impresa "Interventi 110" | H104: ='Computo-Massimali'!H104 -> 0.9090909091 | I104: ='Computo-Massimali'!I104 -> 100 | J104: Importo Ricevuto | K104: =Detraz30*H104 -> 0 | L104: Costo Cessione 110 | M104: =SpesaAmmessa30-K104 -> 0
G105: Quota % effettiva per cessione credito a Banca o Impresa "Altri Interventi" | H105: ='Computo-Massimali'!H105 -> 0.8 | I105: ='Computo-Massimali'!I105 -> 80 | J105: Importo Ricevuto | K105: =M93*H105 -> 0 | L105: Costo Cessione Altri | M105: =M93-K105 -> 0
L107: Quota Impresa | M107: Quota Tecnici
G108: Quota Eccedente Massimali Spesa "Interventi 110" | H108: =QuotaEcced30 -> 0 | I108: Credito Netto a seguito Cessione | K108: =SpesaAmmessa30-M104 -> 0 | L108: =IF(Detraz30<>0,QuotaImpresa30*K108/Detraz30,0) -> 0 | M108: =IF(Detraz30<>0,QuotaTecnici30*K108/Detraz30,0) -> 0
G109: Quota Eccedente Massimali Spesa "Altri Interventi" | H109: =W93 -> 0 | I109: Credito Netto a seguito Cessione | K109: =M93-M105 -> 0 | L109: =IF(M93<>0,Y93*K109/M93,0) -> 0 | M109: =IF(M93<>0,AA93*K109/M93,0) -> 0
I110: Quota Cliente x Interventi 110 | K110: =IF(Totale30-K108>0,Totale30-K108,0) -> 0 | L110: =IF(Detraz30<>0,K110*QuotaImpresa30/Detraz30,0) -> 0 | M110: =IF(Detraz30<>0,K110*QuotaTecnici30/Detraz30,0) -> 0
I111: Quota Cliente x Altri Interventi | K111: =IF(L93-K109>0,L93-K109,0) -> 0 | L111: =IF(M93<>0,K111*Y93/M93,0) -> 0 | M111: =IF(M93<>0,K111*AA93/M93,0) -> 0
I112: Quota Totale a Carico Cliente | K112: =SUM(K110:K111) -> 0 | L112: =SUM(L110:L111) -> 0 | M112: =SUM(M110:M111) -> 0
Q115: Ripartizione Spese Tecniche SAL. N.1 - INTERVENTI 110 | AC115: Applica Sconto in Fattura
Q116: Lavoro | R116: Tecnico | S116: Onorario | U116: C.Cassa | W116: Imponibile | Y116: IVA | AA116: Totale | AF116: ='Dati Gen'!B44 -> Architetto1 | AG116: ='Dati Gen'!B45 -> Ingegnere2 | AH116: ='Dati Gen'!B46 -> Consulente1 | AI116: ='Dati Gen'!B47 -> 0 | AJ116: ='Dati Gen'!B48 -> 0 | AK116: ='Dati Gen'!B49 -> 0 | AL116: ='Dati Gen'!B50 -> 0 | AM116: ='Dati Gen'!B51 -> 0
Q117: =IF('Dati Gen'!B25<>"",'Dati Gen'!B25,"") -> Redazione APE ante, Progettazione energetica | R117: =IF('Dati Gen'!C25<>"",'Dati Gen'!C25,"") -> Architetto1 | S117: =W117/(1+U117) -> 0 | U117: ='Dati Gen'!G25 -> 0.04 | V117: =S117*U117 -> 0 | W117: =AA117/(1+Y117) -> 0 | Y117: ='Dati Gen'!J25 -> 0.22 | Z117: =Y117*(S117+V117) -> 0 | AA117: =IF('Dati Gen'!$M$36<>0,$AA$126*'Dati Gen'!M25/'Dati Gen'!$M$36,0) -> 0 | AC117: =IF(R117<>"",VLOOKUP(R117,'Dati Gen'!$B$44:$D$51,3,0),"") -> SI | AF117: =IF($R117=AF$116,$AA117,0) -> 0 | AG117: =IF($R117=AG$116,$AA117,0) -> 0 | AH117: 0 | AI117: 0 | AJ117: 0 | AK117: 0 | AL117: 0 | AM117: 0
Q118: =IF('Dati Gen'!B26<>"",'Dati Gen'!B26,"") -> Progettazione e DD.LL. | R118: =IF('Dati Gen'!C26<>"",'Dati Gen'!C26,"") -> Architetto1 | S118: =W118/(1+U118) -> 0 | U118: ='Dati Gen'!G26 -> 0.04 | V118: 0 | W118: =AA118/(1+Y118) -> 0 | Y118: ='Dati Gen'!J26 -> 0.22 | Z118: =(S118+V118)*Y118 -> 0 | AA118: =IF('Dati Gen'!$M$36<>0,$AA$126*'Dati Gen'!M26/'Dati Gen'!$M$36,0) -> 0 | AC118: =IF(R118<>"",VLOOKUP(R118,'Dati Gen'!$B$44:$D$51,3,0),"") -> SI | AF118: =IF($R118=AF$116,$AA118,0) -> 0 | AG118: 0 | AH118: 0 | AI118: 0 | AJ118: 0 | AK118: 0 | AL118: 0 | AM118: 0
Q119: =IF('Dati Gen'!B27<>"",'Dati Gen'!B27,"") -> Coordinamento sicurezza | R119: =IF('Dati Gen'!C27<>"",'Dati Gen'!C27,"") -> Ingegnere2 | S119: 0 | U119: ='Dati Gen'!G27 -> 0.04 | V119: 0 | W119: 0 | Y119: ='Dati Gen'!J27 -> 0.22 | Z119: 0 | AA119: =IF('Dati Gen'!$M$36<>0,$AA$126*'Dati Gen'!M27/'Dati Gen'!$M$36,0) -> 0 | AC119: =IF(R119<>"",VLOOKUP(R119,'Dati Gen'!$B$44:$D$51,3,0),"") -> NO | AF119: 0 | AG119: 0 | AH119: 0 | AI119: 0 | AJ119: 0 | AK119: 0 | AL119: 0 | AM119: 0
Q120: =IF('Dati Gen'!B28<>"",'Dati Gen'!B28,"") -> Redazione APE post | R120: =IF('Dati Gen'!C28<>"",'Dati Gen'!C28,"") -> Architetto1 | S120: 0 | U120: ='Dati Gen'!G28 -> 0.04 | V120: 0 | W120: 0 | Y120: ='Dati Gen'!J28 -> 0.22 | Z120: 0 | AA120: =IF('Dati Gen'!$M$36<>0,$AA$126*'Dati Gen'!M28/'Dati Gen'!$M$36,0) -> 0 | AC120: =IF(R120<>"",VLOOKUP(R120,'Dati Gen'!$B$44:$D$51,3,0),"") -> SI | AF120: 0 | AG120: 0 | AH120: 0 | AI120: 0 | AJ120: 0 | AK120: 0 | AL120: 0 | AM120: 0
Q121: =IF('Dati Gen'!B29<>"",'Dati Gen'!B29,"") ->  | R121: =IF('Dati Gen'!C29<>"",'Dati Gen'!C29,"") ->  | S121: =W121/(1+U121) -> 0 | U121: ='Dati Gen'!G29 -> 0.04 | V121: 0 | W121: 0 | Y121: ='Dati Gen'!J29 -> 0.22 | Z121: 0 | AA121: =IF('Dati Gen'!$M$36<>0,$AA$126*'Dati Gen'!M29/'Dati Gen'!$M$36,0) -> 0 | AC121: =IF(R121<>"",VLOOKUP(R121,'Dati Gen'!$B$44:$D$51,3,0),"") ->  | AF121: 0 | AG121: 0 | AH121: 0 | AI121: 0 | AJ121: 0 | AK121: 0 | AL121: 0 | AM121: 0
Q122: =IF('Dati Gen'!B30<>"",'Dati Gen'!B30,"") ->  | R122: =IF('Dati Gen'!C30<>"",'Dati Gen'!C30,"") ->  | S122: =W122/(1+U122) -> 0 | U122: ='Dati Gen'!G30 -> 0.04 | V122: 0 | W122: 0 | Y122: ='Dati Gen'!J30 -> 0.22 | Z122: 0 | AA122: =IF('Dati Gen'!$M$36<>0,$AA$126*'Dati Gen'!M30/'Dati Gen'!$M$36,0) -> 0 | AC122: =IF(R122<>"",VLOOKUP(R122,'Dati Gen'!$B$44:$D$51,3,0),"") ->  | AF122: 0 | AG122: 0 | AH122: 0 | AI122: 0 | AJ122: 0 | AK122: 0 | AL122: 0 | AM122: 0
Q123: =IF('Dati Gen'!B31<>"",'Dati Gen'!B31,"") ->  | R123: =IF('Dati Gen'!C31<>"",'Dati Gen'!C31,"") ->  | S123: 0 | U123: ='Dati Gen'!G31 -> 0.04 | V123: 0 | W123: 0 | Y123: ='Dati Gen'!J31 -> 0.22 | Z123: 0 | AA123: =IF('Dati Gen'!$M$36<>0,$AA$126*'Dati Gen'!M31/'Dati Gen'!$M$36,0) -> 0 | AC123: =IF(R123<>"",VLOOKUP(R123,'Dati Gen'!$B$44:$D$51,3,0),"") ->  | AF123: 0 | AG123: 0 | AH123: 0 | AI123: 0 | AJ123: 0 | AK123: 0 | AL123: 0 | AM123: 0
Q124: =IF('Dati Gen'!B32<>"",'Dati Gen'!B32,"") ->  | R124: =IF('Dati Gen'!C32<>"",'Dati Gen'!C32,"") ->  | S124: 0 | U124: ='Dati Gen'!G32 -> 0.04 | V124: 0 | W124: 0 | Y124: ='Dati Gen'!J32 -> 0.22 | Z124: 0 | AA124: =IF('Dati Gen'!$M$36<>0,$AA$126*'Dati Gen'!M32/'Dati Gen'!$M$36,0) -> 0 | AC124: =IF(R124<>"",VLOOKUP(R124,'Dati Gen'!$B$44:$D$51,3,0),"") ->  | AF124: 0 | AG124: 0 | AH124: 0 | AI124: 0 | AJ124: 0 | AK124: 0 | AL124: 0 | AM124: 0
Q125: =IF('Dati Gen'!B35<>"",'Dati Gen'!B35,"") -> Visto Conformità | R125: =IF('Dati Gen'!C35<>"",'Dati Gen'!C35,"") -> Consulente1 | S125: 0 | U125: ='Dati Gen'!G35 -> 0.04 | V125: 0 | W125: 0 | Y125: ='Dati Gen'!J35 -> 0.22 | Z125: 0 | AA125: =IF('Dati Gen'!$M$36<>0,$AA$126*'Dati Gen'!M35/'Dati Gen'!$M$36,0) -> 0 | AC125: =IF(R125<>"",VLOOKUP(R125,'Dati Gen'!$B$44:$D$51,3,0),"") -> NO | AF125: 0 | AG125: 0 | AH125: 0 | AI125: 0 | AJ125: 0 | AK125: 0 | AL125: 0 | AM125: 0
S126: =SUM(S117:T125) -> 0 | U126: =SUM(V117:V125) -> 0 | W126: =SUM(W117:X125) -> 0 | Z126: =SUM(Z117:Z125) -> 0 | AA126: =SpeseTec30 -> 0 | AF126: =SUM(AF117:AF125) -> 0 | AG126: =SUM(AG117:AG125) -> 0 | AH126: 0 | AI126: 0 | AJ126: 0 | AK126: 0 | AL126: 0 | AM126: 0 | AN126: =SUM(AF126:AK126) -> 0
AF127: =IF($AN$126<>0,AF126/$AN$126,0) -> 0 | AG127: 0 | AH127: 0 | AI127: 0 | AJ127: 0 | AK127: 0 | AL127: =IF($AO$126<>0,AL126/$AO$126,0) -> 0 | AM127: =IF($AO$126<>0,AM126/$AO$126,0) -> 0
Q129: Ripartizione Spese Tecniche SAL. N.1 - ALTRI INTERVENTI | AC129: Applica Sconto in Fattura
Q130: Lavoro | R130: Tecnico | S130: Onorario | U130: C.Cassa | W130: Imponibile | Y130: IVA | AA130: Totale | AF130: =AF116 -> Architetto1 | AG130: =AG116 -> Ingegnere2 | AH130: Consulente1 | AI130: 0 | AJ130: 0 | AK130: 0 | AL130: 0 | AM130: 0
Q131: =IF('Dati Gen'!B25<>"",'Dati Gen'!B25,"") -> Redazione APE ante, Progettazione energetica | R131: =IF('Dati Gen'!C25<>"",'Dati Gen'!C25,"") -> Architetto1 | S131: =W131/(1+U131) -> 0 | U131: ='Dati Gen'!G25 -> 0.04 | V131: =S131*U131 -> 0 | W131: =AA131/(1+Y131) -> 0 | Y131: ='Dati Gen'!J25 -> 0.22 | Z131: =Y131*(S131+V131) -> 0 | AA131: =IF('Dati Gen'!$M$36<>0,$AA$140*'Dati Gen'!M25/'Dati Gen'!$M$36,0) -> 0 | AC131: =IF(R131<>"",VLOOKUP(R131,'Dati Gen'!$B$44:$D$51,3,0),"") -> SI | AF131: =IF($R131=AF$116,$AA131,0) -> 0 | AG131: =IF($R131=AG$116,$AA131,0) -> 0 | AH131: 0 | AI131: 0 | AJ131: 0 | AK131: 0 | AL131: 0 | AM131: 0
Q132: =IF('Dati Gen'!B26<>"",'Dati Gen'!B26,"") -> Progettazione e DD.LL. | R132: =IF('Dati Gen'!C26<>"",'Dati Gen'!C26,"") -> Architetto1 | S132: =W132/(1+U132) -> 0 | U132: ='Dati Gen'!G26 -> 0.04 | V132: =S132*U132 -> 0 | W132: =AA132/(1+Y132) -> 0 | Y132: ='Dati Gen'!J26 -> 0.22 | Z132: =(S132+V132)*Y132 -> 0 | AA132: =IF('Dati Gen'!$M$36<>0,$AA$140*'Dati Gen'!M26/'Dati Gen'!$M$36,0) -> 0 | AC132: =IF(R132<>"",VLOOKUP(R132,'Dati Gen'!$B$44:$D$51,3,0),"") -> SI | AF132: =IF($R132=AF$116,$AA132,0) -> 0 | AG132: 0 | AH132: 0 | AI132: 0 | AJ132: 0 | AK132: 0 | AL132: 0 | AM132: 0
Q133: =IF('Dati Gen'!B27<>"",'Dati Gen'!B27,"") -> Coordinamento sicurezza | R133: =IF('Dati Gen'!C27<>"",'Dati Gen'!C27,"") -> Ingegnere2 | S133: 0 | U133: ='Dati Gen'!G27 -> 0.04 | V133: 0 | W133: =AA133/(1+Y133) -> 0 | Y133: ='Dati Gen'!J27 -> 0.22 | Z133: 0 | AA133: =IF('Dati Gen'!$M$36<>0,$AA$140*'Dati Gen'!M27/'Dati Gen'!$M$36,0) -> 0 | AC133: =IF(R133<>"",VLOOKUP(R133,'Dati Gen'!$B$44:$D$51,3,0),"") -> NO | AF133: 0 | AG133: 0 | AH133: 0 | AI133: 0 | AJ133: 0 | AK133: 0 | AL133: 0 | AM133: 0
Q134: =IF('Dati Gen'!B28<>"",'Dati Gen'!B28,"") -> Redazione APE post | R134: =IF('Dati Gen'!C28<>"",'Dati Gen'!C28,"") -> Architetto1 | S134: 0 | U134: ='Dati Gen'!G28 -> 0.04 | V134: 0 | W134: 0 | Y134: ='Dati Gen'!J28 -> 0.22 | Z134: 0 | AA134: =IF('Dati Gen'!$M$36<>0,$AA$140*'Dati Gen'!M28/'Dati Gen'!$M$36,0) -> 0 | AC134: =IF(R134<>"",VLOOKUP(R134,'Dati Gen'!$B$44:$D$51,3,0),"") -> SI | AF134: 0 | AG134: 0 | AH134: 0 | AI134: 0 | AJ134: 0 | AK134: 0 | AL134: 0 | AM134: 0
Q135: =IF('Dati Gen'!B29<>"",'Dati Gen'!B29,"") ->  | R135: =IF('Dati Gen'!C29<>"",'Dati Gen'!C29,"") ->  | S135: 0 | U135: ='Dati Gen'!G29 -> 0.04 | V135: 0 | W135: 0 | Y135: ='Dati Gen'!J29 -> 0.22 | Z135: 0 | AA135: =IF('Dati Gen'!$M$36<>0,$AA$140*'Dati Gen'!M29/'Dati Gen'!$M$36,0) -> 0 | AC135: =IF(R135<>"",VLOOKUP(R135,'Dati Gen'!$B$44:$D$51,3,0),"") ->  | AF135: 0 | AG135: 0 | AH135: 0 | AI135: 0 | AJ135: 0 | AK135: 0 | AL135: 0 | AM135: 0
Q136: =IF('Dati Gen'!B30<>"",'Dati Gen'!B30,"") ->  | R136: =IF('Dati Gen'!C30<>"",'Dati Gen'!C30,"") ->  | S136: 0 | U136: ='Dati Gen'!G30 -> 0.04 | V136: 0 | W136: =AA136/(1+Y136) -> 0 | Y136: ='Dati Gen'!J30 -> 0.22 | Z136: 0 | AA136: =IF('Dati Gen'!$M$36<>0,$AA$140*'Dati Gen'!M30/'Dati Gen'!$M$36,0) -> 0 | AC136: =IF(R136<>"",VLOOKUP(R136,'Dati Gen'!$B$44:$D$51,3,0),"") ->  | AF136: 0 | AG136: 0 | AH136: 0 | AI136: 0 | AJ136: 0 | AK136: 0 | AL136: 0 | AM136: 0
Q137: =IF('Dati Gen'!B31<>"",'Dati Gen'!B31,"") ->  | R137: =IF('Dati Gen'!C31<>"",'Dati Gen'!C31,"") ->  | S137: 0 | U137: ='Dati Gen'!G31 -> 0.04 | V137: 0 | W137: 0 | Y137: ='Dati Gen'!J31 -> 0.22 | Z137: 0 | AA137: =IF('Dati Gen'!$M$36<>0,$AA$140*'Dati Gen'!M31/'Dati Gen'!$M$36,0) -> 0 | AC137: =IF(R137<>"",VLOOKUP(R137,'Dati Gen'!$B$44:$D$51,3,0),"") ->  | AF137: 0 | AG137: 0 | AH137: 0 | AI137: 0 | AJ137: 0 | AK137: 0 | AL137: 0 | AM137: 0
Q138: =IF('Dati Gen'!B32<>"",'Dati Gen'!B32,"") ->  | R138: =IF('Dati Gen'!C32<>"",'Dati Gen'!C32,"") ->  | S138: 0 | U138: ='Dati Gen'!G32 -> 0.04 | V138: 0 | W138: 0 | Y138: ='Dati Gen'!J32 -> 0.22 | Z138: 0 | AA138: =IF('Dati Gen'!$M$36<>0,$AA$140*'Dati Gen'!M32/'Dati Gen'!$M$36,0) -> 0 | AC138: =IF(R138<>"",VLOOKUP(R138,'Dati Gen'!$B$44:$D$51,3,0),"") ->  | AF138: 0 | AG138: 0 | AH138: 0 | AI138: 0 | AJ138: 0 | AK138: 0 | AL138: 0 | AM138: 0
Q139: =IF('Dati Gen'!B35<>"",'Dati Gen'!B35,"") -> Visto Conformità | R139: =IF('Dati Gen'!C35<>"",'Dati Gen'!C35,"") -> Consulente1 | S139: 0 | U139: ='Dati Gen'!G35 -> 0.04 | V139: 0 | W139: =AA139/(1+Y139) -> 0 | Y139: ='Dati Gen'!J35 -> 0.22 | Z139: 0 | AA139: =IF('Dati Gen'!$M$36<>0,$AA$140*'Dati Gen'!M35/'Dati Gen'!$M$36,0) -> 0 | AC139: =IF(R139<>"",VLOOKUP(R139,'Dati Gen'!$B$44:$D$51,3,0),"") -> NO | AF139: 0 | AG139: 0 | AH139: 0 | AI139: 0 | AJ139: 0 | AK139: 0 | AL139: 0 | AM139: 0
S140: =SUM(S131:T139) -> 0 | U140: =SUM(V131:V139) -> 0 | W140: =SUM(W131:X139) -> 0 | Z140: =SUM(Z131:Z139) -> 0 | AA140: =K93 -> 0 | AF140: =SUM(AF131:AF139) -> 0 | AG140: 0 | AH140: 0 | AI140: 0 | AJ140: 0 | AK140: 0 | AL140: 0 | AM140: 0 | AN140: =SUM(AF140:AK140) -> 0
AF141: =IF($AN$140<>0,AF140/$AN$140,0) -> 0 | AG141: 0 | AH141: 0 | AI141: 0 | AJ141: 0 | AK141: 0 | AL141: =IF($AO$140<>0,AL140/$AO$140,0) -> 0 | AM141: =IF($AO$140<>0,AM140/$AO$140,0) -> 0
L206: 0
C213: Sconto applicato su quota di spettanza del Massimale di Spesa.
M265: Pag.1/1

Sheet SAL.60%
P1: =MATCH("SimMZ",C:C,0) -> 78
C2: =CONCATENATE('Dati Gen'!K2, " ",'Dati Gen'!K3," ",'Dati Gen'!L3) -> Pratica.110plus Vers.ne 4.3.1 | F2: DATI DI PROGETTO : | G2: IMPONIBILE | H2: IVA | I2: IMPORTO | K2: IMPONIBILE | L2: IVA | M2: IMPORTO | N2: =CONCATENATE('Dati Gen'!K2," SIM.srl") -> Pratica.110plus SIM.srl
C3: STATO AVANZAMENTO LAVORI N.2 | F3: Importo Lavori | G3: ='Dati Gen'!G18 -> 0 | H3: ='Dati Gen'!K18 -> 0 | I3: ='Dati Gen'!M18 -> 0 | J3: Importo Netto | K3: ='Dati Gen'!G20 -> 0 | L3: ='Dati Gen'!K20 -> 0 | M3: ='Dati Gen'!M20 -> 0 | P3: * | Q3: =IF('Computo-Massimali'!C6<>"","Attenzione! Tabella Computo-Massimali non completa. Si consiglia di completare, prima di registrare Voci di SAL","") -> Attenzione! Tabella Computo-Massimali non completa. Si consiglia di completare, prima di registrare Voci di SAL
C4: 08/05/2022 | F4: Oneri Sicurezza | G4: ='Dati Gen'!G19 -> 0 | H4: ='Dati Gen'!K19 -> 0 | I4: ='Dati Gen'!M19 -> 0 | J4: Spese Tecniche | K4: ='Dati Gen'!G21 -> 0 | L4: ='Dati Gen'!K21 -> 0 | M4: ='Dati Gen'!M21 -> 0 | Q4: Codice Identificativo Asseverazione ENEA | T4: Codice Identificativo Asseverazione Rischio Sismico
C5: Oneri/Lavori x Sicurezza | D5: 0 | K5: ='Dati Gen'!G22 -> Importo Complessivo Progetto : | M5: ='Dati Gen'!M22 -> 0
C7: INTERVENTI TRAINANTI | O7: .. | Q7: =CONCATENATE("Verifica Massimali di Spesa ",C7) -> Verifica Massimali di Spesa INTERVENTI TRAINANTI
C8: Interventi | F8: Importo Lavori | G8: Incidenza Sicurezza | H8: Imponibile | I8: Iva | J8: Importo c.iva | K8: Spese tecniche | L8: Totale | M8: Credito Spettante 110% Spesa Ammessa | N8: %SAL | R8: Massimale spesa | S8: Verifica Max | U8: Spesa Ammessa | W8: Quota Eccedente Massimale Spesa | Y8: Credito Spettante 110% Spesa Ammessa Quota Impresa | Quota Tecnici
C9: ='Computo-Massimali'!C9 -> PV) Isolamento pareti perimetrali | E9: ='Computo-Massimali'!E9 -> Interno | F9: 0 | G9: =IF('Computo-Massimali'!F9<>0,'Computo-Massimali'!G9*F9/'Computo-Massimali'!F9,0) -> 0 | H9: =SUM(F9:G9) -> 0 | I9: =F9*'Dati Gen'!$J$20+G9*'Dati Gen'!$J$19 -> 0 | J9: =H9+I9 -> 0 | K9: =IF('Computo-Massimali'!F9<>0,'Computo-Massimali'!K9*F9/'Computo-Massimali'!F9,0) -> 0 | L9: =SUM(J9:K9) -> 0 | M9: =IF(L9<=R9,L9*1.1,R9*1.1) -> 0 | N9: =IF('Computo-Massimali'!L9>0,L9/'Computo-Massimali'!L9,0) -> 0 | O9: =IF(F9>0,IF(F9-0.001>'Computo-Massimali'!F9,">Computo",IF(F9+0.001<'SAL.30%'!F10,"< SAL.1","")),"") ->  | Q9: =C9 -> PV) Isolamento pareti perimetrali | R9: ='Computo-Massimali'!T9 -> 0 | S9: =IF(L9>M9,"KO Tot.>Detr.",IF(L9>R9,"ko","ok")) -> ok | U9: =IF($L$13<>0,(L9/$L$13)*$U$13,0) -> 0 | W9: =IF(L9>R9,L9-R9,0) -> 0 | Y9: =IF(M9<>0,J9*M9/L9,0) -> 0 | AA9: =IF(M9<>0,K9*M9/L9,0) -> 0
C10: ='Computo-Massimali'!C10 -> PO) Isolamento coperture | E10: ='Computo-Massimali'!E10 -> Esterno | F10: 0 | G10: =IF('Computo-Massimali'!F10<>0,'Computo-Massimali'!G10*F10/'Computo-Massimali'!F10,0) -> 0 | H10: =SUM(F10:G10) -> 0 | I10: =F10*'Dati Gen'!$J$20+G10*'Dati Gen'!$J$19 -> 0 | J10: =H10+I10 -> 0 | K10: =IF('Computo-Massimali'!F10<>0,'Computo-Massimali'!K10*F10/'Computo-Massimali'!F10,0) -> 0 | L10: =SUM(J10:K10) -> 0 | M10: 0 | N10: =IF('Computo-Massimali'!L10>0,L10/'Computo-Massimali'!L10,0) -> 0 | O10: =IF(F10>0,IF(F10-0.001>'Computo-Massimali'!F10,">Computo",IF(F10+0.001<'SAL.30%'!F11,"< SAL.1","")),"") ->  | Q10: PO) Isolamento coperture | R10: ='Computo-Massimali'!T10 -> 0 | S10: ok | U10: =IF($L$13<>0,(L10/$L$13)*$U$13,0) -> 0 | W10: 0 | Y10: 0 | AA10: 0
C11: ='Computo-Massimali'!C11 -> POND) Isol. coperture non disperdenti | E11: ='Computo-Massimali'!E11 -> Esterno | F11: 0 | G11: =IF('Computo-Massimali'!F11<>0,'Computo-Massimali'!G11*F11/'Computo-Massimali'!F11,0) -> 0 | H11: =SUM(F11:G11) -> 0 | I11: =F11*'Dati Gen'!$J$20+G11*'Dati Gen'!$J$19 -> 0 | J11: =H11+I11 -> 0 | K11: =IF('Computo-Massimali'!F11<>0,'Computo-Massimali'!K11*F11/'Computo-Massimali'!F11,0) -> 0 | L11: =SUM(J11:K11) -> 0 | M11: 0 | N11: =IF('Computo-Massimali'!L11>0,L11/'Computo-Massimali'!L11,0) -> 0 | O11: =IF(F11>0,IF(F11-0.001>'Computo-Massimali'!F11,">Computo",IF(F11+0.001<'SAL.30%'!F12,"< SAL.1","")),"") ->  | Q11: POND) Isol. coperture non disperdenti | R11: ='Computo-Massimali'!T11 -> 0 | S11: ok | U11: =IF($L$13<>0,(L11/$L$13)*$U$13,0) -> 0 | W11: 0 | Y11: 0 | AA11: 0
C12: ='Computo-Massimali'!C12 -> PS) Isolamento Pavimenti | E12: ='Computo-Massimali'!E12 -> Interno/terreno | F12: 0 | G12: =IF('Computo-Massimali'!F12<>0,'Computo-Massimali'!G12*F12/'Computo-Massimali'!F12,0) -> 0 | H12: =SUM(F12:G12) -> 0 | I12: =F12*'Dati Gen'!$J$20+G12*'Dati Gen'!$J$19 -> 0 | J12: =H12+I12 -> 0 | K12: =IF('Computo-Massimali'!F12<>0,'Computo-Massimali'!K12*F12/'Computo-Massimali'!F12,0) -> 0 | L12: =SUM(J12:K12) -> 0 | M12: 0 | N12: =IF('Computo-Massimali'!L12>0,L12/'Computo-Massimali'!L12,0) -> 0 | O12: =IF(F12>0,IF(F12-0.001>'Computo-Massimali'!F12,">Computo",IF(F12+0.001<'SAL.30%'!F13,"< SAL.1","")),"") ->  | Q12: PS) Isolamento Pavimenti | R12: ='Computo-Massimali'!T12 -> 0 | S12: ok | U12: =IF($L$13<>0,(L12/$L$13)*$U$13,0) -> 0 | W12: 0 | Y12: 0 | AA12: 0
C13: ='Computo-Massimali'!C13 -> Totali Isolamento PV) PO) POND) PS) | F13: =SUM(F9:F12) -> 0 | G13: =SUM(G9:G12) -> 0 | H13: =SUM(H9:H12) -> 0 | I13: 0 | J13: 0 | K13: 0 | L13: 0 | M13: 0 | N13: =IF('Computo-Massimali'!L13>0,L13/'Computo-Massimali'!L13,0) -> 0 | O13: =IF(F13>0,IF(F13-0.001>'Computo-Massimali'!F13,">Computo",IF(F13+0.001<'SAL.30%'!F14,"< SAL.1","")),"") ->  | Q13: Totali Isolamento PV) PO) POND) PS) | R13: ='Computo-Massimali'!T13 -> 0 | S13: ok | U13: =IF(L13<R13,L13,R13) -> 0 | W13: 0 | Y13: 0 | AA13: 0
C14: ='Computo-Massimali'!C14 -> Impianti climatizzazione e ACS | F14: 0 | G14: =IF('Computo-Massimali'!F14<>0,'Computo-Massimali'!G14*F14/'Computo-Massimali'!F14,0) -> 0 | H14: =SUM(F14:G14) -> 0 | I14: =F14*'Dati Gen'!$J$20+G14*'Dati Gen'!$J$19 -> 0 | J14: =H14+I14 -> 0 | K14: =IF('Computo-Massimali'!F14<>0,'Computo-Massimali'!K14*F14/'Computo-Massimali'!F14,0) -> 0 | L14: =SUM(J14:K14) -> 0 | M14: 0 | N14: =IF('Computo-Massimali'!L14>0,L14/'Computo-Massimali'!L14,0) -> 0 | O14: =IF(F14>0,IF(F14-0.001>'Computo-Massimali'!F14,">Computo",IF(F14+0.001<'SAL.30%'!F15,"< SAL.1","")),"") ->  | Q14: Impianti climatizzazione e ACS | R14: ='Computo-Massimali'!T14 -> 0 | S14: ok | U14: =IF(L14<R14,L14,R14) -> 0 | W14: 0 | Y14: 0 | AA14: 0
C15: ='Computo-Massimali'!C15 -> SismaBonus Zona 1,2 o 3 | F15: 0 | G15: =IF('Computo-Massimali'!F15<>0,'Computo-Massimali'!G15*F15/'Computo-Massimali'!F15,0) -> 0 | H15: =SUM(F15:G15) -> 0 | I15: =F15*'Dati Gen'!$J$20+G15*'Dati Gen'!$J$19 -> 0 | J15: =H15+I15 -> 0 | K15: =IF('Computo-Massimali'!F15<>0,'Computo-Massimali'!K15*F15/'Computo-Massimali'!F15,0) -> 0 | L15: =SUM(J15:K15) -> 0 | M15: 0 | N15: =IF('Computo-Massimali'!L15>0,L15/'Computo-Massimali'!L15,0) -> 0 | O15: =IF(F15>0,IF(F15-0.001>'Computo-Massimali'!F15,">Computo",IF(F15+0.001<'SAL.30%'!F16,"< SAL.1","")),"") ->  | Q15: SismaBonus Zona 1,2 o 3 | R15: ='Computo-Massimali'!T15 -> 0 | S15: ok | U15: =IF(L15<R15,L15,R15) -> 0 | W15: 0 | Y15: 0 | AA15: 0
C16: ='Computo-Massimali'!C16 -> Totale interventi Trainanti : | F16: =SUM(F13:F15) -> 0 | G16: =SUM(G13:G15) -> 0 | H16: 0 | I16: 0 | J16: 0 | K16: 0 | L16: 0 | M16: =SUM(M13:M15) -> 0 | N16: =IF('Computo-Massimali'!L16>0,L16/'Computo-Massimali'!L16,0) -> 0 | O16: =IF(F16>0,IF(F16-0.001>'Computo-Massimali'!F16,">Computo",IF(F16+0.001<'SAL.30%'!F17,"< SAL.1","")),"") ->  | R16: =C16 -> Totale interventi Trainanti : | U16: =SUM(U13:V15) -> 0 | W16: =SUM(W13:X15) -> 0 | Y16: =SUM(Y13:Z15) -> 0 | AA16: =SUM(AA13:AB15) -> 0
C18: INTERVENTI TRAINATI PARTI COMUNI CONDOMINIALI | O18: .. | Q18: =CONCATENATE("Verifica Massimali di Spesa ",C18) -> Verifica Massimali di Spesa INTERVENTI TRAINATI PARTI COMUNI CONDOMINIALI
C19: Interventi | F19: Importo Lavori | G19: Incidenza Sicurezza | H19: Imponibile | I19: Iva | J19: Importo c.iva | K19: Spese tecniche | L19: Totale | M19: Credito Spettante 110% Spesa Ammessa | N19: %SAL | R19: Massimale spesa | S19: Verifica Max | U19: Spesa Ammessa | W19: Quota Eccedente Massimale Spesa | Y19: Credito Spettante 110% Spesa Ammessa Quota Impresa | Quota Tecnici
C20: ='Computo-Massimali'!C20 -> PV) Isolamento pareti perimetrali | E20: ='Computo-Massimali'!E20 -> Interno | F20: 0 | G20: =IF('Computo-Massimali'!F20<>0,'Computo-Massimali'!G20*F20/'Computo-Massimali'!F20,0) -> 0 | H20: =SUM(F20:G20) -> 0 | I20: =F20*'Dati Gen'!$J$20+G20*'Dati Gen'!$J$19 -> 0 | J20: =H20+I20 -> 0 | K20: =IF('Computo-Massimali'!F20<>0,'Computo-Massimali'!K20*F20/'Computo-Massimali'!F20,0) -> 0 | L20: =SUM(J20:K20) -> 0 | M20: =IF(L20<=R20,L20*1.1,R20*1.1) -> 0 | N20: =IF('Computo-Massimali'!L20>0,L20/'Computo-Massimali'!L20,0) -> 0 | O20: =IF(F20>0,IF(F20-0.001>'Computo-Massimali'!F20,">Computo",IF(F20+0.001<'SAL.30%'!F21,"< SAL.1","")),"") ->  | Q20: =C20 -> PV) Isolamento pareti perimetrali | R20: ='Computo-Massimali'!T20 -> 0 | S20: =IF(L20>M20,"KO Tot.>Detr.",IF(L20>R20,"ko","ok")) -> ok | U20: =IF($L$24<>0,(L20/$L$24)*$U$24,0) -> 0 | W20: =IF(L20>R20,L20-R20,0) -> 0 | Y20: =IF(M20<>0,J20*M20/L20,0) -> 0 | AA20: =IF(M20<>0,K20*M20/L20,0) -> 0
C21: ='Computo-Massimali'!C21 -> PO) Isolamento coperture | E21: ='Computo-Massimali'!E21 -> Esterno | F21: 0 | G21: =IF('Computo-Massimali'!F21<>0,'Computo-Massimali'!G21*F21/'Computo-Massimali'!F21,0) -> 0 | H21: =SUM(F21:G21) -> 0 | I21: =F21*'Dati Gen'!$J$20+G21*'Dati Gen'!$J$19 -> 0 | J21: =H21+I21 -> 0 | K21: =IF('Computo-Massimali'!F21<>0,'Computo-Massimali'!K21*F21/'Computo-Massimali'!F21,0) -> 0 | L21: =SUM(J21:K21) -> 0 | M21: =IF(L21<=R21,L21*1.1,R21*1.1) -> 0 | N21: =IF('Computo-Massimali'!L21>0,L21/'Computo-Massimali'!L21,0) -> 0 | O21: =IF(F21>0,IF(F21-0.001>'Computo-Massimali'!F21,">Computo",IF(F21+0.001<'SAL.30%'!F22,"< SAL.1","")),"") ->  | Q21: PO) Isolamento coperture | R21: ='Computo-Massimali'!T21 -> 0 | S21: ok | U21: =IF($L$24<>0,(L21/$L$24)*$U$24,0) -> 0 | W21: 0 | Y21: 0 | AA21: 0
C22: ='Computo-Massimali'!C22 -> PS) Isolamento Pavimenti | E22: ='Computo-Massimali'!E22 -> Interno/terreno | F22: 0 | G22: =IF('Computo-Massimali'!F22<>0,'Computo-Massimali'!G22*F22/'Computo-Massimali'!F22,0) -> 0 | H22: =SUM(F22:G22) -> 0 | I22: =F22*'Dati Gen'!$J$20+G22*'Dati Gen'!$J$19 -> 0 | J22: =H22+I22 -> 0 | K22: =IF('Computo-Massimali'!F22<>0,'Computo-Massimali'!K22*F22/'Computo-Massimali'!F22,0) -> 0 | L22: =SUM(J22:K22) -> 0 | M22: =IF(L22<=R22,L22*1.1,R22*1.1) -> 0 | N22: =IF('Computo-Massimali'!L22>0,L22/'Computo-Massimali'!L22,0) -> 0 | O22: =IF(F22>0,IF(F22-0.001>'Computo-Massimali'!F22,">Computo",IF(F22+0.001<'SAL.30%'!F23,"< SAL.1","")),"") ->  | Q22: PS) Isolamento Pavimenti | R22: ='Computo-Massimali'!T22 -> 0 | S22: ok | U22: =IF($L$24<>0,(L22/$L$24)*$U$24,0) -> 0 | W22: 0 | Y22: 0 | AA22: 0
C23: ='Computo-Massimali'!C23 -> IN) Serramenti con chiusure oscuranti | E23: ='Computo-Massimali'!E23 -> Zone D, E ed F | F23: 0 | G23: =IF('Computo-Massimali'!F23<>0,'Computo-Massimali'!G23*F23/'Computo-Massimali'!F23,0) -> 0 | H23: =SUM(F23:G23) -> 0 | I23: =F23*'Dati Gen'!$J$20+G23*'Dati Gen'!$J$19 -> 0 | J23: =H23+I23 -> 0 | K23: =IF('Computo-Massimali'!F23<>0,'Computo-Massimali'!K23*F23/'Computo-Massimali'!F23,0) -> 0 | L23: =SUM(J23:K23) -> 0 | M23: =IF(L23<=R23,L23*1.1,R23*1.1) -> 0 | N23: =IF('Computo-Massimali'!L23>0,L23/'Computo-Massimali'!L23,0) -> 0 | O23: =IF(F23>0,IF(F23-0.001>'Computo-Massimali'!F23,">Computo",IF(F23+0.001<'SAL.30%'!F24,"< SAL.1","")),"") ->  | Q23: IN) Serramenti con chiusure oscuranti | R23: ='Computo-Massimali'!T23 -> 0 | S23: ok | U23: =IF($L$24<>0,(L23/$L$24)*$U$24,0) -> 0 | W23: 0 | Y23: 0 | AA23: 0
C24: ='Computo-Massimali'!C24 -> Totali Isolamento PV) PO) PS) e IN) | F24: =SUM(F20:F23) -> 0 | G24: =SUM(G20:G23) -> 0 | H24: =SUM(H20:H23) -> 0 | I24: 0 | J24: 0 | K24: =SUM(K20:K23) -> 0 | L24: 0 | M24: 0 | N24: =IF('Computo-Massimali'!L24>0,L24/'Computo-Massimali'!L24,0) -> 0 | O24: =IF(F24>0,IF(F24-0.001>'Computo-Massimali'!F24,">Computo",IF(F24+0.001<'SAL.30%'!F25,"< SAL.1","")),"") ->  | Q24: Totali Isolamento PV) PO) PS) e IN) | R24: ='Computo-Massimali'!T24 -> 0 | S24: ok | U24: =IF(L24<R24,L24,R24) -> 0 | W24: 0 | Y24: 0 | AA24: 0
C25: ='Computo-Massimali'!C25 -> SS) Schermature solari e chiusure oscuranti | F25: 0 | G25: =IF('Computo-Massimali'!F25<>0,'Computo-Massimali'!G25*F25/'Computo-Massimali'!F25,0) -> 0 | H25: =SUM(F25:G25) -> 0 | I25: =F25*'Dati Gen'!$J$20+G25*'Dati Gen'!$J$19 -> 0 | J25: 0 | K25: =IF('Computo-Massimali'!F25<>0,'Computo-Massimali'!K25*F25/'Computo-Massimali'!F25,0) -> 0 | L25: =SUM(J25:K25) -> 0 | M25: =IF(L25<=R25,L25*1.1,R25*1.1) -> 0 | N25: =IF('Computo-Massimali'!L25>0,L25/'Computo-Massimali'!L25,0) -> 0 | O25: =IF(F25>0,IF(F25-0.001>'Computo-Massimali'!F25,">Computo",IF(F25+0.001<'SAL.30%'!F26,"< SAL.1","")),"") ->  | Q25: SS) Schermature solari e chiusure oscuranti | R25: ='Computo-Massimali'!T25 -> 0 | S25: ok | U25: =IF(L25<R25,L25,R25) -> 0 | W25: 0 | Y25: 0 | AA25: 0
C26: ='Computo-Massimali'!C26 -> Impianti climatizzazione con | F26: 0 | G26: =IF('Computo-Massimali'!F26<>0,'Computo-Massimali'!G26*F26/'Computo-Massimali'!F26,0) -> 0 | H26: =SUM(F26:G26) -> 0 | I26: =F26*'Dati Gen'!$J$20+G26*'Dati Gen'!$J$19 -> 0 | J26: 0 | K26: =IF('Computo-Massimali'!F26<>0,'Computo-Massimali'!K26*F26/'Computo-Massimali'!F26,0) -> 0 | L26: 0 | M26: =IF(L26<=R26,L26*1.1,R26*1.1) -> 0 | N26: =IF('Computo-Massimali'!L26>0,L26/'Computo-Massimali'!L26,0) -> 0 | O26: =IF(F26>0,IF(F26-0.001>'Computo-Massimali'!F26,">Computo",IF(F26+0.001<'SAL.30%'!F27,"< SAL.1","")),"") ->  | Q26: Impianti climatizzazione con | R26: ='Computo-Massimali'!T26 -> 0 | S26: ok | U26: =IF(L26<R26,L26,R26) -> 0 | W26: 0 | Y26: 0 | AA26: 0
C27: ='Computo-Massimali'!C27 -> GA) Generatori aria calda Condensazione | F27: 0 | G27: =IF('Computo-Massimali'!F27<>0,'Computo-Massimali'!G27*F27/'Computo-Massimali'!F27,0) -> 0 | H27: =SUM(F27:G27) -> 0 | I27: =F27*'Dati Gen'!$J$20+G27*'Dati Gen'!$J$19 -> 0 | J27: 0 | K27: =IF('Computo-Massimali'!F27<>0,'Computo-Massimali'!K27*F27/'Computo-Massimali'!F27,0) -> 0 | L27: 0 | M27: =IF(L27<=R27,L27*1.1,R27*1.1) -> 0 | N27: =IF('Computo-Massimali'!L27>0,L27/'Computo-Massimali'!L27,0) -> 0 | O27: =IF(F27>0,IF(F27-0.001>'Computo-Massimali'!F27,">Computo",IF(F27+0.001<'SAL.30%'!F28,"< SAL.1","")),"") ->  | Q27: GA) Generatori aria calda Condensazione | R27: ='Computo-Massimali'!T27 -> 0 | S27: ok | U27: =IF($L$30<>0,(L27/$L$30)*$U$30,0) -> 0 | W27: =IF(L27>R27,L27-R27,0) -> 0 | Y27: =IF(M27<>0,J27*M27/L27,0) -> 0 | AA27: =IF(M27<>0,K27*M27/L27,0) -> 0
C28: ='Computo-Massimali'!C28 -> IB) Impianti Biomassa | F28: 0 | G28: =IF('Computo-Massimali'!F28<>0,'Computo-Massimali'!G28*F28/'Computo-Massimali'!F28,0) -> 0 | H28: =SUM(F28:G28) -> 0 | I28: =F28*'Dati Gen'!$J$20+G28*'Dati Gen'!$J$19 -> 0 | J28: 0 | K28: =IF('Computo-Massimali'!F28<>0,'Computo-Massimali'!K28*F28/'Computo-Massimali'!F28,0) -> 0 | L28: 0 | M28: =IF(L28<=R28,L28*1.1,R28*1.1) -> 0 | N28: =IF('Computo-Massimali'!L28>0,L28/'Computo-Massimali'!L28,0) -> 0 | O28: =IF(F28>0,IF(F28-0.001>'Computo-Massimali'!F28,">Computo",IF(F28+0.001<'SAL.30%'!F29,"< SAL.1","")),"") ->  | Q28: IB) Impianti Biomassa | R28: ='Computo-Massimali'!T28 -> 0 | S28: ok | U28: =IF($L$30<>0,(L28/$L$30)*$U$30,0) -> 0 | W28: 0 | Y28: 0 | AA28: 0
C29: ='Computo-Massimali'!C29 -> SA) Scaldacqua a pompa di calore | F29: 0 | G29: =IF('Computo-Massimali'!F29<>0,'Computo-Massimali'!G29*F29/'Computo-Massimali'!F29,0) -> 0 | H29: =SUM(F29:G29) -> 0 | I29: =F29*'Dati Gen'!$J$20+G29*'Dati Gen'!$J$19 -> 0 | J29: 0 | K29: =IF('Computo-Massimali'!F29<>0,'Computo-Massimali'!K29*F29/'Computo-Massimali'!F29,0) -> 0 | L29: 0 | M29: =IF(L29<=R29,L29*1.1,R29*1.1) -> 0 | N29: =IF('Computo-Massimali'!L29>0,L29/'Computo-Massimali'!L29,0) -> 0 | O29: =IF(F29>0,IF(F29-0.001>'Computo-Massimali'!F29,">Computo",IF(F29+0.001<'SAL.30%'!F30,"< SAL.1","")),"") ->  | Q29: SA) Scaldacqua a pompa di calore | R29: ='Computo-Massimali'!T29 -> 0 | S29: ok | U29: =IF($L$30<>0,(L29/$L$30)*$U$30,0) -> 0 | W29: 0 | Y29: 0 | AA29: 0
C30: ='Computo-Massimali'!C30 -> Totali GA) IB) SA) | F30: =SUM(F27:F29) -> 0 | G30: =SUM(G27:G29) -> 0 | H30: =SUM(H27:H29) -> 0 | I30: 0 | J30: 0 | K30: =SUM(K27:K29) -> 0 | L30: 0 | M30: 0 | N30: =IF('Computo-Massimali'!L30>0,L30/'Computo-Massimali'!L30,0) -> 0 | O30: =IF(F30>0,IF(F30-0.001>'Computo-Massimali'!F30,">Computo",IF(F30+0.001<'SAL.30%'!F31,"< SAL.1","")),"") ->  | Q30: Totali GA) IB) SA) | R30: ='Computo-Massimali'!T30 -> 0 | S30: ok | U30: =IF(L30<R30,L30,R30) -> 0 | W30: 0 | Y30: 0 | AA30: 0
C31: ='Computo-Massimali'!C31 -> CO) Sistemi di Microgenerazione | F31: 0 | G31: =IF('Computo-Massimali'!F31<>0,'Computo-Massimali'!G31*F31/'Computo-Massimali'!F31,0) -> 0 | H31: =SUM(F31:G31) -> 0 | I31: =F31*'Dati Gen'!$J$20+G31*'Dati Gen'!$J$19 -> 0 | J31: =H31+I31 -> 0 | K31: =IF('Computo-Massimali'!F31<>0,'Computo-Massimali'!K31*F31/'Computo-Massimali'!F31,0) -> 0 | L31: =SUM(J31:K31) -> 0 | M31: =IF(L31<=R31,L31*1.1,R31*1.1) -> 0 | N31: =IF('Computo-Massimali'!L31>0,L31/'Computo-Massimali'!L31,0) -> 0 | O31: =IF(F31>0,IF(F31-0.001>'Computo-Massimali'!F31,">Computo",IF(F31+0.001<'SAL.30%'!F32,"< SAL.1","")),"") ->  | Q31: CO) Sistemi di Microgenerazione | R31: ='Computo-Massimali'!T31 -> 0 | S31: ok | U31: 0 | W31: 0 | Y31: 0 | AA31: 0
C32: ='Computo-Massimali'!C32 -> ST) Collettori Solari | E32: ='Computo-Massimali'!E32 -> Piani Vetrati | F32: 0 | G32: =IF('Computo-Massimali'!F32<>0,'Computo-Massimali'!G32*F32/'Computo-Massimali'!F32,0) -> 0 | H32: 0 | I32: =F32*'Dati Gen'!$J$20+G32*'Dati Gen'!$J$19 -> 0 | J32: =H32+I32 -> 0 | K32: =IF('Computo-Massimali'!F32<>0,'Computo-Massimali'!K32*F32/'Computo-Massimali'!F32,0) -> 0 | L32: =SUM(J32:K32) -> 0 | M32: 0 | N32: =IF('Computo-Massimali'!L32>0,L32/'Computo-Massimali'!L32,0) -> 0 | O32: =IF(F32>0,IF(F32-0.001>'Computo-Massimali'!F32,">Computo",IF(F32+0.001<'SAL.30%'!F33,"< SAL.1","")),"") ->  | Q32: ST) Collettori Solari | R32: ='Computo-Massimali'!T32 -> 0 | S32: ok | U32: 0 | W32: 0 | Y32: 0 | AA32: 0
C33: ='Computo-Massimali'!C33 -> FV) Solare Fotovoltaico [ kWp ] | E33: ='Computo-Massimali'!E33 -> 6 | F33: 0 | G33: =IF('Computo-Massimali'!F33<>0,'Computo-Massimali'!G33*F33/'Computo-Massimali'!F33,0) -> 0 | H33: 0 | I33: =F33*'Dati Gen'!$J$20+G33*'Dati Gen'!$J$19 -> 0 | J33: =H33+I33 -> 0 | K33: =IF('Computo-Massimali'!F33<>0,'Computo-Massimali'!K33*F33/'Computo-Massimali'!F33,0) -> 0 | L33: =SUM(J33:K33) -> 0 | M33: 0 | N33: =IF('Computo-Massimali'!L33>0,L33/'Computo-Massimali'!L33,0) -> 0 | O33: =IF(F33>0,IF(F33-0.001>'Computo-Massimali'!F33,">Computo",IF(F33+0.001<'SAL.30%'!F34,"< SAL.1","")),"") ->  | Q33: FV) Solare Fotovoltaico [ kWp ] | R33: ='Computo-Massimali'!T33 -> 0 | S33: ok | U33: 0 | W33: 0 | Y33: 0 | AA33: 0
C34: ='Computo-Massimali'!C34 -> AC) Sistema di Accumulo [ kWh ] | E34: ='Computo-Massimali'!E34 -> 10 | F34: 0 | G34: =IF('Computo-Massimali'!F34<>0,'Computo-Massimali'!G34*F34/'Computo-Massimali'!F34,0) -> 0 | H34: 0 | I34: =F34*'Dati Gen'!$J$20+G34*'Dati Gen'!$J$19 -> 0 | J34: =H34+I34 -> 0 | K34: =IF('Computo-Massimali'!F34<>0,'Computo-Massimali'!K34*F34/'Computo-Massimali'!F34,0) -> 0 | L34: =SUM(J34:K34) -> 0 | M34: 0 | N34: =IF('Computo-Massimali'!L34>0,L34/'Computo-Massimali'!L34,0) -> 0 | O34: =IF(F34>0,IF(F34-0.001>'Computo-Massimali'!F34,">Computo",IF(F34+0.001<'SAL.30%'!F35,"< SAL.1","")),"") ->  | Q34: AC) Sistema di Accumulo [ kWh ] | R34: ='Computo-Massimali'!T34 -> 0 | S34: ok | U34: 0 | W34: 0 | Y34: 0 | AA34: 0
C35: ='Computo-Massimali'!C35 -> CR) Colonnine di Ricarica [ N. ] | E35: ='Computo-Massimali'!E35 -> 1 | F35: 0 | G35: =IF('Computo-Massimali'!F35<>0,'Computo-Massimali'!G35*F35/'Computo-Massimali'!F35,0) -> 0 | H35: 0 | I35: =F35*'Dati Gen'!$J$20+G35*'Dati Gen'!$J$19 -> 0 | J35: 0 | K35: =IF('Computo-Massimali'!F35<>0,'Computo-Massimali'!K35*F35/'Computo-Massimali'!F35,0) -> 0 | L35: 0 | M35: 0 | N35: =IF('Computo-Massimali'!L35>0,L35/'Computo-Massimali'!L35,0) -> 0 | O35: =IF(F35>0,IF(F35-0.001>'Computo-Massimali'!F35,">Computo",IF(F35+0.001<'SAL.30%'!F36,"< SAL.1","")),"") ->  | Q35: CR) Colonnine di Ricarica [ N. ] | R35: ='Computo-Massimali'!T35 -> 0 | S35: ok | U35: 0 | W35: 0 | Y35: 0 | AA35: 0
C36: ='Computo-Massimali'!C36 -> EBA) Eliminazione Barriere architettoniche | F36: 0 | G36: =IF('Computo-Massimali'!F36<>0,'Computo-Massimali'!G36*F36/'Computo-Massimali'!F36,0) -> 0 | H36: 0 | I36: =F36*'Dati Gen'!$J$20+G36*'Dati Gen'!$J$19 -> 0 | J36: 0 | K36: =IF('Computo-Massimali'!F36<>0,'Computo-Massimali'!K36*F36/'Computo-Massimali'!F36,0) -> 0 | L36: 0 | M36: 0 | N36: =IF('Computo-Massimali'!L36>0,L36/'Computo-Massimali'!L36,0) -> 0 | O36: =IF(F36>0,IF(F36-0.001>'Computo-Massimali'!F36,">Computo",IF(F36+0.001<'SAL.30%'!F37,"< SAL.1","")),"") ->  | Q36: EBA) Eliminazione Barriere architettoniche | R36: ='Computo-Massimali'!T36 -> 0 | S36: ok | U36: 0 | W36: 0 | Y36: 0 | AA36: 0
C37: ='Computo-Massimali'!C37 -> Totale Interventi Trainati Parti Comuni : | F37: =SUM(F24:F26)+SUM(F30:F36) -> 0 | G37: =SUM(G24:G26)+SUM(G30:G36) -> 0 | H37: 0 | I37: 0 | J37: 0 | K37: 0 | L37: 0 | M37: 0 | N37: =IF('Computo-Massimali'!L37>0,L37/'Computo-Massimali'!L37,0) -> 0 | O37: =IF(F37>0,IF(F37-0.001>'Computo-Massimali'!F37,">Computo",IF(F37+0.001<'SAL.30%'!F38,"< SAL.1","")),"") ->  | R37: =C37 -> Totale Interventi Trainati Parti Comuni : | U37: =U24+U25+U26+SUM(U30:V36) -> 0 | W37: =W24+W25+W26+SUM(W30:X36) -> 0 | Y37: =Y24+Y25+Y26+SUM(Y30:Z36) -> 0 | AA37: =AA24+AA25+AA26+SUM(AA30:AB36) -> 0
C40: INTERVENTI TRAINATI | O40: .. | Q40: =CONCATENATE("Verifica Massimali di Spesa ",C40) -> Verifica Massimali di Spesa INTERVENTI TRAINATI
C41: Interventi | F41: Importo Lavori | G41: Incidenza Sicurezza | H41: Imponibile | I41: Iva | J41: Importo c.iva | K41: Spese tecniche | L41: Totale | M41: Credito Spettante 110% Spesa Ammessa | N41: %SAL | R41: Massimale spesa | S41: Verifica Max | U41: Spesa Ammessa | W41: Quota Eccedente Massimale Spesa | Y41: Credito Spettante 110% Spesa Ammessa Quota Impresa | Quota Tecnici
C42: ='Computo-Massimali'!C42:D42 -> PV) Isolamento pareti perimetrali | E42: ='Computo-Massimali'!E42 -> Esterno | F42: 0 | G42: =IF('Computo-Massimali'!F42<>0,'Computo-Massimali'!G42*F42/'Computo-Massimali'!F42,0) -> 0 | H42: =SUM(F42:G42) -> 0 | I42: =F42*'Dati Gen'!$J$20+G42*'Dati Gen'!$J$19 -> 0 | J42: =H42+I42 -> 0 | K42: =IF('Computo-Massimali'!F42<>0,'Computo-Massimali'!K42*F42/'Computo-Massimali'!F42,0) -> 0 | L42: =SUM(J42:K42) -> 0 | M42: =IF(L42<=R42,L42*1.1,R42*1.1) -> 0 | N42: =IF('Computo-Massimali'!L42>0,L42/'Computo-Massimali'!L42,0) -> 0 | O42: =IF(F42>0,IF(F42-0.001>'Computo-Massimali'!F42,">Computo",IF(F42+0.001<'SAL.30%'!F43,"< SAL.1","")),"") ->  | Q42: =C42 -> PV) Isolamento pareti perimetrali | R42: ='Computo-Massimali'!T42 -> 0 | S42: =IF(L42>M42,"KO Tot.>Detr.",IF(L42>R42,"ko","ok")) -> ok | U42: =IF($L$46<>0,(L42/$L$46)*$U$46,0) -> 0 | W42: =IF(L42>R42,L42-R42,0) -> 0 | Y42: =IF(M42<>0,J42*M42/L42,0) -> 0 | AA42: =IF(M42<>0,K42*M42/L42,0) -> 0
C43: ='Computo-Massimali'!C43:D43 -> PO) Isolamento coperture | E43: Esterno | F43: 0 | G43: =IF('Computo-Massimali'!F43<>0,'Computo-Massimali'!G43*F43/'Computo-Massimali'!F43,0) -> 0 | H43: =SUM(F43:G43) -> 0 | I43: =F43*'Dati Gen'!$J$20+G43*'Dati Gen'!$J$19 -> 0 | J43: =H43+I43 -> 0 | K43: =IF('Computo-Massimali'!F43<>0,'Computo-Massimali'!K43*F43/'Computo-Massimali'!F43,0) -> 0 | L43: =SUM(J43:K43) -> 0 | M43: =IF(L43<=R43,L43*1.1,R43*1.1) -> 0 | N43: =IF('Computo-Massimali'!L43>0,L43/'Computo-Massimali'!L43,0) -> 0 | O43: =IF(F43>0,IF(F43-0.001>'Computo-Massimali'!F43,">Computo",IF(F43+0.001<'SAL.30%'!F44,"< SAL.1","")),"") ->  | Q43: PO) Isolamento coperture | R43: ='Computo-Massimali'!T43 -> 0 | S43: ok | U43: =IF($L$46<>0,(L43/$L$46)*$U$46,0) -> 0 | W43: 0 | Y43: 0 | AA43: 0
C44: ='Computo-Massimali'!C44:D44 -> PS) Isolamento Pavimenti | E44: Esterno | F44: 0 | G44: =IF('Computo-Massimali'!F44<>0,'Computo-Massimali'!G44*F44/'Computo-Massimali'!F44,0) -> 0 | H44: =SUM(F44:G44) -> 0 | I44: =F44*'Dati Gen'!$J$20+G44*'Dati Gen'!$J$19 -> 0 | J44: =H44+I44 -> 0 | K44: =IF('Computo-Massimali'!F44<>0,'Computo-Massimali'!K44*F44/'Computo-Massimali'!F44,0) -> 0 | L44: =SUM(J44:K44) -> 0 | M44: =IF(L44<=R44,L44*1.1,R44*1.1) -> 0 | N44: =IF('Computo-Massimali'!L44>0,L44/'Computo-Massimali'!L44,0) -> 0 | O44: =IF(F44>0,IF(F44-0.001>'Computo-Massimali'!F44,">Computo",IF(F44+0.001<'SAL.30%'!F45,"< SAL.1","")),"") ->  | Q44: PS) Isolamento Pavimenti | R44: ='Computo-Massimali'!T44 -> 0 | S44: ok | U44: =IF($L$46<>0,(L44/$L$46)*$U$46,0) -> 0 | W44: 0 | Y44: 0 | AA44: 0
C45: ='Computo-Massimali'!C45:D45 -> IN) Serramenti con chiusure oscuranti | E45: Zone D, E ed F | F45: 0 | G45: =IF('Computo-Massimali'!F45<>0,'Computo-Massimali'!G45*F45/'Computo-Massimali'!F45,0) -> 0 | H45: =SUM(F45:G45) -> 0 | I45: =F45*'Dati Gen'!$J$20+G45*'Dati Gen'!$J$19 -> 0 | J45: =H45+I45 -> 0 | K45: =IF('Computo-Massimali'!F45<>0,'Computo-Massimali'!K45*F45/'Computo-Massimali'!F45,0) -> 0 | L45: =SUM(J45:K45) -> 0 | M45: =IF(L45<=R45,L45*1.1,R45*1.1) -> 0 | N45: =IF('Computo-Massimali'!L45>0,L45/'Computo-Massimali'!L45,0) -> 0 | O45: =IF(F45>0,IF(F45-0.001>'Computo-Massimali'!F45,">Computo",IF(F45+0.001<'SAL.30%'!F46,"< SAL.1","")),"") ->  | Q45: IN) Serramenti con chiusure oscuranti | R45: ='Computo-Massimali'!T45 -> 0 | S45: ok | U45: =IF($L$46<>0,(L45/$L$46)*$U$46,0) -> 0 | W45: 0 | Y45: 0 | AA45: 0
C46: ='Computo-Massimali'!C46:D46 -> Totali Isolamento PV) PO) PS) e IN | F46: =SUM(F42:F45) -> 0 | G46: =SUM(G42:G45) -> 0 | H46: 0 | I46: 0 | J46: 0 | K46: =SUM(K42:K45) -> 0 | L46: 0 | M46: 0 | N46: =IF('Computo-Massimali'!L46>0,L46/'Computo-Massimali'!L46,0) -> 0 | O46: =IF(F46>0,IF(F46-0.001>'Computo-Massimali'!F46,">Computo",IF(F46+0.001<'SAL.30%'!F47,"< SAL.1","")),"") ->  | Q46: Totali Isolamento PV) PO) PS) e IN | R46: ='Computo-Massimali'!T46 -> 0 | S46: ok | U46: =IF(L46<R46,L46,R46) -> 0 | W46: 0 | Y46: 0 | AA46: 0
C47: ='Computo-Massimali'!C47:D47 -> SS) Schermature solari e chiusure oscuranti | F47: 0 | G47: =IF('Computo-Massimali'!F47<>0,'Computo-Massimali'!G47*F47/'Computo-Massimali'!F47,0) -> 0 | H47: =SUM(F47:G47) -> 0 | I47: =F47*'Dati Gen'!$J$20+G47*'Dati Gen'!$J$19 -> 0 | J47: =H47+I47 -> 0 | K47: =IF('Computo-Massimali'!F47<>0,'Computo-Massimali'!K47*F47/'Computo-Massimali'!F47,0) -> 0 | L47: =SUM(J47:K47) -> 0 | M47: =IF(L47<=R47,L47*1.1,R47*1.1) -> 0 | N47: =IF('Computo-Massimali'!L47>0,L47/'Computo-Massimali'!L47,0) -> 0 | O47: =IF(F47>0,IF(F47-0.001>'Computo-Massimali'!F47,">Computo",IF(F47+0.001<'SAL.30%'!F48,"< SAL.1","")),"") ->  | Q47: SS) Schermature solari e chiusure oscuranti | R47: ='Computo-Massimali'!T47 -> 0 | S47: ok | U47: =IF(L47<R47,L47,R47) -> 0 | W47: 0 | Y47: 0 | AA47: 0
C48: ='Computo-Massimali'!C48:D48 -> Impianti climatizzazione con | F48: 0 | G48: =IF('Computo-Massimali'!F48<>0,'Computo-Massimali'!G48*F48/'Computo-Massimali'!F48,0) -> 0 | H48: =SUM(F48:G48) -> 0 | I48: =F48*'Dati Gen'!$J$20+G48*'Dati Gen'!$J$19 -> 0 | J48: =H48+I48 -> 0 | K48: =IF('Computo-Massimali'!F48<>0,'Computo-Massimali'!K48*F48/'Computo-Massimali'!F48,0) -> 0 | L48: =SUM(J48:K48) -> 0 | M48: =IF(L48<=R48,L48*1.1,R48*1.1) -> 0 | N48: =IF('Computo-Massimali'!L48>0,L48/'Computo-Massimali'!L48,0) -> 0 | O48: =IF(F48>0,IF(F48-0.001>'Computo-Massimali'!F48,">Computo",IF(F48+0.001<'SAL.30%'!F49,"< SAL.1","")),"") ->  | Q48: Impianti climatizzazione con | R48: ='Computo-Massimali'!T48 -> 0 | S48: ok | U48: =IF($L$50<>0,(L48/$L$50)*$U$50,0) -> 0 | W48: =IF(L48>R48,L48-R48,0) -> 0 | Y48: =IF(M48<>0,J48*M48/L48,0) -> 0 | AA48: =IF(M48<>0,K48*M48/L48,0) -> 0
C49: ='Computo-Massimali'!C49:D49 -> SA) Scaldacqua a pompa di calore | F49: 0 | G49: =IF('Computo-Massimali'!F49<>0,'Computo-Massimali'!G49*F49/'Computo-Massimali'!F49,0) -> 0 | H49: =SUM(F49:G49) -> 0 | I49: =F49*'Dati Gen'!$J$20+G49*'Dati Gen'!$J$19 -> 0 | J49: =H49+I49 -> 0 | K49: =IF('Computo-Massimali'!F49<>0,'Computo-Massimali'!K49*F49/'Computo-Massimali'!F49,0) -> 0 | L49: =SUM(J49:K49) -> 0 | M49: =IF(L49<=R49,L49*1.1,R49*1.1) -> 0 | N49: =IF('Computo-Massimali'!L49>0,L49/'Computo-Massimali'!L49,0) -> 0 | O49: =IF(F49>0,IF(F49-0.001>'Computo-Massimali'!F49,">Computo",IF(F49+0.001<'SAL.30%'!#REF!,"< SAL.1","")),"") ->  | Q49: SA) Scaldacqua a pompa di calore | R49: ='Computo-Massimali'!T49 -> 0 | S49: ok | U49: =IF($L$50<>0,(L49/$L$50)*$U$50,0) -> 0 | W49: 0 | Y49: 0 | AA49: 0
C50: ='Computo-Massimali'!C50:D50 -> Totali Impianti ed SA) | F50: =SUM(F48:F49) -> 0 | G50: =SUM(G48:G49) -> 0 | H50: 0 | I50: 0 | J50: 0 | K50: =SUM(K48:K49) -> 0 | L50: 0 | M50: 0 | N50: =IF('Computo-Massimali'!L50>0,L50/'Computo-Massimali'!L50,0) -> 0 | O50: =IF(F50>0,IF(F50-0.001>'Computo-Massimali'!F50,">Computo",IF(F50+0.001<'SAL.30%'!F50,"< SAL.1","")),"") ->  | Q50: Totali Impianti ed SA) | R50: ='Computo-Massimali'!T50 -> 0 | S50: ok | U50: =IF(L50<R50,L50,R50) -> 0 | W50: 0 | Y50: 0 | AA50: 0
C51: ='Computo-Massimali'!C51:D51 -> CO) Sistemi di Microgenerazione | F51: 0 | G51: =IF('Computo-Massimali'!F51<>0,'Computo-Massimali'!G51*F51/'Computo-Massimali'!F51,0) -> 0 | H51: =SUM(F51:G51) -> 0 | I51: =F51*'Dati Gen'!$J$20+G51*'Dati Gen'!$J$19 -> 0 | J51: =H51+I51 -> 0 | K51: =IF('Computo-Massimali'!F51<>0,'Computo-Massimali'!K51*F51/'Computo-Massimali'!F51,0) -> 0 | L51: =SUM(J51:K51) -> 0 | M51: =IF(L51<=R51,L51*1.1,R51*1.1) -> 0 | N51: =IF('Computo-Massimali'!L51>0,L51/'Computo-Massimali'!L51,0) -> 0 | O51: =IF(F51>0,IF(F51-0.001>'Computo-Massimali'!F51,">Computo",IF(F51+0.001<'SAL.30%'!F51,"< SAL.1","")),"") ->  | Q51: CO) Sistemi di Microgenerazione | R51: ='Computo-Massimali'!T51 -> 0 | S51: ok | U51: 0 | W51: 0 | Y51: 0 | AA51: 0
C52: ='Computo-Massimali'!C52:D52 -> IB) Generatori a Biomassa | F52: 0 | G52: =IF('Computo-Massimali'!F52<>0,'Computo-Massimali'!G52*F52/'Computo-Massimali'!F52,0) -> 0 | H52: 0 | I52: =F52*'Dati Gen'!$J$20+G52*'Dati Gen'!$J$19 -> 0 | J52: 0 | K52: =IF('Computo-Massimali'!F52<>0,'Computo-Massimali'!K52*F52/'Computo-Massimali'!F52,0) -> 0 | L52: 0 | M52: 0 | N52: =IF('Computo-Massimali'!L52>0,L52/'Computo-Massimali'!L52,0) -> 0 | O52: =IF(F52>0,IF(F52-0.001>'Computo-Massimali'!F52,">Computo",IF(F52+0.001<'SAL.30%'!F52,"< SAL.1","")),"") ->  | Q52: IB) Generatori a Biomassa | R52: ='Computo-Massimali'!T52 -> 0 | S52: ok | U52: 0 | W52: 0 | Y52: 0 | AA52: 0
C53: ='Computo-Massimali'!C53:D53 -> BA) Building Automation | F53: 0 | G53: =IF('Computo-Massimali'!F53<>0,'Computo-Massimali'!G53*F53/'Computo-Massimali'!F53,0) -> 0 | H53: 0 | I53: =F53*'Dati Gen'!$J$20+G53*'Dati Gen'!$J$19 -> 0 | J53: 0 | K53: =IF('Computo-Massimali'!F53<>0,'Computo-Massimali'!K53*F53/'Computo-Massimali'!F53,0) -> 0 | L53: 0 | M53: 0 | N53: =IF('Computo-Massimali'!L53>0,L53/'Computo-Massimali'!L53,0) -> 0 | O53: =IF(F53>0,IF(F53-0.001>'Computo-Massimali'!F53,">Computo",IF(F53+0.001<'SAL.30%'!F53,"< SAL.1","")),"") ->  | Q53: BA) Building Automation | R53: ='Computo-Massimali'!T53 -> 0 | S53: ok | U53: 0 | W53: 0 | Y53: 0 | AA53: 0
C54: ='Computo-Massimali'!C54:D54 -> ST) Collettori Solari | E54: ='Computo-Massimali'!E54 -> Piani Vetrati | F54: 0 | G54: =IF('Computo-Massimali'!F54<>0,'Computo-Massimali'!G54*F54/'Computo-Massimali'!F54,0) -> 0 | H54: 0 | I54: =F54*'Dati Gen'!$J$20+G54*'Dati Gen'!$J$19 -> 0 | J54: 0 | K54: =IF('Computo-Massimali'!F54<>0,'Computo-Massimali'!K54*F54/'Computo-Massimali'!F54,0) -> 0 | L54: 0 | M54: 0 | N54: =IF('Computo-Massimali'!L54>0,L54/'Computo-Massimali'!L54,0) -> 0 | O54: =IF(F54>0,IF(F54-0.001>'Computo-Massimali'!F54,">Computo",IF(F54+0.001<'SAL.30%'!#REF!,"< SAL.1","")),"") ->  | Q54: ST) Collettori Solari | R54: ='Computo-Massimali'!T54 -> 0 | S54: ok | U54: 0 | W54: 0 | Y54: 0 | AA54: 0
C55: ='Computo-Massimali'!C55:D55 -> FV) Solare Fotovoltaico [ kWp ] | E55: ='Computo-Massimali'!E55 -> 6 | F55: 0 | G55: =IF('Computo-Massimali'!F55<>0,'Computo-Massimali'!G55*F55/'Computo-Massimali'!F55,0) -> 0 | H55: 0 | I55: =F55*'Dati Gen'!$J$20+G55*'Dati Gen'!$J$19 -> 0 | J55: 0 | K55: =IF('Computo-Massimali'!F55<>0,'Computo-Massimali'!K55*F55/'Computo-Massimali'!F55,0) -> 0 | L55: 0 | M55: 0 | N55: =IF('Computo-Massimali'!L55>0,L55/'Computo-Massimali'!L55,0) -> 0 | O55: =IF(F55>0,IF(F55-0.001>'Computo-Massimali'!F55,">Computo",IF(F55+0.001<'SAL.30%'!F54,"< SAL.1","")),"") ->  | Q55: FV) Solare Fotovoltaico [ kWp ] | R55: ='Computo-Massimali'!T55 -> 0 | S55: ok | U55: 0 | W55: 0 | Y55: 0 | AA55: 0
C56: ='Computo-Massimali'!C56:D56 -> AC) Sistema di Accumulo [ kWh ] | E56: ='Computo-Massimali'!E56 -> 10 | F56: 0 | G56: =IF('Computo-Massimali'!F56<>0,'Computo-Massimali'!G56*F56/'Computo-Massimali'!F56,0) -> 0 | H56: 0 | I56: =F56*'Dati Gen'!$J$20+G56*'Dati Gen'!$J$19 -> 0 | J56: 0 | K56: =IF('Computo-Massimali'!F56<>0,'Computo-Massimali'!K56*F56/'Computo-Massimali'!F56,0) -> 0 | L56: 0 | M56: 0 | N56: =IF('Computo-Massimali'!L56>0,L56/'Computo-Massimali'!L56,0) -> 0 | O56: =IF(F56>0,IF(F56-0.001>'Computo-Massimali'!F56,">Computo",IF(F56+0.001<'SAL.30%'!F55,"< SAL.1","")),"") ->  | Q56: AC) Sistema di Accumulo [ kWh ] | R56: ='Computo-Massimali'!T56 -> 0 | S56: ok | U56: 0 | W56: 0 | Y56: 0 | AA56: 0
C57: ='Computo-Massimali'!C57:D57 -> CR) Colonnine di Ricarica | E57: ='Computo-Massimali'!E57 -> 1 | F57: 0 | G57: =IF('Computo-Massimali'!F57<>0,'Computo-Massimali'!G57*F57/'Computo-Massimali'!F57,0) -> 0 | H57: 0 | I57: =F57*'Dati Gen'!$J$20+G57*'Dati Gen'!$J$19 -> 0 | J57: 0 | K57: =IF('Computo-Massimali'!F57<>0,'Computo-Massimali'!K57*F57/'Computo-Massimali'!F57,0) -> 0 | L57: 0 | M57: 0 | N57: =IF('Computo-Massimali'!L57>0,L57/'Computo-Massimali'!L57,0) -> 0 | O57: =IF(F57>0,IF(F57-0.001>'Computo-Massimali'!F57,">Computo",IF(F57+0.001<'SAL.30%'!F56,"< SAL.1","")),"") ->  | Q57: CR) Colonnine di Ricarica | R57: ='Computo-Massimali'!T57 -> 0 | S57: ok | U57: 0 | W57: 0 | Y57: 0 | AA57: 0
C58: EBA) Eliminazione Barriere architettoniche | F58: 0 | G58: =IF('Computo-Massimali'!F58<>0,'Computo-Massimali'!G58*F58/'Computo-Massimali'!F58,0) -> 0 | H58: =SUM(F58:G58) -> 0 | I58: =F58*'Dati Gen'!$J$20+G58*'Dati Gen'!$J$19 -> 0 | J58: =H58+I58 -> 0 | K58: =IF('Computo-Massimali'!F58<>0,'Computo-Massimali'!K58*F58/'Computo-Massimali'!F58,0) -> 0 | L58: 0 | M58: 0 | N58: =IF('Computo-Massimali'!L58>0,L58/'Computo-Massimali'!L58,0) -> 0 | O58: =IF(F58>0,IF(F58-0.001>'Computo-Massimali'!F58,">Computo",IF(F58+0.001<'SAL.30%'!F57,"< SAL.1","")),"") ->  | Q58: EBA) Eliminazione Barriere architettoniche | R58: ='Computo-Massimali'!T58 -> 0 | S58: ok | U58: 0 | W58: 0 | Y58: 0 | AA58: 0
C59: Totale Interventi trainati | F59: =F46+F47+SUM(F50:F58) -> 0 | G59: =G46+G47+SUM(G50:G58) -> 0 | H59: 0 | I59: 0 | J59: 0 | K59: 0 | L59: 0 | M59: 0 | N59: =IF('Computo-Massimali'!L59>0,L59/'Computo-Massimali'!L59,0) -> 0 | O59: =IF(F59>0,IF(F59-0.001>'Computo-Massimali'!F59,">Computo",IF(F59+0.001<'SAL.30%'!F58,"< SAL.1","")),"") ->  | R59: =C59 -> Totale Interventi trainati | U59: =U46+U47+SUM(U50:V58) -> 0 | W59: =W46+W47+SUM(W50:X58) -> 0 | Y59: =Y46+Y47+SUM(Y50:Z58) -> 0 | AA59: =AA46+AA47+SUM(AA50:AB58) -> 0
C78: SimMZ
C80: TOTALI SAL N.2 - INTERVENTI 110 | F80: Importo Lavori | G80: Incidenza Sicurezza | H80: Imponibile | I80: Iva | J80: Importo c.iva | K80: Spese tecniche | L80: Totale | M80: Credito Spettante 110% Spesa Ammessa | N80: %SAL | Q80: =C80 -> TOTALI SAL N.2 - INTERVENTI 110 | U80: Spesa Ammessa | W80: Quota Eccedente Massimale Spesa | Y80: Credito Spettante 110% Spesa Ammessa Quota Impresa | Quota Tecnici
F81: =F16+F59 -> 0 | G81: 0 | H81: 0 | I81: 0 | J81: 0 | K81: 0 | L81: 0 | M81: 0 | N81: =IF('Computo-Massimali'!L81>0,L81/'Computo-Massimali'!L81,0) -> 0 | O81: =IF(F81>0,IF(F81>'Computo-Massimali'!F81,">Computo",IF(F81<'SAL.30%'!F81,"< SAL.1","")),"") ->  | U81: =U16+U59 -> 0 | W81: =W16+W59 -> 0 | Y81: =Y16+Y59 -> 0 | AA81: =AA16+AA59 -> 0
C83: =IF(N81>=59.999%,"","Attenzione! SAL Superbonus 110 inferiore 60%") -> Attenzione! SAL Superbonus 110 inferiore 60%
C87: ALTRI INTERVENTI | Q87: =CONCATENATE("Verifica Massimali di Spesa ",C87) -> Verifica Massimali di Spesa ALTRI INTERVENTI
C88: Interventi | E88: x% Credito ceduto | F88: Importo Lavori | G88: Incidenza Sicurezza | H88: Imponibile | I88: Iva | J88: Importo c.iva | K88: Spese tecniche | L88: Totale | M88: Credito Spettante x% Spesa Ammessa | N88: %SAL | R88: Massimale spesa | S88: Verifica Max | U88: Spesa Ammessa | W88: Quota Eccedente Massimale Spesa | Y88: Credito Spettante x% Spesa Ammessa Quota Impresa | Quota Tecnici
C89: =IF('Computo-Massimali'!C89<>"",'Computo-Massimali'!C89,"") -> Ristrutturazione | E89: ='Computo-Massimali'!E89 -> 0.5 | F89: 0 | G89: =IF('Computo-Massimali'!F89<>0,'Computo-Massimali'!G89*F89/'Computo-Massimali'!F89,0) -> 0 | H89: =SUM(F89:G89) -> 0 | I89: =F89*'Dati Gen'!$J$20+G89*'Dati Gen'!$J$19 -> 0 | J89: =H89+I89 -> 0 | K89: =IF('Computo-Massimali'!F89<>0,'Computo-Massimali'!K89*F89/'Computo-Massimali'!F89,0) -> 0 | L89: =SUM(J89:K89) -> 0 | M89: =IF(L89<=R89,L89*E89,R89*E89) -> 0 | N89: =IF('Computo-Massimali'!L89>0,L89/'Computo-Massimali'!L89,0) -> 0 | O89: =IF(F89>0,IF(F89>'Computo-Massimali'!F89,">Computo",IF(F89<'SAL.30%'!F89,"< SAL.1","")),"") ->  | Q89: =IF(C89<>"",C89,"") -> Ristrutturazione | R89: =96000*N_Uimm -> 96000 | S89: =IF(L89>R89,"KO Tot.>Detr.","ok") -> ok | U89: =IF(L89<R89,L89,R89) -> 0 | W89: =IF(L89>R89,L89-R89,0) -> 0 | Y89: =IF(M89<>0,J89*M89/L89,0) -> 0 | AA89: =IF(M89<>0,K89*M89/L89,0) -> 0
C90: =IF('Computo-Massimali'!C90<>"",'Computo-Massimali'!C90,"") -> Bonus facciata | E90: ='Computo-Massimali'!E90 -> 0.6 | F90: 0 | G90: =IF('Computo-Massimali'!F90<>0,'Computo-Massimali'!G90*F90/'Computo-Massimali'!F90,0) -> 0 | H90: =SUM(F90:G90) -> 0 | I90: =F90*'Dati Gen'!$J$20+G90*'Dati Gen'!$J$19 -> 0 | J90: =H90+I90 -> 0 | K90: =IF('Computo-Massimali'!F90<>0,'Computo-Massimali'!K90*F90/'Computo-Massimali'!F90,0) -> 0 | L90: =SUM(J90:K90) -> 0 | M90: =IF(L90<=R90,L90*E90,R90*E90) -> 0 | N90: =IF('Computo-Massimali'!L90>0,L90/'Computo-Massimali'!L90,0) -> 0 | O90: =IF(F90>0,IF(F90>'Computo-Massimali'!F90,">Computo",IF(F90<'SAL.30%'!F90,"< SAL.1","")),"") ->  | Q90: =IF(C90<>"",C90,"") -> Bonus facciata | R90: =96000*N_Uimm -> 96000 | S90: =IF(L90>R90,"KO Tot.>Detr.","ok") -> ok | U90: =IF(L90<R90,L90,R90) -> 0 | W90: =IF(L90>R90,L90-R90,0) -> 0 | Y90: =IF(M90<>0,J90*M90/L90,0) -> 0 | AA90: =IF(M90<>0,K90*M90/L90,0) -> 0
C91: =IF('Computo-Massimali'!C91<>"",'Computo-Massimali'!C91,"") -> Bonus Casa | E91: ='Computo-Massimali'!E91 -> 0.7 | F91: 0 | G91: =IF('Computo-Massimali'!F91<>0,'Computo-Massimali'!G91*F91/'Computo-Massimali'!F91,0) -> 0 | H91: =SUM(F91:G91) -> 0 | I91: =F91*'Dati Gen'!$J$20+G91*'Dati Gen'!$J$19 -> 0 | J91: =H91+I91 -> 0 | K91: =IF('Computo-Massimali'!F91<>0,'Computo-Massimali'!K91*F91/'Computo-Massimali'!F91,0) -> 0 | L91: =SUM(J91:K91) -> 0 | M91: =IF(L91<=R91,L91*E91,R91*E91) -> 0 | N91: =IF('Computo-Massimali'!L91>0,L91/'Computo-Massimali'!L91,0) -> 0 | O91: =IF(F91>0,IF(F91>'Computo-Massimali'!F91,">Computo",IF(F91<'SAL.30%'!F91,"< SAL.1","")),"") ->  | Q91: =IF(C91<>"",C91,"") -> Bonus Casa | R91: =96000*N_Uimm -> 96000 | S91: =IF(L91>R91,"KO Tot.>Detr.","ok") -> ok | U91: =IF(L91<R91,L91,R91) -> 0 | W91: =IF(L91>R91,L91-R91,0) -> 0 | Y91: =IF(M91<>0,J91*M91/L91,0) -> 0 | AA91: =IF(M91<>0,K91*M91/L91,0) -> 0
C92: =IF('Computo-Massimali'!C92<>"",'Computo-Massimali'!C92,"") ->  | E92: ='Computo-Massimali'!E92 -> 0 | F92: 0 | G92: =IF('Computo-Massimali'!F92<>0,'Computo-Massimali'!G92*F92/'Computo-Massimali'!F92,0) -> 0 | H92: =SUM(F92:G92) -> 0 | I92: =F92*'Dati Gen'!$J$20+G92*'Dati Gen'!$J$19 -> 0 | J92: =H92+I92 -> 0 | K92: =IF('Computo-Massimali'!F92<>0,'Computo-Massimali'!K92*F92/'Computo-Massimali'!F92,0) -> 0 | L92: =SUM(J92:K92) -> 0 | M92: =IF(L92<=R92,L92*E92,R92*E92) -> 0 | N92: =IF('Computo-Massimali'!L92>0,L92/'Computo-Massimali'!L92,0) -> 0 | O92: =IF(F92>0,IF(F92>'Computo-Massimali'!F92,">Computo",IF(F92<'SAL.30%'!F92,"< SAL.1","")),"") ->  | Q92: =IF(C92<>"",C92,"") ->  | R92: =96000*N_Uimm -> 96000 | S92: =IF(L92>R92,"KO Tot.>Detr.","ok") -> ok | U92: =IF(L92<R92,L92,R92) -> 0 | W92: =IF(L92>R92,L92-R92,0) -> 0 | Y92: =IF(M92<>0,J92*M92/L92,0) -> 0 | AA92: =IF(M92<>0,K92*M92/L92,0) -> 0
C93: TotalI SAL N.1 - Altri Interventi : | F93: =SUM(F89:F92) -> 0 | G93: 0 | H93: 0 | I93: 0 | J93: 0 | K93: =SUM(K89:K92) -> 0 | L93: 0 | M93: 0 | N93: =IF('Computo-Massimali'!L93>0,L93/'Computo-Massimali'!L93,0) -> 0 | O93: =IF(F93>0,IF(F93>'Computo-Massimali'!F93,">Computo",IF(F93<'SAL.30%'!F93,"< SAL.1","")),"") ->  | R93: =C93 -> TotalI SAL N.1 - Altri Interventi : | U93: =SUM(U89:V92) -> 0 | W93: =SUM(W89:X92) -> 0 | Y93: =SUM(Y89:Z92) -> 0 | AA93: =SUM(AA89:AB92) -> 0
C96: TOTALI SAL N.2 | F96: Importo Lavori Eseguiti | G96: Incidenza Sicurezza | H96: Imponibile | I96: Iva | J96: Importo c.iva | K96: Spese tecniche | L96: Totale | M96: Credito Spettante | N96: %SAL | Q96: =C96 -> TOTALI SAL N.2 | U96: Spesa Ammessa | W96: Quota Eccedente Massimale Spesa | Y96: Credito Spettante Quota Impresa | Quota Tecnici
F97: =F81+F93 -> 0 | G97: 0 | H97: 0 | I97: 0 | J97: 0 | K97: 0 | L97: =L81+L93 -> 0 | M97: =M81+M93 -> 0 | N97: =IF('Computo-Massimali'!L100>0,L97/'Computo-Massimali'!L100,0) -> 0 | O97: =IF(F97>0,IF(F97>'Computo-Massimali'!F100,">Computo",IF(F97<'SAL.30%'!F97,"< SAL.1","")),"") ->  | U97: =U81+U93 -> 0 | W97: =W81+W93 -> 0 | Y97: =Y81+Y93 -> 0 | AA97: =AA81+AA93 -> 0
C100: =IF(ABS(D5-G97)>0.01,"Importo Effettivo Lavori Eseguiti","") ->  | F100: =IF($C$100<>"",F97,"") ->  | G100: =IF($C$100<>"",D5,"") ->  | H100: =IF($C$100<>"",F100+G100,"") ->  | I100: =IF($C$100<>"",H100*AliqIva,"") ->  | J100: =IF($C$100<>"",H100+I100,"") ->  | K100: =IF($C$100<>"",K97,"") ->  | L100: =IF($C$100<>"",J100+K100,"") ->  | M100: =IF($C$100<>"",L100*1.1,"") ->  | N100: =IF($C$100<>"",L100/'Computo-Massimali'!L100,"") -> 
C101: =IF($C$100<>"","Oneri/Lavori Sicurezza non imputabili al SAL, per lavori non eseguiti","") ->  | G101: =IF($C$101<>"",D5-G97,"") -> 
C104: Quota % effettiva per cessione credito a Banca o Impresa "Interventi 110" | H104: ='Computo-Massimali'!H104 -> 0.9090909091 | I104: ='Computo-Massimali'!I104 -> 100 | J104: Importo Ricevuto | K104: =Detraz60*H104 -> 0 | L104: Costo Cessione 110 | M104: =SpesaAmmessa60-K104 -> 0
G105: Quota % effettiva per cessione credito a Banca o Impresa "Altri Interventi" | H105: ='Computo-Massimali'!H105 -> 0.8 | I105: ='Computo-Massimali'!I105 -> 80 | J105: Importo Ricevuto | K105: =M93*H105 -> 0 | L105: Costo Cessione Altri | M105: =M93-K105 -> 0
L107: Quota Impresa | M107: Quota Tecnici
G108: Quota Eccedente Massimali Spesa "Interventi 110" | H108: =QuotaEcced30 -> 0 | I108: Credito Netto a seguito Cessione | K108: =SpesaAmmessa60-M104 -> 0 | L108: =IF(Detraz60<>0,QuotaImpresa60*K108/Detraz60,0) -> 0 | M108: =IF(Detraz60<>0,QuotaTecnici60*K108/Detraz60,0) -> 0
G109: Quota Eccedente Massimali Spesa "Altri Interventi" | H109: =W93 -> 0 | I109: Credito Netto a seguito Cessione | K109: =M93-M105 -> 0 | L109: =IF(M93<>0,Y93*K109/M93,0) -> 0 | M109: =IF(M93<>0,AA93*K109/M93,0) -> 0
I110: Quota Cliente x Interventi 110 | K110: =IF(Totale60-K108>0,Totale60-K108,0) -> 0 | L110: =IF(Detraz60<>0,K110*QuotaImpresa60/Detraz60,0) -> 0 | M110: =IF(Detraz60<>0,K110*QuotaTecnici60/Detraz60,0) -> 0
I111: Quota Cliente x Altri Interventi | K111: =IF(L93-K109>0,L93-K109,0) -> 0 | L111: =IF(M93<>0,K111*Y93/M93,0) -> 0 | M111: =IF(M93<>0,K111*AA93/M93,0) -> 0
I112: Quota Totale a Carico Cliente | K112: =SUM(K110:K111) -> 0 | L112: =SUM(L110:L111) -> 0 | M112: =SUM(M110:M111) -> 0
Q115: Ripartizione Spese Tecniche SAL. N.2 - INTERVENTI 110 | AC115: Applica Sconto in Fattura
Q116: Lavoro | R116: Tecnico | S116: Onorario | U116: C.Cassa | W116: Imponibile | Y116: IVA | AA116: Totale | AF116: ='Dati Gen'!B44 -> Architetto1 | AG116: ='Dati Gen'!B45 -> Ingegnere2 | AH116: ='Dati Gen'!B46 -> Consulente1 | AI116: ='Dati Gen'!B47 -> 0 | AJ116: ='Dati Gen'!B48 -> 0 | AK116: ='Dati Gen'!B49 -> 0 | AL116: ='Dati Gen'!B50 -> 0 | AM116: ='Dati Gen'!B51 -> 0
Q117: =IF('Dati Gen'!B25<>"",'Dati Gen'!B25,"") -> Redazione APE ante, Progettazione energetica | R117: =IF('Dati Gen'!C25<>"",'Dati Gen'!C25,"") -> Architetto1 | S117: =W117/(1+U117) -> 0 | U117: ='Dati Gen'!G25 -> 0.04 | V117: =S117*U117 -> 0 | W117: =AA117/(1+Y117) -> 0 | Y117: ='Dati Gen'!J25 -> 0.22 | Z117: =Y117*(S117+V117) -> 0 | AA117: =IF('Dati Gen'!$M$36<>0,$AA$126*'Dati Gen'!M25/'Dati Gen'!$M$36,0) -> 0 | AC117: =IF(R117<>"",VLOOKUP(R117,'Dati Gen'!$B$44:$D$51,3,0),"") -> SI | AF117: =IF($R117=AF$116,$AA117,0) -> 0 | AG117: =IF($R117=AG$116,$AA117,0) -> 0 | AH117: 0 | AI117: 0 | AJ117: 0 | AK117: 0 | AL117: 0 | AM117: 0
Q118: =IF('Dati Gen'!B26<>"",'Dati Gen'!B26,"") -> Progettazione e DD.LL. | R118: =IF('Dati Gen'!C26<>"",'Dati Gen'!C26,"") -> Architetto1 | S118: =W118/(1+U118) -> 0 | U118: ='Dati Gen'!G26 -> 0.04 | V118: =S118*U118 -> 0 | W118: =AA118/(1+Y118) -> 0 | Y118: ='Dati Gen'!J26 -> 0.22 | Z118: =(S118+V118)*Y118 -> 0 | AA118: =IF('Dati Gen'!$M$36<>0,$AA$126*'Dati Gen'!M26/'Dati Gen'!$M$36,0) -> 0 | AC118: =IF(R118<>"",VLOOKUP(R118,'Dati Gen'!$B$44:$D$51,3,0),"") -> SI | AF118: =IF($R118=AF$116,$AA118,0) -> 0 | AG118: 0 | AH118: 0 | AI118: 0 | AJ118: 0 | AK118: 0 | AL118: 0 | AM118: 0
Q119: =IF('Dati Gen'!B27<>"",'Dati Gen'!B27,"") -> Coordinamento sicurezza | R119: =IF('Dati Gen'!C27<>"",'Dati Gen'!C27,"") -> Ingegnere2 | S119: 0 | U119: ='Dati Gen'!G27 -> 0.04 | V119: =S119*U119 -> 0 | W119: 0 | Y119: ='Dati Gen'!J27 -> 0.22 | Z119: 0 | AA119: =IF('Dati Gen'!$M$36<>0,$AA$126*'Dati Gen'!M27/'Dati Gen'!$M$36,0) -> 0 | AC119: =IF(R119<>"",VLOOKUP(R119,'Dati Gen'!$B$44:$D$51,3,0),"") -> NO | AF119: 0 | AG119: 0 | AH119: 0 | AI119: 0 | AJ119: 0 | AK119: 0 | AL119: 0 | AM119: 0
Q120: =IF('Dati Gen'!B28<>"",'Dati Gen'!B28,"") -> Redazione APE post | R120: =IF('Dati Gen'!C28<>"",'Dati Gen'!C28,"") -> Architetto1 | S120: 0 | U120: ='Dati Gen'!G28 -> 0.04 | V120: =S120*U120 -> 0 | W120: 0 | Y120: ='Dati Gen'!J28 -> 0.22 | Z120: 0 | AA120: =IF('Dati Gen'!$M$36<>0,$AA$126*'Dati Gen'!M28/'Dati Gen'!$M$36,0) -> 0 | AC120: =IF(R120<>"",VLOOKUP(R120,'Dati Gen'!$B$44:$D$51,3,0),"") -> SI | AF120: 0 | AG120: 0 | AH120: 0 | AI120: 0 | AJ120: 0 | AK120: 0 | AL120: 0 | AM120: 0
Q121: =IF('Dati Gen'!B29<>"",'Dati Gen'!B29,"") ->  | R121: =IF('Dati Gen'!C29<>"",'Dati Gen'!C29,"") ->  | S121: 0 | U121: ='Dati Gen'!G29 -> 0.04 | V121: =T121*U121 -> 0 | W121: 0 | Y121: ='Dati Gen'!J29 -> 0.22 | Z121: 0 | AA121: =IF('Dati Gen'!$M$36<>0,$AA$126*'Dati Gen'!M29/'Dati Gen'!$M$36,0) -> 0 | AC121: =IF(R121<>"",VLOOKUP(R121,'Dati Gen'!$B$44:$D$51,3,0),"") ->  | AF121: 0 | AG121: 0 | AH121: 0 | AI121: 0 | AJ121: 0 | AK121: 0 | AL121: 0 | AM121: 0
Q122: =IF('Dati Gen'!B30<>"",'Dati Gen'!B30,"") ->  | R122: =IF('Dati Gen'!C30<>"",'Dati Gen'!C30,"") ->  | S122: 0 | U122: ='Dati Gen'!G30 -> 0.04 | V122: =T122*U122 -> 0 | W122: 0 | Y122: ='Dati Gen'!J30 -> 0.22 | Z122: 0 | AA122: =IF('Dati Gen'!$M$36<>0,$AA$126*'Dati Gen'!M30/'Dati Gen'!$M$36,0) -> 0 | AC122: =IF(R122<>"",VLOOKUP(R122,'Dati Gen'!$B$44:$D$51,3,0),"") ->  | AF122: 0 | AG122: 0 | AH122: 0 | AI122: 0 | AJ122: 0 | AK122: 0 | AL122: 0 | AM122: 0
Q123: =IF('Dati Gen'!B31<>"",'Dati Gen'!B31,"") ->  | R123: =IF('Dati Gen'!C31<>"",'Dati Gen'!C31,"") ->  | S123: 0 | U123: ='Dati Gen'!G31 -> 0.04 | V123: =T123*U123 -> 0 | W123: 0 | Y123: ='Dati Gen'!J31 -> 0.22 | Z123: 0 | AA123: =IF('Dati Gen'!$M$36<>0,$AA$126*'Dati Gen'!M31/'Dati Gen'!$M$36,0) -> 0 | AC123: =IF(R123<>"",VLOOKUP(R123,'Dati Gen'!$B$44:$D$51,3,0),"") ->  | AF123: 0 | AG123: 0 | AH123: 0 | AI123: 0 | AJ123: 0 | AK123: 0 | AL123: 0 | AM123: 0
Q124: =IF('Dati Gen'!B32<>"",'Dati Gen'!B32,"") ->  | R124: =IF('Dati Gen'!C32<>"",'Dati Gen'!C32,"") ->  | S124: 0 | U124: ='Dati Gen'!G32 -> 0.04 | V124: =T124*U124 -> 0 | W124: 0 | Y124: ='Dati Gen'!J32 -> 0.22 | Z124: 0 | AA124: =IF('Dati Gen'!$M$36<>0,$AA$126*'Dati Gen'!M32/'Dati Gen'!$M$36,0) -> 0 | AC124: =IF(R124<>"",VLOOKUP(R124,'Dati Gen'!$B$44:$D$51,3,0),"") ->  | AF124: 0 | AG124: 0 | AH124: 0 | AI124: 0 | AJ124: 0 | AK124: 0 | AL124: 0 | AM124: 0
Q125: =IF('Dati Gen'!B35<>"",'Dati Gen'!B35,"") -> Visto Conformità | R125: =IF('Dati Gen'!C35<>"",'Dati Gen'!C35,"") -> Consulente1 | S125: 0 | U125: ='Dati Gen'!G35 -> 0.04 | V125: =S125*U125 -> 0 | W125: 0 | Y125: ='Dati Gen'!J35 -> 0.22 | Z125: 0 | AA125: =IF('Dati Gen'!$M$36<>0,$AA$126*'Dati Gen'!M35/'Dati Gen'!$M$36,0) -> 0 | AC125: =IF(R125<>"",VLOOKUP(R125,'Dati Gen'!$B$44:$D$51,3,0),"") -> NO | AF125: 0 | AG125: 0 | AH125: 0 | AI125: 0 | AJ125: 0 | AK125: 0 | AL125: 0 | AM125: 0
S126: =SUM(S117:T125) -> 0 | U126: =SUM(V117:V125) -> 0 | W126: =SUM(W117:X125) -> 0 | Z126: =SUM(Z117:Z125) -> 0 | AA126: =SpeseTec60 -> 0 | AF126: =SUM(AF117:AF125) -> 0 | AG126: =SUM(AG117:AG125) -> 0 | AH126: 0 | AI126: 0 | AJ126: 0 | AK126: 0 | AL126: 0 | AM126: 0 | AO126: =SUM(AF126:AM126) -> 0
AF127: =IF($AO$126<>0,AF126/$AO$126,0) -> 0 | AG127: 0 | AH127: 0 | AI127: 0 | AJ127: 0 | AK127: 0 | AL127: 0 | AM127: 0
Q129: Ripartizione Spese Tecniche SAL. N.2 - ALTRI INTERVENTI | AC129: Applica Sconto in Fattura
Q130: Lavoro | R130: Tecnico | S130: Onorario | U130: C.Cassa | W130: Imponibile | Y130: IVA | AA130: Totale | AF130: =AF116 -> Architetto1 | AG130: =AG116 -> Ingegnere2 | AH130: Consulente1 | AI130: 0 | AJ130: 0 | AK130: 0 | AL130: 0 | AM130: 0
Q131: =IF('Dati Gen'!B25<>"",'Dati Gen'!B25,"") -> Redazione APE ante, Progettazione energetica | R131: =IF('Dati Gen'!C25<>"",'Dati Gen'!C25,"") -> Architetto1 | S131: =W131/(1+U131) -> 0 | U131: ='Dati Gen'!G25 -> 0.04 | V131: =S131*U131 -> 0 | W131: =AA131/(1+Y131) -> 0 | Y131: ='Dati Gen'!J25 -> 0.22 | Z131: =Y131*(S131+V131) -> 0 | AA131: =IF('Dati Gen'!$M$36<>0,$AA$140*'Dati Gen'!M25/'Dati Gen'!$M$36,0) -> 0 | AC131: =IF(R131<>"",VLOOKUP(R131,'Dati Gen'!$B$44:$D$51,3,0),"") -> SI | AF131: =IF($R131=AF$116,$AA131,0) -> 0 | AG131: =IF($R131=AG$116,$AA131,0) -> 0 | AH131: 0 | AI131: 0 | AJ131: 0 | AK131: 0 | AL131: 0 | AM131: 0
Q132: =IF('Dati Gen'!B26<>"",'Dati Gen'!B26,"") -> Progettazione e DD.LL. | R132: =IF('Dati Gen'!C26<>"",'Dati Gen'!C26,"") -> Architetto1 | S132: =W132/(1+U132) -> 0 | U132: ='Dati Gen'!G26 -> 0.04 | V132: =S132*U132 -> 0 | W132: =AA132/(1+Y132) -> 0 | Y132: ='Dati Gen'!J26 -> 0.22 | Z132: =(S132+V132)*Y132 -> 0 | AA132: =IF('Dati Gen'!$M$36<>0,$AA$140*'Dati Gen'!M26/'Dati Gen'!$M$36,0) -> 0 | AC132: =IF(R132<>"",VLOOKUP(R132,'Dati Gen'!$B$44:$D$51,3,0),"") -> SI | AF132: =IF($R132=AF$116,$AA132,0) -> 0 | AG132: 0 | AH132: 0 | AI132: 0 | AJ132: 0 | AK132: 0 | AL132: 0 | AM132: 0
Q133: =IF('Dati Gen'!B27<>"",'Dati Gen'!B27,"") -> Coordinamento sicurezza | R133: =IF('Dati Gen'!C27<>"",'Dati Gen'!C27,"") -> Ingegnere2 | S133: 0 | U133: ='Dati Gen'!G27 -> 0.04 | V133: =S133*U133 -> 0 | W133: 0 | Y133: ='Dati Gen'!J27 -> 0.22 | Z133: 0 | AA133: =IF('Dati Gen'!$M$36<>0,$AA$140*'Dati Gen'!M27/'Dati Gen'!$M$36,0) -> 0 | AC133: =IF(R133<>"",VLOOKUP(R133,'Dati Gen'!$B$44:$D$51,3,0),"") -> NO | AF133: 0 | AG133: 0 | AH133: 0 | AI133: 0 | AJ133: 0 | AK133: 0 | AL133: 0 | AM133: 0
Q134: =IF('Dati Gen'!B28<>"",'Dati Gen'!B28,"") -> Redazione APE post | R134: =IF('Dati Gen'!C28<>"",'Dati Gen'!C28,"") -> Architetto1 | S134: 0 | U134: ='Dati Gen'!G28 -> 0.04 | V134: =S134*U134 -> 0 | W134: 0 | Y134: ='Dati Gen'!J28 -> 0.22 | Z134: 0 | AA134: =IF('Dati Gen'!$M$36<>0,$AA$140*'Dati Gen'!M28/'Dati Gen'!$M$36,0) -> 0 | AC134: =IF(R134<>"",VLOOKUP(R134,'Dati Gen'!$B$44:$D$51,3,0),"") -> SI | AF134: 0 | AG134: 0 | AH134: 0 | AI134: 0 | AJ134: 0 | AK134: 0 | AL134: 0 | AM134: 0
Q135: =IF('Dati Gen'!B29<>"",'Dati Gen'!B29,"") ->  | R135: =IF('Dati Gen'!C29<>"",'Dati Gen'!C29,"") ->  | S135: 0 | U135: ='Dati Gen'!G29 -> 0.04 | V135: =T135*U135 -> 0 | W135: 0 | Y135: ='Dati Gen'!J29 -> 0.22 | Z135: 0 | AA135: =IF('Dati Gen'!$M$36<>0,$AA$140*'Dati Gen'!M29/'Dati Gen'!$M$36,0) -> 0 | AC135: =IF(R135<>"",VLOOKUP(R135,'Dati Gen'!$B$44:$D$51,3,0),"") ->  | AF135: 0 | AG135: 0 | AH135: 0 | AI135: 0 | AJ135: 0 | AK135: 0 | AL135: 0 | AM135: 0
Q136: =IF('Dati Gen'!B30<>"",'Dati Gen'!B30,"") ->  | R136: =IF('Dati Gen'!C30<>"",'Dati Gen'!C30,"") ->  | S136: 0 | U136: ='Dati Gen'!G30 -> 0.04 | V136: =T136*U136 -> 0 | W136: 0 | Y136: ='Dati Gen'!J30 -> 0.22 | Z136: 0 | AA136: =IF('Dati Gen'!$M$36<>0,$AA$140*'Dati Gen'!M30/'Dati Gen'!$M$36,0) -> 0 | AC136: =IF(R136<>"",VLOOKUP(R136,'Dati Gen'!$B$44:$D$51,3,0),"") ->  | AF136: 0 | AG136: 0 | AH136: 0 | AI136: 0 | AJ136: 0 | AK136: 0 | AL136: 0 | AM136: 0
Q137: =IF('Dati Gen'!B31<>"",'Dati Gen'!B31,"") ->  | R137: =IF('Dati Gen'!C31<>"",'Dati Gen'!C31,"") ->  | S137: 0 | U137: ='Dati Gen'!G31 -> 0.04 | V137: =T137*U137 -> 0 | W137: 0 | Y137: ='Dati Gen'!J31 -> 0.22 | Z137: 0 | AA137: =IF('Dati Gen'!$M$36<>0,$AA$140*'Dati Gen'!M31/'Dati Gen'!$M$36,0) -> 0 | AC137: =IF(R137<>"",VLOOKUP(R137,'Dati Gen'!$B$44:$D$51,3,0),"") ->  | AF137: 0 | AG137: 0 | AH137: 0 | AI137: 0 | AJ137: 0 | AK137: 0 | AL137: 0 | AM137: 0
Q138: =IF('Dati Gen'!B32<>"",'Dati Gen'!B32,"") ->  | R138: =IF('Dati Gen'!C32<>"",'Dati Gen'!C32,"") ->  | S138: 0 | U138: ='Dati Gen'!G32 -> 0.04 | V138: =T138*U138 -> 0 | W138: 0 | Y138: ='Dati Gen'!J32 -> 0.22 | Z138: 0 | AA138: =IF('Dati Gen'!$M$36<>0,$AA$140*'Dati Gen'!M32/'Dati Gen'!$M$36,0) -> 0 | AC138: =IF(R138<>"",VLOOKUP(R138,'Dati Gen'!$B$44:$D$51,3,0),"") ->  | AF138: 0 | AG138: 0 | AH138: 0 | AI138: 0 | AJ138: 0 | AK138: 0 | AL138: 0 | AM138: 0
Q139: =IF('Dati Gen'!B35<>"",'Dati Gen'!B35,"") -> Visto Conformità | R139: =IF('Dati Gen'!C35<>"",'Dati Gen'!C35,"") -> Consulente1 | S139: 0 | U139: ='Dati Gen'!G35 -> 0.04 | V139: =S139*U139 -> 0 | W139: 0 | Y139: ='Dati Gen'!J35 -> 0.22 | Z139: 0 | AA139: =IF('Dati Gen'!$M$36<>0,$AA$140*'Dati Gen'!M35/'Dati Gen'!$M$36,0) -> 0 | AC139: =IF(R139<>"",VLOOKUP(R139,'Dati Gen'!$B$44:$D$51,3,0),"") -> NO | AF139: 0 | AG139: 0 | AH139: 0 | AI139: 0 | AJ139: 0 | AK139: 0 | AL139: 0 | AM139: 0
S140: =SUM(S131:T139) -> 0 | U140: =SUM(V131:V139) -> 0 | W140: =SUM(W131:X139) -> 0 | Z140: =SUM(Z131:Z139) -> 0 | AA140: =K93 -> 0 | AF140: =SUM(AF131:AF139) -> 0 | AG140: =SUM(AG131:AG139) -> 0 | AH140: 0 | AI140: 0 | AJ140: 0 | AK140: 0 | AL140: 0 | AM140: 0 | AO140: =SUM(AF140:AM140) -> 0
AF141: =IF($AO$140<>0,AF140/$AO$140,0) -> 0 | AG141: 0 | AH141: 0 | AI141: 0 | AJ141: 0 | AK141: 0 | AL141: 0 | AM141: 0

Sheet SAL.Finale
P1: =MATCH("SimMZ",C:C,0) -> 78
C2: =CONCATENATE('Dati Gen'!K2, " ",'Dati Gen'!K3," ",'Dati Gen'!L3) -> Pratica.110plus Vers.ne 4.3.1 | F2: DATI DI PROGETTO : | G2: IMPONIBILE | H2: IVA | I2: IMPORTO | K2: IMPONIBILE | L2: IVA | M2: IMPORTO | N2: =CONCATENATE('Dati Gen'!K2," SIM.srl") -> Pratica.110plus SIM.srl
C3: STATO AVANZAMENTO LAVORI Finale | F3: Importo Lavori | G3: ='Dati Gen'!G18 -> 0 | H3: ='Dati Gen'!K18 -> 0 | I3: ='Dati Gen'!M18 -> 0 | J3: Importo Netto | K3: ='Dati Gen'!G20 -> 0 | L3: ='Dati Gen'!K20 -> 0 | M3: ='Dati Gen'!M20 -> 0 | P3: * | Q3: =IF('Computo-Massimali'!C6<>"","Attenzione! Tabella Computo-Massimali non completa. Si consiglia di completare, prima di registrare Voci di SAL","") -> Attenzione! Tabella Computo-Massimali non completa. Si consiglia di completare, prima di registrare Voci di SAL
C4: 09/05/2022 | F4: Oneri Sicurezza | G4: ='Dati Gen'!G19 -> 0 | H4: ='Dati Gen'!K19 -> 0 | I4: ='Dati Gen'!M19 -> 0 | J4: Spese Tecniche | K4: ='Dati Gen'!G21 -> 0 | L4: ='Dati Gen'!K21 -> 0 | M4: ='Dati Gen'!M21 -> 0 | Q4: Codice Identificativo Asseverazione ENEA | T4: Codice Identificativo Asseverazione Rischio Sismico
C5: Oneri/Lavori x Sicurezza | D5: 0 | K5: ='Dati Gen'!G22 -> Importo Complessivo Progetto : | M5: ='Dati Gen'!M22 -> 0
C7: INTERVENTI TRAINANTI | O7: .. | Q7: =CONCATENATE("Verifica Massimali di Spesa ",C7) -> Verifica Massimali di Spesa INTERVENTI TRAINANTI
C8: Interventi | F8: Importo Lavori | G8: Incidenza Sicurezza | H8: Imponibile | I8: Iva | J8: Importo c.iva | K8: Spese tecniche | L8: Totale | M8: Credito Spettante 110% Spesa Ammessa | N8: %SAL | R8: Massimale spesa | S8: Verifica Max | U8: Spesa Ammessa | W8: Quota Eccedente Massimale Spesa | Y8: Credito Spettante 110% Spesa Ammessa Quota Impresa | Quota Tecnici
C9: ='Computo-Massimali'!C9 -> PV) Isolamento pareti perimetrali | E9: ='Computo-Massimali'!E9 -> Interno | F9: 0 | G9: =IF('Computo-Massimali'!F9<>0,'Computo-Massimali'!G9*F9/'Computo-Massimali'!F9,0) -> 0 | H9: =SUM(F9:G9) -> 0 | I9: =F9*'Dati Gen'!$J$20+G9*'Dati Gen'!$J$19 -> 0 | J9: =H9+I9 -> 0 | K9: =IF('Computo-Massimali'!F9<>0,'Computo-Massimali'!K9*F9/'Computo-Massimali'!F9,0) -> 0 | L9: =SUM(J9:K9) -> 0 | M9: =IF(L9<=R9,L9*1.1,R9*1.1) -> 0 | N9: =IF('Computo-Massimali'!L9>0,L9/'Computo-Massimali'!L9,0) -> 0 | O9: =IF(F9>0,IF(F9-0.001>'Computo-Massimali'!F9,">Computo",IF(F9+0.001<'SAL.60%'!F9,"< SAL.2","")),"") ->  | Q9: =C9 -> PV) Isolamento pareti perimetrali | R9: ='Computo-Massimali'!T9 -> 0 | S9: =IF(L9>M9,"KO Tot.>Detr.",IF(L9>R9,"ko","ok")) -> ok | U9: =IF($L$13<>0,(L9/$L$13)*$U$13,0) -> 0 | W9: =IF(L9>R9,L9-R9,0) -> 0 | Y9: =IF(M9<>0,J9*M9/L9,0) -> 0 | AA9: =IF(M9<>0,K9*M9/L9,0) -> 0
C10: ='Computo-Massimali'!C10 -> PO) Isolamento coperture | E10: ='Computo-Massimali'!E10 -> Esterno | F10: 0 | G10: =IF('Computo-Massimali'!F10<>0,'Computo-Massimali'!G10*F10/'Computo-Massimali'!F10,0) -> 0 | H10: =SUM(F10:G10) -> 0 | I10: =F10*'Dati Gen'!$J$20+G10*'Dati Gen'!$J$19 -> 0 | J10: =H10+I10 -> 0 | K10: =IF('Computo-Massimali'!F10<>0,'Computo-Massimali'!K10*F10/'Computo-Massimali'!F10,0) -> 0 | L10: =SUM(J10:K10) -> 0 | M10: 0 | N10: =IF('Computo-Massimali'!L10>0,L10/'Computo-Massimali'!L10,0) -> 0 | O10: =IF(F10>0,IF(F10-0.001>'Computo-Massimali'!F10,">Computo",IF(F10+0.001<'SAL.60%'!F10,"< SAL.2","")),"") ->  | Q10: PO) Isolamento coperture | R10: ='Computo-Massimali'!T10 -> 0 | S10: ok | U10: =IF($L$13<>0,(L10/$L$13)*$U$13,0) -> 0 | W10: 0 | Y10: 0 | AA10: 0
C11: ='Computo-Massimali'!C11 -> POND) Isol. coperture non disperdenti | E11: ='Computo-Massimali'!E11 -> Esterno | F11: 0 | G11: =IF('Computo-Massimali'!F11<>0,'Computo-Massimali'!G11*F11/'Computo-Massimali'!F11,0) -> 0 | H11: =SUM(F11:G11) -> 0 | I11: =F11*'Dati Gen'!$J$20+G11*'Dati Gen'!$J$19 -> 0 | J11: =H11+I11 -> 0 | K11: =IF('Computo-Massimali'!F11<>0,'Computo-Massimali'!K11*F11/'Computo-Massimali'!F11,0) -> 0 | L11: =SUM(J11:K11) -> 0 | M11: 0 | N11: =IF('Computo-Massimali'!L11>0,L11/'Computo-Massimali'!L11,0) -> 0 | O11: =IF(F11>0,IF(F11-0.001>'Computo-Massimali'!F11,">Computo",IF(F11+0.001<'SAL.60%'!F11,"< SAL.2","")),"") ->  | Q11: POND) Isol. coperture non disperdenti | R11: ='Computo-Massimali'!T11 -> 0 | S11: ok | U11: =IF($L$13<>0,(L11/$L$13)*$U$13,0) -> 0 | W11: 0 | Y11: 0 | AA11: 0
C12: ='Computo-Massimali'!C12 -> PS) Isolamento Pavimenti | E12: ='Computo-Massimali'!E12 -> Interno/terreno | F12: 0 | G12: =IF('Computo-Massimali'!F12<>0,'Computo-Massimali'!G12*F12/'Computo-Massimali'!F12,0) -> 0 | H12: =SUM(F12:G12) -> 0 | I12: =F12*'Dati Gen'!$J$20+G12*'Dati Gen'!$J$19 -> 0 | J12: =H12+I12 -> 0 | K12: =IF('Computo-Massimali'!F12<>0,'Computo-Massimali'!K12*F12/'Computo-Massimali'!F12,0) -> 0 | L12: =SUM(J12:K12) -> 0 | M12: 0 | N12: =IF('Computo-Massimali'!L12>0,L12/'Computo-Massimali'!L12,0) -> 0 | O12: =IF(F12>0,IF(F12-0.001>'Computo-Massimali'!F12,">Computo",IF(F12+0.001<'SAL.60%'!F12,"< SAL.2","")),"") ->  | Q12: PS) Isolamento Pavimenti | R12: ='Computo-Massimali'!T12 -> 0 | S12: ok | U12: =IF($L$13<>0,(L12/$L$13)*$U$13,0) -> 0 | W12: 0 | Y12: 0 | AA12: 0
C13: ='Computo-Massimali'!C13 -> Totali Isolamento PV) PO) POND) PS) | F13: =SUM(F9:F12) -> 0 | G13: =SUM(G9:G12) -> 0 | H13: =SUM(H9:H12) -> 0 | I13: 0 | J13: 0 | K13: 0 | L13: 0 | M13: 0 | N13: =IF('Computo-Massimali'!L13>0,L13/'Computo-Massimali'!L13,0) -> 0 | O13: =IF(F13>0,IF(F13-0.001>'Computo-Massimali'!F13,">Computo",IF(F13+0.001<'SAL.60%'!F13,"< SAL.2","")),"") ->  | Q13: Totali Isolamento PV) PO) POND) PS) | R13: ='Computo-Massimali'!T13 -> 0 | S13: ok | U13: =IF(L13<R13,L13,R13) -> 0 | W13: 0 | Y13: 0 | AA13: 0
C14: ='Computo-Massimali'!C14 -> Impianti climatizzazione e ACS | F14: 0 | G14: =IF('Computo-Massimali'!F14<>0,'Computo-Massimali'!G14*F14/'Computo-Massimali'!F14,0) -> 0 | H14: =SUM(F14:G14) -> 0 | I14: =F14*'Dati Gen'!$J$20+G14*'Dati Gen'!$J$19 -> 0 | J14: =H14+I14 -> 0 | K14: =IF('Computo-Massimali'!F14<>0,'Computo-Massimali'!K14*F14/'Computo-Massimali'!F14,0) -> 0 | L14: =SUM(J14:K14) -> 0 | M14: 0 | N14: =IF('Computo-Massimali'!L14>0,L14/'Computo-Massimali'!L14,0) -> 0 | O14: =IF(F14>0,IF(F14-0.001>'Computo-Massimali'!F14,">Computo",IF(F14+0.001<'SAL.60%'!F14,"< SAL.2","")),"") ->  | Q14: Impianti climatizzazione e ACS | R14: ='Computo-Massimali'!T14 -> 0 | S14: ok | U14: =IF(L14<R14,L14,R14) -> 0 | W14: 0 | Y14: 0 | AA14: 0
C15: ='Computo-Massimali'!C15 -> SismaBonus Zona 1,2 o 3 | F15: 0 | G15: =IF('Computo-Massimali'!F15<>0,'Computo-Massimali'!G15*F15/'Computo-Massimali'!F15,0) -> 0 | H15: =SUM(F15:G15) -> 0 | I15: =F15*'Dati Gen'!$J$20+G15*'Dati Gen'!$J$19 -> 0 | J15: =H15+I15 -> 0 | K15: =IF('Computo-Massimali'!F15<>0,'Computo-Massimali'!K15*F15/'Computo-Massimali'!F15,0) -> 0 | L15: =SUM(J15:K15) -> 0 | M15: 0 | N15: =IF('Computo-Massimali'!L15>0,L15/'Computo-Massimali'!L15,0) -> 0 | O15: =IF(F15>0,IF(F15-0.001>'Computo-Massimali'!F15,">Computo",IF(F15+0.001<'SAL.60%'!F15,"< SAL.2","")),"") ->  | Q15: SismaBonus Zona 1,2 o 3 | R15: ='Computo-Massimali'!T15 -> 0 | S15: ok | U15: =IF(L15<R15,L15,R15) -> 0 | W15: 0 | Y15: 0 | AA15: 0
C16: ='Computo-Massimali'!C16 -> Totale interventi Trainanti : | F16: =SUM(F13:F15) -> 0 | G16: =SUM(G13:G15) -> 0 | H16: 0 | I16: 0 | J16: 0 | K16: 0 | L16: 0 | M16: =SUM(M13:M15) -> 0 | N16: =IF('Computo-Massimali'!L16>0,L16/'Computo-Massimali'!L16,0) -> 0 | O16: =IF(F16>0,IF(F16-0.001>'Computo-Massimali'!F16,">Computo",IF(F16+0.001<'SAL.60%'!F16,"< SAL.2","")),"") ->  | R16: =C16 -> Totale interventi Trainanti : | U16: =SUM(U13:V15) -> 0 | W16: =SUM(W13:X15) -> 0 | Y16: =SUM(Y13:Z15) -> 0 | AA16: =SUM(AA13:AB15) -> 0
C18: INTERVENTI TRAINATI PARTI COMUNI CONDOMINIALI | O18: .. | Q18: =CONCATENATE("Verifica Massimali di Spesa ",C18) -> Verifica Massimali di Spesa INTERVENTI TRAINATI PARTI COMUNI CONDOMINIALI
C19: Interventi | F19: Importo Lavori | G19: Incidenza Sicurezza | H19: Imponibile | I19: Iva | J19: Importo c.iva | K19: Spese tecniche | L19: Totale | M19: Credito Spettante 110% Spesa Ammessa | N19: %SAL | R19: Massimale spesa | S19: Verifica Max | U19: Spesa Ammessa | W19: Quota Eccedente Massimale Spesa | Y19: Credito Spettante 110% Spesa Ammessa Quota Impresa | Quota Tecnici
C20: ='Computo-Massimali'!C20 -> PV) Isolamento pareti perimetrali | E20: ='Computo-Massimali'!E20 -> Interno | F20: 0 | G20: =IF('Computo-Massimali'!F20<>0,'Computo-Massimali'!G20*F20/'Computo-Massimali'!F20,0) -> 0 | H20: =SUM(F20:G20) -> 0 | I20: =F20*'Dati Gen'!$J$20+G20*'Dati Gen'!$J$19 -> 0 | J20: =H20+I20 -> 0 | K20: =IF('Computo-Massimali'!F20<>0,'Computo-Massimali'!K20*F20/'Computo-Massimali'!F20,0) -> 0 | L20: =SUM(J20:K20) -> 0 | M20: =IF(L20<=R20,L20*1.1,R20*1.1) -> 0 | N20: =IF('Computo-Massimali'!L20>0,L20/'Computo-Massimali'!L20,0) -> 0 | O20: =IF(F20>0,IF(F20-0.001>'Computo-Massimali'!F20,">Computo",IF(F20+0.001<'SAL.60%'!F20,"< SAL.2","")),"") ->  | Q20: =C20 -> PV) Isolamento pareti perimetrali | R20: ='Computo-Massimali'!T20 -> 0 | S20: =IF(L20>M20,"KO Tot.>Detr.",IF(L20>R20,"ko","ok")) -> ok | U20: =IF($L$24<>0,(L20/$L$24)*$U$24,0) -> 0 | W20: =IF(L20>R20,L20-R20,0) -> 0 | Y20: =IF(M20<>0,J20*M20/L20,0) -> 0 | AA20: =IF(M20<>0,K20*M20/L20,0) -> 0
C21: ='Computo-Massimali'!C21 -> PO) Isolamento coperture | E21: ='Computo-Massimali'!E21 -> Esterno | F21: 0 | G21: =IF('Computo-Massimali'!F21<>0,'Computo-Massimali'!G21*F21/'Computo-Massimali'!F21,0) -> 0 | H21: =SUM(F21:G21) -> 0 | I21: =F21*'Dati Gen'!$J$20+G21*'Dati Gen'!$J$19 -> 0 | J21: =H21+I21 -> 0 | K21: =IF('Computo-Massimali'!F21<>0,'Computo-Massimali'!K21*F21/'Computo-Massimali'!F21,0) -> 0 | L21: =SUM(J21:K21) -> 0 | M21: =IF(L21<=R21,L21*1.1,R21*1.1) -> 0 | N21: =IF('Computo-Massimali'!L21>0,L21/'Computo-Massimali'!L21,0) -> 0 | O21: =IF(F21>0,IF(F21-0.001>'Computo-Massimali'!F21,">Computo",IF(F21+0.001<'SAL.60%'!F21,"< SAL.2","")),"") ->  | Q21: PO) Isolamento coperture | R21: ='Computo-Massimali'!T21 -> 0 | S21: ok | U21: =IF($L$24<>0,(L21/$L$24)*$U$24,0) -> 0 | W21: 0 | Y21: 0 | AA21: 0
C22: ='Computo-Massimali'!C22 -> PS) Isolamento Pavimenti | E22: ='Computo-Massimali'!E22 -> Interno/terreno | F22: 0 | G22: =IF('Computo-Massimali'!F22<>0,'Computo-Massimali'!G22*F22/'Computo-Massimali'!F22,0) -> 0 | H22: =SUM(F22:G22) -> 0 | I22: =F22*'Dati Gen'!$J$20+G22*'Dati Gen'!$J$19 -> 0 | J22: =H22+I22 -> 0 | K22: =IF('Computo-Massimali'!F22<>0,'Computo-Massimali'!K22*F22/'Computo-Massimali'!F22,0) -> 0 | L22: =SUM(J22:K22) -> 0 | M22: =IF(L22<=R22,L22*1.1,R22*1.1) -> 0 | N22: =IF('Computo-Massimali'!L22>0,L22/'Computo-Massimali'!L22,0) -> 0 | O22: =IF(F22>0,IF(F22-0.001>'Computo-Massimali'!F22,">Computo",IF(F22+0.001<'SAL.60%'!F22,"< SAL.2","")),"") ->  | Q22: PS) Isolamento Pavimenti | R22: ='Computo-Massimali'!T22 -> 0 | S22: ok | U22: =IF($L$24<>0,(L22/$L$24)*$U$24,0) -> 0 | W22: 0 | Y22: 0 | AA22: 0
C23: ='Computo-Massimali'!C23 -> IN) Serramenti con chiusure oscuranti | E23: ='Computo-Massimali'!E23 -> Zone D, E ed F | F23: 0 | G23: =IF('Computo-Massimali'!F23<>0,'Computo-Massimali'!G23*F23/'Computo-Massimali'!F23,0) -> 0 | H23: =SUM(F23:G23) -> 0 | I23: =F23*'Dati Gen'!$J$20+G23*'Dati Gen'!$J$19 -> 0 | J23: =H23+I23 -> 0 | K23: =IF('Computo-Massimali'!F23<>0,'Computo-Massimali'!K23*F23/'Computo-Massimali'!F23,0) -> 0 | L23: =SUM(J23:K23) -> 0 | M23: =IF(L23<=R23,L23*1.1,R23*1.1) -> 0 | N23: =IF('Computo-Massimali'!L23>0,L23/'Computo-Massimali'!L23,0) -> 0 | O23: =IF(F23>0,IF(F23-0.001>'Computo-Massimali'!F23,">Computo",IF(F23+0.001<'SAL.60%'!F23,"< SAL.2","")),"") ->  | Q23: IN) Serramenti con chiusure oscuranti | R23: ='Computo-Massimali'!T23 -> 0 | S23: ok | U23: =IF($L$24<>0,(L23/$L$24)*$U$24,0) -> 0 | W23: 0 | Y23: 0 | AA23: 0
C24: ='Computo-Massimali'!C24 -> Totali Isolamento PV) PO) PS) e IN) | F24: =SUM(F20:F23) -> 0 | G24: 0 | H24: 0 | I24: 0 | J24: 0 | K24: 0 | L24: 0 | M24: 0 | N24: =IF('Computo-Massimali'!L24>0,L24/'Computo-Massimali'!L24,0) -> 0 | O24: =IF(F24>0,IF(F24-0.001>'Computo-Massimali'!F24,">Computo",IF(F24+0.001<'SAL.60%'!F24,"< SAL.2","")),"") ->  | Q24: Totali Isolamento PV) PO) PS) e IN) | R24: ='Computo-Massimali'!T24 -> 0 | S24: ok | U24: =IF(L24<R24,L24,R24) -> 0 | W24: 0 | Y24: 0 | AA24: 0
C25: ='Computo-Massimali'!C25 -> SS) Schermature solari e chiusure oscuranti | F25: 0 | G25: =IF('Computo-Massimali'!F25<>0,'Computo-Massimali'!G25*F25/'Computo-Massimali'!F25,0) -> 0 | H25: =SUM(F25:G25) -> 0 | I25: =F25*'Dati Gen'!$J$20+G25*'Dati Gen'!$J$19 -> 0 | J25: 0 | K25: =IF('Computo-Massimali'!F25<>0,'Computo-Massimali'!K25*F25/'Computo-Massimali'!F25,0) -> 0 | L25: =SUM(J25:K25) -> 0 | M25: =IF(L25<=R25,L25*1.1,R25*1.1) -> 0 | N25: =IF('Computo-Massimali'!L25>0,L25/'Computo-Massimali'!L25,0) -> 0 | O25: =IF(F25>0,IF(F25-0.001>'Computo-Massimali'!F25,">Computo",IF(F25+0.001<'SAL.60%'!F25,"< SAL.2","")),"") ->  | Q25: SS) Schermature solari e chiusure oscuranti | R25: ='Computo-Massimali'!T25 -> 0 | S25: ok | U25: =IF(L25<R25,L25,R25) -> 0 | W25: 0 | Y25: 0 | AA25: 0
C26: ='Computo-Massimali'!C26 -> Impianti climatizzazione con | F26: 0 | G26: =IF('Computo-Massimali'!F26<>0,'Computo-Massimali'!G26*F26/'Computo-Massimali'!F26,0) -> 0 | H26: =SUM(F26:G26) -> 0 | I26: =F26*'Dati Gen'!$J$20+G26*'Dati Gen'!$J$19 -> 0 | J26: 0 | K26: =IF('Computo-Massimali'!F26<>0,'Computo-Massimali'!K26*F26/'Computo-Massimali'!F26,0) -> 0 | L26: 0 | M26: =IF(L26<=R26,L26*1.1,R26*1.1) -> 0 | N26: =IF('Computo-Massimali'!L26>0,L26/'Computo-Massimali'!L26,0) -> 0 | O26: =IF(F26>0,IF(F26-0.001>'Computo-Massimali'!F26,">Computo",IF(F26+0.001<'SAL.60%'!F26,"< SAL.2","")),"") ->  | Q26: Impianti climatizzazione con | R26: ='Computo-Massimali'!T26 -> 0 | S26: ok | U26: =IF(L26<R26,L26,R26) -> 0 | W26: 0 | Y26: 0 | AA26: 0
C27: ='Computo-Massimali'!C27 -> GA) Generatori aria calda Condensazione | F27: 0 | G27: =IF('Computo-Massimali'!F27<>0,'Computo-Massimali'!G27*F27/'Computo-Massimali'!F27,0) -> 0 | H27: =SUM(F27:G27) -> 0 | I27: =F27*'Dati Gen'!$J$20+G27*'Dati Gen'!$J$19 -> 0 | J27: 0 | K27: =IF('Computo-Massimali'!F27<>0,'Computo-Massimali'!K27*F27/'Computo-Massimali'!F27,0) -> 0 | L27: 0 | M27: =IF(L27<=R27,L27*1.1,R27*1.1) -> 0 | N27: =IF('Computo-Massimali'!L27>0,L27/'Computo-Massimali'!L27,0) -> 0 | O27: =IF(F27>0,IF(F27-0.001>'Computo-Massimali'!F27,">Computo",IF(F27+0.001<'SAL.60%'!F27,"< SAL.2","")),"") ->  | Q27: GA) Generatori aria calda Condensazione | R27: ='Computo-Massimali'!T27 -> 0 | S27: ok | U27: =IF($L$30<>0,(L27/$L$30)*$U$30,0) -> 0 | W27: =IF(L27>R27,L27-R27,0) -> 0 | Y27: =IF(M27<>0,J27*M27/L27,0) -> 0 | AA27: =IF(M27<>0,K27*M27/L27,0) -> 0
C28: ='Computo-Massimali'!C28 -> IB) Impianti Biomassa | F28: 0 | G28: =IF('Computo-Massimali'!F28<>0,'Computo-Massimali'!G28*F28/'Computo-Massimali'!F28,0) -> 0 | H28: =SUM(F28:G28) -> 0 | I28: =F28*'Dati Gen'!$J$20+G28*'Dati Gen'!$J$19 -> 0 | J28: 0 | K28: =IF('Computo-Massimali'!F28<>0,'Computo-Massimali'!K28*F28/'Computo-Massimali'!F28,0) -> 0 | L28: 0 | M28: =IF(L28<=R28,L28*1.1,R28*1.1) -> 0 | N28: =IF('Computo-Massimali'!L28>0,L28/'Computo-Massimali'!L28,0) -> 0 | O28: =IF(F28>0,IF(F28-0.001>'Computo-Massimali'!F28,">Computo",IF(F28+0.001<'SAL.60%'!F28,"< SAL.2","")),"") ->  | Q28: IB) Impianti Biomassa | R28: ='Computo-Massimali'!T28 -> 0 | S28: ok | U28: =IF($L$30<>0,(L28/$L$30)*$U$30,0) -> 0 | W28: 0 | Y28: 0 | AA28: 0
C29: ='Computo-Massimali'!C29 -> SA) Scaldacqua a pompa di calore | F29: 0 | G29: =IF('Computo-Massimali'!F29<>0,'Computo-Massimali'!G29*F29/'Computo-Massimali'!F29,0) -> 0 | H29: =SUM(F29:G29) -> 0 | I29: =F29*'Dati Gen'!$J$20+G29*'Dati Gen'!$J$19 -> 0 | J29: 0 | K29: =IF('Computo-Massimali'!F29<>0,'Computo-Massimali'!K29*F29/'Computo-Massimali'!F29,0) -> 0 | L29: 0 | M29: =IF(L29<=R29,L29*1.1,R29*1.1) -> 0 | N29: =IF('Computo-Massimali'!L29>0,L29/'Computo-Massimali'!L29,0) -> 0 | O29: =IF(F29>0,IF(F29-0.001>'Computo-Massimali'!F29,">Computo",IF(F29+0.001<'SAL.60%'!F29,"< SAL.2","")),"") ->  | Q29: SA) Scaldacqua a pompa di calore | R29: ='Computo-Massimali'!T29 -> 0 | S29: ok | U29: =IF($L$30<>0,(L29/$L$30)*$U$30,0) -> 0 | W29: 0 | Y29: 0 | AA29: 0
C30: ='Computo-Massimali'!C30 -> Totali GA) IB) SA) | F30: =SUM(F27:F29) -> 0 | G30: =SUM(G27:G29) -> 0 | H30: 0 | I30: 0 | J30: 0 | K30: =SUM(K27:K29) -> 0 | L30: =SUM(L27:L29) -> 0 | M30: 0 | N30: =IF('Computo-Massimali'!L30>0,L30/'Computo-Massimali'!L30,0) -> 0 | O30: =IF(F30>0,IF(F30-0.001>'Computo-Massimali'!F30,">Computo",IF(F30+0.001<'SAL.60%'!F30,"< SAL.2","")),"") ->  | Q30: Totali GA) IB) SA) | R30: ='Computo-Massimali'!T30 -> 0 | S30: ok | U30: =IF(L30<R30,L30,R30) -> 0 | W30: 0 | Y30: 0 | AA30: 0
C31: ='Computo-Massimali'!C31 -> CO) Sistemi di Microgenerazione | F31: 0 | G31: =IF('Computo-Massimali'!F31<>0,'Computo-Massimali'!G31*F31/'Computo-Massimali'!F31,0) -> 0 | H31: =SUM(F31:G31) -> 0 | I31: =F31*'Dati Gen'!$J$20+G31*'Dati Gen'!$J$19 -> 0 | J31: =H31+I31 -> 0 | K31: =IF('Computo-Massimali'!F31<>0,'Computo-Massimali'!K31*F31/'Computo-Massimali'!F31,0) -> 0 | L31: =SUM(J31:K31) -> 0 | M31: =IF(L31<=R31,L31*1.1,R31*1.1) -> 0 | N31: =IF('Computo-Massimali'!L31>0,L31/'Computo-Massimali'!L31,0) -> 0 | O31: =IF(F31>0,IF(F31-0.001>'Computo-Massimali'!F31,">Computo",IF(F31+0.001<'SAL.60%'!F31,"< SAL.2","")),"") ->  | Q31: CO) Sistemi di Microgenerazione | R31: ='Computo-Massimali'!T31 -> 0 | S31: ok | U31: 0 | W31: 0 | Y31: 0 | AA31: 0
C32: ='Computo-Massimali'!C32 -> ST) Collettori Solari | E32: ='Computo-Massimali'!E32 -> Piani Vetrati | F32: 0 | G32: =IF('Computo-Massimali'!F32<>0,'Computo-Massimali'!G32*F32/'Computo-Massimali'!F32,0) -> 0 | H32: 0 | I32: =F32*'Dati Gen'!$J$20+G32*'Dati Gen'!$J$19 -> 0 | J32: =H32+I32 -> 0 | K32: =IF('Computo-Massimali'!F32<>0,'Computo-Massimali'!K32*F32/'Computo-Massimali'!F32,0) -> 0 | L32: =SUM(J32:K32) -> 0 | M32: 0 | N32: =IF('Computo-Massimali'!L32>0,L32/'Computo-Massimali'!L32,0) -> 0 | O32: =IF(F32>0,IF(F32-0.001>'Computo-Massimali'!F32,">Computo",IF(F32+0.001<'SAL.60%'!F32,"< SAL.2","")),"") ->  | Q32: ST) Collettori Solari | R32: ='Computo-Massimali'!T32 -> 0 | S32: ok | U32: 0 | W32: 0 | Y32: 0 | AA32: 0
C33: ='Computo-Massimali'!C33 -> FV) Solare Fotovoltaico [ kWp ] | E33: ='Computo-Massimali'!E33 -> 6 | F33: 0 | G33: =IF('Computo-Massimali'!F33<>0,'Computo-Massimali'!G33*F33/'Computo-Massimali'!F33,0) -> 0 | H33: 0 | I33: =F33*'Dati Gen'!$J$20+G33*'Dati Gen'!$J$19 -> 0 | J33: =H33+I33 -> 0 | K33: =IF('Computo-Massimali'!F33<>0,'Computo-Massimali'!K33*F33/'Computo-Massimali'!F33,0) -> 0 | L33: =SUM(J33:K33) -> 0 | M33: 0 | N33: =IF('Computo-Massimali'!L33>0,L33/'Computo-Massimali'!L33,0) -> 0 | O33: =IF(F33>0,IF(F33-0.001>'Computo-Massimali'!F33,">Computo",IF(F33+0.001<'SAL.60%'!F33,"< SAL.2","")),"") ->  | Q33: FV) Solare Fotovoltaico [ kWp ] | R33: ='Computo-Massimali'!T33 -> 0 | S33: ok | U33: 0 | W33: 0 | Y33: 0 | AA33: 0
C34: ='Computo-Massimali'!C34 -> AC) Sistema di Accumulo [ kWh ] | E34: ='Computo-Massimali'!E34 -> 10 | F34: 0 | G34: =IF('Computo-Massimali'!F34<>0,'Computo-Massimali'!G34*F34/'Computo-Massimali'!F34,0) -> 0 | H34: 0 | I34: =F34*'Dati Gen'!$J$20+G34*'Dati Gen'!$J$19 -> 0 | J34: =H34+I34 -> 0 | K34: =IF('Computo-Massimali'!F34<>0,'Computo-Massimali'!K34*F34/'Computo-Massimali'!F34,0) -> 0 | L34: =SUM(J34:K34) -> 0 | M34: 0 | N34: =IF('Computo-Massimali'!L34>0,L34/'Computo-Massimali'!L34,0) -> 0 | O34: =IF(F34>0,IF(F34-0.001>'Computo-Massimali'!F34,">Computo",IF(F34+0.001<'SAL.60%'!F34,"< SAL.2","")),"") ->  | Q34: AC) Sistema di Accumulo [ kWh ] | R34: ='Computo-Massimali'!T34 -> 0 | S34: ok | U34: 0 | W34: 0 | Y34: 0 | AA34: 0
C35: ='Computo-Massimali'!C35 -> CR) Colonnine di Ricarica [ N. ] | E35: ='Computo-Massimali'!E35 -> 1 | F35: 0 | G35: =IF('Computo-Massimali'!F35<>0,'Computo-Massimali'!G35*F35/'Computo-Massimali'!F35,0) -> 0 | H35: 0 | I35: =F35*'Dati Gen'!$J$20+G35*'Dati Gen'!$J$19 -> 0 | J35: 0 | K35: =IF('Computo-Massimali'!F35<>0,'Computo-Massimali'!K35*F35/'Computo-Massimali'!F35,0) -> 0 | L35: 0 | M35: 0 | N35: =IF('Computo-Massimali'!L35>0,L35/'Computo-Massimali'!L35,0) -> 0 | O35: =IF(F35>0,IF(F35-0.001>'Computo-Massimali'!F35,">Computo",IF(F35+0.001<'SAL.60%'!F35,"< SAL.2","")),"") ->  | Q35: CR) Colonnine di Ricarica [ N. ] | R35: ='Computo-Massimali'!T35 -> 0 | S35: ok | U35: 0 | W35: 0 | Y35: 0 | AA35: 0
C36: ='Computo-Massimali'!C36 -> EBA) Eliminazione Barriere architettoniche | F36: 0 | G36: =IF('Computo-Massimali'!F36<>0,'Computo-Massimali'!G36*F36/'Computo-Massimali'!F36,0) -> 0 | H36: 0 | I36: =F36*'Dati Gen'!$J$20+G36*'Dati Gen'!$J$19 -> 0 | J36: 0 | K36: =IF('Computo-Massimali'!F36<>0,'Computo-Massimali'!K36*F36/'Computo-Massimali'!F36,0) -> 0 | L36: 0 | M36: 0 | N36: =IF('Computo-Massimali'!L36>0,L36/'Computo-Massimali'!L36,0) -> 0 | O36: =IF(F36>0,IF(F36-0.001>'Computo-Massimali'!F36,">Computo",IF(F36+0.001<'SAL.60%'!F36,"< SAL.2","")),"") ->  | Q36: EBA) Eliminazione Barriere architettoniche | R36: ='Computo-Massimali'!T36 -> 0 | S36: ok | U36: 0 | W36: 0 | Y36: 0 | AA36: 0
C37: ='Computo-Massimali'!C37 -> Totale Interventi Trainati Parti Comuni : | F37: =SUM(F24:F26)+SUM(F30:F36) -> 0 | G37: =SUM(G24:G26)+SUM(G30:G36) -> 0 | H37: 0 | I37: 0 | J37: 0 | K37: 0 | L37: =SUM(L24:L26)+SUM(L30:L36) -> 0 | M37: 0 | N37: =IF('Computo-Massimali'!L37>0,L37/'Computo-Massimali'!L37,0) -> 0 | O37: =IF(F37>0,IF(F37-0.001>'Computo-Massimali'!F37,">Computo",IF(F37+0.001<'SAL.60%'!F37,"< SAL.2","")),"") ->  | R37: =C37 -> Totale Interventi Trainati Parti Comuni : | U37: =U24+U25+U26+SUM(U30:V36) -> 0 | W37: =W24+W25+W26+SUM(W30:X36) -> 0 | Y37: =Y24+Y25+Y26+SUM(Y30:Z36) -> 0 | AA37: =AA24+AA25+AA26+SUM(AA30:AB36) -> 0
C40: INTERVENTI TRAINATI | O40: .. | Q40: =CONCATENATE("Verifica Massimali di Spesa ",C40) -> Verifica Massimali di Spesa INTERVENTI TRAINATI
C41: Interventi | F41: Importo Lavori | G41: Incidenza Sicurezza | H41: Imponibile | I41: Iva | J41: Importo c.iva | K41: Spese tecniche | L41: Totale | M41: Credito Spettante 110% Spesa Ammessa | N41: %SAL | R41: Massimale spesa | S41: Verifica Max | U41: Spesa Ammessa | W41: Quota Eccedente Massimale Spesa | Y41: Credito Spettante 110% Spesa Ammessa Quota Impresa | Quota Tecnici
C42: ='Computo-Massimali'!C42:D42 -> PV) Isolamento pareti perimetrali | E42: ='Computo-Massimali'!E42 -> Esterno | F42: 0 | G42: =IF('Computo-Massimali'!F42<>0,'Computo-Massimali'!G42*F42/'Computo-Massimali'!F42,0) -> 0 | H42: =SUM(F42:G42) -> 0 | I42: =F42*'Dati Gen'!$J$20+G42*'Dati Gen'!$J$19 -> 0 | J42: =H42+I42 -> 0 | K42: =IF('Computo-Massimali'!F42<>0,'Computo-Massimali'!K42*F42/'Computo-Massimali'!F42,0) -> 0 | L42: =SUM(J42:K42) -> 0 | M42: =IF(L42<=R42,L42*1.1,R42*1.1) -> 0 | N42: =IF('Computo-Massimali'!L42>0,L42/'Computo-Massimali'!L42,0) -> 0 | O42: =IF(F42>0,IF(F42-0.001>'Computo-Massimali'!F42,">Computo",IF(F42+0.001<'SAL.60%'!F42,"< SAL.2","")),"") ->  | Q42: =C42 -> PV) Isolamento pareti perimetrali | R42: ='Computo-Massimali'!T42 -> 0 | S42: =IF(L42>M42,"KO Tot.>Detr.",IF(L42>R42,"ko","ok")) -> ok | U42: =IF($L$46<>0,(L42/$L$46)*$U$46,0) -> 0 | W42: =IF(L42>R42,L42-R42,0) -> 0 | Y42: =IF(M42<>0,J42*M42/L42,0) -> 0 | AA42: =IF(M42<>0,K42*M42/L42,0) -> 0
C43: ='Computo-Massimali'!C43:D43 -> PO) Isolamento coperture | E43: Esterno | F43: 0 | G43: =IF('Computo-Massimali'!F43<>0,'Computo-Massimali'!G43*F43/'Computo-Massimali'!F43,0) -> 0 | H43: =SUM(F43:G43) -> 0 | I43: =F43*'Dati Gen'!$J$20+G43*'Dati Gen'!$J$19 -> 0 | J43: =H43+I43 -> 0 | K43: =IF('Computo-Massimali'!F43<>0,'Computo-Massimali'!K43*F43/'Computo-Massimali'!F43,0) -> 0 | L43: =SUM(J43:K43) -> 0 | M43: =IF(L43<=R43,L43*1.1,R43*1.1) -> 0 | N43: =IF('Computo-Massimali'!L43>0,L43/'Computo-Massimali'!L43,0) -> 0 | O43: =IF(F43>0,IF(F43-0.001>'Computo-Massimali'!F43,">Computo",IF(F43+0.001<'SAL.60%'!F43,"< SAL.2","")),"") ->  | Q43: PO) Isolamento coperture | R43: ='Computo-Massimali'!T43 -> 0 | S43: ok | U43: =IF($L$46<>0,(L43/$L$46)*$U$46,0) -> 0 | W43: 0 | Y43: 0 | AA43: 0
C44: ='Computo-Massimali'!C44:D44 -> PS) Isolamento Pavimenti | E44: Esterno | F44: 0 | G44: =IF('Computo-Massimali'!F44<>0,'Computo-Massimali'!G44*F44/'Computo-Massimali'!F44,0) -> 0 | H44: =SUM(F44:G44) -> 0 | I44: =F44*'Dati Gen'!$J$20+G44*'Dati Gen'!$J$19 -> 0 | J44: =H44+I44 -> 0 | K44: =IF('Computo-Massimali'!F44<>0,'Computo-Massimali'!K44*F44/'Computo-Massimali'!F44,0) -> 0 | L44: =SUM(J44:K44) -> 0 | M44: =IF(L44<=R44,L44*1.1,R44*1.1) -> 0 | N44: =IF('Computo-Massimali'!L44>0,L44/'Computo-Massimali'!L44,0) -> 0 | O44: =IF(F44>0,IF(F44-0.001>'Computo-Massimali'!F44,">Computo",IF(F44+0.001<'SAL.60%'!F44,"< SAL.2","")),"") ->  | Q44: PS) Isolamento Pavimenti | R44: ='Computo-Massimali'!T44 -> 0 | S44: ok | U44: =IF($L$46<>0,(L44/$L$46)*$U$46,0) -> 0 | W44: 0 | Y44: 0 | AA44: 0
C45: ='Computo-Massimali'!C45:D45 -> IN) Serramenti con chiusure oscuranti | E45: ='Computo-Massimali'!E45 -> Zone D, E ed F | F45: 0 | G45: =IF('Computo-Massimali'!F45<>0,'Computo-Massimali'!G45*F45/'Computo-Massimali'!F45,0) -> 0 | H45: =SUM(F45:G45) -> 0 | I45: =F45*'Dati Gen'!$J$20+G45*'Dati Gen'!$J$19 -> 0 | J45: =H45+I45 -> 0 | K45: =IF('Computo-Massimali'!F45<>0,'Computo-Massimali'!K45*F45/'Computo-Massimali'!F45,0) -> 0 | L45: =SUM(J45:K45) -> 0 | M45: =IF(L45<=R45,L45*1.1,R45*1.1) -> 0 | N45: =IF('Computo-Massimali'!L45>0,L45/'Computo-Massimali'!L45,0) -> 0 | O45: =IF(F45>0,IF(F45-0.001>'Computo-Massimali'!F45,">Computo",IF(F45+0.001<'SAL.60%'!F45,"< SAL.2","")),"") ->  | Q45: IN) Serramenti con chiusure oscuranti | R45: ='Computo-Massimali'!T45 -> 0 | S45: ok | U45: =IF($L$46<>0,(L45/$L$46)*$U$46,0) -> 0 | W45: 0 | Y45: 0 | AA45: 0
C46: ='Computo-Massimali'!C46:D46 -> Totali Isolamento PV) PO) PS) e IN | F46: =SUM(F42:F45) -> 0 | G46: =SUM(G42:G45) -> 0 | H46: 0 | I46: 0 | J46: 0 | K46: =SUM(K42:K45) -> 0 | L46: =SUM(L42:L45) -> 0 | M46: 0 | N46: =IF('Computo-Massimali'!L46>0,L46/'Computo-Massimali'!L46,0) -> 0 | O46: =IF(F46>0,IF(F46-0.001>'Computo-Massimali'!F46,">Computo",IF(F46+0.001<'SAL.60%'!F46,"< SAL.2","")),"") ->  | Q46: Totali Isolamento PV) PO) PS) e IN | R46: ='Computo-Massimali'!T46 -> 0 | S46: ok | U46: =IF(L46<R46,L46,R46) -> 0 | W46: 0 | Y46: 0 | AA46: 0
C47: ='Computo-Massimali'!C47:D47 -> SS) Schermature solari e chiusure oscuranti | F47: 0 | G47: =IF('Computo-Massimali'!F47<>0,'Computo-Massimali'!G47*F47/'Computo-Massimali'!F47,0) -> 0 | H47: =SUM(F47:G47) -> 0 | I47: =F47*'Dati Gen'!$J$20+G47*'Dati Gen'!$J$19 -> 0 | J47: =H47+I47 -> 0 | K47: =IF('Computo-Massimali'!F47<>0,'Computo-Massimali'!K47*F47/'Computo-Massimali'!F47,0) -> 0 | L47: =SUM(J47:K47) -> 0 | M47: =IF(L47<=R47,L47*1.1,R47*1.1) -> 0 | N47: =IF('Computo-Massimali'!L47>0,L47/'Computo-Massimali'!L47,0) -> 0 | O47: =IF(F47>0,IF(F47-0.001>'Computo-Massimali'!F47,">Computo",IF(F47+0.001<'SAL.60%'!F47,"< SAL.2","")),"") ->  | Q47: SS) Schermature solari e chiusure oscuranti | R47: ='Computo-Massimali'!T47 -> 0 | S47: ok | U47: =IF(L47<R47,L47,R47) -> 0 | W47: 0 | Y47: 0 | AA47: 0
C48: ='Computo-Massimali'!C48:D48 -> Impianti climatizzazione con | F48: 0 | G48: =IF('Computo-Massimali'!F48<>0,'Computo-Massimali'!G48*F48/'Computo-Massimali'!F48,0) -> 0 | H48: =SUM(F48:G48) -> 0 | I48: =F48*'Dati Gen'!$J$20+G48*'Dati Gen'!$J$19 -> 0 | J48: =H48+I48 -> 0 | K48: =IF('Computo-Massimali'!F48<>0,'Computo-Massimali'!K48*F48/'Computo-Massimali'!F48,0) -> 0 | L48: =SUM(J48:K48) -> 0 | M48: =IF(L48<=R48,L48*1.1,R48*1.1) -> 0 | N48: =IF('Computo-Massimali'!L48>0,L48/'Computo-Massimali'!L48,0) -> 0 | O48: =IF(F48>0,IF(F48-0.001>'Computo-Massimali'!F48,">Computo",IF(F48+0.001<'SAL.60%'!F48,"< SAL.2","")),"") ->  | Q48: Impianti climatizzazione con | R48: ='Computo-Massimali'!T48 -> 0 | S48: ok | U48: =IF($L$50<>0,(L48/$L$50)*$U$50,0) -> 0 | W48: =IF(L48>R48,L48-R48,0) -> 0 | Y48: =IF(M48<>0,J48*M48/L48,0) -> 0 | AA48: =IF(M48<>0,K48*M48/L48,0) -> 0
C49: ='Computo-Massimali'!C49:D49 -> SA) Scaldacqua a pompa di calore | F49: 0 | G49: =IF('Computo-Massimali'!F49<>0,'Computo-Massimali'!G49*F49/'Computo-Massimali'!F49,0) -> 0 | H49: =SUM(F49:G49) -> 0 | I49: =F49*'Dati Gen'!$J$20+G49*'Dati Gen'!$J$19 -> 0 | J49: =H49+I49 -> 0 | K49: =IF('Computo-Massimali'!F49<>0,'Computo-Massimali'!K49*F49/'Computo-Massimali'!F49,0) -> 0 | L49: =SUM(J49:K49) -> 0 | M49: =IF(L49<=R49,L49*1.1,R49*1.1) -> 0 | N49: =IF('Computo-Massimali'!L49>0,L49/'Computo-Massimali'!L49,0) -> 0 | O49: =IF(F49>0,IF(F49-0.001>'Computo-Massimali'!F49,">Computo",IF(F49+0.001<'SAL.60%'!F49,"< SAL.2","")),"") ->  | Q49: SA) Scaldacqua a pompa di calore | R49: ='Computo-Massimali'!T49 -> 0 | S49: ok | U49: =IF($L$50<>0,(L49/$L$50)*$U$50,0) -> 0 | W49: 0 | Y49: 0 | AA49: 0
C50: ='Computo-Massimali'!C50:D50 -> Totali Impianti ed SA) | F50: =SUM(F48:F49) -> 0 | G50: 0 | H50: 0 | I50: 0 | J50: 0 | K50: 0 | L50: 0 | M50: 0 | N50: =IF('Computo-Massimali'!L50>0,L50/'Computo-Massimali'!L50,0) -> 0 | O50: =IF(F50>0,IF(F50-0.001>'Computo-Massimali'!F50,">Computo",IF(F50+0.001<'SAL.60%'!F50,"< SAL.2","")),"") ->  | Q50: Totali Impianti ed SA) | R50: ='Computo-Massimali'!T50 -> 0 | S50: ok | U50: =IF(L50<R50,L50,R50) -> 0 | W50: 0 | Y50: 0 | AA50: 0
C51: ='Computo-Massimali'!C51:D51 -> CO) Sistemi di Microgenerazione | F51: 0 | G51: =IF('Computo-Massimali'!F51<>0,'Computo-Massimali'!G51*F51/'Computo-Massimali'!F51,0) -> 0 | H51: =SUM(F51:G51) -> 0 | I51: =F51*'Dati Gen'!$J$20+G51*'Dati Gen'!$J$19 -> 0 | J51: =H51+I51 -> 0 | K51: =IF('Computo-Massimali'!F51<>0,'Computo-Massimali'!K51*F51/'Computo-Massimali'!F51,0) -> 0 | L51: =SUM(J51:K51) -> 0 | M51: =IF(L51<=R51,L51*1.1,R51*1.1) -> 0 | N51: =IF('Computo-Massimali'!L51>0,L51/'Computo-Massimali'!L51,0) -> 0 | O51: =IF(F51>0,IF(F51-0.001>'Computo-Massimali'!F51,">Computo",IF(F51+0.001<'SAL.60%'!F51,"< SAL.2","")),"") ->  | Q51: CO) Sistemi di Microgenerazione | R51: ='Computo-Massimali'!T51 -> 0 | S51: ok | U51: 0 | W51: 0 | Y51: 0 | AA51: 0
C52: ='Computo-Massimali'!C52:D52 -> IB) Generatori a Biomassa | F52: 0 | G52: =IF('Computo-Massimali'!F52<>0,'Computo-Massimali'!G52*F52/'Computo-Massimali'!F52,0) -> 0 | H52: 0 | I52: =F52*'Dati Gen'!$J$20+G52*'Dati Gen'!$J$19 -> 0 | J52: 0 | K52: =IF('Computo-Massimali'!F52<>0,'Computo-Massimali'!K52*F52/'Computo-Massimali'!F52,0) -> 0 | L52: 0 | M52: 0 | N52: =IF('Computo-Massimali'!L52>0,L52/'Computo-Massimali'!L52,0) -> 0 | O52: =IF(F52>0,IF(F52-0.001>'Computo-Massimali'!F52,">Computo",IF(F52+0.001<'SAL.60%'!F52,"< SAL.2","")),"") ->  | Q52: IB) Generatori a Biomassa | R52: ='Computo-Massimali'!T52 -> 0 | S52: ok | U52: 0 | W52: 0 | Y52: 0 | AA52: 0
C53: ='Computo-Massimali'!C53:D53 -> BA) Building Automation | F53: 0 | G53: =IF('Computo-Massimali'!F53<>0,'Computo-Massimali'!G53*F53/'Computo-Massimali'!F53,0) -> 0 | H53: 0 | I53: =F53*'Dati Gen'!$J$20+G53*'Dati Gen'!$J$19 -> 0 | J53: 0 | K53: =IF('Computo-Massimali'!F53<>0,'Computo-Massimali'!K53*F53/'Computo-Massimali'!F53,0) -> 0 | L53: 0 | M53: 0 | N53: =IF('Computo-Massimali'!L53>0,L53/'Computo-Massimali'!L53,0) -> 0 | O53: =IF(F53>0,IF(F53-0.001>'Computo-Massimali'!F53,">Computo",IF(F53+0.001<'SAL.60%'!F53,"< SAL.2","")),"") ->  | Q53: BA) Building Automation | R53: ='Computo-Massimali'!T53 -> 0 | S53: ok | U53: 0 | W53: 0 | Y53: 0 | AA53: 0
C54: ='Computo-Massimali'!C54:D54 -> ST) Collettori Solari | E54: ='Computo-Massimali'!E54 -> Piani Vetrati | F54: 0 | G54: =IF('Computo-Massimali'!F54<>0,'Computo-Massimali'!G54*F54/'Computo-Massimali'!F54,0) -> 0 | H54: 0 | I54: =F54*'Dati Gen'!$J$20+G54*'Dati Gen'!$J$19 -> 0 | J54: 0 | K54: =IF('Computo-Massimali'!F54<>0,'Computo-Massimali'!K54*F54/'Computo-Massimali'!F54,0) -> 0 | L54: 0 | M54: 0 | N54: =IF('Computo-Massimali'!L54>0,L54/'Computo-Massimali'!L54,0) -> 0 | O54: =IF(F54>0,IF(F54-0.001>'Computo-Massimali'!F54,">Computo",IF(F54+0.001<'SAL.60%'!F54,"< SAL.2","")),"") ->  | Q54: ST) Collettori Solari | R54: ='Computo-Massimali'!T54 -> 0 | S54: ok | U54: 0 | W54: 0 | Y54: 0 | AA54: 0
C55: ='Computo-Massimali'!C55:D55 -> FV) Solare Fotovoltaico [ kWp ] | E55: ='Computo-Massimali'!E55 -> 6 | F55: 0 | G55: =IF('Computo-Massimali'!F55<>0,'Computo-Massimali'!G55*F55/'Computo-Massimali'!F55,0) -> 0 | H55: 0 | I55: =F55*'Dati Gen'!$J$20+G55*'Dati Gen'!$J$19 -> 0 | J55: 0 | K55: =IF('Computo-Massimali'!F55<>0,'Computo-Massimali'!K55*F55/'Computo-Massimali'!F55,0) -> 0 | L55: 0 | M55: 0 | N55: =IF('Computo-Massimali'!L55>0,L55/'Computo-Massimali'!L55,0) -> 0 | O55: =IF(F55>0,IF(F55-0.001>'Computo-Massimali'!F55,">Computo",IF(F55+0.001<'SAL.60%'!F55,"< SAL.2","")),"") ->  | Q55: FV) Solare Fotovoltaico [ kWp ] | R55: ='Computo-Massimali'!T55 -> 0 | S55: ok | U55: 0 | W55: 0 | Y55: 0 | AA55: 0
C56: ='Computo-Massimali'!C56:D56 -> AC) Sistema di Accumulo [ kWh ] | E56: ='Computo-Massimali'!E56 -> 10 | F56: 0 | G56: =IF('Computo-Massimali'!F56<>0,'Computo-Massimali'!G56*F56/'Computo-Massimali'!F56,0) -> 0 | H56: 0 | I56: =F56*'Dati Gen'!$J$20+G56*'Dati Gen'!$J$19 -> 0 | J56: 0 | K56: =IF('Computo-Massimali'!F56<>0,'Computo-Massimali'!K56*F56/'Computo-Massimali'!F56,0) -> 0 | L56: 0 | M56: 0 | N56: =IF('Computo-Massimali'!L56>0,L56/'Computo-Massimali'!L56,0) -> 0 | O56: =IF(F56>0,IF(F56-0.001>'Computo-Massimali'!F56,">Computo",IF(F56+0.001<'SAL.60%'!F56,"< SAL.2","")),"") ->  | Q56: AC) Sistema di Accumulo [ kWh ] | R56: ='Computo-Massimali'!T56 -> 0 | S56: ok | U56: 0 | W56: 0 | Y56: 0 | AA56: 0
C57: ='Computo-Massimali'!C57:D57 -> CR) Colonnine di Ricarica | E57: ='Computo-Massimali'!E57 -> 1 | F57: 0 | G57: =IF('Computo-Massimali'!F57<>0,'Computo-Massimali'!G57*F57/'Computo-Massimali'!F57,0) -> 0 | H57: 0 | I57: =F57*'Dati Gen'!$J$20+G57*'Dati Gen'!$J$19 -> 0 | J57: 0 | K57: =IF('Computo-Massimali'!F57<>0,'Computo-Massimali'!K57*F57/'Computo-Massimali'!F57,0) -> 0 | L57: 0 | M57: 0 | N57: =IF('Computo-Massimali'!L57>0,L57/'Computo-Massimali'!L57,0) -> 0 | O57: =IF(F57>0,IF(F57-0.001>'Computo-Massimali'!F57,">Computo",IF(F57+0.001<'SAL.60%'!F57,"< SAL.2","")),"") ->  | Q57: CR) Colonnine di Ricarica | R57: ='Computo-Massimali'!T57 -> 0 | S57: ok | U57: 0 | W57: 0 | Y57: 0 | AA57: 0
C58: EBA) Eliminazione Barriere architettoniche | F58: 0 | G58: =IF('Computo-Massimali'!F58<>0,'Computo-Massimali'!G58*F58/'Computo-Massimali'!F58,0) -> 0 | H58: =SUM(F58:G58) -> 0 | I58: =F58*'Dati Gen'!$J$20+G58*'Dati Gen'!$J$19 -> 0 | J58: 0 | K58: 0 | L58: 0 | M58: 0 | N58: =IF('Computo-Massimali'!L58>0,L58/'Computo-Massimali'!L58,0) -> 0 | O58: =IF(F58>0,IF(F58-0.001>'Computo-Massimali'!F58,">Computo",IF(F58+0.001<'SAL.60%'!F58,"< SAL.2","")),"") ->  | Q58: EBA) Eliminazione Barriere architettoniche | R58: ='Computo-Massimali'!T58 -> 0 | S58: ok | U58: 0 | W58: 0 | Y58: 0 | AA58: 0
C59: Totale Interventi trainati | F59: =F46+F47+SUM(F50:F58) -> 0 | G59: =G46+G47+SUM(G50:G58) -> 0 | H59: 0 | I59: 0 | J59: 0 | K59: 0 | L59: 0 | M59: 0 | N59: =IF('Computo-Massimali'!L59>0,L59/'Computo-Massimali'!L59,0) -> 0 | O59: =IF(F59>0,IF(F59-0.001>'Computo-Massimali'!F59,">Computo",IF(F59+0.001<'SAL.60%'!F59,"< SAL.2","")),"") ->  | R59: =C59 -> Totale Interventi trainati | U59: =U46+U47+SUM(U50:V58) -> 0 | W59: =W46+W47+SUM(W50:X58) -> 0 | Y59: =Y46+Y47+SUM(Y50:Z58) -> 0 | AA59: =AA46+AA47+SUM(AA50:AB58) -> 0
C78: SimMZ
C80: TOTALI SAL Finale - INTERVENTI 110 | F80: Importo Lavori | G80: Incidenza Sicurezza | H80: Imponibile | I80: Iva | J80: Importo c.iva | K80: Spese tecniche | L80: Totale | M80: Credito Spettante 110% Spesa Ammessa | N80: %SAL | Q80: =C80 -> TOTALI SAL Finale - INTERVENTI 110 | U80: Spesa Ammessa | W80: Quota Eccedente Massimale Spesa | Y80: Credito Spettante 110% Spesa Ammessa Quota Impresa | Quota Tecnici
F81: =F16+F59 -> 0 | G81: 0 | H81: 0 | I81: 0 | J81: 0 | K81: 0 | L81: 0 | M81: 0 | N81: =IF('Computo-Massimali'!L81>0,L81/'Computo-Massimali'!L81,0) -> 0 | O81: =IF(F81>0,IF(F81>'Computo-Massimali'!F81,">Computo",IF(F81<'SAL.60%'!F81,"< SAL.2","")),"") ->  | U81: =U16+U59 -> 0 | W81: =W16+W59 -> 0 | Y81: =Y16+Y59 -> 0 | AA81: =AA16+AA59 -> 0
C83: =IF(N81>=99.999%,"","Attenzione! SAL Superbonus 110 inferiore 100%") -> Attenzione! SAL Superbonus 110 inferiore 100%
C87: ALTRI INTERVENTI | Q87: =CONCATENATE("Verifica Massimali di Spesa ",C87) -> Verifica Massimali di Spesa ALTRI INTERVENTI
C88: Interventi | F88: Importo Lavori | G88: Incidenza Sicurezza | H88: Imponibile | I88: Iva | J88: Importo c.iva | K88: Spese tecniche | L88: Totale | M88: Credito Spettante x% Spesa Ammessa | N88: %SAL | R88: Massimale spesa | S88: Verifica Max | U88: Spesa Ammessa | W88: Quota Eccedente Massimale Spesa | Y88: Credito Spettante x% Spesa Ammessa Quota Impresa | Quota Tecnici
C89: =IF('Computo-Massimali'!C89<>"",'Computo-Massimali'!C89,"") -> Ristrutturazione | E89: ='Computo-Massimali'!E89 -> 0.5 | F89: 0 | G89: =IF('Computo-Massimali'!F89<>0,'Computo-Massimali'!G89*F89/'Computo-Massimali'!F89,0) -> 0 | H89: =SUM(F89:G89) -> 0 | I89: =F89*'Dati Gen'!$J$20+G89*'Dati Gen'!$J$19 -> 0 | J89: =H89+I89 -> 0 | K89: =IF('Computo-Massimali'!F89<>0,'Computo-Massimali'!K89*F89/'Computo-Massimali'!F89,0) -> 0 | L89: =SUM(J89:K89) -> 0 | M89: =IF(L89<=R89,L89*E89,R89*E89) -> 0 | N89: =IF('Computo-Massimali'!L89>0,L89/'Computo-Massimali'!L89,0) -> 0 | O89: =IF(F89>0,IF(F89>'Computo-Massimali'!F89,">Computo",IF(F89<'SAL.60%'!F89,"< SAL.2","")),"") ->  | Q89: =IF(C89<>"",C89,"") -> Ristrutturazione | R89: =96000*N_Uimm -> 96000 | S89: =IF(L89>R89,"KO Tot.>Detr.","ok") -> ok | U89: =IF(L89<R89,L89,R89) -> 0 | W89: =IF(L89>R89,L89-R89,0) -> 0 | Y89: =IF(M89<>0,J89*M89/L89,0) -> 0 | AA89: =IF(M89<>0,K89*M89/L89,0) -> 0
C90: =IF('Computo-Massimali'!C90<>"",'Computo-Massimali'!C90,"") -> Bonus facciata | E90: ='Computo-Massimali'!E90 -> 0.6 | F90: 0 | G90: =IF('Computo-Massimali'!F90<>0,'Computo-Massimali'!G90*F90/'Computo-Massimali'!F90,0) -> 0 | H90: =SUM(F90:G90) -> 0 | I90: =F90*'Dati Gen'!$J$20+G90*'Dati Gen'!$J$19 -> 0 | J90: =H90+I90 -> 0 | K90: =IF('Computo-Massimali'!F90<>0,'Computo-Massimali'!K90*F90/'Computo-Massimali'!F90,0) -> 0 | L90: =SUM(J90:K90) -> 0 | M90: =IF(L90<=R90,L90*E90,R90*E90) -> 0 | N90: =IF('Computo-Massimali'!L90>0,L90/'Computo-Massimali'!L90,0) -> 0 | O90: =IF(F90>0,IF(F90>'Computo-Massimali'!F90,">Computo",IF(F90<'SAL.60%'!F90,"< SAL.2","")),"") ->  | Q90: =IF(C90<>"",C90,"") -> Bonus facciata | R90: =96000*N_Uimm -> 96000 | S90: =IF(L90>R90,"KO Tot.>Detr.","ok") -> ok | U90: =IF(L90<R90,L90,R90) -> 0 | W90: =IF(L90>R90,L90-R90,0) -> 0 | Y90: =IF(M90<>0,J90*M90/L90,0) -> 0 | AA90: =IF(M90<>0,K90*M90/L90,0) -> 0
C91: =IF('Computo-Massimali'!C91<>"",'Computo-Massimali'!C91,"") -> Bonus Casa | E91: ='Computo-Massimali'!E91 -> 0.7 | F91: 0 | G91: =IF('Computo-Massimali'!F91<>0,'Computo-Massimali'!G91*F91/'Computo-Massimali'!F91,0) -> 0 | H91: =SUM(F91:G91) -> 0 | I91: =F91*'Dati Gen'!$J$20+G91*'Dati Gen'!$J$19 -> 0 | J91: =H91+I91 -> 0 | K91: =IF('Computo-Massimali'!F91<>0,'Computo-Massimali'!K91*F91/'Computo-Massimali'!F91,0) -> 0 | L91: =SUM(J91:K91) -> 0 | M91: =IF(L91<=R91,L91*E91,R91*E91) -> 0 | N91: =IF('Computo-Massimali'!L91>0,L91/'Computo-Massimali'!L91,0) -> 0 | O91: =IF(F91>0,IF(F91>'Computo-Massimali'!F91,">Computo",IF(F91<'SAL.60%'!F91,"< SAL.2","")),"") ->  | Q91: =IF(C91<>"",C91,"") -> Bonus Casa | R91: =96000*N_Uimm -> 96000 | S91: =IF(L91>R91,"KO Tot.>Detr.","ok") -> ok | U91: =IF(L91<R91,L91,R91) -> 0 | W91: =IF(L91>R91,L91-R91,0) -> 0 | Y91: =IF(M91<>0,J91*M91/L91,0) -> 0 | AA91: =IF(M91<>0,K91*M91/L91,0) -> 0
C92: =IF('Computo-Massimali'!C92<>"",'Computo-Massimali'!C92,"") ->  | E92: ='Computo-Massimali'!E92 -> 0 | F92: 0 | G92: =IF('Computo-Massimali'!F92<>0,'Computo-Massimali'!G92*F92/'Computo-Massimali'!F92,0) -> 0 | H92: =SUM(F92:G92) -> 0 | I92: =F92*'Dati Gen'!$J$20+G92*'Dati Gen'!$J$19 -> 0 | J92: =H92+I92 -> 0 | K92: =IF('Computo-Massimali'!F92<>0,'Computo-Massimali'!K92*F92/'Computo-Massimali'!F92,0) -> 0 | L92: =SUM(J92:K92) -> 0 | M92: =IF(L92<=R92,L92*E92,R92*E92) -> 0 | N92: =IF('Computo-Massimali'!L92>0,L92/'Computo-Massimali'!L92,0) -> 0 | O92: =IF(F92>0,IF(F92>'Computo-Massimali'!F92,">Computo",IF(F92<'SAL.60%'!F92,"< SAL.2","")),"") ->  | Q92: =IF(C92<>"",C92,"") ->  | R92: =96000*N_Uimm -> 96000 | S92: =IF(L92>R92,"KO Tot.>Detr.","ok") -> ok | U92: =IF(L92<R92,L92,R92) -> 0 | W92: =IF(L92>R92,L92-R92,0) -> 0 | Y92: =IF(M92<>0,J92*M92/L92,0) -> 0 | AA92: =IF(M92<>0,K92*M92/L92,0) -> 0
C93: TotalI SAL Finale - Altri Interventi : | F93: =SUM(F89:F92) -> 0 | G93: 0 | H93: 0 | I93: 0 | J93: 0 | K93: 0 | L93: 0 | M93: 0 | N93: =IF('Computo-Massimali'!L93>0,L93/'Computo-Massimali'!L93,0) -> 0 | O93: =IF(F93>0,IF(F93>'Computo-Massimali'!F93,">Computo",IF(F93<'SAL.60%'!F93,"< SAL.2","")),"") ->  | R93: =C93 -> TotalI SAL Finale - Altri Interventi : | U93: =SUM(U89:V92) -> 0 | W93: =SUM(W89:X92) -> 0 | Y93: =SUM(Y89:Z92) -> 0 | AA93: =SUM(AA89:AB92) -> 0
F96: Importo Lavori Eseguiti | G96: Incidenza Sicurezza | H96: Imponibile | I96: Iva | J96: Importo c.iva | K96: Spese tecniche | L96: Totale | M96: Credito Spettante | N96: %SAL | Q96: =C99 -> TOTALI SAL. Finale del 09/05/2022 : | U96: Spesa Ammessa | W96: Quota Eccedente Massimale Spesa | Y96: Credito Spettante Quota Impresa | Quota Tecnici
C97: =CONCATENATE("TOTALI SAL. N.1 del ",'SAL.30%'!C4, " : ") -> TOTALI SAL. N.1 del 07/05/2022 : | F97: ='SAL.30%'!F97 -> 0 | G97: ='SAL.30%'!G97 -> 0 | H97: ='SAL.30%'!H97 -> 0 | I97: ='SAL.30%'!I97 -> 0 | J97: ='SAL.30%'!J97 -> 0 | K97: ='SAL.30%'!K97 -> 0 | L97: ='SAL.30%'!L97 -> 0 | M97: ='SAL.30%'!M97 -> 0 | N97: ='SAL.30%'!N97 -> 0 | O97: =IF(F97>0,IF(F97>'Computo-Massimali'!F100,">Computo",IF(F97<'SAL.30%'!F97,"< SAL.1","")),"") ->  | U97: =U81+U93 -> 0 | W97: =W81+W93 -> 0 | Y97: =Y81+Y93 -> 0 | AA97: =AA81+AA93 -> 0
C98: =CONCATENATE("TOTALI SAL. N.2 del ",'SAL.60%'!C4, " : ") -> TOTALI SAL. N.2 del 08/05/2022 : | F98: ='SAL.60%'!F97 -> 0 | G98: ='SAL.60%'!G97 -> 0 | H98: ='SAL.60%'!H97 -> 0 | I98: ='SAL.60%'!I97 -> 0 | J98: ='SAL.60%'!J97 -> 0 | K98: ='SAL.60%'!K97 -> 0 | L98: ='SAL.60%'!L97 -> 0 | M98: ='SAL.60%'!M97 -> 0 | N98: ='SAL.60%'!N97 -> 0 | O98: =IF(F98>0,IF(F98>'Computo-Massimali'!F100,">Computo",IF(F98<'SAL.60%'!F97,"< SAL.2","")),"") -> 
C99: =CONCATENATE("TOTALI SAL. Finale del ",C4, " : ") -> TOTALI SAL. Finale del 09/05/2022 : | F99: =F81+F93 -> 0 | G99: =G81+G93 -> 0 | H99: 0 | I99: =I81+I93 -> 0 | J99: 0 | K99: 0 | L99: 0 | M99: =M81+M93 -> 0 | N99: =IF('Computo-Massimali'!L100>0,L99/'Computo-Massimali'!L100,0) -> 0 | O99: =IF(F99>0,IF(F99>'Computo-Massimali'!F100,">Computo",IF(F99<'SAL.60%'!F97,"< SAL.2","")),"") -> 
C101: =IF(ABS(D5-G99)>0.01,"Importo Effettivo Lavori Eseguiti","") ->  | F101: =IF($C$101<>"",F99,"") ->  | G101: =IF($C$101<>"",D5,"") ->  | H101: =IF($C$101<>"",F101+G101,"") ->  | I101: =IF($C$101<>"",H101*AliqIva,"") ->  | J101: =IF($C$101<>"",H101+I101,"") ->  | K101: =IF($C$101<>"",K99,"") ->  | L101: =IF($C$101<>"",J101+K101,"") ->  | M101: =IF($C$101<>"",L101*1.1,"") ->  | N101: =IF($C$101<>"",L101/'Computo-Massimali'!L100,"") -> 
C102: =IF($C$101<>"","Oneri/Lavori Sicurezza non imputabili al SAL, per lavori non eseguiti","") ->  | G102: =IF($C$102<>"",D5-G99,"") -> 
C104: Quota % effettiva per cessione credito a Banca o Impresa "Interventi 110" | H104: ='Computo-Massimali'!H104 -> 0.9090909091 | I104: ='Computo-Massimali'!I104 -> 100 | J104: Importo Ricevuto | K104: =DetrazFinale*H104 -> 0 | L104: Costo Cessione 110 | M104: =SpesaAmmessaFinale-K104 -> 0
G105: Quota % effettiva per cessione credito a Banca o Impresa "Altri Interventi" | H105: ='Computo-Massimali'!H105 -> 0.8 | I105: ='Computo-Massimali'!I105 -> 80 | J105: Importo Ricevuto | K105: =M93*H105 -> 0 | L105: Costo Cessione Altri | M105: =M93-K105 -> 0
L107: Quota Impresa | M107: Quota Tecnici
G108: Quota Eccedente Massimali Spesa "Interventi 110" | H108: =QuotaEcced30 -> 0 | I108: Credito Netto a seguito Cessione | K108: =SpesaAmmessaFinale-M104 -> 0 | L108: =IF(DetrazFinale<>0,QuotaImpresaFinale*K108/DetrazFinale,0) -> 0 | M108: =IF(DetrazFinale<>0,QuotaTecniciFinale*K108/DetrazFinale,0) -> 0
G109: Quota Eccedente Massimali Spesa "Altri Interventi" | H109: =W93 -> 0 | I109: Credito Netto a seguito Cessione | K109: =M93-M105 -> 0 | L109: =IF(M93<>0,Y93*K109/M93,0) -> 0 | M109: =IF(M93<>0,AA93*K109/M93,0) -> 0
I110: Quota Cliente x Interventi 110 | K110: =IF(TotaleFinale-K108>0,TotaleFinale-K108,0) -> 0 | L110: =IF(DetrazFinale<>0,K110*QuotaImpresaFinale/DetrazFinale,0) -> 0 | M110: =IF(DetrazFinale<>0,K110*QuotaTecniciFinale/DetrazFinale,0) -> 0
I111: Quota Cliente x Altri Interventi | K111: =IF(L93-K109>0,L93-K109,0) -> 0 | L111: =IF(M93<>0,K111*Y93/M93,0) -> 0 | M111: =IF(M93<>0,K111*AA93/M93,0) -> 0
I112: Quota Totale a Carico Cliente | K112: =SUM(K110:K111) -> 0 | L112: =SUM(L110:L111) -> 0 | M112: =SUM(M110:M111) -> 0
Q115: Ripartizione Spese Tecniche SAL. Finale - INTERVENTI 110 | AC115: Applica Sconto in Fattura
Q116: Lavoro | R116: Tecnico | S116: Onorario | U116: C.Cassa | W116: Imponibile | Y116: IVA | AA116: Totale | AF116: ='Dati Gen'!B44 -> Architetto1 | AG116: ='Dati Gen'!B45 -> Ingegnere2 | AH116: ='Dati Gen'!B46 -> Consulente1 | AI116: ='Dati Gen'!B47 -> 0 | AJ116: ='Dati Gen'!B48 -> 0 | AK116: ='Dati Gen'!B49 -> 0 | AL116: ='Dati Gen'!B50 -> 0 | AM116: ='Dati Gen'!B51 -> 0
Q117: =IF('Dati Gen'!B25<>"",'Dati Gen'!B25,"") -> Redazione APE ante, Progettazione energetica | R117: =IF('Dati Gen'!C25<>"",'Dati Gen'!C25,"") -> Architetto1 | S117: =W117/(1+U117) -> 0 | U117: ='Dati Gen'!G25 -> 0.04 | V117: =S117*U117 -> 0 | W117: =AA117/(1+Y117) -> 0 | Y117: ='Dati Gen'!J25 -> 0.22 | Z117: =Y117*(S117+V117) -> 0 | AA117: =IF('Dati Gen'!$M$36<>0,$AA$126*'Dati Gen'!M25/'Dati Gen'!$M$36,0) -> 0 | AC117: =IF(R117<>"",VLOOKUP(R117,'Dati Gen'!$B$44:$D$51,3,0),"") -> SI | AF117: =IF($R117=AF$116,$AA117,0) -> 0 | AG117: =IF($R117=AG$116,$AA117,0) -> 0 | AH117: 0 | AI117: 0 | AJ117: 0 | AK117: 0 | AL117: 0 | AM117: 0
Q118: =IF('Dati Gen'!B26<>"",'Dati Gen'!B26,"") -> Progettazione e DD.LL. | R118: =IF('Dati Gen'!C26<>"",'Dati Gen'!C26,"") -> Architetto1 | S118: =W118/(1+U118) -> 0 | U118: ='Dati Gen'!G26 -> 0.04 | V118: =S118*U118 -> 0 | W118: =AA118/(1+Y118) -> 0 | Y118: ='Dati Gen'!J26 -> 0.22 | Z118: =(S118+V118)*Y118 -> 0 | AA118: =IF('Dati Gen'!$M$36<>0,$AA$126*'Dati Gen'!M26/'Dati Gen'!$M$36,0) -> 0 | AC118: =IF(R118<>"",VLOOKUP(R118,'Dati Gen'!$B$44:$D$51,3,0),"") -> SI | AF118: =IF($R118=AF$116,$AA118,0) -> 0 | AG118: 0 | AH118: 0 | AI118: 0 | AJ118: 0 | AK118: 0 | AL118: 0 | AM118: 0
Q119: =IF('Dati Gen'!B27<>"",'Dati Gen'!B27,"") -> Coordinamento sicurezza | R119: =IF('Dati Gen'!C27<>"",'Dati Gen'!C27,"") -> Ingegnere2 | S119: 0 | U119: ='Dati Gen'!G27 -> 0.04 | V119: =S119*U119 -> 0 | W119: 0 | Y119: ='Dati Gen'!J27 -> 0.22 | Z119: 0 | AA119: =IF('Dati Gen'!$M$36<>0,$AA$126*'Dati Gen'!M27/'Dati Gen'!$M$36,0) -> 0 | AC119: =IF(R119<>"",VLOOKUP(R119,'Dati Gen'!$B$44:$D$51,3,0),"") -> NO | AF119: 0 | AG119: 0 | AH119: 0 | AI119: 0 | AJ119: 0 | AK119: 0 | AL119: 0 | AM119: 0
Q120: =IF('Dati Gen'!B28<>"",'Dati Gen'!B28,"") -> Redazione APE post | R120: =IF('Dati Gen'!C28<>"",'Dati Gen'!C28,"") -> Architetto1 | S120: 0 | U120: ='Dati Gen'!G28 -> 0.04 | V120: =S120*U120 -> 0 | W120: 0 | Y120: ='Dati Gen'!J28 -> 0.22 | Z120: 0 | AA120: =IF('Dati Gen'!X144,$AA$126*'Dati Gen'!M28/'Dati Gen'!$M$36,0) -> 0 | AC120: =IF(R120<>"",VLOOKUP(R120,'Dati Gen'!$B$44:$D$51,3,0),"") -> SI | AF120: =IF($R120=AF$116,$AA120,0) -> 0 | AG120: 0 | AH120: 0 | AI120: 0 | AJ120: 0 | AK120: 0 | AL120: 0 | AM120: 0
Q121: =IF('Dati Gen'!B29<>"",'Dati Gen'!B29,"") ->  | R121: =IF('Dati Gen'!C29<>"",'Dati Gen'!C29,"") ->  | S121: 0 | U121: ='Dati Gen'!G29 -> 0.04 | V121: =T121*U121 -> 0 | W121: 0 | Y121: ='Dati Gen'!J29 -> 0.22 | Z121: 0 | AA121: =IF('Dati Gen'!$M$36<>0,$AA$126*'Dati Gen'!M29/'Dati Gen'!$M$36,0) -> 0 | AC121: =IF(R121<>"",VLOOKUP(R121,'Dati Gen'!$B$44:$D$51,3,0),"") ->  | AF121: 0 | AG121: 0 | AH121: 0 | AI121: 0 | AJ121: 0 | AK121: 0 | AL121: 0 | AM121: 0
Q122: =IF('Dati Gen'!B30<>"",'Dati Gen'!B30,"") ->  | R122: =IF('Dati Gen'!C30<>"",'Dati Gen'!C30,"") ->  | S122: 0 | U122: ='Dati Gen'!G30 -> 0.04 | V122: =T122*U122 -> 0 | W122: 0 | Y122: ='Dati Gen'!J30 -> 0.22 | Z122: 0 | AA122: =IF('Dati Gen'!$M$36<>0,$AA$126*'Dati Gen'!M30/'Dati Gen'!$M$36,0) -> 0 | AC122: =IF(R122<>"",VLOOKUP(R122,'Dati Gen'!$B$44:$D$51,3,0),"") ->  | AF122: 0 | AG122: 0 | AH122: 0 | AI122: 0 | AJ122: 0 | AK122: 0 | AL122: 0 | AM122: 0
Q123: =IF('Dati Gen'!B31<>"",'Dati Gen'!B31,"") ->  | R123: =IF('Dati Gen'!C31<>"",'Dati Gen'!C31,"") ->  | S123: 0 | U123: ='Dati Gen'!G31 -> 0.04 | V123: =T123*U123 -> 0 | W123: 0 | Y123: ='Dati Gen'!J31 -> 0.22 | Z123: 0 | AA123: =IF('Dati Gen'!$M$36<>0,$AA$126*'Dati Gen'!M31/'Dati Gen'!$M$36,0) -> 0 | AC123: =IF(R123<>"",VLOOKUP(R123,'Dati Gen'!$B$44:$D$51,3,0),"") ->  | AF123: 0 | AG123: 0 | AH123: 0 | AI123: 0 | AJ123: 0 | AK123: 0 | AL123: 0 | AM123: 0
Q124: =IF('Dati Gen'!B32<>"",'Dati Gen'!B32,"") ->  | R124: =IF('Dati Gen'!C32<>"",'Dati Gen'!C32,"") ->  | S124: 0 | U124: ='Dati Gen'!G32 -> 0.04 | V124: =T124*U124 -> 0 | W124: 0 | Y124: ='Dati Gen'!J32 -> 0.22 | Z124: 0 | AA124: =IF('Dati Gen'!$M$36<>0,$AA$126*'Dati Gen'!M32/'Dati Gen'!$M$36,0) -> 0 | AC124: =IF(R124<>"",VLOOKUP(R124,'Dati Gen'!$B$44:$D$51,3,0),"") ->  | AF124: 0 | AG124: 0 | AH124: 0 | AI124: 0 | AJ124: 0 | AK124: 0 | AL124: 0 | AM124: 0
Q125: =IF('Dati Gen'!B35<>"",'Dati Gen'!B35,"") -> Visto Conformità | R125: =IF('Dati Gen'!C35<>"",'Dati Gen'!C35,"") -> Consulente1 | S125: 0 | U125: ='Dati Gen'!G35 -> 0.04 | V125: =S125*U125 -> 0 | W125: 0 | Y125: ='Dati Gen'!J35 -> 0.22 | Z125: 0 | AA125: =IF('Dati Gen'!$M$36<>0,$AA$126*'Dati Gen'!M35/'Dati Gen'!$M$36,0) -> 0 | AC125: =IF(R125<>"",VLOOKUP(R125,'Dati Gen'!$B$44:$D$51,3,0),"") -> NO | AF125: 0 | AG125: 0 | AH125: 0 | AI125: 0 | AJ125: 0 | AK125: 0 | AL125: 0 | AM125: 0
S126: =SUM(S117:T125) -> 0 | U126: =SUM(V117:V125) -> 0 | W126: =SUM(W117:X125) -> 0 | Z126: =SUM(Z117:Z125) -> 0 | AA126: =SpeseTecFinale -> 0 | AF126: =SUM(AF117:AF125) -> 0 | AG126: =SUM(AG117:AG125) -> 0 | AH126: 0 | AI126: 0 | AJ126: 0 | AK126: 0 | AL126: 0 | AM126: 0 | AO126: =SUM(AF126:AM126) -> 0
AF127: =IF($AO$126<>0,AF126/$AO$126,0) -> 0 | AG127: 0 | AH127: 0 | AI127: 0 | AJ127: 0 | AK127: 0 | AL127: 0 | AM127: 0
Q129: Ripartizione Spese Tecniche SAL. Finale1 - ALTRI INTERVENTI | AC129: Applica Sconto in Fattura
Q130: Lavoro | R130: Tecnico | S130: Onorario | U130: C.Cassa | W130: Imponibile | Y130: IVA | AA130: Totale | AF130: =AF116 -> Architetto1 | AG130: =AG116 -> Ingegnere2 | AH130: Consulente1 | AI130: 0 | AJ130: 0 | AK130: 0 | AL130: 0 | AM130: 0
Q131: =IF('Dati Gen'!B25<>"",'Dati Gen'!B25,"") -> Redazione APE ante, Progettazione energetica | R131: =IF('Dati Gen'!C25<>"",'Dati Gen'!C25,"") -> Architetto1 | S131: =W131/(1+U131) -> 0 | U131: ='Dati Gen'!G25 -> 0.04 | V131: =S131*U131 -> 0 | W131: =AA131/(1+Y131) -> 0 | Y131: ='Dati Gen'!J25 -> 0.22 | Z131: =Y131*(S131+V131) -> 0 | AA131: =IF('Dati Gen'!$M$36<>0,$AA$140*'Dati Gen'!M25/'Dati Gen'!$M$36,0) -> 0 | AC131: =IF(R131<>"",VLOOKUP(R131,'Dati Gen'!$B$44:$D$51,3,0),"") -> SI | AF131: =IF($R131=AF$116,$AA131,0) -> 0 | AG131: =IF($R131=AG$116,$AA131,0) -> 0 | AH131: 0 | AI131: 0 | AJ131: 0 | AK131: 0 | AL131: 0 | AM131: 0
Q132: =IF('Dati Gen'!B26<>"",'Dati Gen'!B26,"") -> Progettazione e DD.LL. | R132: =IF('Dati Gen'!C26<>"",'Dati Gen'!C26,"") -> Architetto1 | S132: =W132/(1+U132) -> 0 | U132: ='Dati Gen'!G26 -> 0.04 | V132: =S132*U132 -> 0 | W132: =AA132/(1+Y132) -> 0 | Y132: ='Dati Gen'!J26 -> 0.22 | Z132: =(S132+V132)*Y132 -> 0 | AA132: =IF('Dati Gen'!$M$36<>0,$AA$140*'Dati Gen'!M26/'Dati Gen'!$M$36,0) -> 0 | AC132: =IF(R132<>"",VLOOKUP(R132,'Dati Gen'!$B$44:$D$51,3,0),"") -> SI | AF132: =IF($R132=AF$116,$AA132,0) -> 0 | AG132: 0 | AH132: 0 | AI132: 0 | AJ132: 0 | AK132: 0 | AL132: 0 | AM132: 0
Q133: =IF('Dati Gen'!B27<>"",'Dati Gen'!B27,"") -> Coordinamento sicurezza | R133: =IF('Dati Gen'!C27<>"",'Dati Gen'!C27,"") -> Ingegnere2 | S133: 0 | U133: ='Dati Gen'!G27 -> 0.04 | V133: =S133*U133 -> 0 | W133: 0 | Y133: ='Dati Gen'!J27 -> 0.22 | Z133: 0 | AA133: =IF('Dati Gen'!$M$36<>0,$AA$140*'Dati Gen'!M27/'Dati Gen'!$M$36,0) -> 0 | AC133: =IF(R133<>"",VLOOKUP(R133,'Dati Gen'!$B$44:$D$51,3,0),"") -> NO | AF133: 0 | AG133: 0 | AH133: 0 | AI133: 0 | AJ133: 0 | AK133: 0 | AL133: 0 | AM133: 0
Q134: =IF('Dati Gen'!B28<>"",'Dati Gen'!B28,"") -> Redazione APE post | R134: =IF('Dati Gen'!C28<>"",'Dati Gen'!C28,"") -> Architetto1 | S134: 0 | U134: ='Dati Gen'!G28 -> 0.04 | V134: =S134*U134 -> 0 | W134: 0 | Y134: ='Dati Gen'!J28 -> 0.22 | Z134: 0 | AA134: =IF('Dati Gen'!$M$36<>0,$AA$140*'Dati Gen'!M28/'Dati Gen'!$M$36,0) -> 0 | AC134: =IF(R134<>"",VLOOKUP(R134,'Dati Gen'!$B$44:$D$51,3,0),"") -> SI | AF134: 0 | AG134: 0 | AH134: 0 | AI134: 0 | AJ134: 0 | AK134: 0 | AL134: 0 | AM134: 0
Q135: =IF('Dati Gen'!B29<>"",'Dati Gen'!B29,"") ->  | R135: =IF('Dati Gen'!C29<>"",'Dati Gen'!C29,"") ->  | S135: 0 | U135: ='Dati Gen'!G29 -> 0.04 | V135: =T135*U135 -> 0 | W135: 0 | Y135: ='Dati Gen'!J29 -> 0.22 | Z135: 0 | AA135: =IF('Dati Gen'!$M$36<>0,$AA$140*'Dati Gen'!M29/'Dati Gen'!$M$36,0) -> 0 | AC135: =IF(R135<>"",VLOOKUP(R135,'Dati Gen'!$B$44:$D$51,3,0),"") ->  | AF135: 0 | AG135: 0 | AH135: 0 | AI135: 0 | AJ135: 0 | AK135: 0 | AL135: 0 | AM135: 0
Q136: =IF('Dati Gen'!B30<>"",'Dati Gen'!B30,"") ->  | R136: =IF('Dati Gen'!C30<>"",'Dati Gen'!C30,"") ->  | S136: 0 | U136: ='Dati Gen'!G30 -> 0.04 | V136: =T136*U136 -> 0 | W136: 0 | Y136: ='Dati Gen'!J30 -> 0.22 | Z136: 0 | AA136: =IF('Dati Gen'!$M$36<>0,$AA$140*'Dati Gen'!M30/'Dati Gen'!$M$36,0) -> 0 | AC136: =IF(R136<>"",VLOOKUP(R136,'Dati Gen'!$B$44:$D$51,3,0),"") ->  | AF136: 0 | AG136: 0 | AH136: 0 | AI136: 0 | AJ136: 0 | AK136: 0 | AL136: 0 | AM136: 0
Q137: =IF('Dati Gen'!B31<>"",'Dati Gen'!B31,"") ->  | R137: =IF('Dati Gen'!C31<>"",'Dati Gen'!C31,"") ->  | S137: 0 | U137: ='Dati Gen'!G31 -> 0.04 | V137: =T137*U137 -> 0 | W137: 0 | Y137: ='Dati Gen'!J31 -> 0.22 | Z137: 0 | AA137: =IF('Dati Gen'!$M$36<>0,$AA$140*'Dati Gen'!M31/'Dati Gen'!$M$36,0) -> 0 | AC137: =IF(R137<>"",VLOOKUP(R137,'Dati Gen'!$B$44:$D$51,3,0),"") ->  | AF137: 0 | AG137: 0 | AH137: 0 | AI137: 0 | AJ137: 0 | AK137: 0 | AL137: 0 | AM137: 0
Q138: =IF('Dati Gen'!B32<>"",'Dati Gen'!B32,"") ->  | R138: =IF('Dati Gen'!C32<>"",'Dati Gen'!C32,"") ->  | S138: 0 | U138: ='Dati Gen'!G32 -> 0.04 | V138: =T138*U138 -> 0 | W138: 0 | Y138: ='Dati Gen'!J32 -> 0.22 | Z138: 0 | AA138: =IF('Dati Gen'!$M$36<>0,$AA$140*'Dati Gen'!M32/'Dati Gen'!$M$36,0) -> 0 | AC138: =IF(R138<>"",VLOOKUP(R138,'Dati Gen'!$B$44:$D$51,3,0),"") ->  | AF138: 0 | AG138: 0 | AH138: 0 | AI138: 0 | AJ138: 0 | AK138: 0 | AL138: 0 | AM138: 0
Q139: =IF('Dati Gen'!B35<>"",'Dati Gen'!B35,"") -> Visto Conformità | R139: =IF('Dati Gen'!C35<>"",'Dati Gen'!C35,"") -> Consulente1 | S139: 0 | U139: ='Dati Gen'!G35 -> 0.04 | V139: =S139*U139 -> 0 | W139: 0 | Y139: ='Dati Gen'!J35 -> 0.22 | Z139: 0 | AA139: =IF('Dati Gen'!$M$36<>0,$AA$140*'Dati Gen'!M35/'Dati Gen'!$M$36,0) -> 0 | AC139: =IF(R139<>"",VLOOKUP(R139,'Dati Gen'!$B$44:$D$51,3,0),"") -> NO | AF139: 0 | AG139: 0 | AH139: 0 | AI139: 0 | AJ139: 0 | AK139: 0 | AL139: 0 | AM139: 0
S140: =SUM(S131:T139) -> 0 | U140: =SUM(V131:V139) -> 0 | W140: =SUM(W131:X139) -> 0 | Z140: =SUM(Z131:Z139) -> 0 | AA140: =K93 -> 0 | AF140: =SUM(AF131:AF139) -> 0 | AG140: =SUM(AG131:AG139) -> 0 | AH140: 0 | AI140: 0 | AJ140: 0 | AK140: 0 | AL140: 0 | AM140: 0 | AO140: =SUM(AF140:AM140) -> 0
AF141: =IF($AO$140<>0,AF140/$AO$140,0) -> 0 | AG141: 0 | AH141: 0 | AI141: 0 | AJ141: 0 | AK141: 0 | AL141: 0 | AM141: 0

Sheet Pratica ENEA
U1: =MATCH("Riepilogo Finale",B:B,0) ->  | W1: Riepilogo Importi SAL
B2: Tipologia Edificio | C2: =IF(TipoEdif=1,'Dati Gen'!Q5,'Dati Gen'!Q6) -> Edificio Unifamiliare | H2: =IF(TipoEdif=2,'Dati Gen'!K5,"") ->  | M2: https://detrazionifiscali.enea.it/creaasseverazione.asp | W2: Totali Progetto | AB2: Totali Interventi Trainati Parti Comuni
B3: Data Inizio Lavori | C3: ='Dati Gen'!E14 -> 00:00:00 | W3: Spese previste in progetto | AA3: =AA9+AF3+AF9 -> 0 | AB3: Spese previste in progetto | AF3: =J109+J127+J156+J176+J191+J205+J223+J234+J245+J256 -> 0
B4: Comune Ubicazione | C4: ='Dati Gen'!E8 -> 0 | P4: =NomeApp -> Pratica.110plus | R4: V.ne | S4: ='Dati Gen'!L3 -> 4.3.1 | W4: Spese Ammissibili | AA4: =AA10+AF4+AF10 -> 0 | AB4: Spese Ammissibili | AF4: =J110+J128+J157+J177+J192+J206+J224+J235+J246+J257 -> 0
B5: Comune Montano | C5: X | D5: SI | F5: NO | G5: Elenco Comuni Montani | S5: ='Dati Gen'!K4 -> ©2021-2022 SIM srl - www.madosoft.it | W5: Realizzati | Y5: SAL 30% | Z5: SAL 60% | AA5: SAL FINALE | AB5: Realizzati | AD5: SAL 30% | AE5: SAL 60% | AF5: SAL FINALE
B6: Interessato Infrazione | D6: SI | E6: X | F6: NO | G6: Elenco Comuni Infrazioni | W6: Costo Lavori Realizzati | Y6: =Y12+AD6+AD12 -> 0 | Z6: =Z12+AE6+AE12 -> 0 | AA6: =AA12+AF6+AF12 -> 0 | AB6: Costo Lavori Realizzati | AD6: =F112+F130+F159+F179+F194+F208+F226+F237+F248+F259 -> 0 | AE6: =H112+H130+H159+H179+H194+H208+H226+H237+H248+H259 -> 0 | AF6: =J112+J130+J159+J179+J194+J208+J226+J237+J248+J259 -> 0
B7: Intervento comma 4-Ter | D7: SI | E7: X | F7: NO | G7: 160% Zone Terremotate | P7: =C2 -> Edificio Unifamiliare | W7: di cui ammessi | Y7: 0 | Z7: 0 | AA7: 0 | AB7: di cui ammessi | AD7: =F113+F131+F160+F180+F195+F209+F227+F238+F249+F260 -> 0 | AE7: =H113+H131+H160+H180+H195+H209+H227+H238+H249+H260 -> 0 | AF7: =J113+J131+J160+J180+J195+J209+J227+J238+J249+J260 -> 0
B8: Indirizzo | C8: ='Dati Gen'!E9 -> 0 | I8: N.Civico | J8: ='Dati Gen'!N9 -> D | K8: CAP | L8: ='Dati Gen'!N8 -> 0 | P8: =IF('Dati Gen'!E9<>"",CONCATENATE(C8," N.",J8),"") ->  | W8: Totali Interventi Trainanti | AB8: Totali Interventi Trainati U.Imm.
B9: Anno di Costruzione Immobile | C9: ='Dati Gen'!E11 -> 0 | G9: ='Dati Gen'!H11 -> Superficie Totale Disperdente : | L9: ='Dati Gen'!N11 -> 0 | P9: =IF('Dati Gen'!E8<>"",CONCATENATE(L8," ",C4),"") ->  | W9: Spese previste in progetto | AA9: =J34+J66 -> 0 | AB9: Spese previste in progetto | AF9: =J294+J310+J347+J359+J371+J383+J395+J407+J419+J430 -> 0
B10: Edificio in area non Metanizzata | C10: SI | E10: Intervento Art.3 C.1 Let.D)E)F) DPR.380 | I10: SI | J10: Vincoli/Restriz. Edilizie | L10: ='Dati Gen'!N14 -> NO | W10: Spese Ammissibili | AA10: =J35+J67 -> 0 | AB10: Spese Ammissibili | AF10: =J295+J311+J348+J360+J372+J384+J396+J408+J420+J431 -> 0
B11: Autorizzazione Edilizia | C11: ='Dati Gen'!E12 -> Licenza Edilizia / Titolo Edilizio | I11: ='Dati Gen'!K12 -> N. | J11: ='Dati Gen'!L12 -> 0 | K11: ='Dati Gen'!M12 -> Data | L11: ='Dati Gen'!N12 -> 00:00:00 | W11: Realizzati | Y11: SAL 30% | Z11: SAL 60% | AA11: SAL FINALE | AB11: Realizzati | AD11: SAL 30% | AE11: SAL 60% | AF11: SAL FINALE
B12: ='Dati Gen'!B13 -> Relazione ex Legge 10/91 Depositata al Comune in Data | H12: =IF('Dati Gen'!I13<>"",'Dati Gen'!I13,"") ->  | J12: Prot. N. | L12: =IF('Dati Gen'!N13<>"",'Dati Gen'!N13,"") ->  | W12: Costo Lavori Realizzati | Y12: =F37+F69 -> 0 | Z12: =H37+H69 -> 0 | AA12: =J37+J69 -> 0 | AB12: Costo Lavori Realizzati | AD12: =F297+F313+F350+F362+F374+F386+F398+F410+F422+F433 -> 0 | AE12: =H297+H313+H350+H362+H374+H386+H398+H410+H422+H433 -> 0 | AF12: =J297+J313+J350+J362+J374+J386+J398+J410+J422+J433 -> 0
B13: =IF('Computo-Massimali'!C6<>"","Attenzione! Tabella Computo-Massimali non completa. Si consiglia di completare, prima di compilare Pratica ENEA","") -> Attenzione! Tabella Computo-Massimali non completa. Si consiglia di completare, prima di compilare Pratica ENEA | W13: di cui ammessi | Y13: =F38+F70 -> 0 | Z13: =H38+H70 -> 0 | AA13: =J38+J70 -> 0 | AB13: di cui ammessi | AD13: =F298+F314+F351+F363+F375+F387+F399+F411+F423+F434 -> 0 | AE13: =H298+H314+H351+H363+H375+H387+H399+H411+H423+H434 -> 0 | AF13: =J298+J314+J351+J363+J375+J387+J399+J411+J423+J434 -> 0
B15: INTERVENTI TRAINANTI | T15: ..
B17: intervento di isolamento termico delle superfici opache verticali, orizzontali e inclinate : PV) PO) POND) PS)
B18: Descrizione | G18: Superficie mq | H18: Trasm. Ante | I18: Trasm. Post | J18: Trasm.P. YIE | K18: Confine | L18: Coiben-tazione | M18: Realizzati mq
M19: SAL.30% | N19: SAL.60% | O19: SAL.FIN.
G20: 22.58 | H20: 0.8914 | I20: 0.2236 | J20: 0.01 | K20: Esterno | L20: Esterna | M20: 22.58
G21: 123.7 | H21: 1.839 | I21: 0.252 | J21: 0.0173 | K21: Esterno | L21: Esterna | M21: 123.7
B32: Superficie Totale disperdente oggetto di intervento [mq] | J32: =SUM(G20:G30) -> 146.28
B33: Spesa Massima Ammissibile | J33: ='Computo-Massimali'!T13 -> 0
B34: Costo Complessivo Previsto in progetto | J34: ='Computo-Massimali'!L13 -> 0
B35: Spesa Ammessa | J35: =IF(J34<J33,J34,J33) -> 0
F36: SAL 30% | H36: SAL 60% | J36: SAL FINALE
B37: Costo Lavori Realizzati | F37: ='SAL.30%'!L14 -> 0 | H37: ='SAL.60%'!L13 -> 0 | J37: =SAL.Finale!L13 -> 0
B38: di cui ammessi | F38: =IF(F37<J35,F37,J35) -> 0 | H38: =IF(H37<J35,H37,J35) -> 0 | J38: =IF(J37<J35,J37,J35) -> 0
B39: Risparmio di energia primaria non rinnovabile di progetto [kWh/anno]
B43: Intervento di sostituzione degli impianti di climatizzazione invernale esistenti
B44: Descrizione Nuovo Impianto | G44: Tipo Sostituito | H44: P.Nom Sostituito | I44: P.Nom kW | J44: Rendim Util Nomin. 100% | K44: Destinata | L44: Efficienza Riscaldam. hs | M44: Efficienza ACS hw | N44: Tipo Aliment. | O44: Classe Dispositivo Termoreg. Evoluto | P44: Tipo PDC | Q44: Pot. El. Assorb kW | R44: COP | S44: Superfic. Risc. Da PDC | V44: Descrizione Impianto
P45: - | V45: -
G46: - | K46: - | N46: - | O46: - | P46: - | V46: CC) Caldaie a condensazione
G47: - | K47: - | N47: - | O47: - | P47: - | V47: PC) Pompe di calore (PDC) a compressione di vapore elettriche anche sonde geotermiche
G48: - | K48: - | N48: - | O48: - | P48: - | V48: PCA) Pompe di calore a gas ad assorbimento o a compressione di vapore azionate da motore primo
G49: - | K49: - | N49: - | O49: - | P49: - | V49: SI) Sistemi Ibridi
G50: - | K50: - | N50: - | O50: - | P50: - | V50: CO) Sistemi microcogenerazione
G51: - | K51: - | N51: - | O51: - | P51: - | V51: SA) Installazione di scaldacqua a pompa di calore in sostituzione di un sistema di produzione di acqua calda quando avviene con lo stesso generatore di calore destinato alla climatizzazione invernale ai sensi delle lettere b) e c) del comma 1 dell’articolo 119 del Decreto Rilancio
G52: - | K52: - | N52: - | O52: - | P52: - | V52: ST) Collettori solari
V53: TR) Teleriscaldamento (esclusivamente per i comuni montani non interessati dalle procedure di infrazione comunitaria n. 2014/2147 del 10 luglio 2014 o n. 2015/2043 del 28 maggio 2015 per la non ottemperanza dell’Italia agli obblighi previsti dalla direttiva 2008/50/CE, l’allaccio a sistemi di teleriscaldamento efficiente ai sensi dell’articolo 2, comma 2, lettera tt), del decreto legislativo 4 luglio 2014, n. 102)
B54: SI) Sistemi Ibridi | G54: Tipo Sostituito | H54: P.Nom Sostituito | I54: Caldaia a Condensazione | M54: Pompa di Calore
I55: P.Nom kW | J55: Rendim Nomin. 100% | K55: Efficienza Riscaldam. hs | L55: Tipo Aliment. | M55: Tipo PDC | N55: Tipo Roof Top | O55: P.Nom kW | P55: Pot. El. Assorb kW | Q55: COP | R55: Inverter | S55: Sonde Geotermiche | V55: Tipo Sostituito
F56: 1 | V56: -
F57: 2 | V57: Caldaia Standard
F58: 3 | G58: - | L58: - | M58: - | N58: - | R58: - | S58: - | V58: Caldaia Bassa Temperatura
F59: 4 | G59: - | L59: - | M59: - | N59: - | R59: - | S59: - | V59: Caldaia a Condensazione Gas
V60: Caldaia Condens.Gasolio
B61: Destinati a : Climatizzazione Invernale | G61: x | V61: Pompa di Calore anche con sonda geotermica
B62: Climatizzazione estiva | V62: Generatori di Aria Calda
B63: prod. di acqua calda sanitaria | G63: x | V63: Teleriscaldamento (solo in caso di distacco obbligato)
V64: Impianto a biomassa
B65: Spesa Massima Ammissibile | J65: ='Computo-Massimali'!T14 -> 0 | V65: Altro
B66: Costo Complessivo Previsto in progetto | J66: ='Computo-Massimali'!L14 -> 0
B67: Spesa Ammessa | J67: =IF(J66<J65,J66,J65) -> 0
F68: SAL 30% | H68: SAL 60% | J68: SAL FINALE
B69: Costo Lavori Realizzati | F69: ='SAL.30%'!L15 -> 0 | H69: ='SAL.60%'!L14 -> 0 | J69: =SAL.Finale!L14 -> 0
B70: di cui ammessi | F70: =IF(F69<J67,F69,J67) -> 0 | H70: =IF(H69<J67,H69,J67) -> 0 | J70: =IF(J69<J67,J69,J67) -> 0
B71: Risparmio di energia primaria non rinnovabile di progetto [kWh/anno]
B78: INTERVENTI TRAINATI PARTI COMUNI CONDOMINIALI | T78: ..
B80: intervento di isolamento termico delle superfici opache verticali, orizzontali e inclinate dell'involucro PV) PO) PS)
B81: Descrizione | G81: Superficie mq | H81: Trasm. Ante | I81: Trasm. Post | J81: Trasm.P. YIE | K81: Confine | L81: Coiben-tazione | M81: Realizzati mq
M82: SAL.30% | N82: SAL.60% | O82: SAL.FIN.
K89: - | L89: -
K90: - | L90: -
K91: - | L91: -
B92: Superficie Totale disperdente oggetto di intervento [mq] | J92: =SUM(G83:G91) -> 0
B93: Risparmio di energia primaria non rinnovabile di progetto [kWh/anno]
B96: IN) Sostituzione degli infissi
B97: Descrizione | G97: Telaio Prima | H97: Vetro Prima | J97: Trasm. Ante | K97: Superfice mq | L97: Telaio Dopo | M97: Vetro Dopo | O97: Trasm. Post | P97: Chius. Oscura
G101: - | H101: - | L101: - | M101: -
G102: - | H102: - | L102: - | M102: -
G103: - | H103: - | L103: - | M103: -
G104: - | H104: - | L104: - | M104: -
B105: Risparmio di energia primaria non rinnovabile di progetto [kWh/anno]
B107: Isolamento termico sup. verticali, orizzontali, inclinate e Sostituzione Infissi
B108: Spesa Massima Ammissibile | J108: ='Computo-Massimali'!T24 -> 0
B109: Costo Complessivo Previsto in progetto | J109: ='Computo-Massimali'!L24 -> 0
B110: Spesa Ammessa | J110: =IF(J109<J108,J109,J108) -> 0
F111: SAL 30% | H111: SAL 60% | J111: SAL FINALE
B112: Costo Lavori Realizzati | F112: ='SAL.30%'!L25 -> 0 | H112: ='SAL.60%'!L24 -> 0 | J112: =SAL.Finale!L24 -> 0
B113: di cui ammessi | F113: =IF(F112<J110,F112,J110) -> 0 | H113: =IF(H112<J110,H112,J110) -> 0 | J113: =IF(J112<J110,J112,J110) -> 0
B118: SS) Schermature solari Anche chiusure oscuranti
B119: Descrizione | G119: Tipo Schermatura | H119: Installazione | J119: Superf. Schermatura | K119: Superfice finestra protetta | L119: Resistenza term. suppl m2K/W | M119: Orientamento | N119: Tipo Calcolo | P119: gtot | Q119: Materiale schermatura | S119: Meccan. Regolaz.
G120: - | H120: - | M120: - | N120: - | Q120: - | S120: -
G121: - | H121: - | M121: - | N121: - | Q121: - | S121: -
G122: - | H122: - | M122: - | N122: - | Q122: - | S122: -
G123: - | H123: - | M123: - | N123: - | Q123: - | S123: -
G124: - | H124: - | M124: - | N124: - | Q124: - | S124: -
B126: Spesa Massima Ammissibile | J126: ='Computo-Massimali'!T25 -> 0
B127: Costo Complessivo Previsto in progetto | J127: ='Computo-Massimali'!L25 -> 0
B128: Spesa Ammessa | J128: =IF(J127<J126,J127,J126) -> 0
F129: SAL 30% | H129: SAL 60% | J129: SAL FINALE
B130: Costo Lavori Realizzati | F130: ='SAL.30%'!L26 -> 0 | H130: ='SAL.60%'!L25 -> 0 | J130: =SAL.Finale!L25 -> 0
B131: di cui ammessi | F131: =IF(F130<J128,F130,J128) -> 0 | H131: =IF(H130<J128,H130,J128) -> 0 | J131: =IF(J130<J128,J130,J128) -> 0
B132: Risparmio di energia primaria non rinnovabile di progetto [kWh/anno]
B134: Intervento, sulle parti comuni, di sostituzione degli impianti di climatizzazione invernale esistenti con impianti dotati di
B135: CC) Caldaie a condensazione | G135: Tipo Sostituito | H135: P.Nom Sostituito | I135: P.Nom kW | J135: Rendim Util Nomin. 100% | K135: Destinata | L135: Efficienza Riscaldam. hs | M135: Efficienza ACS hw | N135: Tipo Aliment. | O135: Classe Dispositivo Termoreg. Evoluto
G136: - | K136: - | N136: - | O136: -
G137: - | K137: - | N137: - | O137: - | V137: Tipo Generatore
V138: -
B139: PC) Pompe di calore (PDC) a compressione di vapore elettriche anche sonde geotermiche | G139: Tipo Sostituito | H139: P.Nom Sostituito | I139: Tipo PDC | J139: Tipo Roof Top | K139: P.Nom kW | L139: Pot. El. Assorb kW | M139: Inverter | N139: COP | O139: Reversibile | P139: Sonde Geotermiche | Q139: Sup. Riscald. dalla PDC | V139: Cucine a legna
G140: - | I140: - | J140: - | M140: - | O140: - | P140: -
G141: - | I141: - | J141: - | M141: - | O141: - | P141: -
B143: PCA) Pompe di calore a gas ad assorbimento o a compressione di vapore azionate da motore primo | G143: Tipo Sostituito | H143: P.Nom Sostituito | I143: Tipo PDC | J143: Tipo Roof Top | K143: P.Nom kW | L143: Inverter | M143: GUEh | N143: Reversibile | O143: GUEc | P143: Sup. Riscald. Dalla PDC
G144: - | I144: - | J144: - | L144: - | N144: -
G145: - | I145: - | J145: - | L145: - | N145: -
B148: SI) Sistemi Ibridi | G148: Tipo Sostituito | H148: P.Nom Sostituito | I148: Caldaia a Condensazione | M148: Pompa di Calore
I149: P.Nom kW | J149: Rendim Nomin. 100% | K149: Efficienza Riscaldam. hs | L149: Tipo Aliment. | M149: Tipo PDC | N149: Tipo Roof Top | O149: P.Nom kW | P149: Pot. El. Assorb kW | Q149: COP | R149: Inverter | S149: Sonde Geotermiche | V149: Tipo Sostituito
F150: 1 | V150: -
F151: 2 | V151: Caldaia Standard
F152: 3 | G152: - | L152: - | M152: - | N152: - | R152: - | S152: - | V152: Caldaia Bassa Temperatura
F153: 4 | G153: - | L153: - | M153: - | N153: - | R153: - | S153: - | V153: Caldaia a Condensazione Gas
B155: Spesa Massima Ammissibile per Impianti Climatizzazione CC) PC) PCA) SI) | J155: ='Computo-Massimali'!T26 -> 0
B156: Spese Previste in progetto per Impianti Climatizzazione CC) PC) PCA) SI) | J156: ='Computo-Massimali'!L26 -> 0
B157: Spesa Ammessa | J157: =IF(J156<J155,J156,J155) -> 0
F158: SAL 30% | H158: SAL 60% | J158: SAL FINALE
B159: Costo Lavori Realizzati | F159: ='SAL.30%'!L27 -> 0 | H159: ='SAL.60%'!L26 -> 0 | J159: =SAL.Finale!L26 -> 0
B160: di cui ammessi | F160: =IF(F159<J157,F159,J157) -> 0 | H160: =IF(H159<J157,H159,J157) -> 0 | J160: =IF(J159<J157,J159,J157) -> 0
B161: Risparmio di energia primaria non rinnovabile di progetto [kWh/anno]
B163: GA) Generatori di Aria Calda a Condensazione | G163: Tipo Sostituito | H163: Pu. scald. sostituito kW | I163: Pu. scald. PDC kW | J163: COP nuovo scald. | K163: Capacità accumulo litri
G164: -
G165: -
B167: IB) Impianti a Biomassa | G167: Tipo Sostituito | H167: Pu. scald. sostituito kW | I167: Pu. scald. PDC kW | J167: COP nuovo scald. | K167: Capacità accumulo litri
G168: -
G169: -
B171: SA) Scaldacqua a pompa di calore | G171: Tipo Sostituito | H171: Pu. scald. sostituito kW | I171: Pu. scald. PDC kW | J171: COP nuovo scald. | K171: Capacità accumulo litri
G172: -
G173: -
B175: Spesa Massima Ammissibile per Impianti GA) IB) SA) | J175: ='Computo-Massimali'!T30 -> 0
B176: Spese Previste in progetto per Impianti GA) IB) SA) | J176: ='Computo-Massimali'!L30 -> 0
B177: Spesa Ammessa | J177: =IF(J176<J175,J176,J175) -> 0
F178: SAL 30% | H178: SAL 60% | J178: SAL FINALE
B179: Costo Lavori Realizzati | F179: ='SAL.30%'!L31 -> 0 | H179: ='SAL.60%'!L30 -> 0 | J179: =SAL.Finale!L30 -> 0
B180: di cui ammessi | F180: =IF(F179<J177,F179,J177) -> 0 | H180: =IF(H179<J177,H179,J177) -> 0 | J180: =IF(J179<J177,J179,J177) -> 0
B181: Risparmio di energia primaria non rinnovabile di progetto [kWh/anno]
B184: CO) Sistemi microcogenerazione | G184: Tipo Sostituito | H184: P.Nom Sostituito | I184: Pot. Elettr. kW | J184: Pot. Immes. kW | K184: Pot. Term. Rec. kW | L184: PES % | M184: Tipo Aliment. | N184: Tipo Intervent | O184: a Celle Combust. | P184: Riscaldatore Supplement. | Q184: P.Risc. Supp kW | R184: Efficienz hs % | S184: Classe Energet
G185: - | M185: - | N185: - | O185: - | P185: - | S185: -
G186: - | M186: - | N186: - | O186: - | P186: - | S186: -
G187: - | M187: - | N187: - | O187: - | P187: - | S187: -
G188: - | M188: - | N188: - | O188: - | P188: - | S188: -
B190: Spesa Massima Ammissibile per CO) Sistemi Microgenerazione | J190: ='Computo-Massimali'!T31 -> 0
B191: Spese Previste in progetto per CO) Microgenerazione | J191: ='Computo-Massimali'!L31 -> 0
B192: Spesa Ammessa | J192: =IF(J191<J190,J191,J190) -> 0
F193: SAL 30% | H193: SAL 60% | J193: SAL FINALE
B194: Costo Lavori Realizzati | F194: ='SAL.30%'!L32 -> 0 | H194: ='SAL.60%'!L31 -> 0 | J194: =SAL.Finale!L31 -> 0
B195: di cui ammessi | F195: =IF(F194<J192,F194,J192) -> 0 | H195: =IF(H194<J192,H194,J192) -> 0 | J195: =IF(J194<J192,J194,J192) -> 0
B196: Risparmio di energia primaria non rinnovabile di progetto [kWh/anno]
B198: ST) Collettori Solari | G198: Sup lorda Ag singolo modulo | H198: N. di moduli | I198: S.tot | J198: Tipo di colllettori | K198: Tipo di installazione | L198: Inclinaz. % | M198: Orientamento | N198: Factory Made | O198: Qcol / Qsol kWht oppure QL MJ | P198: Accumulo litri | Q198: Dest. Calore | R198: Solar Keymrk | S198: Tipo impianto sost.
I199: =G199*H199 -> 0 | J199: - | K199: -
I200: =G200*H200 -> 0 | J200: - | K200: - | M200: - | N200: - | Q200: - | R200: - | S200: -
I201: =G201*H201 -> 0 | J201: - | K201: - | M201: - | N201: - | Q201: - | R201: - | S201: -
I202: =G202*H202 -> 0 | J202: - | K202: - | M202: - | N202: - | Q202: - | R202: - | S202: -
B204: Spesa Massima Ammissibile per ST) Collettori Solari | J204: ='Computo-Massimali'!T32 -> 0
B205: Spese Previste in progetto per ST) Collettori Solari | J205: ='Computo-Massimali'!L32 -> 0
B206: Spesa Ammessa | J206: =IF(J205<J204,J205,J204) -> 0
F207: SAL 30% | H207: SAL 60% | J207: SAL FINALE
B208: Costo Lavori Realizzati | F208: ='SAL.30%'!L33 -> 0 | H208: ='SAL.60%'!L32 -> 0 | J208: =SAL.Finale!L32 -> 0
B209: di cui ammessi | F209: =IF(F208<J206,F208,J206) -> 0 | H209: =IF(H208<J206,H208,J206) -> 0 | J209: =IF(J208<J206,J208,J206) -> 0
B210: Risparmio di energia primaria non rinnovabile di progetto [kWh/anno]
B218: FV) Fotovoltaico | G218: Codice POD | J218: Potenza Picco kW
B222: Spesa Massima Ammissibile per FV) Fotovoltaico | J222: ='Computo-Massimali'!T33 -> 0
B223: Spese Previste in progetto per FV) Fotovoltaico | J223: ='Computo-Massimali'!L33 -> 0
B224: Spesa Ammessa | J224: =IF(J223<J222,J223,J222) -> 0
F225: SAL 30% | H225: SAL 60% | J225: SAL FINALE
B226: Costo Lavori Realizzati | F226: ='SAL.30%'!L34 -> 0 | H226: ='SAL.60%'!L33 -> 0 | J226: =SAL.Finale!L33 -> 0
B227: di cui ammessi | F227: =IF(F226<J224,F226,J224) -> 0 | H227: =IF(H226<J224,H226,J224) -> 0 | J227: =IF(J226<J224,J226,J224) -> 0
B229: AC) Sistema di Accumulo | J229: Capacità kWh
B233: Spesa Massima Ammissibile per AC) Sistema di Accumulo | J233: ='Computo-Massimali'!T34 -> 0
B234: Spese Previste in progetto per AC) Sistema di Accumulo | J234: ='Computo-Massimali'!L34 -> 0
B235: Spesa Ammessa | J235: =IF(J234<J233,J234,J233) -> 0
F236: SAL 30% | H236: SAL 60% | J236: SAL FINALE
B237: Costo Lavori Realizzati | F237: ='SAL.30%'!L35 -> 0 | H237: ='SAL.60%'!L34 -> 0 | J237: =SAL.Finale!L34 -> 0
B238: di cui ammessi | F238: =IF(F237<J235,F237,J235) -> 0 | H238: =IF(H237<J235,H237,J235) -> 0 | J238: =IF(J237<J235,J237,J235) -> 0
B240: CR) Infrastrutture per la ricarica dei veicoli elettrici
J241: 0
B244: Spesa Massima Ammissibile per CR) Colonnine di Ricarica | J244: ='Computo-Massimali'!T35 -> 0
B245: Spese Previste in progetto per CR) Colonnine di Ricarica | J245: ='Computo-Massimali'!L35 -> 0
B246: Spesa Ammessa | J246: =IF(J245<J244,J245,J244) -> 0
F247: SAL 30% | H247: SAL 60% | J247: SAL FINALE
B248: Costo Lavori Realizzati | F248: ='SAL.30%'!L36 -> 0 | H248: ='SAL.60%'!L35 -> 0 | J248: =SAL.Finale!L35 -> 0
B249: di cui ammessi | F249: =IF(F248<J246,F248,J246) -> 0 | H249: =IF(H248<J246,H248,J246) -> 0 | J249: =IF(J248<J246,J248,J246) -> 0
B251: EBA) Barriere Architettoniche
J252: 0
B255: Spesa Massima Ammissibile per EBA) Barriere Architettoniche | J255: ='Computo-Massimali'!T36 -> 0
B256: Spese Previste in progetto per EBA) Barriere Architettoniche | J256: ='Computo-Massimali'!L36 -> 0
B257: Spesa Ammessa | J257: =IF(J256<J255,J256,J255) -> 0
F258: SAL 30% | H258: SAL 60% | J258: SAL FINALE
B259: Costo Lavori Realizzati | F259: ='SAL.30%'!L37 -> 0 | H259: ='SAL.60%'!L36 -> 0 | J259: =SAL.Finale!L36 -> 0
B260: di cui ammessi | F260: =IF(F259<J257,F259,J257) -> 0 | H260: =IF(H259<J257,H259,J257) -> 0 | J260: =IF(J259<J257,J259,J257) -> 0
B264: INTERVENTI TRAINATI Unità Immobiliare | T264: ..
B266: intervento di isolamento termico delle superfici opache verticali e orizzontali: PV)Pareti Verticali; PO)Coperture; PS)Pavimenti
B267: Descrizione | G267: Superficie mq | H267: Trasm. Ante | I267: Trasm. Post | J267: Trasm.P. YIE | K267: Confine | L267: Coiben-tazione | M267: Realizzati mq
M268: SAL.30% | N268: SAL.60% | O268: SAL.FIN.
B278: Superficie Totale disperdente oggetto di intervento [mq] | J278: =SUM(G269:G277) -> 0
B279: Risparmio di energia primaria non rinnovabile di progetto [kWh/anno] | J279: 0
B281: Sostituzione degli infissi
B282: Descrizione | G282: Telaio Prima | H282: Vetro Prima | J282: Trasm. Ante | K282: Superfice mq | L282: Telaio Dopo | M282: Vetro Dopo | O282: Trasm. Post | P282: Chius. Oscura
G286: - | H286: - | L286: - | M286: -
G287: - | H287: - | L287: - | M287: -
G288: - | H288: - | L288: - | M288: -
G289: - | H289: - | L289: - | M289: -
B290: Risparmio di energia primaria non rinnovabile di progetto [kWh/anno]
... 113 more rows

Sheet Fatture

Sheet Cessione Credito
O2: RENDICONTO | P2: Importo Spesa | Q2: Credito Ceduto
O3: Importo Complessivo | P3: =+P10+P16 -> 51850.50192 | Q3: =+Q10+Q16 -> 57035.55231
O5: 1 - Isolamento Sup. Opache Verticali, Orizz. o Inclinate
O6: Fornitore | P6: Importo Spesa | Q6: Credito Ceduto
O7: SIM srl | P7: 24000 | Q7: 26400
O8: Ingegnere1 | P8: 5075.200195 | Q8: 5582.720215
O9: Consulente | P9: 553.6582031 | Q9: 609.0240479
P10: =SUM(P7:P9) -> 29628.8584 | Q10: =SUM(Q7:Q9) -> 32591.74426
O11: 11 - Sistemi di microcogenerazione
O12: Fornitore | P12: Importo Spesa | Q12: Credito Ceduto
O13: SIM srl | P13: 18000 | Q13: 19800
O14: Ingegnere1 | P14: 3806.399902 | Q14: 4187.040039
O15: Consulente | P15: 415.2436218 | Q15: 456.7680054
P16: =SUM(P13:P15) -> 22221.64352 | Q16: =SUM(Q13:Q15) -> 24443.80804
B150: ©2021 Created By SIM srl - www.madosoft.it
B200: ©2021 Created By SIM srl - www.madosoft.it

Sheet Personal
B2: RENDICONTO APPALTATORE / GENERAL CONTRACTOR
C3: Incasso/Spesa | D3: Importo | E3: Iva | F3: Totale | G3: Saldo
B4: 2021-01-01 | C4: Spesa | D4: 5000 | E4: =IF(D4<>0,IF(C4="Incasso",D4*0.22,-D4*0.22),"") -> -1100 | F4: =IF(D4<>0,IF(C4="Incasso",D4+E4,-D4+E4),"") -> -6100 | G4: =IF(F4<>0,F4,"") -> -6100
B5: 2021-01-01 | C5: Spesa | D5: 10000 | E5: =IF(D5<>0,IF(C5="Incasso",D5*0.22,-D5*0.22),"") -> -2200 | F5: =IF(D5<>0,IF(C5="Incasso",D5+E5,-D5+E5),"") -> -12200 | G5: =IF(G4<>0,IF(F5<>0,G4+F5,""),"") -> -18300
B6: 2021-02-16 | C6: Incasso | D6: 12000 | E6: 2640 | F6: 14640 | G6: =IF(G5<>0,IF(F6<>0,G5+F6,""),"") -> -3660
B7: 2021-02-16 | C7: Spesa | D7: 3000 | E7: -660 | F7: -3660 | G7: =IF(ISNUMBER(G6),IF(ISNUMBER(F7),G6+F7,""),"") -> -7320
G8: =IF(ISNUMBER(G7),IF(ISNUMBER(F8),G7+F8,""),"") -> 
D33: Entrate: | E33: =SUMIF(F4:F31,">0",F4:F31) -> 14640 | F33: Iva Incassata: | G33: =SUMIF(E4:E31,">0",E4:E31) -> 2640
D34: Uscite: | E34: =SUMIF(F4:F31,"<0",F4:F31) -> -21960 | F34: Iva Pagata: | G34: =SUMIF(E4:E31,"<0",E4:E31) -> -3960 | K34: Pag. | L34: ncasella | M34: Delta
D35: Saldo: | E35: =SUM(F4:F31) -> -7320 | F35: Saldo Iva: | G35: =SUM(E4:E31) -> -1320 | K35: 1 | L35: 48 | M35: 0 | N35: =21*(L35-56*(K35-1)-48)/4 -> 0 | P35: RENDICONTO
K36: 1 | L36: =L35+4 -> 52 | M36: 21 | N36: 21 | P36: Tipo Intervento: 1 - Isolamento Sup. Opache Verticali, Orizz. o Inclinate
K37: 1 | L37: =L36+4 -> 56 | M37: 42 | N37: 42 | P37: Fornitore | Q37: Importo Spesa | R37: Credito Ceduto
K38: 1 | L38: =L37+4 -> 60 | M38: 63 | N38: 63 | P38: aaa | Q38: 42250.14844 | R38: 46475.16016
K39: 2 | L39: =L35+56 -> 104 | M39: 0 | N39: 0 | P39: aaa | Q39: 1100.74451 | R39: 1210.818961 | S39: Quota xTecnici che non applicano sconto
K40: 2 | L40: =L39+4 -> 108 | M40: 21 | N40: 21 | P40: bbb | Q40: 6145.092773 | R40: 6759.602051
K41: 2 | L41: =L40+4 -> 112 | M41: 42 | N41: 42 | Q41: 49495.98572 | R41: 54445.58117
K42: 2 | L42: =L41+4 -> 116 | M42: 63 | N42: 63 | P42: Tipo Intervento: 2 - Sostituzione degli Impianti di Climatizzazione Esistenti
P43: Fornitore | Q43: Importo Spesa | R43: Credito Ceduto
P44: aaa | Q44: 10560.95215 | R44: 11617.04785
P45: bbb | Q45: 1384.561646 | R45: 1523.017822
Q46: 11945.51379 | R46: 13140.06567
P48: Importi Totali Cessione | Q48: 61441.49951 | R48: 67585.64684
C53: ImportoLavori | D53: Spese | E53: Importo
B54: Interventi Isolamento T | C54: ='Computo-Massimali'!J13 -> 0 | D54: ='Computo-Massimali'!K13 -> 0 | E54: =SUM(C54:D54) -> 0
B55: Impianti Climatizzazione e ACS T | C55: ='Computo-Massimali'!J14 -> 0 | D55: ='Computo-Massimali'!K14 -> 0 | E55: =SUM(C55:D55) -> 0
B56: Totali Trainanti | C56: =SUM(C54:C55) -> 0 | D56: =SUM(D54:D55) -> 0 | E56: =SUM(C56:D56) -> 0
B57: Interventi Isolamento PC | C57: =SUM('Computo-Massimali'!J20:'Computo-Massimali'!J22) -> 0 | D57: =SUM('Computo-Massimali'!K20:'Computo-Massimali'!K22) -> 0 | E57: =SUM(C57:D57) -> 0
B58: Infissi PC | C58: ='Computo-Massimali'!J23 -> 0 | D58: ='Computo-Massimali'!K23 -> 0
C103: =IF('Dati Gen'!N11<>"",'Dati Gen'!N11,IF(D103<>"",D103,0)) ->  | D103: ='SAL.30%'!#REF! ->  | E103: ='SAL.60%'!C4 -> 08/05/2022 | F103: =TODAY() -> 2022-05-12
B104: Stati Avanzamento Lavori | C104: =CONCATENATE("Avvio ",C103) ->  | D104: =CONCATENATE("SAL.30% ",D103) ->  | E104: =CONCATENATE("SAL.60% ",E103) -> SAL.60% 08/05/2022 | F104: =CONCATENATE("Oggi ",TEXT(F103,"gg/mm/aaaa")) -> Oggi 12/05/2022
B105: ='Computo-Massimali'!C9 -> PV) Isolamento pareti perimetrali | C105: 0 | D105: ='SAL.30%'!N10 -> 0 | E105: ='SAL.60%'!N9 -> 0 | F105: =IF(SAL.Finale!N9>0,SAL.Finale!N9,IF(E105>0,E105,IF(D105>0,D105,0))) -> 0
B106: ='Computo-Massimali'!C10 -> PO) Isolamento coperture | C106: 0 | D106: ='SAL.30%'!N11 -> 0 | E106: ='SAL.60%'!N10 -> 0 | F106: =IF(SAL.Finale!N10>0,SAL.Finale!N10,IF(E106>0,E106,IF(D106>0,D106,0))) -> 0
B107: ='Computo-Massimali'!C11 -> POND) Isol. coperture non disperdenti | C107: 0 | D107: ='SAL.30%'!N12 -> 0 | E107: ='SAL.60%'!N11 -> 0 | F107: =IF(SAL.Finale!N11>0,SAL.Finale!N11,IF(E107>0,E107,IF(D107>0,D107,0))) -> 0
B108: ='Computo-Massimali'!C12 -> PS) Isolamento Pavimenti | C108: 0 | D108: ='SAL.30%'!N13 -> 0 | E108: ='SAL.60%'!N12 -> 0 | F108: =IF(SAL.Finale!N12>0,SAL.Finale!N12,IF(E108>0,E108,IF(D108>0,D108,0))) -> 0
B109: ='Computo-Massimali'!C14 -> Impianti climatizzazione e ACS | C109: 0 | D109: ='SAL.30%'!N15 -> 0 | E109: ='SAL.60%'!N14 -> 0 | F109: =IF(SAL.Finale!N14>0,SAL.Finale!N14,IF(E109>0,E109,IF(D109>0,D109,0))) -> 0
B110: ='Computo-Massimali'!C15 -> SismaBonus Zona 1,2 o 3 | C110: 0 | D110: ='SAL.30%'!N16 -> 0 | E110: ='SAL.60%'!N15 -> 0 | F110: =IF(SAL.Finale!N15>0,SAL.Finale!N15,IF(E110>0,E110,IF(D110>0,D110,0))) -> 0
B111: ='Computo-Massimali'!C16 -> Totale interventi Trainanti : | C111: 0 | D111: ='SAL.30%'!N17 -> 0 | E111: ='SAL.60%'!N16 -> 0 | F111: =IF(SAL.Finale!N16>0,SAL.Finale!N16,IF(E111>0,E111,IF(D111>0,D111,0))) -> 0
B115: ='Computo-Massimali'!C20 -> PV) Isolamento pareti perimetrali | C115: 0 | D115: ='SAL.30%'!N21 -> 0 | E115: ='SAL.60%'!N20 -> 0 | F115: =IF(SAL.Finale!N20>0,SAL.Finale!N20,IF(E115>0,E115,IF(D115>0,D115,0))) -> 0
B116: ='Computo-Massimali'!C21 -> PO) Isolamento coperture | C116: 0 | D116: ='SAL.30%'!N22 -> 0 | E116: ='SAL.60%'!N21 -> 0 | F116: =IF(SAL.Finale!N21>0,SAL.Finale!N21,IF(E116>0,E116,IF(D116>0,D116,0))) -> 0
B117: ='Computo-Massimali'!C22 -> PS) Isolamento Pavimenti | C117: 0 | D117: ='SAL.30%'!N23 -> 0 | E117: ='SAL.60%'!N22 -> 0 | F117: =IF(SAL.Finale!N22>0,SAL.Finale!N22,IF(E117>0,E117,IF(D117>0,D117,0))) -> 0
B118: ='Computo-Massimali'!C23 -> IN) Serramenti con chiusure oscuranti | C118: 0 | D118: ='SAL.30%'!N24 -> 0 | E118: ='SAL.60%'!N23 -> 0 | F118: =IF(SAL.Finale!N23>0,SAL.Finale!N23,IF(E118>0,E118,IF(D118>0,D118,0))) -> 0
B119: ='Computo-Massimali'!C24 -> Totali Isolamento PV) PO) PS) e IN) | C119: 0 | D119: ='SAL.30%'!N25 -> 0 | E119: ='SAL.60%'!N24 -> 0 | F119: =IF(SAL.Finale!N24>0,SAL.Finale!N24,IF(E119>0,E119,IF(D119>0,D119,0))) -> 0
B120: ='Computo-Massimali'!C25 -> SS) Schermature solari e chiusure oscuranti | C120: 0 | D120: ='SAL.30%'!N26 -> 0 | E120: ='SAL.60%'!N25 -> 0 | F120: =IF(SAL.Finale!N25>0,SAL.Finale!N25,IF(E120>0,E120,IF(D120>0,D120,0))) -> 0
B121: ='Computo-Massimali'!C26 -> Impianti climatizzazione con | C121: 0 | D121: ='SAL.30%'!N27 -> 0 | E121: ='SAL.60%'!N26 -> 0 | F121: =IF(SAL.Finale!N26>0,SAL.Finale!N26,IF(E121>0,E121,IF(D121>0,D121,0))) -> 0
B122: ='Computo-Massimali'!C27 -> GA) Generatori aria calda Condensazione | C122: 0 | D122: ='SAL.30%'!N28 -> 0 | E122: ='SAL.60%'!N27 -> 0 | F122: =IF(SAL.Finale!N27>0,SAL.Finale!N27,IF(E122>0,E122,IF(D122>0,D122,0))) -> 0
B123: ='Computo-Massimali'!C28 -> IB) Impianti Biomassa | C123: 0 | D123: ='SAL.30%'!N29 -> 0 | E123: ='SAL.60%'!N28 -> 0 | F123: =IF(SAL.Finale!N28>0,SAL.Finale!N28,IF(E123>0,E123,IF(D123>0,D123,0))) -> 0
B124: ='Computo-Massimali'!C29 -> SA) Scaldacqua a pompa di calore | C124: 0 | D124: ='SAL.30%'!N30 -> 0 | E124: ='SAL.60%'!N29 -> 0 | F124: =IF(SAL.Finale!N29>0,SAL.Finale!N29,IF(E124>0,E124,IF(D124>0,D124,0))) -> 0
B125: ='Computo-Massimali'!C30 -> Totali GA) IB) SA) | C125: 0 | D125: ='SAL.30%'!N31 -> 0 | E125: ='SAL.60%'!N30 -> 0 | F125: =IF(SAL.Finale!N30>0,SAL.Finale!N30,IF(E125>0,E125,IF(D125>0,D125,0))) -> 0
B126: ='Computo-Massimali'!C31 -> CO) Sistemi di Microgenerazione | C126: 0 | D126: ='SAL.30%'!N32 -> 0 | E126: ='SAL.60%'!N31 -> 0 | F126: =IF(SAL.Finale!N31>0,SAL.Finale!N31,IF(E126>0,E126,IF(D126>0,D126,0))) -> 0
B127: ='Computo-Massimali'!C32 -> ST) Collettori Solari | C127: 0 | D127: ='SAL.30%'!N33 -> 0 | E127: ='SAL.60%'!N32 -> 0 | F127: =IF(SAL.Finale!N32>0,SAL.Finale!N32,IF(E127>0,E127,IF(D127>0,D127,0))) -> 0
B128: ='Computo-Massimali'!C33 -> FV) Solare Fotovoltaico [ kWp ] | C128: 0 | D128: ='SAL.30%'!N34 -> 0 | E128: ='SAL.60%'!N33 -> 0 | F128: =IF(SAL.Finale!N33>0,SAL.Finale!N33,IF(E128>0,E128,IF(D128>0,D128,0))) -> 0
B129: ='Computo-Massimali'!C34 -> AC) Sistema di Accumulo [ kWh ] | C129: 0 | D129: ='SAL.30%'!N35 -> 0 | E129: ='SAL.60%'!N34 -> 0 | F129: =IF(SAL.Finale!N34>0,SAL.Finale!N34,IF(E129>0,E129,IF(D129>0,D129,0))) -> 0
B130: ='Computo-Massimali'!C35 -> CR) Colonnine di Ricarica [ N. ] | C130: 0 | D130: ='SAL.30%'!N36 -> 0 | E130: ='SAL.60%'!N35 -> 0 | F130: =IF(SAL.Finale!N35>0,SAL.Finale!N35,IF(E130>0,E130,IF(D130>0,D130,0))) -> 0
B131: ='Computo-Massimali'!C36 -> EBA) Eliminazione Barriere architettoniche | C131: 0 | D131: ='SAL.30%'!N37 -> 0 | E131: ='SAL.60%'!N36 -> 0 | F131: =IF(SAL.Finale!N36>0,SAL.Finale!N36,IF(E131>0,E131,IF(D131>0,D131,0))) -> 0
B137: ='Computo-Massimali'!C42 -> PV) Isolamento pareti perimetrali | C137: 0 | D137: ='SAL.30%'!N43 -> 0 | E137: ='SAL.60%'!N42 -> 0 | F137: =IF(SAL.Finale!N42>0,SAL.Finale!N42,IF(E137>0,E137,IF(D137>0,D137,0))) -> 0
B138: ='Computo-Massimali'!C43 -> PO) Isolamento coperture | C138: 0 | D138: ='SAL.30%'!N44 -> 0 | E138: ='SAL.60%'!N43 -> 0 | F138: =IF(SAL.Finale!N43>0,SAL.Finale!N43,IF(E138>0,E138,IF(D138>0,D138,0))) -> 0
B139: ='Computo-Massimali'!C44 -> PS) Isolamento Pavimenti | C139: 0 | D139: ='SAL.30%'!N45 -> 0 | E139: ='SAL.60%'!N44 -> 0 | F139: =IF(SAL.Finale!N44>0,SAL.Finale!N44,IF(E139>0,E139,IF(D139>0,D139,0))) -> 0
B140: ='Computo-Massimali'!C45 -> IN) Serramenti con chiusure oscuranti | C140: 0 | D140: ='SAL.30%'!N46 -> 0 | E140: ='SAL.60%'!N45 -> 0 | F140: =IF(SAL.Finale!N45>0,SAL.Finale!N45,IF(E140>0,E140,IF(D140>0,D140,0))) -> 0
B141: ='Computo-Massimali'!C46 -> Totali Isolamento PV) PO) PS) e IN | C141: 0 | D141: ='SAL.30%'!N47 -> 0 | E141: ='SAL.60%'!N46 -> 0 | F141: =IF(SAL.Finale!N46>0,SAL.Finale!N46,IF(E141>0,E141,IF(D141>0,D141,0))) -> 0
B142: ='Computo-Massimali'!C47 -> SS) Schermature solari e chiusure oscuranti | C142: 0 | D142: ='SAL.30%'!N48 -> 0 | E142: ='SAL.60%'!N47 -> 0 | F142: =IF(SAL.Finale!N47>0,SAL.Finale!N47,IF(E142>0,E142,IF(D142>0,D142,0))) -> 0
B143: ='Computo-Massimali'!C48 -> Impianti climatizzazione con | C143: 0 | D143: ='SAL.30%'!N49 -> 0 | E143: ='SAL.60%'!N48 -> 0 | F143: =IF(SAL.Finale!N48>0,SAL.Finale!N48,IF(E143>0,E143,IF(D143>0,D143,0))) -> 0
B144: ='Computo-Massimali'!C49 -> SA) Scaldacqua a pompa di calore | C144: 0 | D144: ='SAL.30%'!#REF! ->  | E144: ='SAL.60%'!N49 -> 0 | F144: =IF(SAL.Finale!N49>0,SAL.Finale!N49,IF(E144>0,E144,IF(D144>0,D144,0))) -> 
B145: ='Computo-Massimali'!C50 -> Totali Impianti ed SA) | C145: 0 | D145: ='SAL.30%'!N50 -> 0 | E145: ='SAL.60%'!N50 -> 0 | F145: =IF(SAL.Finale!N50>0,SAL.Finale!N50,IF(E145>0,E145,IF(D145>0,D145,0))) -> 0
B146: ='Computo-Massimali'!C51 -> CO) Sistemi di Microgenerazione | C146: 0 | D146: ='SAL.30%'!N51 -> 0 | E146: ='SAL.60%'!N51 -> 0 | F146: =IF(SAL.Finale!N51>0,SAL.Finale!N51,IF(E146>0,E146,IF(D146>0,D146,0))) -> 0
B147: ='Computo-Massimali'!C52 -> IB) Generatori a Biomassa | C147: 0 | D147: ='SAL.30%'!N52 -> 0 | E147: ='SAL.60%'!N52 -> 0 | F147: =IF(SAL.Finale!N52>0,SAL.Finale!N52,IF(E147>0,E147,IF(D147>0,D147,0))) -> 0
B148: ='Computo-Massimali'!C53 -> BA) Building Automation | C148: 0 | D148: ='SAL.30%'!N53 -> 0 | E148: ='SAL.60%'!N53 -> 0 | F148: =IF(SAL.Finale!N53>0,SAL.Finale!N53,IF(E148>0,E148,IF(D148>0,D148,0))) -> 0
B149: ='Computo-Massimali'!C54 -> ST) Collettori Solari | C149: 0 | D149: ='SAL.30%'!#REF! ->  | E149: ='SAL.60%'!N54 -> 0 | F149: =IF(SAL.Finale!N54>0,SAL.Finale!N54,IF(E149>0,E149,IF(D149>0,D149,0))) -> 
B150: ='Computo-Massimali'!C55 -> FV) Solare Fotovoltaico [ kWp ] | C150: 0 | D150: ='SAL.30%'!N54 -> 0 | E150: ='SAL.60%'!N55 -> 0 | F150: =IF(SAL.Finale!N55>0,SAL.Finale!N55,IF(E150>0,E150,IF(D150>0,D150,0))) -> 0
B151: ='Computo-Massimali'!C56 -> AC) Sistema di Accumulo [ kWh ] | C151: 0 | D151: ='SAL.30%'!N55 -> 0 | E151: ='SAL.60%'!N56 -> 0 | F151: =IF(SAL.Finale!N56>0,SAL.Finale!N56,IF(E151>0,E151,IF(D151>0,D151,0))) -> 0
B152: ='Computo-Massimali'!C57 -> CR) Colonnine di Ricarica | C152: 0 | D152: ='SAL.30%'!N56 -> 0 | E152: ='SAL.60%'!N57 -> 0 | F152: =IF(SAL.Finale!N57>0,SAL.Finale!N57,IF(E152>0,E152,IF(D152>0,D152,0))) -> 0
B153: ='Computo-Massimali'!C59 -> Totale Interventi trainati | C153: 0 | D153: ='SAL.30%'!N58 -> 0 | E153: ='SAL.60%'!N59 -> 0 | F153: =IF(SAL.Finale!N59>0,SAL.Finale!N59,IF(E153>0,E153,IF(D153>0,D153,0))) -> 0
A167: Continuazione … Pratica Enea
A170: INTERVENTI TRAINANTI
A172: intervento di isolamento termico delle superfici opache verticali, orizzontali e inclinate : PV) PO) POND) PS)
A173: Descrizione | F173: Superficie mq | G173: Trasm. Ante | H173: Trasm. Post | I173: Trasm.P. YIE | J173: Confine | K173: Coiben-tazione | L173: Realizzati mq
L174: SAL.30% | M174: SAL.60% | N174: SAL.FIN.
F175: 22.58 | G175: 0.8914 | H175: 0.2236 | I175: 0.01 | J175: Esterno | K175: Esterna | L175: 22.58
F176: 123.7 | G176: 1.839 | H176: 0.252 | I176: 0.0173 | J176: Esterno | K176: Esterna | L176: 123.7
A188: INTERVENTI TRAINATI Unità Immobiliare
A189: Sostituzione degli infissi
A190: Descrizione | F190: Telaio Prima | G190: Vetro Prima | I190: Trasm. Ante | J190: Superfice mq | K190: Telaio Dopo | L190: Vetro Dopo | N190: Trasm. Post | O190: Chius. Oscura
F194: - | G194: - | K194: - | L194: -
F195: - | G195: - | K195: - | L195: -
F196: - | G196: - | K196: - | L196: -
F197: - | G197: - | K197: - | L197: -
K336: Note Acquisto Contratto Licenza EULA
J366: Capriate Legno + Solai Legno | K366: Capriate Legno + Solai Legno | L366: Capriate Acciaio + Solai Acciaio
J367: YouTube | K367: Likedin | L367: Questo indirizzo email è protetto dagli spambots. È necessario abilitare JavaScript per vederlo.

Sheet ModelloFattura (hidden)
B2: RIEPILOGO FATTURE SAL N. | G2: del
B3: =IF(TipoEdif=1,CONCATENATE("da emettere al Cliente ",Committenti!B3," ",Committenti!C3),CONCATENATE("da emettere al Condominio ",'Dati Gen'!K5)) -> da emettere al Cliente Tizio Caio | L3: 5 | M3: 5
B4: Tipo | C4: Fornitore | F4: Importo | G4: Sconto | I4: a Pagare | K4: Credito spettante | M4: Data
B8: da emettere al General Contractor | L8: 10 | M8: 10
B9: Tecnico | F9: Imponibile | G9: Iva | I9: Importo | K9: Rit.Acconto | L9: Netto a Pagare
B55: =IF('Computo-Massimali'!$C$6<>"","Attenzione! Tabella Computo-Massimali non completa. Si consiglia di completare, prima di Creare Fatture","") -> Attenzione! Tabella Computo-Massimali non completa. Si consiglia di completare, prima di Creare Fatture
B56: Fornitore | I56: Cliente | O56: Fattura Fornitore Superbonus 110
B57: Indirizzo | I57: Indirizzo
B58: Città | I58: Città
B59: CF./P.Iva | I59: C.F. :
B60: Tel./Mail
B61: FATTURA N.
B62: DATA | Q62: ='SAL.30%'!AF$127 -> 0 | R62: ='SAL.30%'!AG$127 -> 0 | S62: ='SAL.30%'!AH$127 -> 0 | T62: ='SAL.30%'!AI$127 -> 0 | U62: ='SAL.30%'!AJ$127 -> 0 | V62: ='SAL.30%'!AK$127 -> 0 | W62: ='SAL.30%'!AL$127 -> 0 | X62: ='SAL.30%'!AM$127 -> 0 | Y62: Spese Tecniche Fatturate Direttamente | Z62: Spese Tecniche Non Fatturate Direttamente
Q63: ='Dati Gen'!$D$44 -> SI | R63: ='Dati Gen'!$D$45 -> NO | S63: ='Dati Gen'!$D$46 -> NO | T63: ='Dati Gen'!$D$47 -> NO | U63: ='Dati Gen'!$D$48 -> NO | V63: ='Dati Gen'!$D$49 -> NO | W63: ='Dati Gen'!$D$50 -> NO | X63: ='Dati Gen'!$D$51 -> NO
C64: DESCRIZIONE | K64: PREZZO | L64: %IVA | M64: IMPORTO | O64: Importo Iva | P64: Spese Tecniche | Q64: =IF('Dati Gen'!$B$44<>"",'Dati Gen'!$B$44,"") -> Architetto1 | R64: =IF('Dati Gen'!$B$45<>"",'Dati Gen'!$B$45,"") -> Ingegnere2 | S64: =IF('Dati Gen'!$B$46<>"",'Dati Gen'!$B$46,"") -> Consulente1 | T64: =IF('Dati Gen'!$B$47<>"",'Dati Gen'!$B$47,"") ->  | U64: =IF('Dati Gen'!$B$48<>"",'Dati Gen'!$B$48,"") ->  | V64: =IF('Dati Gen'!$B$49<>"",'Dati Gen'!$B$49,"") ->  | W64: =IF('Dati Gen'!$B$50<>"",'Dati Gen'!$B$50,"") ->  | X64: =IF('Dati Gen'!$B$51<>"",'Dati Gen'!$B$51,"") -> 
B65: =IF(C65<>"",1,"") ->  | M65: =IF(K65<>"",K65*(1+L65),"") ->  | O65: =IF(K65<>"",K65*L65,0) -> 0 | P65: 0 | Q65: =P65*Q62 -> 0 | R65: =P65*R62 -> 0 | S65: =P65*S62 -> 0 | T65: =P65*T62 -> 0 | U65: =P65*U62 -> 0 | V65: =P65*V62 -> 0 | W65: =P65*W62 -> 0 | X65: =P65*X62 -> 0 | Y65: =SUMIF(Q63:X63,"SI",Q65:X65) -> 0 | Z65: =SUM(Q65:X65)-Y65 -> 0
B66: =IF(C66<>"",B65+1,"") ->  | M66: =IF(K66<>"",K66*(1+L66),"") ->  | O66: =IF(K66<>"",K66*L66,0) -> 0 | P66: 0 | Q66: =P66*Q62 -> 0 | R66: =P66*R62 -> 0 | S66: =P66*S62 -> 0 | T66: =P66*T62 -> 0 | U66: =P66*U62 -> 0 | V66: =P66*V62 -> 0 | W66: =P66*W62 -> 0 | X66: =P66*X62 -> 0 | Y66: =SUMIF(Q63:X63,"SI",Q66:X66) -> 0 | Z66: 0
M67: =IF(K67<>"",K67*(1+L67),"") ->  | O67: =IF(K67<>"",K67*L67,0) -> 0 | P67: 0 | Q67: =P67*Q62 -> 0 | R67: =P67*R62 -> 0 | S67: =P67*S62 -> 0 | T67: =P67*T62 -> 0 | U67: =P67*U62 -> 0 | V67: =P67*V62 -> 0 | W67: =P67*W62 -> 0 | X67: =P67*X62 -> 0 | Y67: =SUMIF(Q63:X63,"SI",Q67:X67) -> 0 | Z67: 0
O68: =IF(K68<>"",K68*L68,0) -> 0 | P68: 0 | Q68: =P68*Q62 -> 0 | R68: =P68*R62 -> 0 | S68: =P68*S62 -> 0 | T68: =P68*T62 -> 0 | U68: =P68*U62 -> 0 | V68: =P68*V62 -> 0 | W68: =P68*W62 -> 0 | X68: =P68*X62 -> 0 | Y68: =SUMIF(Q63:X63,"SI",Q68:X68) -> 0 | Z68: 0
O69: 0 | P69: 0 | Q69: =P69*Q62 -> 0 | R69: =P69*R62 -> 0 | S69: =P69*S62 -> 0 | T69: =P69*T62 -> 0 | U69: =P69*U62 -> 0 | V69: =P69*V62 -> 0 | W69: =P69*W62 -> 0 | X69: =P69*X62 -> 0 | Y69: =SUMIF(Q63:X63,"SI",Q69:X69) -> 0 | Z69: 0
O70: 0 | P70: 0 | Q70: =P70*Q62 -> 0 | R70: =P70*R62 -> 0 | S70: =P70*S62 -> 0 | T70: =P70*T62 -> 0 | U70: =P70*U62 -> 0 | V70: =P70*V62 -> 0 | W70: =P70*W62 -> 0 | X70: =P70*X62 -> 0 | Y70: =SUMIF(Q63:X63,"SI",Q70:X70) -> 0 | Z70: 0
O71: 0 | P71: 0 | Q71: =P71*Q62 -> 0 | R71: =P71*R62 -> 0 | S71: =P71*S62 -> 0 | T71: =P71*T62 -> 0 | U71: =P71*U62 -> 0 | V71: =P71*V62 -> 0 | W71: =P71*W62 -> 0 | X71: =P71*X62 -> 0 | Y71: =SUMIF(Q63:X63,"SI",Q71:X71) -> 0 | Z71: 0
O72: 0 | P72: 0 | Q72: =P72*Q62 -> 0 | R72: =P72*R62 -> 0 | S72: =P72*S62 -> 0 | T72: =P72*T62 -> 0 | U72: =P72*U62 -> 0 | V72: =P72*V62 -> 0 | W72: =P72*W62 -> 0 | X72: =P72*X62 -> 0 | Y72: =SUMIF(Q63:X63,"SI",Q72:X72) -> 0 | Z72: 0
O73: 0 | P73: 0 | Q73: =P73*Q62 -> 0 | R73: =P73*R62 -> 0 | S73: =P73*S62 -> 0 | T73: =P73*T62 -> 0 | U73: =P73*U62 -> 0 | V73: =P73*V62 -> 0 | W73: =P73*W62 -> 0 | X73: =P73*X62 -> 0 | Y73: =SUMIF(Q63:X63,"SI",Q73:X73) -> 0 | Z73: 0
O74: 0 | P74: 0 | Q74: =P74*Q62 -> 0 | R74: =P74*R62 -> 0 | S74: =P74*S62 -> 0 | T74: =P74*T62 -> 0 | U74: =P74*U62 -> 0 | V74: =P74*V62 -> 0 | W74: =P74*W62 -> 0 | X74: =P74*X62 -> 0 | Y74: =SUMIF(Q63:X63,"SI",Q74:X74) -> 0 | Z74: 0
B75: =IF(C75<>"",B74+1,"") ->  | O75: 0 | P75: 0 | Q75: =P75*Q62 -> 0 | R75: =P75*R62 -> 0 | S75: =P75*S62 -> 0 | T75: =P75*T62 -> 0 | U75: =P75*U62 -> 0 | V75: =P75*V62 -> 0 | W75: =P75*W62 -> 0 | X75: =P75*X62 -> 0 | Y75: =SUMIF(Q63:X63,"SI",Q75:X75) -> 0 | Z75: 0
O76: 0 | P76: 0 | Q76: =P76*Q62 -> 0 | R76: =P76*R62 -> 0 | S76: =P76*S62 -> 0 | T76: =P76*T62 -> 0 | U76: =P76*U62 -> 0 | V76: =P76*V62 -> 0 | W76: =P76*W62 -> 0 | X76: =P76*X62 -> 0 | Y76: =SUMIF(Q63:X63,"SI",Q76:X76) -> 0 | Z76: 0
O77: 0 | P77: 0 | Q77: =P77*Q62 -> 0 | R77: =P77*R62 -> 0 | S77: =P77*S62 -> 0 | T77: =P77*T62 -> 0 | U77: =P77*U62 -> 0 | V77: =P77*V62 -> 0 | W77: =P77*W62 -> 0 | X77: =P77*X62 -> 0 | Y77: =SUMIF(Q63:X63,"SI",Q77:X77) -> 0 | Z77: 0
O78: 0 | P78: 0 | Q78: =P78*Q62 -> 0 | R78: =P78*R62 -> 0 | S78: =P78*S62 -> 0 | T78: =P78*T62 -> 0 | U78: =P78*U62 -> 0 | V78: =P78*V62 -> 0 | W78: =P78*W62 -> 0 | X78: =P78*X62 -> 0 | Y78: =SUMIF(Q63:X63,"SI",Q78:X78) -> 0 | Z78: 0
O79: 0 | P79: 0 | Q79: =P79*Q62 -> 0 | R79: =P79*R62 -> 0 | S79: =P79*S62 -> 0 | T79: =P79*T62 -> 0 | U79: =P79*U62 -> 0 | V79: =P79*V62 -> 0 | W79: =P79*W62 -> 0 | X79: =P79*X62 -> 0 | Y79: =SUMIF(Q63:X63,"SI",Q79:X79) -> 0 | Z79: 0
O80: 0 | P80: 0 | Q80: =P80*Q62 -> 0 | R80: =P80*R62 -> 0 | S80: =P80*S62 -> 0 | T80: =P80*T62 -> 0 | U80: =P80*U62 -> 0 | V80: =P80*V62 -> 0 | W80: =P80*W62 -> 0 | X80: =P80*X62 -> 0 | Y80: =SUMIF(Q63:X63,"SI",Q80:X80) -> 0 | Z80: 0
O81: 0 | P81: 0 | Q81: =P81*Q62 -> 0 | R81: =P81*R62 -> 0 | S81: =P81*S62 -> 0 | T81: =P81*T62 -> 0 | U81: =P81*U62 -> 0 | V81: =P81*V62 -> 0 | W81: =P81*W62 -> 0 | X81: =P81*X62 -> 0 | Y81: =SUMIF(Q63:X63,"SI",Q81:X81) -> 0 | Z81: 0
O82: 0 | P82: 0 | Q82: =P82*Q62 -> 0 | R82: =P82*R62 -> 0 | S82: =P82*S62 -> 0 | T82: =P82*T62 -> 0 | U82: =P82*U62 -> 0 | V82: =P82*V62 -> 0 | W82: =P82*W62 -> 0 | X82: =P82*X62 -> 0 | Y82: =SUMIF(Q63:X63,"SI",Q82:X82) -> 0 | Z82: 0
O83: 0 | P83: 0 | Q83: =P83*Q62 -> 0 | R83: =P83*R62 -> 0 | S83: =P83*S62 -> 0 | T83: =P83*T62 -> 0 | U83: =P83*U62 -> 0 | V83: =P83*V62 -> 0 | W83: =P83*W62 -> 0 | X83: =P83*X62 -> 0 | Y83: =SUMIF(Q63:X63,"SI",Q83:X83) -> 0 | Z83: 0
O84: 0 | P84: 0 | Q84: =P84*Q62 -> 0 | R84: =P84*R62 -> 0 | S84: =P84*S62 -> 0 | T84: =P84*T62 -> 0 | U84: =P84*U62 -> 0 | V84: =P84*V62 -> 0 | W84: =P84*W62 -> 0 | X84: =P84*X62 -> 0 | Y84: =SUMIF(Q63:X63,"SI",Q84:X84) -> 0 | Z84: 0
O85: =IF(K85<>"",K85*L85,0) -> 0 | P85: 0 | Q85: =P85*Q62 -> 0 | R85: =P85*R62 -> 0 | S85: =P85*S62 -> 0 | T85: =P85*T62 -> 0 | U85: =P85*U62 -> 0 | V85: =P85*V62 -> 0 | W85: =P85*W62 -> 0 | X85: =P85*X62 -> 0 | Y85: =SUMIF(Q63:X63,"SI",Q85:X85) -> 0 | Z85: 0
O86: =IF(K86<>"",K86*L86,0) -> 0 | P86: 0 | Q86: =P86*Q62 -> 0 | R86: =P86*R62 -> 0 | S86: =P86*S62 -> 0 | T86: =P86*T62 -> 0 | U86: =P86*U62 -> 0 | V86: =P86*V62 -> 0 | W86: =P86*W62 -> 0 | X86: =P86*X62 -> 0 | Y86: =SUMIF(Q63:X63,"SI",Q86:X86) -> 0 | Z86: 0
O87: =IF(K87<>"",K87*L87,0) -> 0 | P87: 0 | Q87: =P87*Q62 -> 0 | R87: =P87*R62 -> 0 | S87: =P87*S62 -> 0 | T87: =P87*T62 -> 0 | U87: =P87*U62 -> 0 | V87: =P87*V62 -> 0 | W87: =P87*W62 -> 0 | X87: =P87*X62 -> 0 | Y87: =SUMIF(Q63:X63,"SI",Q87:X87) -> 0 | Z87: 0
O88: 0 | P88: 0 | Q88: =P88*Q62 -> 0 | R88: =P88*R62 -> 0 | S88: =P88*S62 -> 0 | T88: =P88*T62 -> 0 | U88: =P88*U62 -> 0 | V88: =P88*V62 -> 0 | W88: =P88*W62 -> 0 | X88: =P88*X62 -> 0 | Y88: =SUMIF(Q63:X63,"SI",Q88:X88) -> 0 | Z88: 0
O89: 0 | P89: 0 | Q89: =P89*Q62 -> 0 | R89: =P89*R62 -> 0 | S89: =P89*S62 -> 0 | T89: =P89*T62 -> 0 | U89: =P89*U62 -> 0 | V89: =P89*V62 -> 0 | W89: =P89*W62 -> 0 | X89: =P89*X62 -> 0 | Y89: =SUMIF(Q63:X63,"SI",Q89:X89) -> 0 | Z89: 0
O90: 0 | P90: 0 | Q90: =P90*Q62 -> 0 | R90: =P90*R62 -> 0 | S90: =P90*S62 -> 0 | T90: =P90*T62 -> 0 | U90: =P90*U62 -> 0 | V90: =P90*V62 -> 0 | W90: =P90*W62 -> 0 | X90: =P90*X62 -> 0 | Y90: =SUMIF(Q63:X63,"SI",Q90:X90) -> 0 | Z90: 0
O91: 0 | P91: 0 | Q91: =P91*Q62 -> 0 | R91: =P91*R62 -> 0 | S91: =P91*S62 -> 0 | T91: =P91*T62 -> 0 | U91: =P91*U62 -> 0 | V91: =P91*V62 -> 0 | W91: =P91*W62 -> 0 | X91: =P91*X62 -> 0 | Y91: =SUMIF(Q63:X63,"SI",Q91:X91) -> 0 | Z91: 0
O92: 0 | P92: 0 | Q92: =P92*Q62 -> 0 | R92: =P92*R62 -> 0 | S92: =P92*S62 -> 0 | T92: =P92*T62 -> 0 | U92: =P92*U62 -> 0 | V92: =P92*V62 -> 0 | W92: =P92*W62 -> 0 | X92: =P92*X62 -> 0 | Y92: =SUMIF(Q63:X63,"SI",Q92:X92) -> 0 | Z92: 0
O93: 0 | P93: 0 | Q93: =P93*Q62 -> 0 | R93: =P93*R62 -> 0 | S93: =P93*S62 -> 0 | T93: =P93*T62 -> 0 | U93: =P93*U62 -> 0 | V93: =P93*V62 -> 0 | W93: =P93*W62 -> 0 | X93: =P93*X62 -> 0 | Y93: =SUMIF(Q63:X63,"SI",Q93:X93) -> 0 | Z93: 0
O94: 0 | P94: 0 | Q94: =P94*Q62 -> 0 | R94: =P94*R62 -> 0 | S94: =P94*S62 -> 0 | T94: =P94*T62 -> 0 | U94: =P94*U62 -> 0 | V94: =P94*V62 -> 0 | W94: =P94*W62 -> 0 | X94: =P94*X62 -> 0 | Y94: =SUMIF(Q63:X63,"SI",Q94:X94) -> 0 | Z94: 0
O95: 0 | P95: 0 | Q95: =P95*Q62 -> 0 | R95: =P95*R62 -> 0 | S95: =P95*S62 -> 0 | T95: =P95*T62 -> 0 | U95: =P95*U62 -> 0 | V95: =P95*V62 -> 0 | W95: =P95*W62 -> 0 | X95: =P95*X62 -> 0 | Y95: =SUMIF(Q63:X63,"SI",Q95:X95) -> 0 | Z95: 0
O96: =SUM(O65:O95) -> 0 | P96: =SUM(P65:P95) -> 0 | Q96: =SUM(Q65:Q95) -> 0 | R96: 0 | S96: =SUM(S65:S95) -> 0 | T96: 0 | U96: =SUM(U65:U95) -> 0 | V96: 0 | W96: 0 | X96: 0 | Y96: =SUM(Y65:Y95) -> 0 | Z96: =SUM(Z65:Z95) -> 0
C97: =IF(D97<>"","Spese","") ->  | D97: =IF(SUMIF(L65:L95,"=0",K65:K95)<>0,SUMIF(L65:L95,"=0",K65:K95),"") ->  | K97: Imponibile | L97: =SUMIF(L65:L95,"<>0",K65:K95) -> 0
K98: IVA | L98: =O96 -> 0
K99: Totale | L99: =IF(D97<>"",SUM(L97:M98)+D97,SUM(L97:M98)) -> 0
K100: Sconto in Fattura | L100: 0
K101: Netto a Pagare | L101: =IF(L99+L100<>0,L99+L100,"0,00 €") -> 0,00 €
B103: Pagamento
B104: Note
B106: ©2021 SIM srl - www.madosoft.it | M106: Pag. 1/1
B109: Fornitore | I109: Cliente | O109: Fattura Fornitore Altri Interventi
B110: Indirizzo | I110: Indirizzo
B111: Città | I111: Città
B112: CF./P.Iva | I112: C.F. :
B113: Tel./Mail
B114: FATTURA N.
B115: DATA | Q115: ='SAL.30%'!AF$127 -> 0 | R115: ='SAL.30%'!AG$127 -> 0 | S115: ='SAL.30%'!AH$127 -> 0 | T115: ='SAL.30%'!AI$127 -> 0 | U115: ='SAL.30%'!AJ$127 -> 0 | V115: ='SAL.30%'!AK$127 -> 0 | W115: ='SAL.30%'!AL$127 -> 0 | X115: ='SAL.30%'!AM$127 -> 0 | Y115: Spese Tecniche Fatturate Direttamente | Z115: Spese Tecniche Non Fatturate Direttamente
Q116: ='Dati Gen'!$D$44 -> SI | R116: ='Dati Gen'!$D$45 -> NO | S116: ='Dati Gen'!$D$46 -> NO | T116: ='Dati Gen'!$D$47 -> NO | U116: ='Dati Gen'!$D$48 -> NO | V116: ='Dati Gen'!$D$49 -> NO | W116: ='Dati Gen'!$D$50 -> NO | X116: ='Dati Gen'!$D$51 -> NO
C117: DESCRIZIONE | K117: PREZZO | L117: %IVA | M117: IMPORTO | O117: Importo Iva | P117: Spese Tecniche | Q117: =IF('Dati Gen'!$B$44<>"",'Dati Gen'!$B$44,"") -> Architetto1 | R117: =IF('Dati Gen'!$B$45<>"",'Dati Gen'!$B$45,"") -> Ingegnere2 | S117: =IF('Dati Gen'!$B$46<>"",'Dati Gen'!$B$46,"") -> Consulente1 | T117: =IF('Dati Gen'!$B$47<>"",'Dati Gen'!$B$47,"") ->  | U117: =IF('Dati Gen'!$B$48<>"",'Dati Gen'!$B$48,"") ->  | V117: =IF('Dati Gen'!$B$49<>"",'Dati Gen'!$B$49,"") ->  | W117: =IF('Dati Gen'!$B$50<>"",'Dati Gen'!$B$50,"") ->  | X117: =IF('Dati Gen'!$B$51<>"",'Dati Gen'!$B$51,"") -> 
B118: =IF(C118<>"",1,"") ->  | M118: =IF(K118<>"",K118*(1+L118),"") ->  | O118: =IF(K118<>"",K118*L118,0) -> 0 | P118: 0 | Q118: =P118*Q115 -> 0 | R118: =P118*R115 -> 0 | S118: =P118*S115 -> 0 | T118: =P118*T115 -> 0 | U118: =P118*U115 -> 0 | V118: =P118*V115 -> 0 | W118: =P118*W115 -> 0 | X118: =P118*X115 -> 0 | Y118: =SUMIF(Q116:X116,"SI",Q118:X118) -> 0 | Z118: =SUM(Q118:X118)-Y118 -> 0
B119: =IF(C119<>"",B118+1,"") ->  | M119: =IF(K119<>"",K119*(1+L119),"") ->  | O119: =IF(K119<>"",K119*L119,0) -> 0 | P119: 0 | Q119: =P119*Q115 -> 0 | R119: =P119*R115 -> 0 | S119: =P119*S115 -> 0 | T119: =P119*T115 -> 0 | U119: =P119*U115 -> 0 | V119: =P119*V115 -> 0 | W119: =P119*W115 -> 0 | X119: =P119*X115 -> 0 | Y119: =SUMIF(Q116:X116,"SI",Q119:X119) -> 0 | Z119: 0
O120: =IF(K120<>"",K120*L120,0) -> 0 | P120: 0 | Q120: =P120*Q115 -> 0 | R120: =P120*R115 -> 0 | S120: =P120*S115 -> 0 | T120: =P120*T115 -> 0 | U120: =P120*U115 -> 0 | V120: =P120*V115 -> 0 | W120: =P120*W115 -> 0 | X120: =P120*X115 -> 0 | Y120: =SUMIF(Q116:X116,"SI",Q120:X120) -> 0 | Z120: 0
O121: =IF(K121<>"",K121*L121,0) -> 0 | P121: 0 | Q121: =P121*Q115 -> 0 | R121: =P121*R115 -> 0 | S121: =P121*S115 -> 0 | T121: =P121*T115 -> 0 | U121: =P121*U115 -> 0 | V121: =P121*V115 -> 0 | W121: =P121*W115 -> 0 | X121: =P121*X115 -> 0 | Y121: =SUMIF(Q116:X116,"SI",Q121:X121) -> 0 | Z121: 0
O122: 0 | P122: 0 | Q122: =P122*Q115 -> 0 | R122: =P122*R115 -> 0 | S122: =P122*S115 -> 0 | T122: =P122*T115 -> 0 | U122: =P122*U115 -> 0 | V122: =P122*V115 -> 0 | W122: =P122*W115 -> 0 | X122: =P122*X115 -> 0 | Y122: =SUMIF(Q116:X116,"SI",Q122:X122) -> 0 | Z122: 0
O123: 0 | P123: 0 | Q123: =P123*Q115 -> 0 | R123: =P123*R115 -> 0 | S123: =P123*S115 -> 0 | T123: =P123*T115 -> 0 | U123: =P123*U115 -> 0 | V123: =P123*V115 -> 0 | W123: =P123*W115 -> 0 | X123: =P123*X115 -> 0 | Y123: =SUMIF(Q116:X116,"SI",Q123:X123) -> 0 | Z123: 0
